Workbook

Sheet الوارد
B2: رقم الشيك | C2: تاريخ الشيك | D2: المبلغ الوارد | E2: جهة الورود | F2: سبب ورود المبلغ | G2: رقم إذن التوريد | H2: تاريخ إذن التوريد | I2: ملاحظات الوارد | J2: مبلغ التسوية | K2: رقم التسوية | L2: تاريخ التسوية | M2: رقم إذن صرف | N2: ملاحظات التسويات
A3: =IF(وارد.المركزية[[#This Row],[رقم الشيك]]="","",ROW()-2) -> 1 | B3: إذن توريد 1275 | C3: 2025-07-02 | D3: 259617.76 | E3: 1275 | F3: إيصالات موردة | G3: 1275 | H3: 2025-07-02 | I3: إيداع الإيصال المسلم للمالية | J3: 164579.27 | K3: 1 | L3: 2025-07-02 | M3: 241 | N3: تراخيص
A4: =IF(وارد.المركزية[[#This Row],[رقم الشيك]]="","",ROW()-2) -> 2 | B4: ش 2121915228 العقاري | C4: 2025-07-01 | D4: 120000 | E4: البضائع | F4: تراخيص | G4: 1272 | H4: 2025-07-02 | J4: 136246.63 | K4: 2 | L4: 2025-07-09 | M4: 242 | N4: مشتريات
A5: =IF(وارد.المركزية[[#This Row],[رقم الشيك]]="","",ROW()-2) -> 3 | B5: ش 2121915229 العقاري | C5: 2025-07-01 | D5: 150000 | E5: البضائع | F5: مشتريات | G5: 1272 | H5: 2025-07-02 | J5: 69756.7 | K5: 3 | L5: 2025-07-10 | M5: 243 | N5: مشتريات
A6: =IF(وارد.المركزية[[#This Row],[رقم الشيك]]="","",ROW()-2) -> 4 | B6: ش 2121915230 العقاري | C6: 2025-07-01 | D6: 150000 | E6: البضائع | F6: مشتريات | G6: 1272 | H6: 2025-07-02
A7: =IF(وارد.المركزية[[#This Row],[رقم الشيك]]="","",ROW()-2) -> 5 | B7: ش 2121915231 العقاري | C7: 2025-07-01 | D7: 150000 | E7: البضائع | F7: مشتريات | G7: 1272 | H7: 2025-07-02 | I7: لشراء بطاريات
A8: =IF(وارد.المركزية[[#This Row],[رقم الشيك]]="","",ROW()-2) -> 6 | B8: ش 21231915254 العقاري | C8: 2025-07-08 | D8: 6000 | E8: البضائع | F8: مشتريات | G8: 1276 | H8: 2025-07-09
A9: =IF(وارد.المركزية[[#This Row],[رقم الشيك]]="","",ROW()-2) -> 7 | B9: ش 2121915262 العقاري | C9: 2025-07-09 | D9: 136246.63 | E9: البضائع | F9: مشتريات | G9: 1277 | H9: 2025-07-13
A10: =IF(وارد.المركزية[[#This Row],[رقم الشيك]]="","",ROW()-2) -> 8 | B10: ش 2121915266 العقاري | C10: 2025-07-13 | D10: 100000 | E10: البضائع | F10: تراخيص | G10: 1278 | H10: 2025-07-13
A11: =IF(وارد.المركزية[[#This Row],[رقم الشيك]]="","",ROW()-2) -> 9 | B11: ش 2121915270 | C11: 2025-07-15 | D11: 150000 | E11: البضائع | F11: مشتريات | G11: 1279 | H11: 2025-07-15
A12: =IF(وارد.المركزية[[#This Row],[رقم الشيك]]="","",ROW()-2) -> 
A13: =IF(وارد.المركزية[[#This Row],[رقم الشيك]]="","",ROW()-2) -> 
A14: =IF(وارد.المركزية[[#This Row],[رقم الشيك]]="","",ROW()-2) -> 
A15: =IF(وارد.المركزية[[#This Row],[رقم الشيك]]="","",ROW()-2) -> 
A16: =IF(وارد.المركزية[[#This Row],[رقم الشيك]]="","",ROW()-2) -> 
A17: =IF(وارد.المركزية[[#This Row],[رقم الشيك]]="","",ROW()-2) -> 
A20: =IF(وارد.المركزية[[#This Row],[رقم الشيك]]="","",ROW()-2) -> 
A21: =IF(وارد.المركزية[[#This Row],[رقم الشيك]]="","",ROW()-2) -> 
A22: =IF(وارد.المركزية[[#This Row],[رقم الشيك]]="","",ROW()-2) -> 
A23: =IF(وارد.المركزية[[#This Row],[رقم الشيك]]="","",ROW()-2) -> 
A24: =IF(وارد.المركزية[[#This Row],[رقم الشيك]]="","",ROW()-2) -> 
A25: =IF(وارد.المركزية[[#This Row],[رقم الشيك]]="","",ROW()-2) -> 
A26: =IF(وارد.المركزية[[#This Row],[رقم الشيك]]="","",ROW()-2) -> 
A27: =IF(وارد.المركزية[[#This Row],[رقم الشيك]]="","",ROW()-2) -> 
A28: =IF(وارد.المركزية[[#This Row],[رقم الشيك]]="","",ROW()-2) -> 
A29: =IF(وارد.المركزية[[#This Row],[رقم الشيك]]="","",ROW()-2) -> 
A30: =IF(وارد.المركزية[[#This Row],[رقم الشيك]]="","",ROW()-2) -> 
A39: =IF(وارد.المركزية[[#This Row],[رقم الشيك]]="","",ROW()-2) -> 
A40: =IF(وارد.المركزية[[#This Row],[رقم الشيك]]="","",ROW()-2) ->  | B40: Total | D40: =SUBTOTAL(109,وارد.المركزية[المبلغ الوارد]) -> 1221864.39 | J40: =SUBTOTAL(109,وارد.المركزية[مبلغ التسوية]) -> 370582.6
D42: =المنصرف!G718+المنصرف!G720 -> 1221864.39 | I42: =وارد.المركزية[[#Totals],[المبلغ الوارد]]-وارد.المركزية[[#Totals],[مبلغ التسوية]] -> 851281.79 | L42: ='بيان العهد والتسويات'!D381-وارد.المركزية[[#Totals],[مبلغ التسوية]] -> 248671.46 | O42: جرد الخزينة المركزية | U42: جهة التشغيل | V42: الاسم | W42: العهدة المتبقية
O43: المبالغ الواردة | P43: =وارد.المركزية[[#Totals],[المبلغ الوارد]] -> 1221864.39 | Q43: التسويات | R43: =وارد.المركزية[[#Totals],[مبلغ التسوية]] -> 370582.6 | U43: ='بيان العهد والتسويات'!C389 -> مشتريات | V43: ='بيان العهد والتسويات'!D389 -> محمد أحمد السيد خليل | W43: ='بيان العهد والتسويات'!E389 -> 298451.38
Q44: مبالغ طرف أمناء العهد | R44: ='بيان العهد والتسويات'!D382 -> 602610.33 | U44: ='بيان العهد والتسويات'!C390 -> الخزينة | V44: ='بيان العهد والتسويات'!D390 -> محسن محمد عبد المحسن | W44: ='بيان العهد والتسويات'!E390 -> 0
Q45: مستندات تحت التسوية | R45: =المنصرف!K718 -> 248671.46 | U45: ='بيان العهد والتسويات'!C391 -> تراخيص | V45: ='بيان العهد والتسويات'!D391 -> محمد إبراهيم علي | W45: ='بيان العهد والتسويات'!E391 -> 296371.46
Q46: نقدية متبقية | R46: =المنصرف!G720 -> 0 | U46: ='بيان العهد والتسويات'!C392 -> قانونية | V46: ='بيان العهد والتسويات'!D392 -> هشام حنفي سليم قطب | W46: ='بيان العهد والتسويات'!E392 -> 7787.49
O47: الأجمالي | P47: =SUM(P43) -> 1221864.39 | Q47: الإجمالي | R47: =SUM(R43:R46) -> 1221864.39 | U47: ='بيان العهد والتسويات'!C393 -> تشغيل مركزية | V47: ='بيان العهد والتسويات'!D393 -> مصطفى علي إبراهيم | W47: ='بيان العهد والتسويات'!E393 -> 0
O48: الفرق | P48: =P47-R47 -> 0 | U48: ='بيان العهد والتسويات'!C394 -> رفع كفاءة | V48: ='بيان العهد والتسويات'!D394 -> عميد/ محمد عبد التواب | W48: ='بيان العهد والتسويات'!E394 -> 0
U49: ='بيان العهد والتسويات'!C395 -> سلندر للأعمال الميكانيكية | V49: ='بيان العهد والتسويات'!D395 -> محمود مصطفى حلمي | W49: ='بيان العهد والتسويات'!E395 -> 0
U50: ='بيان العهد والتسويات'!C396 -> رئيس قطاع الفنية | V50: ='بيان العهد والتسويات'!D396 -> ناهد حسن توفيق | W50: ='بيان العهد والتسويات'!E396 -> 0
U51: ='بيان العهد والتسويات'!C397 -> 0 | V51: ='بيان العهد والتسويات'!D397 -> 0 | W51: ='بيان العهد والتسويات'!E397 -> 0
U52: ='بيان العهد والتسويات'!C398 -> 0 | V52: ='بيان العهد والتسويات'!D398 -> 0 | W52: ='بيان العهد والتسويات'!E398 -> 0
U53: ='بيان العهد والتسويات'!C399 -> 0 | V53: ='بيان العهد والتسويات'!D399 -> 0 | W53: ='بيان العهد والتسويات'!E399 -> 0
U54: ='بيان العهد والتسويات'!C400 -> 0 | V54: ='بيان العهد والتسويات'!D400 -> 0 | W54: ='بيان العهد والتسويات'!E400 -> 0
U55: ='بيان العهد والتسويات'!C401 -> 0 | V55: ='بيان العهد والتسويات'!D401 -> 0 | W55: ='بيان العهد والتسويات'!E401 -> 0
U56: ='بيان العهد والتسويات'!C402 -> 0 | V56: ='بيان العهد والتسويات'!D402 -> 0 | W56: ='بيان العهد والتسويات'!E402 -> 0
U57: ='بيان العهد والتسويات'!C403 -> 0 | V57: ='بيان العهد والتسويات'!D403 -> 0 | W57: ='بيان العهد والتسويات'!E403 -> 0
U58: ='بيان العهد والتسويات'!C404 -> 0 | V58: ='بيان العهد والتسويات'!D404 -> 0 | W58: ='بيان العهد والتسويات'!E404 -> 0
U59: ='بيان العهد والتسويات'!C405 -> 0 | V59: ='بيان العهد والتسويات'!D405 -> 0 | W59: ='بيان العهد والتسويات'!E405 -> 0
U60: ='بيان العهد والتسويات'!C406 -> 0 | V60: ='بيان العهد والتسويات'!D406 -> 0 | W60: ='بيان العهد والتسويات'!E406 -> 0
U61: ='بيان العهد والتسويات'!C407 -> 0 | V61: ='بيان العهد والتسويات'!D407 -> 0 | W61: ='بيان العهد والتسويات'!E407 -> 0
U62: ='بيان العهد والتسويات'!C408 -> الإجمالي | V62: ='بيان العهد والتسويات'!D408 -> 0 | W62: ='بيان العهد والتسويات'!E408 -> 602610.33

Sheet المنصرف
A2: عمود1 | B2: إذن الصرف ومافي حكمه | C2: تاريخ الصرف | D2: وقت الصرف | E2: اسم المنتفع | F2: الشركة التابع لها | G2: المبلغ المنصرف | H2: سبب الصرف | I2: ملاحظات الصرف | J2: مبلغ التسوية | K2: Column1
A3: =IF(E3=استعلام!$H$3,COUNTIF(المنصرف!$E$3:E3,استعلام!$H$3),"") -> 1 | B3: ضمن ل 447 | C3: 2025-07-01 | D3: 12:20:00 | E3: محمد إبراهيم علي | F3: تراخيص | G3: 240950.73 | H3: قيمة إيصال تم توريده وصرفه (بالجرد)
A4: =IF(E4=استعلام!$H$3,COUNTIF(المنصرف!$E$3:E4,استعلام!$H$3),"") ->  | B4: ل 442 | C4: 2025-07-01 | E4: محمد أحمد السيد خليل | F4: مشتريات | G4: 10879.54 | H4: قيمة إيصال تم توريده وصرفه (بالجرد)
A5: =IF(E5=استعلام!$H$3,COUNTIF(المنصرف!$E$3:E5,استعلام!$H$3),"") ->  | B5: ل 15543 | C5: 2025-07-01 | E5: هشام حنفي سليم قطب | F5: قانونية | G5: 7787.49 | H5: قيمة إيصال تم توريده وصرفه (بالجرد)
A6: =IF(E6=استعلام!$H$3,COUNTIF(المنصرف!$E$3:E6,استعلام!$H$3),"") ->  | B6: ل 444 | C6: 2025-07-02 | D6: 10:38:00 | E6: محمد أحمد السيد خليل | F6: مشتريات | G6: 150000 | H6: للصرف على المشتريات المركزية
A7: =IF(E7=استعلام!$H$3,COUNTIF(المنصرف!$E$3:E7,استعلام!$H$3),"") ->  | B7: ل 445 | C7: 2025-07-02 | D7: 10:39:00 | E7: محمد أحمد السيد خليل | F7: مشتريات | G7: 150000 | H7: شراء بطاريات | I7: تحويل المبلغ من م/ناهد حسن
A8: =IF(E8=استعلام!$H$3,COUNTIF(المنصرف!$E$3:E8,استعلام!$H$3),"") -> 2 | B8: ل 447 | C8: 2025-07-02 | D8: 12:19:00 | E8: محمد إبراهيم علي | F8: تراخيص | G8: 120000 | H8: للصرف على التراخيص
A9: =IF(E9=استعلام!$H$3,COUNTIF(المنصرف!$E$3:E9,استعلام!$H$3),"") -> 3 | B9: تسوية | C9: 2025-07-02 | D9: 12:21:00 | E9: محمد إبراهيم علي | F9: تراخيص | H9: إذن صرف 241 في 2/7/2025 | J9: 164579.27
A10: =IF(E10=استعلام!$H$3,COUNTIF(المنصرف!$E$3:E10,استعلام!$H$3),"") ->  | B10: ل 448 | C10: 2025-07-06 | D10: 11:20:00 | E10: محمد أحمد السيد خليل | F10: مشتريات | G10: 50000 | H10: للصرف على المشتريات المركزية
A11: =IF(E11=استعلام!$H$3,COUNTIF(المنصرف!$E$3:E11,استعلام!$H$3),"") ->  | B11: ل 449 | C11: 2025-07-06 | D11: 12:05:00 | E11: محمد أحمد السيد خليل | F11: مشتريات | G11: 100000 | H11: قيمة عدد3فاتورة بمبالغ/30780+10830+33926.4
A12: =IF(E12=استعلام!$H$3,COUNTIF(المنصرف!$E$3:E12,استعلام!$H$3),"") ->  | C12: 2025-07-08 | D12: 14:00:00 | E12: محمد أحمد السيد خليل | F12: مشتريات | G12: 6000 | H12: مشتريات
A13: =IF(E13=استعلام!$H$3,COUNTIF(المنصرف!$E$3:E13,استعلام!$H$3),"") ->  | B13: تسوية | C13: 2025-07-09 | D13: 11:56:00 | E13: محمد أحمد السيد خليل | F13: مشتريات | H13: إذن صرف 242 في 9/7/2025 | J13: 43293.43
A14: =IF(E14=استعلام!$H$3,COUNTIF(المنصرف!$E$3:E14,استعلام!$H$3),"") ->  | B14: تسوية | C14: 2025-07-09 | D14: 11:56:00 | E14: محمد أحمد السيد خليل | F14: مشتريات | H14: إذن صرف 242 في 9/7/2025 | J14: 84463.2
A15: =IF(E15=استعلام!$H$3,COUNTIF(المنصرف!$E$3:E15,استعلام!$H$3),"") ->  | B15: تسوية | C15: 2025-07-09 | D15: 11:56:00 | E15: محمد أحمد السيد خليل | F15: مشتريات | H15: إذن صرف 242 في 9/7/2025 | I15: فواتير كاوتش | J15: 8490
A16: =IF(E16=استعلام!$H$3,COUNTIF(المنصرف!$E$3:E16,استعلام!$H$3),"") ->  | B16: تسوية | C16: 2025-07-10 | D16: 09:16:00 | E16: محمد أحمد السيد خليل | F16: مشتريات | H16: إذن صرف 243 في 10/7/2025 | J16: 9860
A17: =IF(E17=استعلام!$H$3,COUNTIF(المنصرف!$E$3:E17,استعلام!$H$3),"") ->  | B17: تسوية | C17: 2025-07-10 | D17: 09:16:00 | E17: محمد أحمد السيد خليل | F17: مشتريات | H17: إذن صرف 243 في 10/7/2025 | J17: 59896.7
A18: =IF(E18=استعلام!$H$3,COUNTIF(المنصرف!$E$3:E18,استعلام!$H$3),"") ->  | B18: تسوية | C18: 2025-07-13 | D18: 11:08:00 | E18: محمد أحمد السيد خليل | F18: مشتريات | H18: إذن صرف 244 في 13/7/2025 | J18: 92630
A19: =IF(E19=استعلام!$H$3,COUNTIF(المنصرف!$E$3:E19,استعلام!$H$3),"") ->  | B19: تسوية | C19: 2025-07-13 | D19: 11:09:00 | E19: محمد أحمد السيد خليل | F19: مشتريات | H19: إذن صرف 244 في 13/7/2025 | J19: 970
A20: =IF(E20=استعلام!$H$3,COUNTIF(المنصرف!$E$3:E20,استعلام!$H$3),"") ->  | B20: ل | C20: 2025-07-13 | D20: 11:09:00 | E20: محمد أحمد السيد خليل | F20: مشتريات | G20: 136246.63 | H20: للمشتريات
A21: =IF(E21=استعلام!$H$3,COUNTIF(المنصرف!$E$3:E21,استعلام!$H$3),"") -> 4 | B21: ل | C21: 2025-07-13 | D21: 13:41:00 | E21: محمد إبراهيم علي | F21: تراخيص | G21: 100000 | H21: رخص
A22: =IF(E22=استعلام!$H$3,COUNTIF(المنصرف!$E$3:E22,استعلام!$H$3),"") ->  | B22: تسوية | C22: 2025-07-16 | D22: 09:23:00 | E22: محمد أحمد السيد خليل | F22: مشتريات | H22: إذن صرف 245 في 16/7/2025 | J22: 155071.46
A23: =IF(E23=استعلام!$H$3,COUNTIF(المنصرف!$E$3:E23,استعلام!$H$3),"") ->  | B23: ل | C23: 2025-07-16 | D23: 10:15:00 | E23: محمد أحمد السيد خليل | F23: مشتريات | G23: 150000 | H23: مشتريات
A24: =IF(E24=استعلام!$H$3,COUNTIF(المنصرف!$E$3:E24,استعلام!$H$3),"") -> 
A25: =IF(E25=استعلام!$H$3,COUNTIF(المنصرف!$E$3:E25,استعلام!$H$3),"") -> 
A26: =IF(E26=استعلام!$H$3,COUNTIF(المنصرف!$E$3:E26,استعلام!$H$3),"") -> 
A27: =IF(E27=استعلام!$H$3,COUNTIF(المنصرف!$E$3:E27,استعلام!$H$3),"") -> 
A28: =IF(E28=استعلام!$H$3,COUNTIF(المنصرف!$E$3:E28,استعلام!$H$3),"") -> 
A29: =IF(E29=استعلام!$H$3,COUNTIF(المنصرف!$E$3:E29,استعلام!$H$3),"") -> 
A30: =IF(E30=استعلام!$H$3,COUNTIF(المنصرف!$E$3:E30,استعلام!$H$3),"") -> 
A31: =IF(E31=استعلام!$H$3,COUNTIF(المنصرف!$E$3:E31,استعلام!$H$3),"") -> 
A32: =IF(E32=استعلام!$H$3,COUNTIF(المنصرف!$E$3:E32,استعلام!$H$3),"") -> 
A33: =IF(E33=استعلام!$H$3,COUNTIF(المنصرف!$E$3:E33,استعلام!$H$3),"") -> 
A34: =IF(E34=استعلام!$H$3,COUNTIF(المنصرف!$E$3:E34,استعلام!$H$3),"") -> 
A35: =IF(E35=استعلام!$H$3,COUNTIF(المنصرف!$E$3:E35,استعلام!$H$3),"") -> 
A36: =IF(E36=استعلام!$H$3,COUNTIF(المنصرف!$E$3:E36,استعلام!$H$3),"") -> 
A37: =IF(E37=استعلام!$H$3,COUNTIF(المنصرف!$E$3:E37,استعلام!$H$3),"") -> 
A38: =IF(E38=استعلام!$H$3,COUNTIF(المنصرف!$E$3:E38,استعلام!$H$3),"") -> 
A39: =IF(E39=استعلام!$H$3,COUNTIF(المنصرف!$E$3:E39,استعلام!$H$3),"") -> 
A40: =IF(E40=استعلام!$H$3,COUNTIF(المنصرف!$E$3:E40,استعلام!$H$3),"") -> 
A41: =IF(E41=استعلام!$H$3,COUNTIF(المنصرف!$E$3:E41,استعلام!$H$3),"") -> 
A42: =IF(E42=استعلام!$H$3,COUNTIF(المنصرف!$E$3:E42,استعلام!$H$3),"") -> 
A43: =IF(E43=استعلام!$H$3,COUNTIF(المنصرف!$E$3:E43,استعلام!$H$3),"") -> 
A44: =IF(E44=استعلام!$H$3,COUNTIF(المنصرف!$E$3:E44,استعلام!$H$3),"") -> 
A45: =IF(E45=استعلام!$H$3,COUNTIF(المنصرف!$E$3:E45,استعلام!$H$3),"") -> 
A46: =IF(E46=استعلام!$H$3,COUNTIF(المنصرف!$E$3:E46,استعلام!$H$3),"") -> 
A47: =IF(E47=استعلام!$H$3,COUNTIF(المنصرف!$E$3:E47,استعلام!$H$3),"") -> 
A48: =IF(E48=استعلام!$H$3,COUNTIF(المنصرف!$E$3:E48,استعلام!$H$3),"") -> 
A49: =IF(E49=استعلام!$H$3,COUNTIF(المنصرف!$E$3:E49,استعلام!$H$3),"") -> 
A50: =IF(E50=استعلام!$H$3,COUNTIF(المنصرف!$E$3:E50,استعلام!$H$3),"") -> 
A51: =IF(E51=استعلام!$H$3,COUNTIF(المنصرف!$E$3:E51,استعلام!$H$3),"") -> 
A52: =IF(E52=استعلام!$H$3,COUNTIF(المنصرف!$E$3:E52,استعلام!$H$3),"") -> 
A53: =IF(E53=استعلام!$H$3,COUNTIF(المنصرف!$E$3:E53,استعلام!$H$3),"") -> 
A54: =IF(E54=استعلام!$H$3,COUNTIF(المنصرف!$E$3:E54,استعلام!$H$3),"") -> 
A55: =IF(E55=استعلام!$H$3,COUNTIF(المنصرف!$E$3:E55,استعلام!$H$3),"") -> 
A56: =IF(E56=استعلام!$H$3,COUNTIF(المنصرف!$E$3:E56,استعلام!$H$3),"") -> 
A57: =IF(E57=استعلام!$H$3,COUNTIF(المنصرف!$E$3:E57,استعلام!$H$3),"") -> 
A58: =IF(E58=استعلام!$H$3,COUNTIF(المنصرف!$E$3:E58,استعلام!$H$3),"") -> 
A59: =IF(E59=استعلام!$H$3,COUNTIF(المنصرف!$E$3:E59,استعلام!$H$3),"") -> 
A60: =IF(E60=استعلام!$H$3,COUNTIF(المنصرف!$E$3:E60,استعلام!$H$3),"") -> 
A61: =IF(E61=استعلام!$H$3,COUNTIF(المنصرف!$E$3:E61,استعلام!$H$3),"") -> 
A62: =IF(E62=استعلام!$H$3,COUNTIF(المنصرف!$E$3:E62,استعلام!$H$3),"") -> 
A63: =IF(E63=استعلام!$H$3,COUNTIF(المنصرف!$E$3:E63,استعلام!$H$3),"") -> 
A64: =IF(E64=استعلام!$H$3,COUNTIF(المنصرف!$E$3:E64,استعلام!$H$3),"") -> 
A65: =IF(E65=استعلام!$H$3,COUNTIF(المنصرف!$E$3:E65,استعلام!$H$3),"") -> 
A66: =IF(E66=استعلام!$H$3,COUNTIF(المنصرف!$E$3:E66,استعلام!$H$3),"") -> 
A67: =IF(E67=استعلام!$H$3,COUNTIF(المنصرف!$E$3:E67,استعلام!$H$3),"") -> 
A68: =IF(E68=استعلام!$H$3,COUNTIF(المنصرف!$E$3:E68,استعلام!$H$3),"") -> 
A69: =IF(E69=استعلام!$H$3,COUNTIF(المنصرف!$E$3:E69,استعلام!$H$3),"") -> 
A70: =IF(E70=استعلام!$H$3,COUNTIF(المنصرف!$E$3:E70,استعلام!$H$3),"") -> 
A71: =IF(E71=استعلام!$H$3,COUNTIF(المنصرف!$E$3:E71,استعلام!$H$3),"") -> 
A72: =IF(E72=استعلام!$H$3,COUNTIF(المنصرف!$E$3:E72,استعلام!$H$3),"") -> 
A73: =IF(E73=استعلام!$H$3,COUNTIF(المنصرف!$E$3:E73,استعلام!$H$3),"") -> 
A74: =IF(E74=استعلام!$H$3,COUNTIF(المنصرف!$E$3:E74,استعلام!$H$3),"") -> 
A75: =IF(E75=استعلام!$H$3,COUNTIF(المنصرف!$E$3:E75,استعلام!$H$3),"") -> 
A76: =IF(E76=استعلام!$H$3,COUNTIF(المنصرف!$E$3:E76,استعلام!$H$3),"") -> 
A77: =IF(E77=استعلام!$H$3,COUNTIF(المنصرف!$E$3:E77,استعلام!$H$3),"") -> 
A78: =IF(E78=استعلام!$H$3,COUNTIF(المنصرف!$E$3:E78,استعلام!$H$3),"") -> 
A79: =IF(E79=استعلام!$H$3,COUNTIF(المنصرف!$E$3:E79,استعلام!$H$3),"") -> 
A80: =IF(E80=استعلام!$H$3,COUNTIF(المنصرف!$E$3:E80,استعلام!$H$3),"") -> 
A81: =IF(E81=استعلام!$H$3,COUNTIF(المنصرف!$E$3:E81,استعلام!$H$3),"") -> 
A82: =IF(E82=استعلام!$H$3,COUNTIF(المنصرف!$E$3:E82,استعلام!$H$3),"") -> 
A83: =IF(E83=استعلام!$H$3,COUNTIF(المنصرف!$E$3:E83,استعلام!$H$3),"") -> 
A84: =IF(E84=استعلام!$H$3,COUNTIF(المنصرف!$E$3:E84,استعلام!$H$3),"") -> 
A85: =IF(E85=استعلام!$H$3,COUNTIF(المنصرف!$E$3:E85,استعلام!$H$3),"") -> 
A86: =IF(E86=استعلام!$H$3,COUNTIF(المنصرف!$E$3:E86,استعلام!$H$3),"") -> 
A87: =IF(E87=استعلام!$H$3,COUNTIF(المنصرف!$E$3:E87,استعلام!$H$3),"") -> 
A88: =IF(E88=استعلام!$H$3,COUNTIF(المنصرف!$E$3:E88,استعلام!$H$3),"") -> 
A89: =IF(E89=استعلام!$H$3,COUNTIF(المنصرف!$E$3:E89,استعلام!$H$3),"") -> 
A90: =IF(E90=استعلام!$H$3,COUNTIF(المنصرف!$E$3:E90,استعلام!$H$3),"") -> 
A91: =IF(E91=استعلام!$H$3,COUNTIF(المنصرف!$E$3:E91,استعلام!$H$3),"") -> 
A92: =IF(E92=استعلام!$H$3,COUNTIF(المنصرف!$E$3:E92,استعلام!$H$3),"") -> 
A93: =IF(E93=استعلام!$H$3,COUNTIF(المنصرف!$E$3:E93,استعلام!$H$3),"") -> 
A94: =IF(E94=استعلام!$H$3,COUNTIF(المنصرف!$E$3:E94,استعلام!$H$3),"") -> 
A95: =IF(E95=استعلام!$H$3,COUNTIF(المنصرف!$E$3:E95,استعلام!$H$3),"") -> 
A96: =IF(E96=استعلام!$H$3,COUNTIF(المنصرف!$E$3:E96,استعلام!$H$3),"") -> 
A97: =IF(E97=استعلام!$H$3,COUNTIF(المنصرف!$E$3:E97,استعلام!$H$3),"") -> 
A98: =IF(E98=استعلام!$H$3,COUNTIF(المنصرف!$E$3:E98,استعلام!$H$3),"") -> 
A99: =IF(E99=استعلام!$H$3,COUNTIF(المنصرف!$E$3:E99,استعلام!$H$3),"") -> 
A100: =IF(E100=استعلام!$H$3,COUNTIF(المنصرف!$E$3:E100,استعلام!$H$3),"") -> 
A101: =IF(E101=استعلام!$H$3,COUNTIF(المنصرف!$E$3:E101,استعلام!$H$3),"") -> 
A102: =IF(E102=استعلام!$H$3,COUNTIF(المنصرف!$E$3:E102,استعلام!$H$3),"") -> 
A103: =IF(E103=استعلام!$H$3,COUNTIF(المنصرف!$E$3:E103,استعلام!$H$3),"") -> 
A104: =IF(E104=استعلام!$H$3,COUNTIF(المنصرف!$E$3:E104,استعلام!$H$3),"") -> 
A105: =IF(E105=استعلام!$H$3,COUNTIF(المنصرف!$E$3:E105,استعلام!$H$3),"") -> 
A106: =IF(E106=استعلام!$H$3,COUNTIF(المنصرف!$E$3:E106,استعلام!$H$3),"") -> 
A107: =IF(E107=استعلام!$H$3,COUNTIF(المنصرف!$E$3:E107,استعلام!$H$3),"") -> 
A108: =IF(E108=استعلام!$H$3,COUNTIF(المنصرف!$E$3:E108,استعلام!$H$3),"") -> 
A109: =IF(E109=استعلام!$H$3,COUNTIF(المنصرف!$E$3:E109,استعلام!$H$3),"") -> 
A110: =IF(E110=استعلام!$H$3,COUNTIF(المنصرف!$E$3:E110,استعلام!$H$3),"") -> 
A111: =IF(E111=استعلام!$H$3,COUNTIF(المنصرف!$E$3:E111,استعلام!$H$3),"") -> 
A112: =IF(E112=استعلام!$H$3,COUNTIF(المنصرف!$E$3:E112,استعلام!$H$3),"") -> 
A113: =IF(E113=استعلام!$H$3,COUNTIF(المنصرف!$E$3:E113,استعلام!$H$3),"") -> 
A114: =IF(E114=استعلام!$H$3,COUNTIF(المنصرف!$E$3:E114,استعلام!$H$3),"") -> 
A115: =IF(E115=استعلام!$H$3,COUNTIF(المنصرف!$E$3:E115,استعلام!$H$3),"") -> 
A116: =IF(E116=استعلام!$H$3,COUNTIF(المنصرف!$E$3:E116,استعلام!$H$3),"") -> 
A117: =IF(E117=استعلام!$H$3,COUNTIF(المنصرف!$E$3:E117,استعلام!$H$3),"") -> 
A118: =IF(E118=استعلام!$H$3,COUNTIF(المنصرف!$E$3:E118,استعلام!$H$3),"") -> 
A119: =IF(E119=استعلام!$H$3,COUNTIF(المنصرف!$E$3:E119,استعلام!$H$3),"") -> 
A120: =IF(E120=استعلام!$H$3,COUNTIF(المنصرف!$E$3:E120,استعلام!$H$3),"") -> 
A121: =IF(E121=استعلام!$H$3,COUNTIF(المنصرف!$E$3:E121,استعلام!$H$3),"") -> 
A122: =IF(E122=استعلام!$H$3,COUNTIF(المنصرف!$E$3:E122,استعلام!$H$3),"") -> 
A123: =IF(E123=استعلام!$H$3,COUNTIF(المنصرف!$E$3:E123,استعلام!$H$3),"") -> 
A124: =IF(E124=استعلام!$H$3,COUNTIF(المنصرف!$E$3:E124,استعلام!$H$3),"") -> 
A125: =IF(E125=استعلام!$H$3,COUNTIF(المنصرف!$E$3:E125,استعلام!$H$3),"") -> 
A126: =IF(E126=استعلام!$H$3,COUNTIF(المنصرف!$E$3:E126,استعلام!$H$3),"") -> 
A127: =IF(E127=استعلام!$H$3,COUNTIF(المنصرف!$E$3:E127,استعلام!$H$3),"") -> 
A128: =IF(E128=استعلام!$H$3,COUNTIF(المنصرف!$E$3:E128,استعلام!$H$3),"") -> 
A129: =IF(E129=استعلام!$H$3,COUNTIF(المنصرف!$E$3:E129,استعلام!$H$3),"") -> 
A130: =IF(E130=استعلام!$H$3,COUNTIF(المنصرف!$E$3:E130,استعلام!$H$3),"") -> 
A131: =IF(E131=استعلام!$H$3,COUNTIF(المنصرف!$E$3:E131,استعلام!$H$3),"") -> 
A132: =IF(E132=استعلام!$H$3,COUNTIF(المنصرف!$E$3:E132,استعلام!$H$3),"") -> 
A133: =IF(E133=استعلام!$H$3,COUNTIF(المنصرف!$E$3:E133,استعلام!$H$3),"") -> 
A134: =IF(E134=استعلام!$H$3,COUNTIF(المنصرف!$E$3:E134,استعلام!$H$3),"") -> 
A135: =IF(E135=استعلام!$H$3,COUNTIF(المنصرف!$E$3:E135,استعلام!$H$3),"") -> 
A136: =IF(E136=استعلام!$H$3,COUNTIF(المنصرف!$E$3:E136,استعلام!$H$3),"") -> 
A137: =IF(E137=استعلام!$H$3,COUNTIF(المنصرف!$E$3:E137,استعلام!$H$3),"") -> 
A138: =IF(E138=استعلام!$H$3,COUNTIF(المنصرف!$E$3:E138,استعلام!$H$3),"") -> 
A139: =IF(E139=استعلام!$H$3,COUNTIF(المنصرف!$E$3:E139,استعلام!$H$3),"") -> 
A140: =IF(E140=استعلام!$H$3,COUNTIF(المنصرف!$E$3:E140,استعلام!$H$3),"") -> 
A141: =IF(E141=استعلام!$H$3,COUNTIF(المنصرف!$E$3:E141,استعلام!$H$3),"") -> 
A142: =IF(E142=استعلام!$H$3,COUNTIF(المنصرف!$E$3:E142,استعلام!$H$3),"") -> 
A143: =IF(E143=استعلام!$H$3,COUNTIF(المنصرف!$E$3:E143,استعلام!$H$3),"") -> 
A144: =IF(E144=استعلام!$H$3,COUNTIF(المنصرف!$E$3:E144,استعلام!$H$3),"") -> 
A145: =IF(E145=استعلام!$H$3,COUNTIF(المنصرف!$E$3:E145,استعلام!$H$3),"") -> 
A146: =IF(E146=استعلام!$H$3,COUNTIF(المنصرف!$E$3:E146,استعلام!$H$3),"") -> 
A147: =IF(E147=استعلام!$H$3,COUNTIF(المنصرف!$E$3:E147,استعلام!$H$3),"") -> 
A148: =IF(E148=استعلام!$H$3,COUNTIF(المنصرف!$E$3:E148,استعلام!$H$3),"") -> 
A149: =IF(E149=استعلام!$H$3,COUNTIF(المنصرف!$E$3:E149,استعلام!$H$3),"") -> 
A150: =IF(E150=استعلام!$H$3,COUNTIF(المنصرف!$E$3:E150,استعلام!$H$3),"") -> 
A151: =IF(E151=استعلام!$H$3,COUNTIF(المنصرف!$E$3:E151,استعلام!$H$3),"") -> 
A152: =IF(E152=استعلام!$H$3,COUNTIF(المنصرف!$E$3:E152,استعلام!$H$3),"") -> 
A153: =IF(E153=استعلام!$H$3,COUNTIF(المنصرف!$E$3:E153,استعلام!$H$3),"") -> 
A154: =IF(E154=استعلام!$H$3,COUNTIF(المنصرف!$E$3:E154,استعلام!$H$3),"") -> 
A155: =IF(E155=استعلام!$H$3,COUNTIF(المنصرف!$E$3:E155,استعلام!$H$3),"") -> 
A156: =IF(E156=استعلام!$H$3,COUNTIF(المنصرف!$E$3:E156,استعلام!$H$3),"") -> 
A157: =IF(E157=استعلام!$H$3,COUNTIF(المنصرف!$E$3:E157,استعلام!$H$3),"") -> 
A158: =IF(E158=استعلام!$H$3,COUNTIF(المنصرف!$E$3:E158,استعلام!$H$3),"") -> 
A159: =IF(E159=استعلام!$H$3,COUNTIF(المنصرف!$E$3:E159,استعلام!$H$3),"") -> 
A160: =IF(E160=استعلام!$H$3,COUNTIF(المنصرف!$E$3:E160,استعلام!$H$3),"") -> 
A161: =IF(E161=استعلام!$H$3,COUNTIF(المنصرف!$E$3:E161,استعلام!$H$3),"") -> 
A162: =IF(E162=استعلام!$H$3,COUNTIF(المنصرف!$E$3:E162,استعلام!$H$3),"") -> 
A163: =IF(E163=استعلام!$H$3,COUNTIF(المنصرف!$E$3:E163,استعلام!$H$3),"") -> 
A164: =IF(E164=استعلام!$H$3,COUNTIF(المنصرف!$E$3:E164,استعلام!$H$3),"") -> 
A165: =IF(E165=استعلام!$H$3,COUNTIF(المنصرف!$E$3:E165,استعلام!$H$3),"") -> 
A166: =IF(E166=استعلام!$H$3,COUNTIF(المنصرف!$E$3:E166,استعلام!$H$3),"") -> 
A167: =IF(E167=استعلام!$H$3,COUNTIF(المنصرف!$E$3:E167,استعلام!$H$3),"") -> 
A168: =IF(E168=استعلام!$H$3,COUNTIF(المنصرف!$E$3:E168,استعلام!$H$3),"") -> 
A169: =IF(E169=استعلام!$H$3,COUNTIF(المنصرف!$E$3:E169,استعلام!$H$3),"") -> 
A170: =IF(E170=استعلام!$H$3,COUNTIF(المنصرف!$E$3:E170,استعلام!$H$3),"") -> 
A171: =IF(E171=استعلام!$H$3,COUNTIF(المنصرف!$E$3:E171,استعلام!$H$3),"") -> 
A172: =IF(E172=استعلام!$H$3,COUNTIF(المنصرف!$E$3:E172,استعلام!$H$3),"") -> 
A173: =IF(E173=استعلام!$H$3,COUNTIF(المنصرف!$E$3:E173,استعلام!$H$3),"") -> 
A174: =IF(E174=استعلام!$H$3,COUNTIF(المنصرف!$E$3:E174,استعلام!$H$3),"") -> 
A175: =IF(E175=استعلام!$H$3,COUNTIF(المنصرف!$E$3:E175,استعلام!$H$3),"") -> 
A176: =IF(E176=استعلام!$H$3,COUNTIF(المنصرف!$E$3:E176,استعلام!$H$3),"") -> 
A177: =IF(E177=استعلام!$H$3,COUNTIF(المنصرف!$E$3:E177,استعلام!$H$3),"") -> 
A178: =IF(E178=استعلام!$H$3,COUNTIF(المنصرف!$E$3:E178,استعلام!$H$3),"") -> 
A179: =IF(E179=استعلام!$H$3,COUNTIF(المنصرف!$E$3:E179,استعلام!$H$3),"") -> 
A180: =IF(E180=استعلام!$H$3,COUNTIF(المنصرف!$E$3:E180,استعلام!$H$3),"") -> 
A181: =IF(E181=استعلام!$H$3,COUNTIF(المنصرف!$E$3:E181,استعلام!$H$3),"") -> 
A182: =IF(E182=استعلام!$H$3,COUNTIF(المنصرف!$E$3:E182,استعلام!$H$3),"") -> 
A183: =IF(E183=استعلام!$H$3,COUNTIF(المنصرف!$E$3:E183,استعلام!$H$3),"") -> 
A184: =IF(E184=استعلام!$H$3,COUNTIF(المنصرف!$E$3:E184,استعلام!$H$3),"") -> 
A185: =IF(E185=استعلام!$H$3,COUNTIF(المنصرف!$E$3:E185,استعلام!$H$3),"") -> 
A186: =IF(E186=استعلام!$H$3,COUNTIF(المنصرف!$E$3:E186,استعلام!$H$3),"") -> 
A187: =IF(E187=استعلام!$H$3,COUNTIF(المنصرف!$E$3:E187,استعلام!$H$3),"") -> 
A188: =IF(E188=استعلام!$H$3,COUNTIF(المنصرف!$E$3:E188,استعلام!$H$3),"") -> 
A189: =IF(E189=استعلام!$H$3,COUNTIF(المنصرف!$E$3:E189,استعلام!$H$3),"") -> 
A190: =IF(E190=استعلام!$H$3,COUNTIF(المنصرف!$E$3:E190,استعلام!$H$3),"") -> 
A191: =IF(E191=استعلام!$H$3,COUNTIF(المنصرف!$E$3:E191,استعلام!$H$3),"") -> 
A192: =IF(E192=استعلام!$H$3,COUNTIF(المنصرف!$E$3:E192,استعلام!$H$3),"") -> 
A193: =IF(E193=استعلام!$H$3,COUNTIF(المنصرف!$E$3:E193,استعلام!$H$3),"") -> 
A194: =IF(E194=استعلام!$H$3,COUNTIF(المنصرف!$E$3:E194,استعلام!$H$3),"") -> 
A195: =IF(E195=استعلام!$H$3,COUNTIF(المنصرف!$E$3:E195,استعلام!$H$3),"") -> 
A196: =IF(E196=استعلام!$H$3,COUNTIF(المنصرف!$E$3:E196,استعلام!$H$3),"") -> 
A197: =IF(E197=استعلام!$H$3,COUNTIF(المنصرف!$E$3:E197,استعلام!$H$3),"") -> 
A198: =IF(E198=استعلام!$H$3,COUNTIF(المنصرف!$E$3:E198,استعلام!$H$3),"") -> 
A199: =IF(E199=استعلام!$H$3,COUNTIF(المنصرف!$E$3:E199,استعلام!$H$3),"") -> 
A200: =IF(E200=استعلام!$H$3,COUNTIF(المنصرف!$E$3:E200,استعلام!$H$3),"") -> 
A201: =IF(E201=استعلام!$H$3,COUNTIF(المنصرف!$E$3:E201,استعلام!$H$3),"") -> 
... 527 more rows

Sheet بيان العهد والتسويات
C2: عمود1 | D2: عمود2 | E2: عمود3 | F2: عمود4 | G2: عمود5 | H2: عمود6 | I2: عمود7 | J2: عمود8 | K2: عمود9 | L2: عمود10 | M2: عمود11 | N2: عمود12 | O2: عمود13 | P2: عمود14 | Q2: عمود15 | R2: عمود16 | S2: عمود17 | T2: عمود18 | U2: عمود19 | V2: عمود20 | W2: عمود21 | X2: عمود22 | Y2: عمود23 | Z2: عمود24 | AA2: عمود25 | AB2: عمود26 | AC2: عمود27 | AD2: عمود28 | AE2: عمود29 | AF2: عمود30 | AG2: عمود31 | AH2: عمود32 | AI2: عمود33 | AJ2: عمود34 | AK2: عمود35 | AL2: عمود342 | AM2: عمود353 | AN2: عمود364 | AO2: عمود375 | AP2: عمود386 | AQ2: عمود397 | AR2: عمود408 | AS2: عمود419 | AT2: عمود430 | AU2: عمود441 | AV2: عمود452 | AW2: عمود463 | AX2: عمود474 | AY2: عمود485 | AZ2: عمود496 | BA2: عمود507 | BB2: عمود518 | BC2: عمود529 | BD2: عمود540 | BE2: عمود551 | BF2: عمود562 | BG2: عمود573 | BH2: عمود584 | BI2: عمود595 | BJ2: عمود606 | BK2: عمود617 | BL2: عمود628 | BM2: عمود639 | BN2: عمود640 | BO2: عمود641 | BP2: عمود642 | BQ2: عمود643 | BR2: عمود644 | BS2: عمود645 | BT2: عمود646 | BU2: عمود647 | BV2: عمود648 | BW2: عمود649 | BX2: عمود650 | BY2: عمود651 | BZ2: عمود652 | CA2: عمود653 | CB2: عمود654 | CC2: عمود655 | CD2: عمود656 | CE2: عمود657 | CF2: عمود658 | CG2: عمود659 | CH2: عمود660 | CI2: عمود661 | CJ2: عمود662 | CK2: عمود663 | CL2: عمود664 | CM2: عمود665 | CN2: عمود666 | CO2: عمود667 | CP2: عمود668 | CQ2: عمود669 | CR2: عمود670 | CS2: عمود671 | CT2: عمود672 | CU2: عمود673 | CV2: عمود674 | CW2: عمود675 | CX2: عمود676 | CY2: عمود677 | CZ2: عمود678 | DA2: عمود679
C3: الاسم | D3: محمد أحمد السيد خليل | F3: محسن محمد عبد المحسن | H3: محمد إبراهيم علي | J3: هشام حنفي سليم قطب | L3: مصطفى علي إبراهيم | N3: عميد/ محمد عبد التواب | P3: محمود مصطفى حلمي | R3: ناهد حسن توفيق | T3: 0
C4: تاريخ الصرف | D4: المنصرف | E4: التسوية | F4: المنصرف2 | G4: التسوية3 | H4: المنصرف4 | I4: التسوية5 | J4: المنصرف6 | K4: التسوية7 | L4: المنصرف8 | M4: التسوية9 | N4: المنصرف10 | O4: التسوية11 | P4: المنصرف12 | Q4: التسوية13 | R4: المنصرف14 | S4: التسوية15 | T4: المنصرف16 | U4: التسوية17 | V4: المنصرف17 | W4: التسوية18 | X4: المنصرف19 | Y4: التسوية20 | Z4: المنصرف20 | AA4: التسوية21 | AB4: المنصرف22 | AC4: التسوية23 | AD4: المنصرف24 | AE4: التسوية25 | AF4: المنصرف26 | AG4: التسوية27 | AH4: المنصرف27 | AI4: التسوية28 | AJ4: المنصرف28 | AK4: التسوية29 | AL4: المنصرف29 | AM4: التسوية30 | AN4: المنصرف30 | AO4: التسوية31 | AP4: المنصرف31 | AQ4: التسوية32 | AR4: المنصرف32 | AS4: التسوية33 | AT4: المنصرف33 | AU4: التسوية34 | AV4: المنصرف34 | AW4: التسوية35 | AX4: المنصرف35 | AY4: التسوية36 | AZ4: المنصرف36 | BA4: التسوية37 | BB4: المنصرف37 | BC4: التسوية38 | BD4: المنصرف38 | BE4: التسوية39 | BF4: المنصرف39 | BG4: التسوية40 | BH4: المنصرف40 | BI4: التسوية41 | BJ4: المنصرف41 | BK4: التسوية42 | BL4: المنصرف42 | BM4: التسوية43 | BN4: المنصرف43 | BO4: التسوية44 | BP4: المنصرف44 | BQ4: التسوية45 | BR4: المنصرف45 | BS4: التسوية46 | BT4: المنصرف46 | BU4: التسوية47 | BV4: المنصرف47 | BW4: التسوية48 | BX4: المنصرف48 | BY4: التسوية49 | BZ4: المنصرف49 | CA4: التسوية50 | CB4: المنصرف50 | CC4: التسوية51 | CD4: المنصرف51 | CE4: التسوية52 | CF4: المنصرف52 | CG4: التسوية53 | CH4: المنصرف53 | CI4: التسوية54 | CJ4: المنصرف54 | CK4: التسوية55 | CL4: المنصرف55 | CM4: التسوية56 | CN4: المنصرف56 | CO4: التسوية57 | CP4: المنصرف57 | CQ4: التسوية58 | CR4: المنصرف58 | CS4: التسوية59 | CT4: المنصرف59 | CU4: التسوية60 | CV4: المنصرف60 | CW4: التسوية61 | CX4: المنصرف61 | CY4: التسوية62 | CZ4: المنصرف62 | DA4: التسوية63
C5: 2025-06-29 | D5: =SUMPRODUCT(($D$3=المنصرف!$E$3:$E$717)*1,('بيان العهد والتسويات'!$C5=المنصرف!$C$3:$C$717)*1,المنصرف!$G$3:$G$717) -> 0 | E5: =SUMPRODUCT(($D$3=المنصرف!$E$3:$E$717)*1,('بيان العهد والتسويات'!$C5=المنصرف!$C$3:$C$717)*1,المنصرف!$J$3:$J$717) -> 0 | F5: =SUMPRODUCT(($F$3=المنصرف!$E$3:$E$717)*1,('بيان العهد والتسويات'!$C5=المنصرف!$C$3:$C$717)*1,المنصرف!$G$3:$G$717) -> 0 | G5: =SUMPRODUCT(($F$3=المنصرف!$E$3:$E$717)*1,('بيان العهد والتسويات'!$C5=المنصرف!$C$3:$C$717)*1,المنصرف!$J$3:$J$717) -> 0 | H5: =SUMPRODUCT(($H$3=المنصرف!$E$3:$E$717)*1,('بيان العهد والتسويات'!$C5=المنصرف!$C$3:$C$717)*1,المنصرف!$G$3:$G$717) -> 0 | I5: =SUMPRODUCT(($H$3=المنصرف!$E$3:$E$717)*1,('بيان العهد والتسويات'!$C5=المنصرف!$C$3:$C$717)*1,المنصرف!$J$3:$J$717) -> 0 | J5: =SUMPRODUCT(($J$3=المنصرف!$E$3:$E$717)*1,('بيان العهد والتسويات'!$C5=المنصرف!$C$3:$C$717)*1,المنصرف!$G$3:$G$717) -> 0 | K5: =SUMPRODUCT(($J$3=المنصرف!$E$3:$E$717)*1,('بيان العهد والتسويات'!$C5=المنصرف!$C$3:$C$717)*1,المنصرف!$J$3:$J$717) -> 0 | L5: =SUMPRODUCT(($L$3=المنصرف!$E$3:$E$717)*1,('بيان العهد والتسويات'!$C5=المنصرف!$C$3:$C$717)*1,المنصرف!$G$3:$G$717) -> 0 | M5: =SUMPRODUCT(($L$3=المنصرف!$E$3:$E$717)*1,('بيان العهد والتسويات'!$C5=المنصرف!$C$3:$C$717)*1,المنصرف!$J$3:$J$717) -> 0 | N5: =SUMPRODUCT(($N$3=المنصرف!$E$3:$E$717)*1,('بيان العهد والتسويات'!$C5=المنصرف!$C$3:$C$717)*1,المنصرف!$G$3:$G$717) -> 0 | O5: =SUMPRODUCT(($N$3=المنصرف!$E$3:$E$717)*1,('بيان العهد والتسويات'!$C5=المنصرف!$C$3:$C$717)*1,المنصرف!$J$3:$J$717) -> 0 | P5: =SUMPRODUCT(($P$3=المنصرف!$E$3:$E$717)*1,('بيان العهد والتسويات'!$C5=المنصرف!$C$3:$C$717)*1,المنصرف!$G$3:$G$717) -> 0 | Q5: =SUMPRODUCT(($P$3=المنصرف!$E$3:$E$717)*1,('بيان العهد والتسويات'!$C5=المنصرف!$C$3:$C$717)*1,المنصرف!$J$3:$J$717) -> 0 | R5: =SUMPRODUCT(($R$3=المنصرف!$E$3:$E$717)*1,('بيان العهد والتسويات'!$C5=المنصرف!$C$3:$C$717)*1,المنصرف!$G$3:$G$717) -> 0 | S5: =SUMPRODUCT(($R$3=المنصرف!$E$3:$E$717)*1,('بيان العهد والتسويات'!$C5=المنصرف!$C$3:$C$717)*1,المنصرف!$J$3:$J$717) -> 0 | T5: =SUMPRODUCT(($T$3=المنصرف!$E$3:$E$717)*1,('بيان العهد والتسويات'!$C5=المنصرف!$C$3:$C$717)*1,المنصرف!$G$3:$G$717) -> 0 | U5: =SUMPRODUCT(($T$3=المنصرف!$E$3:$E$717)*1,('بيان العهد والتسويات'!$C5=المنصرف!$C$3:$C$717)*1,المنصرف!$J$3:$J$717) -> 0 | V5: =SUMPRODUCT(($V$3=المنصرف!$E$3:$E$717)*1,('بيان العهد والتسويات'!$C5=المنصرف!$C$3:$C$717)*1,المنصرف!$G$3:$G$717) -> 0 | W5: =SUMPRODUCT(($V$3=المنصرف!$E$3:$E$717)*1,('بيان العهد والتسويات'!$C5=المنصرف!$C$3:$C$717)*1,المنصرف!$J$3:$J$717) -> 0 | X5: =SUMPRODUCT(($X$3=المنصرف!$E$3:$E$717)*1,('بيان العهد والتسويات'!$C5=المنصرف!$C$3:$C$717)*1,المنصرف!$G$3:$G$717) -> 0 | Y5: =SUMPRODUCT(($X$3=المنصرف!$E$3:$E$717)*1,('بيان العهد والتسويات'!$C5=المنصرف!$C$3:$C$717)*1,المنصرف!$J$3:$J$717) -> 0 | Z5: =SUMPRODUCT(($Z$3=المنصرف!$E$3:$E$717)*1,('بيان العهد والتسويات'!$C5=المنصرف!$C$3:$C$717)*1,المنصرف!$G$3:$G$717) -> 0 | AA5: =SUMPRODUCT(($Z$3=المنصرف!$E$3:$E$717)*1,('بيان العهد والتسويات'!$C5=المنصرف!$C$3:$C$717)*1,المنصرف!$J$3:$J$717) -> 0 | AB5: =SUMPRODUCT(($AB$3=المنصرف!$E$3:$E$717)*1,('بيان العهد والتسويات'!$C5=المنصرف!$C$3:$C$717)*1,المنصرف!$G$3:$G$717) -> 0 | AC5: =SUMPRODUCT(($AB$3=المنصرف!$E$3:$E$717)*1,('بيان العهد والتسويات'!$C5=المنصرف!$C$3:$C$717)*1,المنصرف!$J$3:$J$717) -> 0 | AD5: =SUMPRODUCT(($AD$3=المنصرف!$E$3:$E$717)*1,('بيان العهد والتسويات'!$C5=المنصرف!$C$3:$C$717)*1,المنصرف!$G$3:$G$717) -> 0 | AE5: =SUMPRODUCT(($AD$3=المنصرف!$E$3:$E$717)*1,('بيان العهد والتسويات'!$C5=المنصرف!$C$3:$C$717)*1,المنصرف!$J$3:$J$717) -> 0 | AF5: =SUMPRODUCT(($AF$3=المنصرف!$E$3:$E$717)*1,('بيان العهد والتسويات'!$C5=المنصرف!$C$3:$C$717)*1,المنصرف!$G$3:$G$717) -> 0 | AG5: =SUMPRODUCT(($AF$3=المنصرف!$E$3:$E$717)*1,('بيان العهد والتسويات'!$C5=المنصرف!$C$3:$C$717)*1,المنصرف!$J$3:$J$717) -> 0 | AH5: =SUMPRODUCT(($AH$3=المنصرف!$E$3:$E$717)*1,('بيان العهد والتسويات'!$C5=المنصرف!$C$3:$C$717)*1,المنصرف!$G$3:$G$717) -> 0 | AI5: =SUMPRODUCT(($AH$3=المنصرف!$E$3:$E$717)*1,('بيان العهد والتسويات'!$C5=المنصرف!$C$3:$C$717)*1,المنصرف!$J$3:$J$717) -> 0 | AJ5: =SUMPRODUCT((AJ$3=المنصرف!$E$3:$E$717)*1,('بيان العهد والتسويات'!$C5=المنصرف!$C$3:$C$717)*1,المنصرف!$G$3:$G$717) -> 0 | AK5: =SUMPRODUCT((AJ$3=المنصرف!$E$3:$E$717)*1,('بيان العهد والتسويات'!$C5=المنصرف!$C$3:$C$717)*1,المنصرف!$J$3:$J$717) -> 0 | AL5: =SUMPRODUCT((AL$3=المنصرف!$E$3:$E$717)*1,('بيان العهد والتسويات'!$C5=المنصرف!$C$3:$C$717)*1,المنصرف!$G$3:$G$717) -> 0 | AM5: =SUMPRODUCT((AL$3=المنصرف!$E$3:$E$717)*1,('بيان العهد والتسويات'!$C5=المنصرف!$C$3:$C$717)*1,المنصرف!$J$3:$J$717) -> 0 | AN5: =SUMPRODUCT((AN$3=المنصرف!$E$3:$E$717)*1,('بيان العهد والتسويات'!$C5=المنصرف!$C$3:$C$717)*1,المنصرف!$G$3:$G$717) -> 0 | AO5: =SUMPRODUCT((AN$3=المنصرف!$E$3:$E$717)*1,('بيان العهد والتسويات'!$C5=المنصرف!$C$3:$C$717)*1,المنصرف!$J$3:$J$717) -> 0 | AP5: =SUMPRODUCT((AP$3=المنصرف!$E$3:$E$717)*1,('بيان العهد والتسويات'!$C5=المنصرف!$C$3:$C$717)*1,المنصرف!$G$3:$G$717) -> 0 | AQ5: =SUMPRODUCT((AP$3=المنصرف!$E$3:$E$717)*1,('بيان العهد والتسويات'!$C5=المنصرف!$C$3:$C$717)*1,المنصرف!$J$3:$J$717) -> 0 | AR5: =SUMPRODUCT((AR$3=المنصرف!$E$3:$E$717)*1,('بيان العهد والتسويات'!$C5=المنصرف!$C$3:$C$717)*1,المنصرف!$G$3:$G$717) -> 0 | AS5: =SUMPRODUCT((AR$3=المنصرف!$E$3:$E$717)*1,('بيان العهد والتسويات'!$C5=المنصرف!$C$3:$C$717)*1,المنصرف!$J$3:$J$717) -> 0 | AT5: =SUMPRODUCT((AT$3=المنصرف!$E$3:$E$717)*1,('بيان العهد والتسويات'!$C5=المنصرف!$C$3:$C$717)*1,المنصرف!$G$3:$G$717) -> 0 | AU5: =SUMPRODUCT((AT$3=المنصرف!$E$3:$E$717)*1,('بيان العهد والتسويات'!$C5=المنصرف!$C$3:$C$717)*1,المنصرف!$J$3:$J$717) -> 0 | AV5: =SUMPRODUCT((AV$3=المنصرف!$E$3:$E$717)*1,('بيان العهد والتسويات'!$C5=المنصرف!$C$3:$C$717)*1,المنصرف!$G$3:$G$717) -> 0 | AW5: =SUMPRODUCT((AV$3=المنصرف!$E$3:$E$717)*1,('بيان العهد والتسويات'!$C5=المنصرف!$C$3:$C$717)*1,المنصرف!$J$3:$J$717) -> 0 | AX5: =SUMPRODUCT((AX$3=المنصرف!$E$3:$E$717)*1,('بيان العهد والتسويات'!$C5=المنصرف!$C$3:$C$717)*1,المنصرف!$G$3:$G$717) -> 0 | AY5: =SUMPRODUCT((AX$3=المنصرف!$E$3:$E$717)*1,('بيان العهد والتسويات'!$C5=المنصرف!$C$3:$C$717)*1,المنصرف!$J$3:$J$717) -> 0 | AZ5: =SUMPRODUCT((AZ$3=المنصرف!$E$3:$E$717)*1,('بيان العهد والتسويات'!$C5=المنصرف!$C$3:$C$717)*1,المنصرف!$G$3:$G$717) -> 0 | BA5: =SUMPRODUCT((AZ$3=المنصرف!$E$3:$E$717)*1,('بيان العهد والتسويات'!$C5=المنصرف!$C$3:$C$717)*1,المنصرف!$J$3:$J$717) -> 0 | BB5: =SUMPRODUCT((BB$3=المنصرف!$E$3:$E$717)*1,('بيان العهد والتسويات'!$C5=المنصرف!$C$3:$C$717)*1,المنصرف!$G$3:$G$717) -> 0 | BC5: =SUMPRODUCT((BB$3=المنصرف!$E$3:$E$717)*1,('بيان العهد والتسويات'!$C5=المنصرف!$C$3:$C$717)*1,المنصرف!$J$3:$J$717) -> 0 | BD5: =SUMPRODUCT((BD$3=المنصرف!$E$3:$E$717)*1,('بيان العهد والتسويات'!$C5=المنصرف!$C$3:$C$717)*1,المنصرف!$G$3:$G$717) -> 0 | BE5: =SUMPRODUCT((BD$3=المنصرف!$E$3:$E$717)*1,('بيان العهد والتسويات'!$C5=المنصرف!$C$3:$C$717)*1,المنصرف!$J$3:$J$717) -> 0 | BF5: =SUMPRODUCT((BF$3=المنصرف!$E$3:$E$717)*1,('بيان العهد والتسويات'!$C5=المنصرف!$C$3:$C$717)*1,المنصرف!$G$3:$G$717) -> 0 | BG5: =SUMPRODUCT((BF$3=المنصرف!$E$3:$E$717)*1,('بيان العهد والتسويات'!$C5=المنصرف!$C$3:$C$717)*1,المنصرف!$J$3:$J$717) -> 0 | BH5: =SUMPRODUCT((BH$3=المنصرف!$E$3:$E$717)*1,('بيان العهد والتسويات'!$C5=المنصرف!$C$3:$C$717)*1,المنصرف!$G$3:$G$717) -> 0 | BI5: =SUMPRODUCT((BH$3=المنصرف!$E$3:$E$717)*1,('بيان العهد والتسويات'!$C5=المنصرف!$C$3:$C$717)*1,المنصرف!$J$3:$J$717) -> 0 | BJ5: =SUMPRODUCT((BJ$3=المنصرف!$E$3:$E$717)*1,('بيان العهد والتسويات'!$C5=المنصرف!$C$3:$C$717)*1,المنصرف!$G$3:$G$717) -> 0 | BK5: =SUMPRODUCT((BJ$3=المنصرف!$E$3:$E$717)*1,('بيان العهد والتسويات'!$C5=المنصرف!$C$3:$C$717)*1,المنصرف!$J$3:$J$717) -> 0 | BL5: =SUMPRODUCT((BL$3=المنصرف!$E$3:$E$717)*1,('بيان العهد والتسويات'!$C5=المنصرف!$C$3:$C$717)*1,المنصرف!$G$3:$G$717) -> 0 | BM5: =SUMPRODUCT((BL$3=المنصرف!$E$3:$E$717)*1,('بيان العهد والتسويات'!$C5=المنصرف!$C$3:$C$717)*1,المنصرف!$J$3:$J$717) -> 0 | BN5: =SUMPRODUCT((BN$3=المنصرف!$E$3:$E$717)*1,('بيان العهد والتسويات'!$C5=المنصرف!$C$3:$C$717)*1,المنصرف!$G$3:$G$717) -> 0 | BO5: =SUMPRODUCT((BN$3=المنصرف!$E$3:$E$717)*1,('بيان العهد والتسويات'!$C5=المنصرف!$C$3:$C$717)*1,المنصرف!$J$3:$J$717) -> 0 | BP5: =SUMPRODUCT((BP$3=المنصرف!$E$3:$E$717)*1,('بيان العهد والتسويات'!$C5=المنصرف!$C$3:$C$717)*1,المنصرف!$G$3:$G$717) -> 0 | BQ5: =SUMPRODUCT((BP$3=المنصرف!$E$3:$E$717)*1,('بيان العهد والتسويات'!$C5=المنصرف!$C$3:$C$717)*1,المنصرف!$J$3:$J$717) -> 0 | BR5: =SUMPRODUCT((BR$3=المنصرف!$E$3:$E$717)*1,('بيان العهد والتسويات'!$C5=المنصرف!$C$3:$C$717)*1,المنصرف!$G$3:$G$717) -> 0 | BS5: =SUMPRODUCT((BR$3=المنصرف!$E$3:$E$717)*1,('بيان العهد والتسويات'!$C5=المنصرف!$C$3:$C$717)*1,المنصرف!$J$3:$J$717) -> 0 | BT5: =SUMPRODUCT((BT$3=المنصرف!$E$3:$E$717)*1,('بيان العهد والتسويات'!$C5=المنصرف!$C$3:$C$717)*1,المنصرف!$G$3:$G$717) -> 0 | BU5: =SUMPRODUCT((BT$3=المنصرف!$E$3:$E$717)*1,('بيان العهد والتسويات'!$C5=المنصرف!$C$3:$C$717)*1,المنصرف!$J$3:$J$717) -> 0 | BV5: =SUMPRODUCT((BV$3=المنصرف!$E$3:$E$717)*1,('بيان العهد والتسويات'!$C5=المنصرف!$C$3:$C$717)*1,المنصرف!$G$3:$G$717) -> 0 | BW5: =SUMPRODUCT((BV$3=المنصرف!$E$3:$E$717)*1,('بيان العهد والتسويات'!$C5=المنصرف!$C$3:$C$717)*1,المنصرف!$J$3:$J$717) -> 0 | BX5: =SUMPRODUCT((BX$3=المنصرف!$E$3:$E$717)*1,('بيان العهد والتسويات'!$C5=المنصرف!$C$3:$C$717)*1,المنصرف!$G$3:$G$717) -> 0 | BY5: =SUMPRODUCT((BX$3=المنصرف!$E$3:$E$717)*1,('بيان العهد والتسويات'!$C5=المنصرف!$C$3:$C$717)*1,المنصرف!$J$3:$J$717) -> 0 | BZ5: =SUMPRODUCT((BZ$3=المنصرف!$E$3:$E$717)*1,('بيان العهد والتسويات'!$C5=المنصرف!$C$3:$C$717)*1,المنصرف!$G$3:$G$717) -> 0 | CA5: =SUMPRODUCT((BZ$3=المنصرف!$E$3:$E$717)*1,('بيان العهد والتسويات'!$C5=المنصرف!$C$3:$C$717)*1,المنصرف!$J$3:$J$717) -> 0 | CB5: =SUMPRODUCT((CB$3=المنصرف!$E$3:$E$717)*1,('بيان العهد والتسويات'!$C5=المنصرف!$C$3:$C$717)*1,المنصرف!$G$3:$G$717) -> 0 | CC5: =SUMPRODUCT((CB$3=المنصرف!$E$3:$E$717)*1,('بيان العهد والتسويات'!$C5=المنصرف!$C$3:$C$717)*1,المنصرف!$J$3:$J$717) -> 0 | CD5: =SUMPRODUCT((CD$3=المنصرف!$E$3:$E$717)*1,('بيان العهد والتسويات'!$C5=المنصرف!$C$3:$C$717)*1,المنصرف!$G$3:$G$717) -> 0 | CE5: =SUMPRODUCT((CD$3=المنصرف!$E$3:$E$717)*1,('بيان العهد والتسويات'!$C5=المنصرف!$C$3:$C$717)*1,المنصرف!$J$3:$J$717) -> 0 | CF5: =SUMPRODUCT((CF$3=المنصرف!$E$3:$E$717)*1,('بيان العهد والتسويات'!$C5=المنصرف!$C$3:$C$717)*1,المنصرف!$G$3:$G$717) -> 0 | CG5: =SUMPRODUCT((CF$3=المنصرف!$E$3:$E$717)*1,('بيان العهد والتسويات'!$C5=المنصرف!$C$3:$C$717)*1,المنصرف!$J$3:$J$717) -> 0 | CH5: =SUMPRODUCT((CH$3=المنصرف!$E$3:$E$717)*1,('بيان العهد والتسويات'!$C5=المنصرف!$C$3:$C$717)*1,المنصرف!$G$3:$G$717) -> 0 | CI5: =SUMPRODUCT((CH$3=المنصرف!$E$3:$E$717)*1,('بيان العهد والتسويات'!$C5=المنصرف!$C$3:$C$717)*1,المنصرف!$J$3:$J$717) -> 0 | CJ5: =SUMPRODUCT((CJ$3=المنصرف!$E$3:$E$717)*1,('بيان العهد والتسويات'!$C5=المنصرف!$C$3:$C$717)*1,المنصرف!$G$3:$G$717) -> 0 | CK5: =SUMPRODUCT((CJ$3=المنصرف!$E$3:$E$717)*1,('بيان العهد والتسويات'!$C5=المنصرف!$C$3:$C$717)*1,المنصرف!$J$3:$J$717) -> 0 | CL5: =SUMPRODUCT((CL$3=المنصرف!$E$3:$E$717)*1,('بيان العهد والتسويات'!$C5=المنصرف!$C$3:$C$717)*1,المنصرف!$G$3:$G$717) -> 0 | CM5: =SUMPRODUCT((CL$3=المنصرف!$E$3:$E$717)*1,('بيان العهد والتسويات'!$C5=المنصرف!$C$3:$C$717)*1,المنصرف!$J$3:$J$717) -> 0 | CN5: =SUMPRODUCT((CN$3=المنصرف!$E$3:$E$717)*1,('بيان العهد والتسويات'!$C5=المنصرف!$C$3:$C$717)*1,المنصرف!$G$3:$G$717) -> 0 | CO5: =SUMPRODUCT((CN$3=المنصرف!$E$3:$E$717)*1,('بيان العهد والتسويات'!$C5=المنصرف!$C$3:$C$717)*1,المنصرف!$J$3:$J$717) -> 0 | CP5: =SUMPRODUCT((CP$3=المنصرف!$E$3:$E$717)*1,('بيان العهد والتسويات'!$C5=المنصرف!$C$3:$C$717)*1,المنصرف!$G$3:$G$717) -> 0 | CQ5: =SUMPRODUCT((CP$3=المنصرف!$E$3:$E$717)*1,('بيان العهد والتسويات'!$C5=المنصرف!$C$3:$C$717)*1,المنصرف!$J$3:$J$717) -> 0 | CR5: =SUMPRODUCT((CR$3=المنصرف!$E$3:$E$717)*1,('بيان العهد والتسويات'!$C5=المنصرف!$C$3:$C$717)*1,المنصرف!$G$3:$G$717) -> 0 | CS5: =SUMPRODUCT((CR$3=المنصرف!$E$3:$E$717)*1,('بيان العهد والتسويات'!$C5=المنصرف!$C$3:$C$717)*1,المنصرف!$J$3:$J$717) -> 0 | CT5: =SUMPRODUCT((CT$3=المنصرف!$E$3:$E$717)*1,('بيان العهد والتسويات'!$C5=المنصرف!$C$3:$C$717)*1,المنصرف!$G$3:$G$717) -> 0 | CU5: =SUMPRODUCT((CT$3=المنصرف!$E$3:$E$717)*1,('بيان العهد والتسويات'!$C5=المنصرف!$C$3:$C$717)*1,المنصرف!$J$3:$J$717) -> 0 | CV5: =SUMPRODUCT((CV$3=المنصرف!$E$3:$E$717)*1,('بيان العهد والتسويات'!$C5=المنصرف!$C$3:$C$717)*1,المنصرف!$G$3:$G$717) -> 0 | CW5: =SUMPRODUCT((CV$3=المنصرف!$E$3:$E$717)*1,('بيان العهد والتسويات'!$C5=المنصرف!$C$3:$C$717)*1,المنصرف!$J$3:$J$717) -> 0 | CX5: =SUMPRODUCT((CX$3=المنصرف!$E$3:$E$717)*1,('بيان العهد والتسويات'!$C5=المنصرف!$C$3:$C$717)*1,المنصرف!$G$3:$G$717) -> 0 | CY5: =SUMPRODUCT((CX$3=المنصرف!$E$3:$E$717)*1,('بيان العهد والتسويات'!$C5=المنصرف!$C$3:$C$717)*1,المنصرف!$J$3:$J$717) -> 0 | CZ5: =SUMPRODUCT((CZ$3=المنصرف!$E$3:$E$717)*1,('بيان العهد والتسويات'!$C5=المنصرف!$C$3:$C$717)*1,المنصرف!$G$3:$G$717) -> 0 | DA5: =SUMPRODUCT((CZ$3=المنصرف!$E$3:$E$717)*1,('بيان العهد والتسويات'!$C5=المنصرف!$C$3:$C$717)*1,المنصرف!$J$3:$J$717) -> 0
C6: 2025-06-30 | D6: =SUMPRODUCT(($D$3=المنصرف!$E$3:$E$717)*1,('بيان العهد والتسويات'!$C6=المنصرف!$C$3:$C$717)*1,المنصرف!$G$3:$G$717) -> 0 | E6: =SUMPRODUCT(($D$3=المنصرف!$E$3:$E$717)*1,('بيان العهد والتسويات'!$C6=المنصرف!$C$3:$C$717)*1,المنصرف!$J$3:$J$717) -> 0 | F6: =SUMPRODUCT(($F$3=المنصرف!$E$3:$E$717)*1,('بيان العهد والتسويات'!$C6=المنصرف!$C$3:$C$717)*1,المنصرف!$G$3:$G$717) -> 0 | G6: =SUMPRODUCT(($F$3=المنصرف!$E$3:$E$717)*1,('بيان العهد والتسويات'!$C6=المنصرف!$C$3:$C$717)*1,المنصرف!$J$3:$J$717) -> 0 | H6: =SUMPRODUCT(($H$3=المنصرف!$E$3:$E$717)*1,('بيان العهد والتسويات'!$C6=المنصرف!$C$3:$C$717)*1,المنصرف!$G$3:$G$717) -> 0 | I6: =SUMPRODUCT(($H$3=المنصرف!$E$3:$E$717)*1,('بيان العهد والتسويات'!$C6=المنصرف!$C$3:$C$717)*1,المنصرف!$J$3:$J$717) -> 0 | J6: =SUMPRODUCT(($J$3=المنصرف!$E$3:$E$717)*1,('بيان العهد والتسويات'!$C6=المنصرف!$C$3:$C$717)*1,المنصرف!$G$3:$G$717) -> 0 | K6: =SUMPRODUCT(($J$3=المنصرف!$E$3:$E$717)*1,('بيان العهد والتسويات'!$C6=المنصرف!$C$3:$C$717)*1,المنصرف!$J$3:$J$717) -> 0 | L6: =SUMPRODUCT(($L$3=المنصرف!$E$3:$E$717)*1,('بيان العهد والتسويات'!$C6=المنصرف!$C$3:$C$717)*1,المنصرف!$G$3:$G$717) -> 0 | M6: =SUMPRODUCT(($L$3=المنصرف!$E$3:$E$717)*1,('بيان العهد والتسويات'!$C6=المنصرف!$C$3:$C$717)*1,المنصرف!$J$3:$J$717) -> 0 | N6: =SUMPRODUCT(($N$3=المنصرف!$E$3:$E$717)*1,('بيان العهد والتسويات'!$C6=المنصرف!$C$3:$C$717)*1,المنصرف!$G$3:$G$717) -> 0 | O6: =SUMPRODUCT(($N$3=المنصرف!$E$3:$E$717)*1,('بيان العهد والتسويات'!$C6=المنصرف!$C$3:$C$717)*1,المنصرف!$J$3:$J$717) -> 0 | P6: =SUMPRODUCT(($P$3=المنصرف!$E$3:$E$717)*1,('بيان العهد والتسويات'!$C6=المنصرف!$C$3:$C$717)*1,المنصرف!$G$3:$G$717) -> 0 | Q6: =SUMPRODUCT(($P$3=المنصرف!$E$3:$E$717)*1,('بيان العهد والتسويات'!$C6=المنصرف!$C$3:$C$717)*1,المنصرف!$J$3:$J$717) -> 0 | R6: =SUMPRODUCT(($R$3=المنصرف!$E$3:$E$717)*1,('بيان العهد والتسويات'!$C6=المنصرف!$C$3:$C$717)*1,المنصرف!$G$3:$G$717) -> 0 | S6: =SUMPRODUCT(($R$3=المنصرف!$E$3:$E$717)*1,('بيان العهد والتسويات'!$C6=المنصرف!$C$3:$C$717)*1,المنصرف!$J$3:$J$717) -> 0 | T6: =SUMPRODUCT(($T$3=المنصرف!$E$3:$E$717)*1,('بيان العهد والتسويات'!$C6=المنصرف!$C$3:$C$717)*1,المنصرف!$G$3:$G$717) -> 0 | U6: =SUMPRODUCT(($T$3=المنصرف!$E$3:$E$717)*1,('بيان العهد والتسويات'!$C6=المنصرف!$C$3:$C$717)*1,المنصرف!$J$3:$J$717) -> 0 | V6: =SUMPRODUCT(($V$3=المنصرف!$E$3:$E$717)*1,('بيان العهد والتسويات'!$C6=المنصرف!$C$3:$C$717)*1,المنصرف!$G$3:$G$717) -> 0 | W6: =SUMPRODUCT(($V$3=المنصرف!$E$3:$E$717)*1,('بيان العهد والتسويات'!$C6=المنصرف!$C$3:$C$717)*1,المنصرف!$J$3:$J$717) -> 0 | X6: =SUMPRODUCT(($X$3=المنصرف!$E$3:$E$717)*1,('بيان العهد والتسويات'!$C6=المنصرف!$C$3:$C$717)*1,المنصرف!$G$3:$G$717) -> 0 | Y6: =SUMPRODUCT(($X$3=المنصرف!$E$3:$E$717)*1,('بيان العهد والتسويات'!$C6=المنصرف!$C$3:$C$717)*1,المنصرف!$J$3:$J$717) -> 0 | Z6: =SUMPRODUCT(($Z$3=المنصرف!$E$3:$E$717)*1,('بيان العهد والتسويات'!$C6=المنصرف!$C$3:$C$717)*1,المنصرف!$G$3:$G$717) -> 0 | AA6: =SUMPRODUCT(($Z$3=المنصرف!$E$3:$E$717)*1,('بيان العهد والتسويات'!$C6=المنصرف!$C$3:$C$717)*1,المنصرف!$J$3:$J$717) -> 0 | AB6: =SUMPRODUCT(($AB$3=المنصرف!$E$3:$E$717)*1,('بيان العهد والتسويات'!$C6=المنصرف!$C$3:$C$717)*1,المنصرف!$G$3:$G$717) -> 0 | AC6: =SUMPRODUCT(($AB$3=المنصرف!$E$3:$E$717)*1,('بيان العهد والتسويات'!$C6=المنصرف!$C$3:$C$717)*1,المنصرف!$J$3:$J$717) -> 0 | AD6: =SUMPRODUCT(($AD$3=المنصرف!$E$3:$E$717)*1,('بيان العهد والتسويات'!$C6=المنصرف!$C$3:$C$717)*1,المنصرف!$G$3:$G$717) -> 0 | AE6: =SUMPRODUCT(($AD$3=المنصرف!$E$3:$E$717)*1,('بيان العهد والتسويات'!$C6=المنصرف!$C$3:$C$717)*1,المنصرف!$J$3:$J$717) -> 0 | AF6: =SUMPRODUCT(($AF$3=المنصرف!$E$3:$E$717)*1,('بيان العهد والتسويات'!$C6=المنصرف!$C$3:$C$717)*1,المنصرف!$G$3:$G$717) -> 0 | AG6: =SUMPRODUCT(($AF$3=المنصرف!$E$3:$E$717)*1,('بيان العهد والتسويات'!$C6=المنصرف!$C$3:$C$717)*1,المنصرف!$J$3:$J$717) -> 0 | AH6: =SUMPRODUCT(($AH$3=المنصرف!$E$3:$E$717)*1,('بيان العهد والتسويات'!$C6=المنصرف!$C$3:$C$717)*1,المنصرف!$G$3:$G$717) -> 0 | AI6: =SUMPRODUCT(($AH$3=المنصرف!$E$3:$E$717)*1,('بيان العهد والتسويات'!$C6=المنصرف!$C$3:$C$717)*1,المنصرف!$J$3:$J$717) -> 0 | AJ6: =SUMPRODUCT((AJ$3=المنصرف!$E$3:$E$717)*1,('بيان العهد والتسويات'!$C6=المنصرف!$C$3:$C$717)*1,المنصرف!$G$3:$G$717) -> 0 | AK6: =SUMPRODUCT((AJ$3=المنصرف!$E$3:$E$717)*1,('بيان العهد والتسويات'!$C6=المنصرف!$C$3:$C$717)*1,المنصرف!$J$3:$J$717) -> 0 | AL6: =SUMPRODUCT((AL$3=المنصرف!$E$3:$E$717)*1,('بيان العهد والتسويات'!$C6=المنصرف!$C$3:$C$717)*1,المنصرف!$G$3:$G$717) -> 0 | AM6: =SUMPRODUCT((AL$3=المنصرف!$E$3:$E$717)*1,('بيان العهد والتسويات'!$C6=المنصرف!$C$3:$C$717)*1,المنصرف!$J$3:$J$717) -> 0 | AN6: =SUMPRODUCT((AN$3=المنصرف!$E$3:$E$717)*1,('بيان العهد والتسويات'!$C6=المنصرف!$C$3:$C$717)*1,المنصرف!$G$3:$G$717) -> 0 | AO6: =SUMPRODUCT((AN$3=المنصرف!$E$3:$E$717)*1,('بيان العهد والتسويات'!$C6=المنصرف!$C$3:$C$717)*1,المنصرف!$J$3:$J$717) -> 0 | AP6: =SUMPRODUCT((AP$3=المنصرف!$E$3:$E$717)*1,('بيان العهد والتسويات'!$C6=المنصرف!$C$3:$C$717)*1,المنصرف!$G$3:$G$717) -> 0 | AQ6: =SUMPRODUCT((AP$3=المنصرف!$E$3:$E$717)*1,('بيان العهد والتسويات'!$C6=المنصرف!$C$3:$C$717)*1,المنصرف!$J$3:$J$717) -> 0 | AR6: =SUMPRODUCT((AR$3=المنصرف!$E$3:$E$717)*1,('بيان العهد والتسويات'!$C6=المنصرف!$C$3:$C$717)*1,المنصرف!$G$3:$G$717) -> 0 | AS6: =SUMPRODUCT((AR$3=المنصرف!$E$3:$E$717)*1,('بيان العهد والتسويات'!$C6=المنصرف!$C$3:$C$717)*1,المنصرف!$J$3:$J$717) -> 0 | AT6: =SUMPRODUCT((AT$3=المنصرف!$E$3:$E$717)*1,('بيان العهد والتسويات'!$C6=المنصرف!$C$3:$C$717)*1,المنصرف!$G$3:$G$717) -> 0 | AU6: =SUMPRODUCT((AT$3=المنصرف!$E$3:$E$717)*1,('بيان العهد والتسويات'!$C6=المنصرف!$C$3:$C$717)*1,المنصرف!$J$3:$J$717) -> 0 | AV6: =SUMPRODUCT((AV$3=المنصرف!$E$3:$E$717)*1,('بيان العهد والتسويات'!$C6=المنصرف!$C$3:$C$717)*1,المنصرف!$G$3:$G$717) -> 0 | AW6: =SUMPRODUCT((AV$3=المنصرف!$E$3:$E$717)*1,('بيان العهد والتسويات'!$C6=المنصرف!$C$3:$C$717)*1,المنصرف!$J$3:$J$717) -> 0 | AX6: =SUMPRODUCT((AX$3=المنصرف!$E$3:$E$717)*1,('بيان العهد والتسويات'!$C6=المنصرف!$C$3:$C$717)*1,المنصرف!$G$3:$G$717) -> 0 | AY6: =SUMPRODUCT((AX$3=المنصرف!$E$3:$E$717)*1,('بيان العهد والتسويات'!$C6=المنصرف!$C$3:$C$717)*1,المنصرف!$J$3:$J$717) -> 0 | AZ6: =SUMPRODUCT((AZ$3=المنصرف!$E$3:$E$717)*1,('بيان العهد والتسويات'!$C6=المنصرف!$C$3:$C$717)*1,المنصرف!$G$3:$G$717) -> 0 | BA6: =SUMPRODUCT((AZ$3=المنصرف!$E$3:$E$717)*1,('بيان العهد والتسويات'!$C6=المنصرف!$C$3:$C$717)*1,المنصرف!$J$3:$J$717) -> 0 | BB6: =SUMPRODUCT((BB$3=المنصرف!$E$3:$E$717)*1,('بيان العهد والتسويات'!$C6=المنصرف!$C$3:$C$717)*1,المنصرف!$G$3:$G$717) -> 0 | BC6: =SUMPRODUCT((BB$3=المنصرف!$E$3:$E$717)*1,('بيان العهد والتسويات'!$C6=المنصرف!$C$3:$C$717)*1,المنصرف!$J$3:$J$717) -> 0 | BD6: =SUMPRODUCT((BD$3=المنصرف!$E$3:$E$717)*1,('بيان العهد والتسويات'!$C6=المنصرف!$C$3:$C$717)*1,المنصرف!$G$3:$G$717) -> 0 | BE6: =SUMPRODUCT((BD$3=المنصرف!$E$3:$E$717)*1,('بيان العهد والتسويات'!$C6=المنصرف!$C$3:$C$717)*1,المنصرف!$J$3:$J$717) -> 0 | BF6: =SUMPRODUCT((BF$3=المنصرف!$E$3:$E$717)*1,('بيان العهد والتسويات'!$C6=المنصرف!$C$3:$C$717)*1,المنصرف!$G$3:$G$717) -> 0 | BG6: =SUMPRODUCT((BF$3=المنصرف!$E$3:$E$717)*1,('بيان العهد والتسويات'!$C6=المنصرف!$C$3:$C$717)*1,المنصرف!$J$3:$J$717) -> 0 | BH6: =SUMPRODUCT((BH$3=المنصرف!$E$3:$E$717)*1,('بيان العهد والتسويات'!$C6=المنصرف!$C$3:$C$717)*1,المنصرف!$G$3:$G$717) -> 0 | BI6: =SUMPRODUCT((BH$3=المنصرف!$E$3:$E$717)*1,('بيان العهد والتسويات'!$C6=المنصرف!$C$3:$C$717)*1,المنصرف!$J$3:$J$717) -> 0 | BJ6: =SUMPRODUCT((BJ$3=المنصرف!$E$3:$E$717)*1,('بيان العهد والتسويات'!$C6=المنصرف!$C$3:$C$717)*1,المنصرف!$G$3:$G$717) -> 0 | BK6: =SUMPRODUCT((BJ$3=المنصرف!$E$3:$E$717)*1,('بيان العهد والتسويات'!$C6=المنصرف!$C$3:$C$717)*1,المنصرف!$J$3:$J$717) -> 0 | BL6: =SUMPRODUCT((BL$3=المنصرف!$E$3:$E$717)*1,('بيان العهد والتسويات'!$C6=المنصرف!$C$3:$C$717)*1,المنصرف!$G$3:$G$717) -> 0 | BM6: =SUMPRODUCT((BL$3=المنصرف!$E$3:$E$717)*1,('بيان العهد والتسويات'!$C6=المنصرف!$C$3:$C$717)*1,المنصرف!$J$3:$J$717) -> 0 | BN6: =SUMPRODUCT((BN$3=المنصرف!$E$3:$E$717)*1,('بيان العهد والتسويات'!$C6=المنصرف!$C$3:$C$717)*1,المنصرف!$G$3:$G$717) -> 0 | BO6: =SUMPRODUCT((BN$3=المنصرف!$E$3:$E$717)*1,('بيان العهد والتسويات'!$C6=المنصرف!$C$3:$C$717)*1,المنصرف!$J$3:$J$717) -> 0 | BP6: =SUMPRODUCT((BP$3=المنصرف!$E$3:$E$717)*1,('بيان العهد والتسويات'!$C6=المنصرف!$C$3:$C$717)*1,المنصرف!$G$3:$G$717) -> 0 | BQ6: =SUMPRODUCT((BP$3=المنصرف!$E$3:$E$717)*1,('بيان العهد والتسويات'!$C6=المنصرف!$C$3:$C$717)*1,المنصرف!$J$3:$J$717) -> 0 | BR6: =SUMPRODUCT((BR$3=المنصرف!$E$3:$E$717)*1,('بيان العهد والتسويات'!$C6=المنصرف!$C$3:$C$717)*1,المنصرف!$G$3:$G$717) -> 0 | BS6: =SUMPRODUCT((BR$3=المنصرف!$E$3:$E$717)*1,('بيان العهد والتسويات'!$C6=المنصرف!$C$3:$C$717)*1,المنصرف!$J$3:$J$717) -> 0 | BT6: =SUMPRODUCT((BT$3=المنصرف!$E$3:$E$717)*1,('بيان العهد والتسويات'!$C6=المنصرف!$C$3:$C$717)*1,المنصرف!$G$3:$G$717) -> 0 | BU6: =SUMPRODUCT((BT$3=المنصرف!$E$3:$E$717)*1,('بيان العهد والتسويات'!$C6=المنصرف!$C$3:$C$717)*1,المنصرف!$J$3:$J$717) -> 0 | BV6: =SUMPRODUCT((BV$3=المنصرف!$E$3:$E$717)*1,('بيان العهد والتسويات'!$C6=المنصرف!$C$3:$C$717)*1,المنصرف!$G$3:$G$717) -> 0 | BW6: =SUMPRODUCT((BV$3=المنصرف!$E$3:$E$717)*1,('بيان العهد والتسويات'!$C6=المنصرف!$C$3:$C$717)*1,المنصرف!$J$3:$J$717) -> 0 | BX6: =SUMPRODUCT((BX$3=المنصرف!$E$3:$E$717)*1,('بيان العهد والتسويات'!$C6=المنصرف!$C$3:$C$717)*1,المنصرف!$G$3:$G$717) -> 0 | BY6: =SUMPRODUCT((BX$3=المنصرف!$E$3:$E$717)*1,('بيان العهد والتسويات'!$C6=المنصرف!$C$3:$C$717)*1,المنصرف!$J$3:$J$717) -> 0 | BZ6: =SUMPRODUCT((BZ$3=المنصرف!$E$3:$E$717)*1,('بيان العهد والتسويات'!$C6=المنصرف!$C$3:$C$717)*1,المنصرف!$G$3:$G$717) -> 0 | CA6: =SUMPRODUCT((BZ$3=المنصرف!$E$3:$E$717)*1,('بيان العهد والتسويات'!$C6=المنصرف!$C$3:$C$717)*1,المنصرف!$J$3:$J$717) -> 0 | CB6: =SUMPRODUCT((CB$3=المنصرف!$E$3:$E$717)*1,('بيان العهد والتسويات'!$C6=المنصرف!$C$3:$C$717)*1,المنصرف!$G$3:$G$717) -> 0 | CC6: =SUMPRODUCT((CB$3=المنصرف!$E$3:$E$717)*1,('بيان العهد والتسويات'!$C6=المنصرف!$C$3:$C$717)*1,المنصرف!$J$3:$J$717) -> 0 | CD6: =SUMPRODUCT((CD$3=المنصرف!$E$3:$E$717)*1,('بيان العهد والتسويات'!$C6=المنصرف!$C$3:$C$717)*1,المنصرف!$G$3:$G$717) -> 0 | CE6: =SUMPRODUCT((CD$3=المنصرف!$E$3:$E$717)*1,('بيان العهد والتسويات'!$C6=المنصرف!$C$3:$C$717)*1,المنصرف!$J$3:$J$717) -> 0 | CF6: =SUMPRODUCT((CF$3=المنصرف!$E$3:$E$717)*1,('بيان العهد والتسويات'!$C6=المنصرف!$C$3:$C$717)*1,المنصرف!$G$3:$G$717) -> 0 | CG6: =SUMPRODUCT((CF$3=المنصرف!$E$3:$E$717)*1,('بيان العهد والتسويات'!$C6=المنصرف!$C$3:$C$717)*1,المنصرف!$J$3:$J$717) -> 0 | CH6: =SUMPRODUCT((CH$3=المنصرف!$E$3:$E$717)*1,('بيان العهد والتسويات'!$C6=المنصرف!$C$3:$C$717)*1,المنصرف!$G$3:$G$717) -> 0 | CI6: =SUMPRODUCT((CH$3=المنصرف!$E$3:$E$717)*1,('بيان العهد والتسويات'!$C6=المنصرف!$C$3:$C$717)*1,المنصرف!$J$3:$J$717) -> 0 | CJ6: =SUMPRODUCT((CJ$3=المنصرف!$E$3:$E$717)*1,('بيان العهد والتسويات'!$C6=المنصرف!$C$3:$C$717)*1,المنصرف!$G$3:$G$717) -> 0 | CK6: =SUMPRODUCT((CJ$3=المنصرف!$E$3:$E$717)*1,('بيان العهد والتسويات'!$C6=المنصرف!$C$3:$C$717)*1,المنصرف!$J$3:$J$717) -> 0 | CL6: =SUMPRODUCT((CL$3=المنصرف!$E$3:$E$717)*1,('بيان العهد والتسويات'!$C6=المنصرف!$C$3:$C$717)*1,المنصرف!$G$3:$G$717) -> 0 | CM6: =SUMPRODUCT((CL$3=المنصرف!$E$3:$E$717)*1,('بيان العهد والتسويات'!$C6=المنصرف!$C$3:$C$717)*1,المنصرف!$J$3:$J$717) -> 0 | CN6: =SUMPRODUCT((CN$3=المنصرف!$E$3:$E$717)*1,('بيان العهد والتسويات'!$C6=المنصرف!$C$3:$C$717)*1,المنصرف!$G$3:$G$717) -> 0 | CO6: =SUMPRODUCT((CN$3=المنصرف!$E$3:$E$717)*1,('بيان العهد والتسويات'!$C6=المنصرف!$C$3:$C$717)*1,المنصرف!$J$3:$J$717) -> 0 | CP6: =SUMPRODUCT((CP$3=المنصرف!$E$3:$E$717)*1,('بيان العهد والتسويات'!$C6=المنصرف!$C$3:$C$717)*1,المنصرف!$G$3:$G$717) -> 0 | CQ6: =SUMPRODUCT((CP$3=المنصرف!$E$3:$E$717)*1,('بيان العهد والتسويات'!$C6=المنصرف!$C$3:$C$717)*1,المنصرف!$J$3:$J$717) -> 0 | CR6: =SUMPRODUCT((CR$3=المنصرف!$E$3:$E$717)*1,('بيان العهد والتسويات'!$C6=المنصرف!$C$3:$C$717)*1,المنصرف!$G$3:$G$717) -> 0 | CS6: =SUMPRODUCT((CR$3=المنصرف!$E$3:$E$717)*1,('بيان العهد والتسويات'!$C6=المنصرف!$C$3:$C$717)*1,المنصرف!$J$3:$J$717) -> 0 | CT6: =SUMPRODUCT((CT$3=المنصرف!$E$3:$E$717)*1,('بيان العهد والتسويات'!$C6=المنصرف!$C$3:$C$717)*1,المنصرف!$G$3:$G$717) -> 0 | CU6: =SUMPRODUCT((CT$3=المنصرف!$E$3:$E$717)*1,('بيان العهد والتسويات'!$C6=المنصرف!$C$3:$C$717)*1,المنصرف!$J$3:$J$717) -> 0 | CV6: =SUMPRODUCT((CV$3=المنصرف!$E$3:$E$717)*1,('بيان العهد والتسويات'!$C6=المنصرف!$C$3:$C$717)*1,المنصرف!$G$3:$G$717) -> 0 | CW6: =SUMPRODUCT((CV$3=المنصرف!$E$3:$E$717)*1,('بيان العهد والتسويات'!$C6=المنصرف!$C$3:$C$717)*1,المنصرف!$J$3:$J$717) -> 0 | CX6: =SUMPRODUCT((CX$3=المنصرف!$E$3:$E$717)*1,('بيان العهد والتسويات'!$C6=المنصرف!$C$3:$C$717)*1,المنصرف!$G$3:$G$717) -> 0 | CY6: =SUMPRODUCT((CX$3=المنصرف!$E$3:$E$717)*1,('بيان العهد والتسويات'!$C6=المنصرف!$C$3:$C$717)*1,المنصرف!$J$3:$J$717) -> 0 | CZ6: =SUMPRODUCT((CZ$3=المنصرف!$E$3:$E$717)*1,('بيان العهد والتسويات'!$C6=المنصرف!$C$3:$C$717)*1,المنصرف!$G$3:$G$717) -> 0 | DA6: =SUMPRODUCT((CZ$3=المنصرف!$E$3:$E$717)*1,('بيان العهد والتسويات'!$C6=المنصرف!$C$3:$C$717)*1,المنصرف!$J$3:$J$717) -> 0
C7: 2025-07-01 | D7: =SUMPRODUCT(($D$3=المنصرف!$E$3:$E$717)*1,('بيان العهد والتسويات'!$C7=المنصرف!$C$3:$C$717)*1,المنصرف!$G$3:$G$717) -> 10879.54 | E7: =SUMPRODUCT(($D$3=المنصرف!$E$3:$E$717)*1,('بيان العهد والتسويات'!$C7=المنصرف!$C$3:$C$717)*1,المنصرف!$J$3:$J$717) -> 0 | F7: =SUMPRODUCT(($F$3=المنصرف!$E$3:$E$717)*1,('بيان العهد والتسويات'!$C7=المنصرف!$C$3:$C$717)*1,المنصرف!$G$3:$G$717) -> 0 | G7: =SUMPRODUCT(($F$3=المنصرف!$E$3:$E$717)*1,('بيان العهد والتسويات'!$C7=المنصرف!$C$3:$C$717)*1,المنصرف!$J$3:$J$717) -> 0 | H7: =SUMPRODUCT(($H$3=المنصرف!$E$3:$E$717)*1,('بيان العهد والتسويات'!$C7=المنصرف!$C$3:$C$717)*1,المنصرف!$G$3:$G$717) -> 240950.73 | I7: =SUMPRODUCT(($H$3=المنصرف!$E$3:$E$717)*1,('بيان العهد والتسويات'!$C7=المنصرف!$C$3:$C$717)*1,المنصرف!$J$3:$J$717) -> 0 | J7: =SUMPRODUCT(($J$3=المنصرف!$E$3:$E$717)*1,('بيان العهد والتسويات'!$C7=المنصرف!$C$3:$C$717)*1,المنصرف!$G$3:$G$717) -> 7787.49 | K7: =SUMPRODUCT(($J$3=المنصرف!$E$3:$E$717)*1,('بيان العهد والتسويات'!$C7=المنصرف!$C$3:$C$717)*1,المنصرف!$J$3:$J$717) -> 0 | L7: =SUMPRODUCT(($L$3=المنصرف!$E$3:$E$717)*1,('بيان العهد والتسويات'!$C7=المنصرف!$C$3:$C$717)*1,المنصرف!$G$3:$G$717) -> 0 | M7: =SUMPRODUCT(($L$3=المنصرف!$E$3:$E$717)*1,('بيان العهد والتسويات'!$C7=المنصرف!$C$3:$C$717)*1,المنصرف!$J$3:$J$717) -> 0 | N7: =SUMPRODUCT(($N$3=المنصرف!$E$3:$E$717)*1,('بيان العهد والتسويات'!$C7=المنصرف!$C$3:$C$717)*1,المنصرف!$G$3:$G$717) -> 0 | O7: =SUMPRODUCT(($N$3=المنصرف!$E$3:$E$717)*1,('بيان العهد والتسويات'!$C7=المنصرف!$C$3:$C$717)*1,المنصرف!$J$3:$J$717) -> 0 | P7: =SUMPRODUCT(($P$3=المنصرف!$E$3:$E$717)*1,('بيان العهد والتسويات'!$C7=المنصرف!$C$3:$C$717)*1,المنصرف!$G$3:$G$717) -> 0 | Q7: =SUMPRODUCT(($P$3=المنصرف!$E$3:$E$717)*1,('بيان العهد والتسويات'!$C7=المنصرف!$C$3:$C$717)*1,المنصرف!$J$3:$J$717) -> 0 | R7: =SUMPRODUCT(($R$3=المنصرف!$E$3:$E$717)*1,('بيان العهد والتسويات'!$C7=المنصرف!$C$3:$C$717)*1,المنصرف!$G$3:$G$717) -> 0 | S7: =SUMPRODUCT(($R$3=المنصرف!$E$3:$E$717)*1,('بيان العهد والتسويات'!$C7=المنصرف!$C$3:$C$717)*1,المنصرف!$J$3:$J$717) -> 0 | T7: =SUMPRODUCT(($T$3=المنصرف!$E$3:$E$717)*1,('بيان العهد والتسويات'!$C7=المنصرف!$C$3:$C$717)*1,المنصرف!$G$3:$G$717) -> 0 | U7: =SUMPRODUCT(($T$3=المنصرف!$E$3:$E$717)*1,('بيان العهد والتسويات'!$C7=المنصرف!$C$3:$C$717)*1,المنصرف!$J$3:$J$717) -> 0 | V7: =SUMPRODUCT(($V$3=المنصرف!$E$3:$E$717)*1,('بيان العهد والتسويات'!$C7=المنصرف!$C$3:$C$717)*1,المنصرف!$G$3:$G$717) -> 0 | W7: =SUMPRODUCT(($V$3=المنصرف!$E$3:$E$717)*1,('بيان العهد والتسويات'!$C7=المنصرف!$C$3:$C$717)*1,المنصرف!$J$3:$J$717) -> 0 | X7: =SUMPRODUCT(($X$3=المنصرف!$E$3:$E$717)*1,('بيان العهد والتسويات'!$C7=المنصرف!$C$3:$C$717)*1,المنصرف!$G$3:$G$717) -> 0 | Y7: =SUMPRODUCT(($X$3=المنصرف!$E$3:$E$717)*1,('بيان العهد والتسويات'!$C7=المنصرف!$C$3:$C$717)*1,المنصرف!$J$3:$J$717) -> 0 | Z7: =SUMPRODUCT(($Z$3=المنصرف!$E$3:$E$717)*1,('بيان العهد والتسويات'!$C7=المنصرف!$C$3:$C$717)*1,المنصرف!$G$3:$G$717) -> 0 | AA7: =SUMPRODUCT(($Z$3=المنصرف!$E$3:$E$717)*1,('بيان العهد والتسويات'!$C7=المنصرف!$C$3:$C$717)*1,المنصرف!$J$3:$J$717) -> 0 | AB7: =SUMPRODUCT(($AB$3=المنصرف!$E$3:$E$717)*1,('بيان العهد والتسويات'!$C7=المنصرف!$C$3:$C$717)*1,المنصرف!$G$3:$G$717) -> 0 | AC7: =SUMPRODUCT(($AB$3=المنصرف!$E$3:$E$717)*1,('بيان العهد والتسويات'!$C7=المنصرف!$C$3:$C$717)*1,المنصرف!$J$3:$J$717) -> 0 | AD7: =SUMPRODUCT(($AD$3=المنصرف!$E$3:$E$717)*1,('بيان العهد والتسويات'!$C7=المنصرف!$C$3:$C$717)*1,المنصرف!$G$3:$G$717) -> 0 | AE7: =SUMPRODUCT(($AD$3=المنصرف!$E$3:$E$717)*1,('بيان العهد والتسويات'!$C7=المنصرف!$C$3:$C$717)*1,المنصرف!$J$3:$J$717) -> 0 | AF7: =SUMPRODUCT(($AF$3=المنصرف!$E$3:$E$717)*1,('بيان العهد والتسويات'!$C7=المنصرف!$C$3:$C$717)*1,المنصرف!$G$3:$G$717) -> 0 | AG7: =SUMPRODUCT(($AF$3=المنصرف!$E$3:$E$717)*1,('بيان العهد والتسويات'!$C7=المنصرف!$C$3:$C$717)*1,المنصرف!$J$3:$J$717) -> 0 | AH7: =SUMPRODUCT(($AH$3=المنصرف!$E$3:$E$717)*1,('بيان العهد والتسويات'!$C7=المنصرف!$C$3:$C$717)*1,المنصرف!$G$3:$G$717) -> 0 | AI7: =SUMPRODUCT(($AH$3=المنصرف!$E$3:$E$717)*1,('بيان العهد والتسويات'!$C7=المنصرف!$C$3:$C$717)*1,المنصرف!$J$3:$J$717) -> 0 | AJ7: =SUMPRODUCT((AJ$3=المنصرف!$E$3:$E$717)*1,('بيان العهد والتسويات'!$C7=المنصرف!$C$3:$C$717)*1,المنصرف!$G$3:$G$717) -> 0 | AK7: =SUMPRODUCT((AJ$3=المنصرف!$E$3:$E$717)*1,('بيان العهد والتسويات'!$C7=المنصرف!$C$3:$C$717)*1,المنصرف!$J$3:$J$717) -> 0 | AL7: =SUMPRODUCT((AL$3=المنصرف!$E$3:$E$717)*1,('بيان العهد والتسويات'!$C7=المنصرف!$C$3:$C$717)*1,المنصرف!$G$3:$G$717) -> 0 | AM7: =SUMPRODUCT((AL$3=المنصرف!$E$3:$E$717)*1,('بيان العهد والتسويات'!$C7=المنصرف!$C$3:$C$717)*1,المنصرف!$J$3:$J$717) -> 0 | AN7: =SUMPRODUCT((AN$3=المنصرف!$E$3:$E$717)*1,('بيان العهد والتسويات'!$C7=المنصرف!$C$3:$C$717)*1,المنصرف!$G$3:$G$717) -> 0 | AO7: =SUMPRODUCT((AN$3=المنصرف!$E$3:$E$717)*1,('بيان العهد والتسويات'!$C7=المنصرف!$C$3:$C$717)*1,المنصرف!$J$3:$J$717) -> 0 | AP7: =SUMPRODUCT((AP$3=المنصرف!$E$3:$E$717)*1,('بيان العهد والتسويات'!$C7=المنصرف!$C$3:$C$717)*1,المنصرف!$G$3:$G$717) -> 0 | AQ7: =SUMPRODUCT((AP$3=المنصرف!$E$3:$E$717)*1,('بيان العهد والتسويات'!$C7=المنصرف!$C$3:$C$717)*1,المنصرف!$J$3:$J$717) -> 0 | AR7: =SUMPRODUCT((AR$3=المنصرف!$E$3:$E$717)*1,('بيان العهد والتسويات'!$C7=المنصرف!$C$3:$C$717)*1,المنصرف!$G$3:$G$717) -> 0 | AS7: =SUMPRODUCT((AR$3=المنصرف!$E$3:$E$717)*1,('بيان العهد والتسويات'!$C7=المنصرف!$C$3:$C$717)*1,المنصرف!$J$3:$J$717) -> 0 | AT7: =SUMPRODUCT((AT$3=المنصرف!$E$3:$E$717)*1,('بيان العهد والتسويات'!$C7=المنصرف!$C$3:$C$717)*1,المنصرف!$G$3:$G$717) -> 0 | AU7: =SUMPRODUCT((AT$3=المنصرف!$E$3:$E$717)*1,('بيان العهد والتسويات'!$C7=المنصرف!$C$3:$C$717)*1,المنصرف!$J$3:$J$717) -> 0 | AV7: =SUMPRODUCT((AV$3=المنصرف!$E$3:$E$717)*1,('بيان العهد والتسويات'!$C7=المنصرف!$C$3:$C$717)*1,المنصرف!$G$3:$G$717) -> 0 | AW7: =SUMPRODUCT((AV$3=المنصرف!$E$3:$E$717)*1,('بيان العهد والتسويات'!$C7=المنصرف!$C$3:$C$717)*1,المنصرف!$J$3:$J$717) -> 0 | AX7: =SUMPRODUCT((AX$3=المنصرف!$E$3:$E$717)*1,('بيان العهد والتسويات'!$C7=المنصرف!$C$3:$C$717)*1,المنصرف!$G$3:$G$717) -> 0 | AY7: =SUMPRODUCT((AX$3=المنصرف!$E$3:$E$717)*1,('بيان العهد والتسويات'!$C7=المنصرف!$C$3:$C$717)*1,المنصرف!$J$3:$J$717) -> 0 | AZ7: =SUMPRODUCT((AZ$3=المنصرف!$E$3:$E$717)*1,('بيان العهد والتسويات'!$C7=المنصرف!$C$3:$C$717)*1,المنصرف!$G$3:$G$717) -> 0 | BA7: =SUMPRODUCT((AZ$3=المنصرف!$E$3:$E$717)*1,('بيان العهد والتسويات'!$C7=المنصرف!$C$3:$C$717)*1,المنصرف!$J$3:$J$717) -> 0 | BB7: =SUMPRODUCT((BB$3=المنصرف!$E$3:$E$717)*1,('بيان العهد والتسويات'!$C7=المنصرف!$C$3:$C$717)*1,المنصرف!$G$3:$G$717) -> 0 | BC7: =SUMPRODUCT((BB$3=المنصرف!$E$3:$E$717)*1,('بيان العهد والتسويات'!$C7=المنصرف!$C$3:$C$717)*1,المنصرف!$J$3:$J$717) -> 0 | BD7: =SUMPRODUCT((BD$3=المنصرف!$E$3:$E$717)*1,('بيان العهد والتسويات'!$C7=المنصرف!$C$3:$C$717)*1,المنصرف!$G$3:$G$717) -> 0 | BE7: =SUMPRODUCT((BD$3=المنصرف!$E$3:$E$717)*1,('بيان العهد والتسويات'!$C7=المنصرف!$C$3:$C$717)*1,المنصرف!$J$3:$J$717) -> 0 | BF7: =SUMPRODUCT((BF$3=المنصرف!$E$3:$E$717)*1,('بيان العهد والتسويات'!$C7=المنصرف!$C$3:$C$717)*1,المنصرف!$G$3:$G$717) -> 0 | BG7: =SUMPRODUCT((BF$3=المنصرف!$E$3:$E$717)*1,('بيان العهد والتسويات'!$C7=المنصرف!$C$3:$C$717)*1,المنصرف!$J$3:$J$717) -> 0 | BH7: =SUMPRODUCT((BH$3=المنصرف!$E$3:$E$717)*1,('بيان العهد والتسويات'!$C7=المنصرف!$C$3:$C$717)*1,المنصرف!$G$3:$G$717) -> 0 | BI7: =SUMPRODUCT((BH$3=المنصرف!$E$3:$E$717)*1,('بيان العهد والتسويات'!$C7=المنصرف!$C$3:$C$717)*1,المنصرف!$J$3:$J$717) -> 0 | BJ7: =SUMPRODUCT((BJ$3=المنصرف!$E$3:$E$717)*1,('بيان العهد والتسويات'!$C7=المنصرف!$C$3:$C$717)*1,المنصرف!$G$3:$G$717) -> 0 | BK7: =SUMPRODUCT((BJ$3=المنصرف!$E$3:$E$717)*1,('بيان العهد والتسويات'!$C7=المنصرف!$C$3:$C$717)*1,المنصرف!$J$3:$J$717) -> 0 | BL7: =SUMPRODUCT((BL$3=المنصرف!$E$3:$E$717)*1,('بيان العهد والتسويات'!$C7=المنصرف!$C$3:$C$717)*1,المنصرف!$G$3:$G$717) -> 0 | BM7: =SUMPRODUCT((BL$3=المنصرف!$E$3:$E$717)*1,('بيان العهد والتسويات'!$C7=المنصرف!$C$3:$C$717)*1,المنصرف!$J$3:$J$717) -> 0 | BN7: =SUMPRODUCT((BN$3=المنصرف!$E$3:$E$717)*1,('بيان العهد والتسويات'!$C7=المنصرف!$C$3:$C$717)*1,المنصرف!$G$3:$G$717) -> 0 | BO7: =SUMPRODUCT((BN$3=المنصرف!$E$3:$E$717)*1,('بيان العهد والتسويات'!$C7=المنصرف!$C$3:$C$717)*1,المنصرف!$J$3:$J$717) -> 0 | BP7: =SUMPRODUCT((BP$3=المنصرف!$E$3:$E$717)*1,('بيان العهد والتسويات'!$C7=المنصرف!$C$3:$C$717)*1,المنصرف!$G$3:$G$717) -> 0 | BQ7: =SUMPRODUCT((BP$3=المنصرف!$E$3:$E$717)*1,('بيان العهد والتسويات'!$C7=المنصرف!$C$3:$C$717)*1,المنصرف!$J$3:$J$717) -> 0 | BR7: =SUMPRODUCT((BR$3=المنصرف!$E$3:$E$717)*1,('بيان العهد والتسويات'!$C7=المنصرف!$C$3:$C$717)*1,المنصرف!$G$3:$G$717) -> 0 | BS7: =SUMPRODUCT((BR$3=المنصرف!$E$3:$E$717)*1,('بيان العهد والتسويات'!$C7=المنصرف!$C$3:$C$717)*1,المنصرف!$J$3:$J$717) -> 0 | BT7: =SUMPRODUCT((BT$3=المنصرف!$E$3:$E$717)*1,('بيان العهد والتسويات'!$C7=المنصرف!$C$3:$C$717)*1,المنصرف!$G$3:$G$717) -> 0 | BU7: =SUMPRODUCT((BT$3=المنصرف!$E$3:$E$717)*1,('بيان العهد والتسويات'!$C7=المنصرف!$C$3:$C$717)*1,المنصرف!$J$3:$J$717) -> 0 | BV7: =SUMPRODUCT((BV$3=المنصرف!$E$3:$E$717)*1,('بيان العهد والتسويات'!$C7=المنصرف!$C$3:$C$717)*1,المنصرف!$G$3:$G$717) -> 0 | BW7: =SUMPRODUCT((BV$3=المنصرف!$E$3:$E$717)*1,('بيان العهد والتسويات'!$C7=المنصرف!$C$3:$C$717)*1,المنصرف!$J$3:$J$717) -> 0 | BX7: =SUMPRODUCT((BX$3=المنصرف!$E$3:$E$717)*1,('بيان العهد والتسويات'!$C7=المنصرف!$C$3:$C$717)*1,المنصرف!$G$3:$G$717) -> 0 | BY7: =SUMPRODUCT((BX$3=المنصرف!$E$3:$E$717)*1,('بيان العهد والتسويات'!$C7=المنصرف!$C$3:$C$717)*1,المنصرف!$J$3:$J$717) -> 0 | BZ7: =SUMPRODUCT((BZ$3=المنصرف!$E$3:$E$717)*1,('بيان العهد والتسويات'!$C7=المنصرف!$C$3:$C$717)*1,المنصرف!$G$3:$G$717) -> 0 | CA7: =SUMPRODUCT((BZ$3=المنصرف!$E$3:$E$717)*1,('بيان العهد والتسويات'!$C7=المنصرف!$C$3:$C$717)*1,المنصرف!$J$3:$J$717) -> 0 | CB7: =SUMPRODUCT((CB$3=المنصرف!$E$3:$E$717)*1,('بيان العهد والتسويات'!$C7=المنصرف!$C$3:$C$717)*1,المنصرف!$G$3:$G$717) -> 0 | CC7: =SUMPRODUCT((CB$3=المنصرف!$E$3:$E$717)*1,('بيان العهد والتسويات'!$C7=المنصرف!$C$3:$C$717)*1,المنصرف!$J$3:$J$717) -> 0 | CD7: =SUMPRODUCT((CD$3=المنصرف!$E$3:$E$717)*1,('بيان العهد والتسويات'!$C7=المنصرف!$C$3:$C$717)*1,المنصرف!$G$3:$G$717) -> 0 | CE7: =SUMPRODUCT((CD$3=المنصرف!$E$3:$E$717)*1,('بيان العهد والتسويات'!$C7=المنصرف!$C$3:$C$717)*1,المنصرف!$J$3:$J$717) -> 0 | CF7: =SUMPRODUCT((CF$3=المنصرف!$E$3:$E$717)*1,('بيان العهد والتسويات'!$C7=المنصرف!$C$3:$C$717)*1,المنصرف!$G$3:$G$717) -> 0 | CG7: =SUMPRODUCT((CF$3=المنصرف!$E$3:$E$717)*1,('بيان العهد والتسويات'!$C7=المنصرف!$C$3:$C$717)*1,المنصرف!$J$3:$J$717) -> 0 | CH7: =SUMPRODUCT((CH$3=المنصرف!$E$3:$E$717)*1,('بيان العهد والتسويات'!$C7=المنصرف!$C$3:$C$717)*1,المنصرف!$G$3:$G$717) -> 0 | CI7: =SUMPRODUCT((CH$3=المنصرف!$E$3:$E$717)*1,('بيان العهد والتسويات'!$C7=المنصرف!$C$3:$C$717)*1,المنصرف!$J$3:$J$717) -> 0 | CJ7: =SUMPRODUCT((CJ$3=المنصرف!$E$3:$E$717)*1,('بيان العهد والتسويات'!$C7=المنصرف!$C$3:$C$717)*1,المنصرف!$G$3:$G$717) -> 0 | CK7: =SUMPRODUCT((CJ$3=المنصرف!$E$3:$E$717)*1,('بيان العهد والتسويات'!$C7=المنصرف!$C$3:$C$717)*1,المنصرف!$J$3:$J$717) -> 0 | CL7: =SUMPRODUCT((CL$3=المنصرف!$E$3:$E$717)*1,('بيان العهد والتسويات'!$C7=المنصرف!$C$3:$C$717)*1,المنصرف!$G$3:$G$717) -> 0 | CM7: =SUMPRODUCT((CL$3=المنصرف!$E$3:$E$717)*1,('بيان العهد والتسويات'!$C7=المنصرف!$C$3:$C$717)*1,المنصرف!$J$3:$J$717) -> 0 | CN7: =SUMPRODUCT((CN$3=المنصرف!$E$3:$E$717)*1,('بيان العهد والتسويات'!$C7=المنصرف!$C$3:$C$717)*1,المنصرف!$G$3:$G$717) -> 0 | CO7: =SUMPRODUCT((CN$3=المنصرف!$E$3:$E$717)*1,('بيان العهد والتسويات'!$C7=المنصرف!$C$3:$C$717)*1,المنصرف!$J$3:$J$717) -> 0 | CP7: =SUMPRODUCT((CP$3=المنصرف!$E$3:$E$717)*1,('بيان العهد والتسويات'!$C7=المنصرف!$C$3:$C$717)*1,المنصرف!$G$3:$G$717) -> 0 | CQ7: =SUMPRODUCT((CP$3=المنصرف!$E$3:$E$717)*1,('بيان العهد والتسويات'!$C7=المنصرف!$C$3:$C$717)*1,المنصرف!$J$3:$J$717) -> 0 | CR7: =SUMPRODUCT((CR$3=المنصرف!$E$3:$E$717)*1,('بيان العهد والتسويات'!$C7=المنصرف!$C$3:$C$717)*1,المنصرف!$G$3:$G$717) -> 0 | CS7: =SUMPRODUCT((CR$3=المنصرف!$E$3:$E$717)*1,('بيان العهد والتسويات'!$C7=المنصرف!$C$3:$C$717)*1,المنصرف!$J$3:$J$717) -> 0 | CT7: =SUMPRODUCT((CT$3=المنصرف!$E$3:$E$717)*1,('بيان العهد والتسويات'!$C7=المنصرف!$C$3:$C$717)*1,المنصرف!$G$3:$G$717) -> 0 | CU7: =SUMPRODUCT((CT$3=المنصرف!$E$3:$E$717)*1,('بيان العهد والتسويات'!$C7=المنصرف!$C$3:$C$717)*1,المنصرف!$J$3:$J$717) -> 0 | CV7: =SUMPRODUCT((CV$3=المنصرف!$E$3:$E$717)*1,('بيان العهد والتسويات'!$C7=المنصرف!$C$3:$C$717)*1,المنصرف!$G$3:$G$717) -> 0 | CW7: =SUMPRODUCT((CV$3=المنصرف!$E$3:$E$717)*1,('بيان العهد والتسويات'!$C7=المنصرف!$C$3:$C$717)*1,المنصرف!$J$3:$J$717) -> 0 | CX7: =SUMPRODUCT((CX$3=المنصرف!$E$3:$E$717)*1,('بيان العهد والتسويات'!$C7=المنصرف!$C$3:$C$717)*1,المنصرف!$G$3:$G$717) -> 0 | CY7: =SUMPRODUCT((CX$3=المنصرف!$E$3:$E$717)*1,('بيان العهد والتسويات'!$C7=المنصرف!$C$3:$C$717)*1,المنصرف!$J$3:$J$717) -> 0 | CZ7: =SUMPRODUCT((CZ$3=المنصرف!$E$3:$E$717)*1,('بيان العهد والتسويات'!$C7=المنصرف!$C$3:$C$717)*1,المنصرف!$G$3:$G$717) -> 0 | DA7: =SUMPRODUCT((CZ$3=المنصرف!$E$3:$E$717)*1,('بيان العهد والتسويات'!$C7=المنصرف!$C$3:$C$717)*1,المنصرف!$J$3:$J$717) -> 0
C8: 2025-07-02 | D8: =SUMPRODUCT(($D$3=المنصرف!$E$3:$E$717)*1,('بيان العهد والتسويات'!$C8=المنصرف!$C$3:$C$717)*1,المنصرف!$G$3:$G$717) -> 300000 | E8: =SUMPRODUCT(($D$3=المنصرف!$E$3:$E$717)*1,('بيان العهد والتسويات'!$C8=المنصرف!$C$3:$C$717)*1,المنصرف!$J$3:$J$717) -> 0 | F8: =SUMPRODUCT(($F$3=المنصرف!$E$3:$E$717)*1,('بيان العهد والتسويات'!$C8=المنصرف!$C$3:$C$717)*1,المنصرف!$G$3:$G$717) -> 0 | G8: =SUMPRODUCT(($F$3=المنصرف!$E$3:$E$717)*1,('بيان العهد والتسويات'!$C8=المنصرف!$C$3:$C$717)*1,المنصرف!$J$3:$J$717) -> 0 | H8: =SUMPRODUCT(($H$3=المنصرف!$E$3:$E$717)*1,('بيان العهد والتسويات'!$C8=المنصرف!$C$3:$C$717)*1,المنصرف!$G$3:$G$717) -> 120000 | I8: =SUMPRODUCT(($H$3=المنصرف!$E$3:$E$717)*1,('بيان العهد والتسويات'!$C8=المنصرف!$C$3:$C$717)*1,المنصرف!$J$3:$J$717) -> 164579.27 | J8: =SUMPRODUCT(($J$3=المنصرف!$E$3:$E$717)*1,('بيان العهد والتسويات'!$C8=المنصرف!$C$3:$C$717)*1,المنصرف!$G$3:$G$717) -> 0 | K8: =SUMPRODUCT(($J$3=المنصرف!$E$3:$E$717)*1,('بيان العهد والتسويات'!$C8=المنصرف!$C$3:$C$717)*1,المنصرف!$J$3:$J$717) -> 0 | L8: =SUMPRODUCT(($L$3=المنصرف!$E$3:$E$717)*1,('بيان العهد والتسويات'!$C8=المنصرف!$C$3:$C$717)*1,المنصرف!$G$3:$G$717) -> 0 | M8: =SUMPRODUCT(($L$3=المنصرف!$E$3:$E$717)*1,('بيان العهد والتسويات'!$C8=المنصرف!$C$3:$C$717)*1,المنصرف!$J$3:$J$717) -> 0 | N8: =SUMPRODUCT(($N$3=المنصرف!$E$3:$E$717)*1,('بيان العهد والتسويات'!$C8=المنصرف!$C$3:$C$717)*1,المنصرف!$G$3:$G$717) -> 0 | O8: =SUMPRODUCT(($N$3=المنصرف!$E$3:$E$717)*1,('بيان العهد والتسويات'!$C8=المنصرف!$C$3:$C$717)*1,المنصرف!$J$3:$J$717) -> 0 | P8: =SUMPRODUCT(($P$3=المنصرف!$E$3:$E$717)*1,('بيان العهد والتسويات'!$C8=المنصرف!$C$3:$C$717)*1,المنصرف!$G$3:$G$717) -> 0 | Q8: =SUMPRODUCT(($P$3=المنصرف!$E$3:$E$717)*1,('بيان العهد والتسويات'!$C8=المنصرف!$C$3:$C$717)*1,المنصرف!$J$3:$J$717) -> 0 | R8: =SUMPRODUCT(($R$3=المنصرف!$E$3:$E$717)*1,('بيان العهد والتسويات'!$C8=المنصرف!$C$3:$C$717)*1,المنصرف!$G$3:$G$717) -> 0 | S8: =SUMPRODUCT(($R$3=المنصرف!$E$3:$E$717)*1,('بيان العهد والتسويات'!$C8=المنصرف!$C$3:$C$717)*1,المنصرف!$J$3:$J$717) -> 0 | T8: =SUMPRODUCT(($T$3=المنصرف!$E$3:$E$717)*1,('بيان العهد والتسويات'!$C8=المنصرف!$C$3:$C$717)*1,المنصرف!$G$3:$G$717) -> 0 | U8: =SUMPRODUCT(($T$3=المنصرف!$E$3:$E$717)*1,('بيان العهد والتسويات'!$C8=المنصرف!$C$3:$C$717)*1,المنصرف!$J$3:$J$717) -> 0 | V8: =SUMPRODUCT(($V$3=المنصرف!$E$3:$E$717)*1,('بيان العهد والتسويات'!$C8=المنصرف!$C$3:$C$717)*1,المنصرف!$G$3:$G$717) -> 0 | W8: =SUMPRODUCT(($V$3=المنصرف!$E$3:$E$717)*1,('بيان العهد والتسويات'!$C8=المنصرف!$C$3:$C$717)*1,المنصرف!$J$3:$J$717) -> 0 | X8: =SUMPRODUCT(($X$3=المنصرف!$E$3:$E$717)*1,('بيان العهد والتسويات'!$C8=المنصرف!$C$3:$C$717)*1,المنصرف!$G$3:$G$717) -> 0 | Y8: =SUMPRODUCT(($X$3=المنصرف!$E$3:$E$717)*1,('بيان العهد والتسويات'!$C8=المنصرف!$C$3:$C$717)*1,المنصرف!$J$3:$J$717) -> 0 | Z8: =SUMPRODUCT(($Z$3=المنصرف!$E$3:$E$717)*1,('بيان العهد والتسويات'!$C8=المنصرف!$C$3:$C$717)*1,المنصرف!$G$3:$G$717) -> 0 | AA8: =SUMPRODUCT(($Z$3=المنصرف!$E$3:$E$717)*1,('بيان العهد والتسويات'!$C8=المنصرف!$C$3:$C$717)*1,المنصرف!$J$3:$J$717) -> 0 | AB8: =SUMPRODUCT(($AB$3=المنصرف!$E$3:$E$717)*1,('بيان العهد والتسويات'!$C8=المنصرف!$C$3:$C$717)*1,المنصرف!$G$3:$G$717) -> 0 | AC8: =SUMPRODUCT(($AB$3=المنصرف!$E$3:$E$717)*1,('بيان العهد والتسويات'!$C8=المنصرف!$C$3:$C$717)*1,المنصرف!$J$3:$J$717) -> 0 | AD8: =SUMPRODUCT(($AD$3=المنصرف!$E$3:$E$717)*1,('بيان العهد والتسويات'!$C8=المنصرف!$C$3:$C$717)*1,المنصرف!$G$3:$G$717) -> 0 | AE8: =SUMPRODUCT(($AD$3=المنصرف!$E$3:$E$717)*1,('بيان العهد والتسويات'!$C8=المنصرف!$C$3:$C$717)*1,المنصرف!$J$3:$J$717) -> 0 | AF8: =SUMPRODUCT(($AF$3=المنصرف!$E$3:$E$717)*1,('بيان العهد والتسويات'!$C8=المنصرف!$C$3:$C$717)*1,المنصرف!$G$3:$G$717) -> 0 | AG8: =SUMPRODUCT(($AF$3=المنصرف!$E$3:$E$717)*1,('بيان العهد والتسويات'!$C8=المنصرف!$C$3:$C$717)*1,المنصرف!$J$3:$J$717) -> 0 | AH8: =SUMPRODUCT(($AH$3=المنصرف!$E$3:$E$717)*1,('بيان العهد والتسويات'!$C8=المنصرف!$C$3:$C$717)*1,المنصرف!$G$3:$G$717) -> 0 | AI8: =SUMPRODUCT(($AH$3=المنصرف!$E$3:$E$717)*1,('بيان العهد والتسويات'!$C8=المنصرف!$C$3:$C$717)*1,المنصرف!$J$3:$J$717) -> 0 | AJ8: =SUMPRODUCT((AJ$3=المنصرف!$E$3:$E$717)*1,('بيان العهد والتسويات'!$C8=المنصرف!$C$3:$C$717)*1,المنصرف!$G$3:$G$717) -> 0 | AK8: =SUMPRODUCT((AJ$3=المنصرف!$E$3:$E$717)*1,('بيان العهد والتسويات'!$C8=المنصرف!$C$3:$C$717)*1,المنصرف!$J$3:$J$717) -> 0 | AL8: =SUMPRODUCT((AL$3=المنصرف!$E$3:$E$717)*1,('بيان العهد والتسويات'!$C8=المنصرف!$C$3:$C$717)*1,المنصرف!$G$3:$G$717) -> 0 | AM8: =SUMPRODUCT((AL$3=المنصرف!$E$3:$E$717)*1,('بيان العهد والتسويات'!$C8=المنصرف!$C$3:$C$717)*1,المنصرف!$J$3:$J$717) -> 0 | AN8: =SUMPRODUCT((AN$3=المنصرف!$E$3:$E$717)*1,('بيان العهد والتسويات'!$C8=المنصرف!$C$3:$C$717)*1,المنصرف!$G$3:$G$717) -> 0 | AO8: =SUMPRODUCT((AN$3=المنصرف!$E$3:$E$717)*1,('بيان العهد والتسويات'!$C8=المنصرف!$C$3:$C$717)*1,المنصرف!$J$3:$J$717) -> 0 | AP8: =SUMPRODUCT((AP$3=المنصرف!$E$3:$E$717)*1,('بيان العهد والتسويات'!$C8=المنصرف!$C$3:$C$717)*1,المنصرف!$G$3:$G$717) -> 0 | AQ8: =SUMPRODUCT((AP$3=المنصرف!$E$3:$E$717)*1,('بيان العهد والتسويات'!$C8=المنصرف!$C$3:$C$717)*1,المنصرف!$J$3:$J$717) -> 0 | AR8: =SUMPRODUCT((AR$3=المنصرف!$E$3:$E$717)*1,('بيان العهد والتسويات'!$C8=المنصرف!$C$3:$C$717)*1,المنصرف!$G$3:$G$717) -> 0 | AS8: =SUMPRODUCT((AR$3=المنصرف!$E$3:$E$717)*1,('بيان العهد والتسويات'!$C8=المنصرف!$C$3:$C$717)*1,المنصرف!$J$3:$J$717) -> 0 | AT8: =SUMPRODUCT((AT$3=المنصرف!$E$3:$E$717)*1,('بيان العهد والتسويات'!$C8=المنصرف!$C$3:$C$717)*1,المنصرف!$G$3:$G$717) -> 0 | AU8: =SUMPRODUCT((AT$3=المنصرف!$E$3:$E$717)*1,('بيان العهد والتسويات'!$C8=المنصرف!$C$3:$C$717)*1,المنصرف!$J$3:$J$717) -> 0 | AV8: =SUMPRODUCT((AV$3=المنصرف!$E$3:$E$717)*1,('بيان العهد والتسويات'!$C8=المنصرف!$C$3:$C$717)*1,المنصرف!$G$3:$G$717) -> 0 | AW8: =SUMPRODUCT((AV$3=المنصرف!$E$3:$E$717)*1,('بيان العهد والتسويات'!$C8=المنصرف!$C$3:$C$717)*1,المنصرف!$J$3:$J$717) -> 0 | AX8: =SUMPRODUCT((AX$3=المنصرف!$E$3:$E$717)*1,('بيان العهد والتسويات'!$C8=المنصرف!$C$3:$C$717)*1,المنصرف!$G$3:$G$717) -> 0 | AY8: =SUMPRODUCT((AX$3=المنصرف!$E$3:$E$717)*1,('بيان العهد والتسويات'!$C8=المنصرف!$C$3:$C$717)*1,المنصرف!$J$3:$J$717) -> 0 | AZ8: =SUMPRODUCT((AZ$3=المنصرف!$E$3:$E$717)*1,('بيان العهد والتسويات'!$C8=المنصرف!$C$3:$C$717)*1,المنصرف!$G$3:$G$717) -> 0 | BA8: =SUMPRODUCT((AZ$3=المنصرف!$E$3:$E$717)*1,('بيان العهد والتسويات'!$C8=المنصرف!$C$3:$C$717)*1,المنصرف!$J$3:$J$717) -> 0 | BB8: =SUMPRODUCT((BB$3=المنصرف!$E$3:$E$717)*1,('بيان العهد والتسويات'!$C8=المنصرف!$C$3:$C$717)*1,المنصرف!$G$3:$G$717) -> 0 | BC8: =SUMPRODUCT((BB$3=المنصرف!$E$3:$E$717)*1,('بيان العهد والتسويات'!$C8=المنصرف!$C$3:$C$717)*1,المنصرف!$J$3:$J$717) -> 0 | BD8: =SUMPRODUCT((BD$3=المنصرف!$E$3:$E$717)*1,('بيان العهد والتسويات'!$C8=المنصرف!$C$3:$C$717)*1,المنصرف!$G$3:$G$717) -> 0 | BE8: =SUMPRODUCT((BD$3=المنصرف!$E$3:$E$717)*1,('بيان العهد والتسويات'!$C8=المنصرف!$C$3:$C$717)*1,المنصرف!$J$3:$J$717) -> 0 | BF8: =SUMPRODUCT((BF$3=المنصرف!$E$3:$E$717)*1,('بيان العهد والتسويات'!$C8=المنصرف!$C$3:$C$717)*1,المنصرف!$G$3:$G$717) -> 0 | BG8: =SUMPRODUCT((BF$3=المنصرف!$E$3:$E$717)*1,('بيان العهد والتسويات'!$C8=المنصرف!$C$3:$C$717)*1,المنصرف!$J$3:$J$717) -> 0 | BH8: =SUMPRODUCT((BH$3=المنصرف!$E$3:$E$717)*1,('بيان العهد والتسويات'!$C8=المنصرف!$C$3:$C$717)*1,المنصرف!$G$3:$G$717) -> 0 | BI8: =SUMPRODUCT((BH$3=المنصرف!$E$3:$E$717)*1,('بيان العهد والتسويات'!$C8=المنصرف!$C$3:$C$717)*1,المنصرف!$J$3:$J$717) -> 0 | BJ8: =SUMPRODUCT((BJ$3=المنصرف!$E$3:$E$717)*1,('بيان العهد والتسويات'!$C8=المنصرف!$C$3:$C$717)*1,المنصرف!$G$3:$G$717) -> 0 | BK8: =SUMPRODUCT((BJ$3=المنصرف!$E$3:$E$717)*1,('بيان العهد والتسويات'!$C8=المنصرف!$C$3:$C$717)*1,المنصرف!$J$3:$J$717) -> 0 | BL8: =SUMPRODUCT((BL$3=المنصرف!$E$3:$E$717)*1,('بيان العهد والتسويات'!$C8=المنصرف!$C$3:$C$717)*1,المنصرف!$G$3:$G$717) -> 0 | BM8: =SUMPRODUCT((BL$3=المنصرف!$E$3:$E$717)*1,('بيان العهد والتسويات'!$C8=المنصرف!$C$3:$C$717)*1,المنصرف!$J$3:$J$717) -> 0 | BN8: =SUMPRODUCT((BN$3=المنصرف!$E$3:$E$717)*1,('بيان العهد والتسويات'!$C8=المنصرف!$C$3:$C$717)*1,المنصرف!$G$3:$G$717) -> 0 | BO8: =SUMPRODUCT((BN$3=المنصرف!$E$3:$E$717)*1,('بيان العهد والتسويات'!$C8=المنصرف!$C$3:$C$717)*1,المنصرف!$J$3:$J$717) -> 0 | BP8: =SUMPRODUCT((BP$3=المنصرف!$E$3:$E$717)*1,('بيان العهد والتسويات'!$C8=المنصرف!$C$3:$C$717)*1,المنصرف!$G$3:$G$717) -> 0 | BQ8: =SUMPRODUCT((BP$3=المنصرف!$E$3:$E$717)*1,('بيان العهد والتسويات'!$C8=المنصرف!$C$3:$C$717)*1,المنصرف!$J$3:$J$717) -> 0 | BR8: =SUMPRODUCT((BR$3=المنصرف!$E$3:$E$717)*1,('بيان العهد والتسويات'!$C8=المنصرف!$C$3:$C$717)*1,المنصرف!$G$3:$G$717) -> 0 | BS8: =SUMPRODUCT((BR$3=المنصرف!$E$3:$E$717)*1,('بيان العهد والتسويات'!$C8=المنصرف!$C$3:$C$717)*1,المنصرف!$J$3:$J$717) -> 0 | BT8: =SUMPRODUCT((BT$3=المنصرف!$E$3:$E$717)*1,('بيان العهد والتسويات'!$C8=المنصرف!$C$3:$C$717)*1,المنصرف!$G$3:$G$717) -> 0 | BU8: =SUMPRODUCT((BT$3=المنصرف!$E$3:$E$717)*1,('بيان العهد والتسويات'!$C8=المنصرف!$C$3:$C$717)*1,المنصرف!$J$3:$J$717) -> 0 | BV8: =SUMPRODUCT((BV$3=المنصرف!$E$3:$E$717)*1,('بيان العهد والتسويات'!$C8=المنصرف!$C$3:$C$717)*1,المنصرف!$G$3:$G$717) -> 0 | BW8: =SUMPRODUCT((BV$3=المنصرف!$E$3:$E$717)*1,('بيان العهد والتسويات'!$C8=المنصرف!$C$3:$C$717)*1,المنصرف!$J$3:$J$717) -> 0 | BX8: =SUMPRODUCT((BX$3=المنصرف!$E$3:$E$717)*1,('بيان العهد والتسويات'!$C8=المنصرف!$C$3:$C$717)*1,المنصرف!$G$3:$G$717) -> 0 | BY8: =SUMPRODUCT((BX$3=المنصرف!$E$3:$E$717)*1,('بيان العهد والتسويات'!$C8=المنصرف!$C$3:$C$717)*1,المنصرف!$J$3:$J$717) -> 0 | BZ8: =SUMPRODUCT((BZ$3=المنصرف!$E$3:$E$717)*1,('بيان العهد والتسويات'!$C8=المنصرف!$C$3:$C$717)*1,المنصرف!$G$3:$G$717) -> 0 | CA8: =SUMPRODUCT((BZ$3=المنصرف!$E$3:$E$717)*1,('بيان العهد والتسويات'!$C8=المنصرف!$C$3:$C$717)*1,المنصرف!$J$3:$J$717) -> 0 | CB8: =SUMPRODUCT((CB$3=المنصرف!$E$3:$E$717)*1,('بيان العهد والتسويات'!$C8=المنصرف!$C$3:$C$717)*1,المنصرف!$G$3:$G$717) -> 0 | CC8: =SUMPRODUCT((CB$3=المنصرف!$E$3:$E$717)*1,('بيان العهد والتسويات'!$C8=المنصرف!$C$3:$C$717)*1,المنصرف!$J$3:$J$717) -> 0 | CD8: =SUMPRODUCT((CD$3=المنصرف!$E$3:$E$717)*1,('بيان العهد والتسويات'!$C8=المنصرف!$C$3:$C$717)*1,المنصرف!$G$3:$G$717) -> 0 | CE8: =SUMPRODUCT((CD$3=المنصرف!$E$3:$E$717)*1,('بيان العهد والتسويات'!$C8=المنصرف!$C$3:$C$717)*1,المنصرف!$J$3:$J$717) -> 0 | CF8: =SUMPRODUCT((CF$3=المنصرف!$E$3:$E$717)*1,('بيان العهد والتسويات'!$C8=المنصرف!$C$3:$C$717)*1,المنصرف!$G$3:$G$717) -> 0 | CG8: =SUMPRODUCT((CF$3=المنصرف!$E$3:$E$717)*1,('بيان العهد والتسويات'!$C8=المنصرف!$C$3:$C$717)*1,المنصرف!$J$3:$J$717) -> 0 | CH8: =SUMPRODUCT((CH$3=المنصرف!$E$3:$E$717)*1,('بيان العهد والتسويات'!$C8=المنصرف!$C$3:$C$717)*1,المنصرف!$G$3:$G$717) -> 0 | CI8: =SUMPRODUCT((CH$3=المنصرف!$E$3:$E$717)*1,('بيان العهد والتسويات'!$C8=المنصرف!$C$3:$C$717)*1,المنصرف!$J$3:$J$717) -> 0 | CJ8: =SUMPRODUCT((CJ$3=المنصرف!$E$3:$E$717)*1,('بيان العهد والتسويات'!$C8=المنصرف!$C$3:$C$717)*1,المنصرف!$G$3:$G$717) -> 0 | CK8: =SUMPRODUCT((CJ$3=المنصرف!$E$3:$E$717)*1,('بيان العهد والتسويات'!$C8=المنصرف!$C$3:$C$717)*1,المنصرف!$J$3:$J$717) -> 0 | CL8: =SUMPRODUCT((CL$3=المنصرف!$E$3:$E$717)*1,('بيان العهد والتسويات'!$C8=المنصرف!$C$3:$C$717)*1,المنصرف!$G$3:$G$717) -> 0 | CM8: =SUMPRODUCT((CL$3=المنصرف!$E$3:$E$717)*1,('بيان العهد والتسويات'!$C8=المنصرف!$C$3:$C$717)*1,المنصرف!$J$3:$J$717) -> 0 | CN8: =SUMPRODUCT((CN$3=المنصرف!$E$3:$E$717)*1,('بيان العهد والتسويات'!$C8=المنصرف!$C$3:$C$717)*1,المنصرف!$G$3:$G$717) -> 0 | CO8: =SUMPRODUCT((CN$3=المنصرف!$E$3:$E$717)*1,('بيان العهد والتسويات'!$C8=المنصرف!$C$3:$C$717)*1,المنصرف!$J$3:$J$717) -> 0 | CP8: =SUMPRODUCT((CP$3=المنصرف!$E$3:$E$717)*1,('بيان العهد والتسويات'!$C8=المنصرف!$C$3:$C$717)*1,المنصرف!$G$3:$G$717) -> 0 | CQ8: =SUMPRODUCT((CP$3=المنصرف!$E$3:$E$717)*1,('بيان العهد والتسويات'!$C8=المنصرف!$C$3:$C$717)*1,المنصرف!$J$3:$J$717) -> 0 | CR8: =SUMPRODUCT((CR$3=المنصرف!$E$3:$E$717)*1,('بيان العهد والتسويات'!$C8=المنصرف!$C$3:$C$717)*1,المنصرف!$G$3:$G$717) -> 0 | CS8: =SUMPRODUCT((CR$3=المنصرف!$E$3:$E$717)*1,('بيان العهد والتسويات'!$C8=المنصرف!$C$3:$C$717)*1,المنصرف!$J$3:$J$717) -> 0 | CT8: =SUMPRODUCT((CT$3=المنصرف!$E$3:$E$717)*1,('بيان العهد والتسويات'!$C8=المنصرف!$C$3:$C$717)*1,المنصرف!$G$3:$G$717) -> 0 | CU8: =SUMPRODUCT((CT$3=المنصرف!$E$3:$E$717)*1,('بيان العهد والتسويات'!$C8=المنصرف!$C$3:$C$717)*1,المنصرف!$J$3:$J$717) -> 0 | CV8: =SUMPRODUCT((CV$3=المنصرف!$E$3:$E$717)*1,('بيان العهد والتسويات'!$C8=المنصرف!$C$3:$C$717)*1,المنصرف!$G$3:$G$717) -> 0 | CW8: =SUMPRODUCT((CV$3=المنصرف!$E$3:$E$717)*1,('بيان العهد والتسويات'!$C8=المنصرف!$C$3:$C$717)*1,المنصرف!$J$3:$J$717) -> 0 | CX8: =SUMPRODUCT((CX$3=المنصرف!$E$3:$E$717)*1,('بيان العهد والتسويات'!$C8=المنصرف!$C$3:$C$717)*1,المنصرف!$G$3:$G$717) -> 0 | CY8: =SUMPRODUCT((CX$3=المنصرف!$E$3:$E$717)*1,('بيان العهد والتسويات'!$C8=المنصرف!$C$3:$C$717)*1,المنصرف!$J$3:$J$717) -> 0 | CZ8: =SUMPRODUCT((CZ$3=المنصرف!$E$3:$E$717)*1,('بيان العهد والتسويات'!$C8=المنصرف!$C$3:$C$717)*1,المنصرف!$G$3:$G$717) -> 0 | DA8: =SUMPRODUCT((CZ$3=المنصرف!$E$3:$E$717)*1,('بيان العهد والتسويات'!$C8=المنصرف!$C$3:$C$717)*1,المنصرف!$J$3:$J$717) -> 0
C9: 2025-07-03 | D9: =SUMPRODUCT(($D$3=المنصرف!$E$3:$E$717)*1,('بيان العهد والتسويات'!$C9=المنصرف!$C$3:$C$717)*1,المنصرف!$G$3:$G$717) -> 0 | E9: =SUMPRODUCT(($D$3=المنصرف!$E$3:$E$717)*1,('بيان العهد والتسويات'!$C9=المنصرف!$C$3:$C$717)*1,المنصرف!$J$3:$J$717) -> 0 | F9: =SUMPRODUCT(($F$3=المنصرف!$E$3:$E$717)*1,('بيان العهد والتسويات'!$C9=المنصرف!$C$3:$C$717)*1,المنصرف!$G$3:$G$717) -> 0 | G9: =SUMPRODUCT(($F$3=المنصرف!$E$3:$E$717)*1,('بيان العهد والتسويات'!$C9=المنصرف!$C$3:$C$717)*1,المنصرف!$J$3:$J$717) -> 0 | H9: =SUMPRODUCT(($H$3=المنصرف!$E$3:$E$717)*1,('بيان العهد والتسويات'!$C9=المنصرف!$C$3:$C$717)*1,المنصرف!$G$3:$G$717) -> 0 | I9: =SUMPRODUCT(($H$3=المنصرف!$E$3:$E$717)*1,('بيان العهد والتسويات'!$C9=المنصرف!$C$3:$C$717)*1,المنصرف!$J$3:$J$717) -> 0 | J9: =SUMPRODUCT(($J$3=المنصرف!$E$3:$E$717)*1,('بيان العهد والتسويات'!$C9=المنصرف!$C$3:$C$717)*1,المنصرف!$G$3:$G$717) -> 0 | K9: =SUMPRODUCT(($J$3=المنصرف!$E$3:$E$717)*1,('بيان العهد والتسويات'!$C9=المنصرف!$C$3:$C$717)*1,المنصرف!$J$3:$J$717) -> 0 | L9: =SUMPRODUCT(($L$3=المنصرف!$E$3:$E$717)*1,('بيان العهد والتسويات'!$C9=المنصرف!$C$3:$C$717)*1,المنصرف!$G$3:$G$717) -> 0 | M9: =SUMPRODUCT(($L$3=المنصرف!$E$3:$E$717)*1,('بيان العهد والتسويات'!$C9=المنصرف!$C$3:$C$717)*1,المنصرف!$J$3:$J$717) -> 0 | N9: =SUMPRODUCT(($N$3=المنصرف!$E$3:$E$717)*1,('بيان العهد والتسويات'!$C9=المنصرف!$C$3:$C$717)*1,المنصرف!$G$3:$G$717) -> 0 | O9: =SUMPRODUCT(($N$3=المنصرف!$E$3:$E$717)*1,('بيان العهد والتسويات'!$C9=المنصرف!$C$3:$C$717)*1,المنصرف!$J$3:$J$717) -> 0 | P9: =SUMPRODUCT(($P$3=المنصرف!$E$3:$E$717)*1,('بيان العهد والتسويات'!$C9=المنصرف!$C$3:$C$717)*1,المنصرف!$G$3:$G$717) -> 0 | Q9: =SUMPRODUCT(($P$3=المنصرف!$E$3:$E$717)*1,('بيان العهد والتسويات'!$C9=المنصرف!$C$3:$C$717)*1,المنصرف!$J$3:$J$717) -> 0 | R9: =SUMPRODUCT(($R$3=المنصرف!$E$3:$E$717)*1,('بيان العهد والتسويات'!$C9=المنصرف!$C$3:$C$717)*1,المنصرف!$G$3:$G$717) -> 0 | S9: =SUMPRODUCT(($R$3=المنصرف!$E$3:$E$717)*1,('بيان العهد والتسويات'!$C9=المنصرف!$C$3:$C$717)*1,المنصرف!$J$3:$J$717) -> 0 | T9: =SUMPRODUCT(($T$3=المنصرف!$E$3:$E$717)*1,('بيان العهد والتسويات'!$C9=المنصرف!$C$3:$C$717)*1,المنصرف!$G$3:$G$717) -> 0 | U9: =SUMPRODUCT(($T$3=المنصرف!$E$3:$E$717)*1,('بيان العهد والتسويات'!$C9=المنصرف!$C$3:$C$717)*1,المنصرف!$J$3:$J$717) -> 0 | V9: =SUMPRODUCT(($V$3=المنصرف!$E$3:$E$717)*1,('بيان العهد والتسويات'!$C9=المنصرف!$C$3:$C$717)*1,المنصرف!$G$3:$G$717) -> 0 | W9: =SUMPRODUCT(($V$3=المنصرف!$E$3:$E$717)*1,('بيان العهد والتسويات'!$C9=المنصرف!$C$3:$C$717)*1,المنصرف!$J$3:$J$717) -> 0 | X9: =SUMPRODUCT(($X$3=المنصرف!$E$3:$E$717)*1,('بيان العهد والتسويات'!$C9=المنصرف!$C$3:$C$717)*1,المنصرف!$G$3:$G$717) -> 0 | Y9: =SUMPRODUCT(($X$3=المنصرف!$E$3:$E$717)*1,('بيان العهد والتسويات'!$C9=المنصرف!$C$3:$C$717)*1,المنصرف!$J$3:$J$717) -> 0 | Z9: =SUMPRODUCT(($Z$3=المنصرف!$E$3:$E$717)*1,('بيان العهد والتسويات'!$C9=المنصرف!$C$3:$C$717)*1,المنصرف!$G$3:$G$717) -> 0 | AA9: =SUMPRODUCT(($Z$3=المنصرف!$E$3:$E$717)*1,('بيان العهد والتسويات'!$C9=المنصرف!$C$3:$C$717)*1,المنصرف!$J$3:$J$717) -> 0 | AB9: =SUMPRODUCT(($AB$3=المنصرف!$E$3:$E$717)*1,('بيان العهد والتسويات'!$C9=المنصرف!$C$3:$C$717)*1,المنصرف!$G$3:$G$717) -> 0 | AC9: =SUMPRODUCT(($AB$3=المنصرف!$E$3:$E$717)*1,('بيان العهد والتسويات'!$C9=المنصرف!$C$3:$C$717)*1,المنصرف!$J$3:$J$717) -> 0 | AD9: =SUMPRODUCT(($AD$3=المنصرف!$E$3:$E$717)*1,('بيان العهد والتسويات'!$C9=المنصرف!$C$3:$C$717)*1,المنصرف!$G$3:$G$717) -> 0 | AE9: =SUMPRODUCT(($AD$3=المنصرف!$E$3:$E$717)*1,('بيان العهد والتسويات'!$C9=المنصرف!$C$3:$C$717)*1,المنصرف!$J$3:$J$717) -> 0 | AF9: =SUMPRODUCT(($AF$3=المنصرف!$E$3:$E$717)*1,('بيان العهد والتسويات'!$C9=المنصرف!$C$3:$C$717)*1,المنصرف!$G$3:$G$717) -> 0 | AG9: =SUMPRODUCT(($AF$3=المنصرف!$E$3:$E$717)*1,('بيان العهد والتسويات'!$C9=المنصرف!$C$3:$C$717)*1,المنصرف!$J$3:$J$717) -> 0 | AH9: =SUMPRODUCT(($AH$3=المنصرف!$E$3:$E$717)*1,('بيان العهد والتسويات'!$C9=المنصرف!$C$3:$C$717)*1,المنصرف!$G$3:$G$717) -> 0 | AI9: =SUMPRODUCT(($AH$3=المنصرف!$E$3:$E$717)*1,('بيان العهد والتسويات'!$C9=المنصرف!$C$3:$C$717)*1,المنصرف!$J$3:$J$717) -> 0 | AJ9: =SUMPRODUCT((AJ$3=المنصرف!$E$3:$E$717)*1,('بيان العهد والتسويات'!$C9=المنصرف!$C$3:$C$717)*1,المنصرف!$G$3:$G$717) -> 0 | AK9: =SUMPRODUCT((AJ$3=المنصرف!$E$3:$E$717)*1,('بيان العهد والتسويات'!$C9=المنصرف!$C$3:$C$717)*1,المنصرف!$J$3:$J$717) -> 0 | AL9: =SUMPRODUCT((AL$3=المنصرف!$E$3:$E$717)*1,('بيان العهد والتسويات'!$C9=المنصرف!$C$3:$C$717)*1,المنصرف!$G$3:$G$717) -> 0 | AM9: =SUMPRODUCT((AL$3=المنصرف!$E$3:$E$717)*1,('بيان العهد والتسويات'!$C9=المنصرف!$C$3:$C$717)*1,المنصرف!$J$3:$J$717) -> 0 | AN9: =SUMPRODUCT((AN$3=المنصرف!$E$3:$E$717)*1,('بيان العهد والتسويات'!$C9=المنصرف!$C$3:$C$717)*1,المنصرف!$G$3:$G$717) -> 0 | AO9: =SUMPRODUCT((AN$3=المنصرف!$E$3:$E$717)*1,('بيان العهد والتسويات'!$C9=المنصرف!$C$3:$C$717)*1,المنصرف!$J$3:$J$717) -> 0 | AP9: =SUMPRODUCT((AP$3=المنصرف!$E$3:$E$717)*1,('بيان العهد والتسويات'!$C9=المنصرف!$C$3:$C$717)*1,المنصرف!$G$3:$G$717) -> 0 | AQ9: =SUMPRODUCT((AP$3=المنصرف!$E$3:$E$717)*1,('بيان العهد والتسويات'!$C9=المنصرف!$C$3:$C$717)*1,المنصرف!$J$3:$J$717) -> 0 | AR9: =SUMPRODUCT((AR$3=المنصرف!$E$3:$E$717)*1,('بيان العهد والتسويات'!$C9=المنصرف!$C$3:$C$717)*1,المنصرف!$G$3:$G$717) -> 0 | AS9: =SUMPRODUCT((AR$3=المنصرف!$E$3:$E$717)*1,('بيان العهد والتسويات'!$C9=المنصرف!$C$3:$C$717)*1,المنصرف!$J$3:$J$717) -> 0 | AT9: =SUMPRODUCT((AT$3=المنصرف!$E$3:$E$717)*1,('بيان العهد والتسويات'!$C9=المنصرف!$C$3:$C$717)*1,المنصرف!$G$3:$G$717) -> 0 | AU9: =SUMPRODUCT((AT$3=المنصرف!$E$3:$E$717)*1,('بيان العهد والتسويات'!$C9=المنصرف!$C$3:$C$717)*1,المنصرف!$J$3:$J$717) -> 0 | AV9: =SUMPRODUCT((AV$3=المنصرف!$E$3:$E$717)*1,('بيان العهد والتسويات'!$C9=المنصرف!$C$3:$C$717)*1,المنصرف!$G$3:$G$717) -> 0 | AW9: =SUMPRODUCT((AV$3=المنصرف!$E$3:$E$717)*1,('بيان العهد والتسويات'!$C9=المنصرف!$C$3:$C$717)*1,المنصرف!$J$3:$J$717) -> 0 | AX9: =SUMPRODUCT((AX$3=المنصرف!$E$3:$E$717)*1,('بيان العهد والتسويات'!$C9=المنصرف!$C$3:$C$717)*1,المنصرف!$G$3:$G$717) -> 0 | AY9: =SUMPRODUCT((AX$3=المنصرف!$E$3:$E$717)*1,('بيان العهد والتسويات'!$C9=المنصرف!$C$3:$C$717)*1,المنصرف!$J$3:$J$717) -> 0 | AZ9: =SUMPRODUCT((AZ$3=المنصرف!$E$3:$E$717)*1,('بيان العهد والتسويات'!$C9=المنصرف!$C$3:$C$717)*1,المنصرف!$G$3:$G$717) -> 0 | BA9: =SUMPRODUCT((AZ$3=المنصرف!$E$3:$E$717)*1,('بيان العهد والتسويات'!$C9=المنصرف!$C$3:$C$717)*1,المنصرف!$J$3:$J$717) -> 0 | BB9: =SUMPRODUCT((BB$3=المنصرف!$E$3:$E$717)*1,('بيان العهد والتسويات'!$C9=المنصرف!$C$3:$C$717)*1,المنصرف!$G$3:$G$717) -> 0 | BC9: =SUMPRODUCT((BB$3=المنصرف!$E$3:$E$717)*1,('بيان العهد والتسويات'!$C9=المنصرف!$C$3:$C$717)*1,المنصرف!$J$3:$J$717) -> 0 | BD9: =SUMPRODUCT((BD$3=المنصرف!$E$3:$E$717)*1,('بيان العهد والتسويات'!$C9=المنصرف!$C$3:$C$717)*1,المنصرف!$G$3:$G$717) -> 0 | BE9: =SUMPRODUCT((BD$3=المنصرف!$E$3:$E$717)*1,('بيان العهد والتسويات'!$C9=المنصرف!$C$3:$C$717)*1,المنصرف!$J$3:$J$717) -> 0 | BF9: =SUMPRODUCT((BF$3=المنصرف!$E$3:$E$717)*1,('بيان العهد والتسويات'!$C9=المنصرف!$C$3:$C$717)*1,المنصرف!$G$3:$G$717) -> 0 | BG9: =SUMPRODUCT((BF$3=المنصرف!$E$3:$E$717)*1,('بيان العهد والتسويات'!$C9=المنصرف!$C$3:$C$717)*1,المنصرف!$J$3:$J$717) -> 0 | BH9: =SUMPRODUCT((BH$3=المنصرف!$E$3:$E$717)*1,('بيان العهد والتسويات'!$C9=المنصرف!$C$3:$C$717)*1,المنصرف!$G$3:$G$717) -> 0 | BI9: =SUMPRODUCT((BH$3=المنصرف!$E$3:$E$717)*1,('بيان العهد والتسويات'!$C9=المنصرف!$C$3:$C$717)*1,المنصرف!$J$3:$J$717) -> 0 | BJ9: =SUMPRODUCT((BJ$3=المنصرف!$E$3:$E$717)*1,('بيان العهد والتسويات'!$C9=المنصرف!$C$3:$C$717)*1,المنصرف!$G$3:$G$717) -> 0 | BK9: =SUMPRODUCT((BJ$3=المنصرف!$E$3:$E$717)*1,('بيان العهد والتسويات'!$C9=المنصرف!$C$3:$C$717)*1,المنصرف!$J$3:$J$717) -> 0 | BL9: =SUMPRODUCT((BL$3=المنصرف!$E$3:$E$717)*1,('بيان العهد والتسويات'!$C9=المنصرف!$C$3:$C$717)*1,المنصرف!$G$3:$G$717) -> 0 | BM9: =SUMPRODUCT((BL$3=المنصرف!$E$3:$E$717)*1,('بيان العهد والتسويات'!$C9=المنصرف!$C$3:$C$717)*1,المنصرف!$J$3:$J$717) -> 0 | BN9: =SUMPRODUCT((BN$3=المنصرف!$E$3:$E$717)*1,('بيان العهد والتسويات'!$C9=المنصرف!$C$3:$C$717)*1,المنصرف!$G$3:$G$717) -> 0 | BO9: =SUMPRODUCT((BN$3=المنصرف!$E$3:$E$717)*1,('بيان العهد والتسويات'!$C9=المنصرف!$C$3:$C$717)*1,المنصرف!$J$3:$J$717) -> 0 | BP9: =SUMPRODUCT((BP$3=المنصرف!$E$3:$E$717)*1,('بيان العهد والتسويات'!$C9=المنصرف!$C$3:$C$717)*1,المنصرف!$G$3:$G$717) -> 0 | BQ9: =SUMPRODUCT((BP$3=المنصرف!$E$3:$E$717)*1,('بيان العهد والتسويات'!$C9=المنصرف!$C$3:$C$717)*1,المنصرف!$J$3:$J$717) -> 0 | BR9: =SUMPRODUCT((BR$3=المنصرف!$E$3:$E$717)*1,('بيان العهد والتسويات'!$C9=المنصرف!$C$3:$C$717)*1,المنصرف!$G$3:$G$717) -> 0 | BS9: =SUMPRODUCT((BR$3=المنصرف!$E$3:$E$717)*1,('بيان العهد والتسويات'!$C9=المنصرف!$C$3:$C$717)*1,المنصرف!$J$3:$J$717) -> 0 | BT9: =SUMPRODUCT((BT$3=المنصرف!$E$3:$E$717)*1,('بيان العهد والتسويات'!$C9=المنصرف!$C$3:$C$717)*1,المنصرف!$G$3:$G$717) -> 0 | BU9: =SUMPRODUCT((BT$3=المنصرف!$E$3:$E$717)*1,('بيان العهد والتسويات'!$C9=المنصرف!$C$3:$C$717)*1,المنصرف!$J$3:$J$717) -> 0 | BV9: =SUMPRODUCT((BV$3=المنصرف!$E$3:$E$717)*1,('بيان العهد والتسويات'!$C9=المنصرف!$C$3:$C$717)*1,المنصرف!$G$3:$G$717) -> 0 | BW9: =SUMPRODUCT((BV$3=المنصرف!$E$3:$E$717)*1,('بيان العهد والتسويات'!$C9=المنصرف!$C$3:$C$717)*1,المنصرف!$J$3:$J$717) -> 0 | BX9: =SUMPRODUCT((BX$3=المنصرف!$E$3:$E$717)*1,('بيان العهد والتسويات'!$C9=المنصرف!$C$3:$C$717)*1,المنصرف!$G$3:$G$717) -> 0 | BY9: =SUMPRODUCT((BX$3=المنصرف!$E$3:$E$717)*1,('بيان العهد والتسويات'!$C9=المنصرف!$C$3:$C$717)*1,المنصرف!$J$3:$J$717) -> 0 | BZ9: =SUMPRODUCT((BZ$3=المنصرف!$E$3:$E$717)*1,('بيان العهد والتسويات'!$C9=المنصرف!$C$3:$C$717)*1,المنصرف!$G$3:$G$717) -> 0 | CA9: =SUMPRODUCT((BZ$3=المنصرف!$E$3:$E$717)*1,('بيان العهد والتسويات'!$C9=المنصرف!$C$3:$C$717)*1,المنصرف!$J$3:$J$717) -> 0 | CB9: =SUMPRODUCT((CB$3=المنصرف!$E$3:$E$717)*1,('بيان العهد والتسويات'!$C9=المنصرف!$C$3:$C$717)*1,المنصرف!$G$3:$G$717) -> 0 | CC9: =SUMPRODUCT((CB$3=المنصرف!$E$3:$E$717)*1,('بيان العهد والتسويات'!$C9=المنصرف!$C$3:$C$717)*1,المنصرف!$J$3:$J$717) -> 0 | CD9: =SUMPRODUCT((CD$3=المنصرف!$E$3:$E$717)*1,('بيان العهد والتسويات'!$C9=المنصرف!$C$3:$C$717)*1,المنصرف!$G$3:$G$717) -> 0 | CE9: =SUMPRODUCT((CD$3=المنصرف!$E$3:$E$717)*1,('بيان العهد والتسويات'!$C9=المنصرف!$C$3:$C$717)*1,المنصرف!$J$3:$J$717) -> 0 | CF9: =SUMPRODUCT((CF$3=المنصرف!$E$3:$E$717)*1,('بيان العهد والتسويات'!$C9=المنصرف!$C$3:$C$717)*1,المنصرف!$G$3:$G$717) -> 0 | CG9: =SUMPRODUCT((CF$3=المنصرف!$E$3:$E$717)*1,('بيان العهد والتسويات'!$C9=المنصرف!$C$3:$C$717)*1,المنصرف!$J$3:$J$717) -> 0 | CH9: =SUMPRODUCT((CH$3=المنصرف!$E$3:$E$717)*1,('بيان العهد والتسويات'!$C9=المنصرف!$C$3:$C$717)*1,المنصرف!$G$3:$G$717) -> 0 | CI9: =SUMPRODUCT((CH$3=المنصرف!$E$3:$E$717)*1,('بيان العهد والتسويات'!$C9=المنصرف!$C$3:$C$717)*1,المنصرف!$J$3:$J$717) -> 0 | CJ9: =SUMPRODUCT((CJ$3=المنصرف!$E$3:$E$717)*1,('بيان العهد والتسويات'!$C9=المنصرف!$C$3:$C$717)*1,المنصرف!$G$3:$G$717) -> 0 | CK9: =SUMPRODUCT((CJ$3=المنصرف!$E$3:$E$717)*1,('بيان العهد والتسويات'!$C9=المنصرف!$C$3:$C$717)*1,المنصرف!$J$3:$J$717) -> 0 | CL9: =SUMPRODUCT((CL$3=المنصرف!$E$3:$E$717)*1,('بيان العهد والتسويات'!$C9=المنصرف!$C$3:$C$717)*1,المنصرف!$G$3:$G$717) -> 0 | CM9: =SUMPRODUCT((CL$3=المنصرف!$E$3:$E$717)*1,('بيان العهد والتسويات'!$C9=المنصرف!$C$3:$C$717)*1,المنصرف!$J$3:$J$717) -> 0 | CN9: =SUMPRODUCT((CN$3=المنصرف!$E$3:$E$717)*1,('بيان العهد والتسويات'!$C9=المنصرف!$C$3:$C$717)*1,المنصرف!$G$3:$G$717) -> 0 | CO9: =SUMPRODUCT((CN$3=المنصرف!$E$3:$E$717)*1,('بيان العهد والتسويات'!$C9=المنصرف!$C$3:$C$717)*1,المنصرف!$J$3:$J$717) -> 0 | CP9: =SUMPRODUCT((CP$3=المنصرف!$E$3:$E$717)*1,('بيان العهد والتسويات'!$C9=المنصرف!$C$3:$C$717)*1,المنصرف!$G$3:$G$717) -> 0 | CQ9: =SUMPRODUCT((CP$3=المنصرف!$E$3:$E$717)*1,('بيان العهد والتسويات'!$C9=المنصرف!$C$3:$C$717)*1,المنصرف!$J$3:$J$717) -> 0 | CR9: =SUMPRODUCT((CR$3=المنصرف!$E$3:$E$717)*1,('بيان العهد والتسويات'!$C9=المنصرف!$C$3:$C$717)*1,المنصرف!$G$3:$G$717) -> 0 | CS9: =SUMPRODUCT((CR$3=المنصرف!$E$3:$E$717)*1,('بيان العهد والتسويات'!$C9=المنصرف!$C$3:$C$717)*1,المنصرف!$J$3:$J$717) -> 0 | CT9: =SUMPRODUCT((CT$3=المنصرف!$E$3:$E$717)*1,('بيان العهد والتسويات'!$C9=المنصرف!$C$3:$C$717)*1,المنصرف!$G$3:$G$717) -> 0 | CU9: =SUMPRODUCT((CT$3=المنصرف!$E$3:$E$717)*1,('بيان العهد والتسويات'!$C9=المنصرف!$C$3:$C$717)*1,المنصرف!$J$3:$J$717) -> 0 | CV9: =SUMPRODUCT((CV$3=المنصرف!$E$3:$E$717)*1,('بيان العهد والتسويات'!$C9=المنصرف!$C$3:$C$717)*1,المنصرف!$G$3:$G$717) -> 0 | CW9: =SUMPRODUCT((CV$3=المنصرف!$E$3:$E$717)*1,('بيان العهد والتسويات'!$C9=المنصرف!$C$3:$C$717)*1,المنصرف!$J$3:$J$717) -> 0 | CX9: =SUMPRODUCT((CX$3=المنصرف!$E$3:$E$717)*1,('بيان العهد والتسويات'!$C9=المنصرف!$C$3:$C$717)*1,المنصرف!$G$3:$G$717) -> 0 | CY9: =SUMPRODUCT((CX$3=المنصرف!$E$3:$E$717)*1,('بيان العهد والتسويات'!$C9=المنصرف!$C$3:$C$717)*1,المنصرف!$J$3:$J$717) -> 0 | CZ9: =SUMPRODUCT((CZ$3=المنصرف!$E$3:$E$717)*1,('بيان العهد والتسويات'!$C9=المنصرف!$C$3:$C$717)*1,المنصرف!$G$3:$G$717) -> 0 | DA9: =SUMPRODUCT((CZ$3=المنصرف!$E$3:$E$717)*1,('بيان العهد والتسويات'!$C9=المنصرف!$C$3:$C$717)*1,المنصرف!$J$3:$J$717) -> 0
C10: 2025-07-04 | D10: =SUMPRODUCT(($D$3=المنصرف!$E$3:$E$717)*1,('بيان العهد والتسويات'!$C10=المنصرف!$C$3:$C$717)*1,المنصرف!$G$3:$G$717) -> 0 | E10: =SUMPRODUCT(($D$3=المنصرف!$E$3:$E$717)*1,('بيان العهد والتسويات'!$C10=المنصرف!$C$3:$C$717)*1,المنصرف!$J$3:$J$717) -> 0 | F10: =SUMPRODUCT(($F$3=المنصرف!$E$3:$E$717)*1,('بيان العهد والتسويات'!$C10=المنصرف!$C$3:$C$717)*1,المنصرف!$G$3:$G$717) -> 0 | G10: =SUMPRODUCT(($F$3=المنصرف!$E$3:$E$717)*1,('بيان العهد والتسويات'!$C10=المنصرف!$C$3:$C$717)*1,المنصرف!$J$3:$J$717) -> 0 | H10: =SUMPRODUCT(($H$3=المنصرف!$E$3:$E$717)*1,('بيان العهد والتسويات'!$C10=المنصرف!$C$3:$C$717)*1,المنصرف!$G$3:$G$717) -> 0 | I10: =SUMPRODUCT(($H$3=المنصرف!$E$3:$E$717)*1,('بيان العهد والتسويات'!$C10=المنصرف!$C$3:$C$717)*1,المنصرف!$J$3:$J$717) -> 0 | J10: =SUMPRODUCT(($J$3=المنصرف!$E$3:$E$717)*1,('بيان العهد والتسويات'!$C10=المنصرف!$C$3:$C$717)*1,المنصرف!$G$3:$G$717) -> 0 | K10: =SUMPRODUCT(($J$3=المنصرف!$E$3:$E$717)*1,('بيان العهد والتسويات'!$C10=المنصرف!$C$3:$C$717)*1,المنصرف!$J$3:$J$717) -> 0 | L10: =SUMPRODUCT(($L$3=المنصرف!$E$3:$E$717)*1,('بيان العهد والتسويات'!$C10=المنصرف!$C$3:$C$717)*1,المنصرف!$G$3:$G$717) -> 0 | M10: =SUMPRODUCT(($L$3=المنصرف!$E$3:$E$717)*1,('بيان العهد والتسويات'!$C10=المنصرف!$C$3:$C$717)*1,المنصرف!$J$3:$J$717) -> 0 | N10: =SUMPRODUCT(($N$3=المنصرف!$E$3:$E$717)*1,('بيان العهد والتسويات'!$C10=المنصرف!$C$3:$C$717)*1,المنصرف!$G$3:$G$717) -> 0 | O10: =SUMPRODUCT(($N$3=المنصرف!$E$3:$E$717)*1,('بيان العهد والتسويات'!$C10=المنصرف!$C$3:$C$717)*1,المنصرف!$J$3:$J$717) -> 0 | P10: =SUMPRODUCT(($P$3=المنصرف!$E$3:$E$717)*1,('بيان العهد والتسويات'!$C10=المنصرف!$C$3:$C$717)*1,المنصرف!$G$3:$G$717) -> 0 | Q10: =SUMPRODUCT(($P$3=المنصرف!$E$3:$E$717)*1,('بيان العهد والتسويات'!$C10=المنصرف!$C$3:$C$717)*1,المنصرف!$J$3:$J$717) -> 0 | R10: =SUMPRODUCT(($R$3=المنصرف!$E$3:$E$717)*1,('بيان العهد والتسويات'!$C10=المنصرف!$C$3:$C$717)*1,المنصرف!$G$3:$G$717) -> 0 | S10: =SUMPRODUCT(($R$3=المنصرف!$E$3:$E$717)*1,('بيان العهد والتسويات'!$C10=المنصرف!$C$3:$C$717)*1,المنصرف!$J$3:$J$717) -> 0 | T10: =SUMPRODUCT(($T$3=المنصرف!$E$3:$E$717)*1,('بيان العهد والتسويات'!$C10=المنصرف!$C$3:$C$717)*1,المنصرف!$G$3:$G$717) -> 0 | U10: =SUMPRODUCT(($T$3=المنصرف!$E$3:$E$717)*1,('بيان العهد والتسويات'!$C10=المنصرف!$C$3:$C$717)*1,المنصرف!$J$3:$J$717) -> 0 | V10: =SUMPRODUCT(($V$3=المنصرف!$E$3:$E$717)*1,('بيان العهد والتسويات'!$C10=المنصرف!$C$3:$C$717)*1,المنصرف!$G$3:$G$717) -> 0 | W10: =SUMPRODUCT(($V$3=المنصرف!$E$3:$E$717)*1,('بيان العهد والتسويات'!$C10=المنصرف!$C$3:$C$717)*1,المنصرف!$J$3:$J$717) -> 0 | X10: =SUMPRODUCT(($X$3=المنصرف!$E$3:$E$717)*1,('بيان العهد والتسويات'!$C10=المنصرف!$C$3:$C$717)*1,المنصرف!$G$3:$G$717) -> 0 | Y10: =SUMPRODUCT(($X$3=المنصرف!$E$3:$E$717)*1,('بيان العهد والتسويات'!$C10=المنصرف!$C$3:$C$717)*1,المنصرف!$J$3:$J$717) -> 0 | Z10: =SUMPRODUCT(($Z$3=المنصرف!$E$3:$E$717)*1,('بيان العهد والتسويات'!$C10=المنصرف!$C$3:$C$717)*1,المنصرف!$G$3:$G$717) -> 0 | AA10: =SUMPRODUCT(($Z$3=المنصرف!$E$3:$E$717)*1,('بيان العهد والتسويات'!$C10=المنصرف!$C$3:$C$717)*1,المنصرف!$J$3:$J$717) -> 0 | AB10: =SUMPRODUCT(($AB$3=المنصرف!$E$3:$E$717)*1,('بيان العهد والتسويات'!$C10=المنصرف!$C$3:$C$717)*1,المنصرف!$G$3:$G$717) -> 0 | AC10: =SUMPRODUCT(($AB$3=المنصرف!$E$3:$E$717)*1,('بيان العهد والتسويات'!$C10=المنصرف!$C$3:$C$717)*1,المنصرف!$J$3:$J$717) -> 0 | AD10: =SUMPRODUCT(($AD$3=المنصرف!$E$3:$E$717)*1,('بيان العهد والتسويات'!$C10=المنصرف!$C$3:$C$717)*1,المنصرف!$G$3:$G$717) -> 0 | AE10: =SUMPRODUCT(($AD$3=المنصرف!$E$3:$E$717)*1,('بيان العهد والتسويات'!$C10=المنصرف!$C$3:$C$717)*1,المنصرف!$J$3:$J$717) -> 0 | AF10: =SUMPRODUCT(($AF$3=المنصرف!$E$3:$E$717)*1,('بيان العهد والتسويات'!$C10=المنصرف!$C$3:$C$717)*1,المنصرف!$G$3:$G$717) -> 0 | AG10: =SUMPRODUCT(($AF$3=المنصرف!$E$3:$E$717)*1,('بيان العهد والتسويات'!$C10=المنصرف!$C$3:$C$717)*1,المنصرف!$J$3:$J$717) -> 0 | AH10: =SUMPRODUCT(($AH$3=المنصرف!$E$3:$E$717)*1,('بيان العهد والتسويات'!$C10=المنصرف!$C$3:$C$717)*1,المنصرف!$G$3:$G$717) -> 0 | AI10: =SUMPRODUCT(($AH$3=المنصرف!$E$3:$E$717)*1,('بيان العهد والتسويات'!$C10=المنصرف!$C$3:$C$717)*1,المنصرف!$J$3:$J$717) -> 0 | AJ10: =SUMPRODUCT((AJ$3=المنصرف!$E$3:$E$717)*1,('بيان العهد والتسويات'!$C10=المنصرف!$C$3:$C$717)*1,المنصرف!$G$3:$G$717) -> 0 | AK10: =SUMPRODUCT((AJ$3=المنصرف!$E$3:$E$717)*1,('بيان العهد والتسويات'!$C10=المنصرف!$C$3:$C$717)*1,المنصرف!$J$3:$J$717) -> 0 | AL10: =SUMPRODUCT((AL$3=المنصرف!$E$3:$E$717)*1,('بيان العهد والتسويات'!$C10=المنصرف!$C$3:$C$717)*1,المنصرف!$G$3:$G$717) -> 0 | AM10: =SUMPRODUCT((AL$3=المنصرف!$E$3:$E$717)*1,('بيان العهد والتسويات'!$C10=المنصرف!$C$3:$C$717)*1,المنصرف!$J$3:$J$717) -> 0 | AN10: =SUMPRODUCT((AN$3=المنصرف!$E$3:$E$717)*1,('بيان العهد والتسويات'!$C10=المنصرف!$C$3:$C$717)*1,المنصرف!$G$3:$G$717) -> 0 | AO10: =SUMPRODUCT((AN$3=المنصرف!$E$3:$E$717)*1,('بيان العهد والتسويات'!$C10=المنصرف!$C$3:$C$717)*1,المنصرف!$J$3:$J$717) -> 0 | AP10: =SUMPRODUCT((AP$3=المنصرف!$E$3:$E$717)*1,('بيان العهد والتسويات'!$C10=المنصرف!$C$3:$C$717)*1,المنصرف!$G$3:$G$717) -> 0 | AQ10: =SUMPRODUCT((AP$3=المنصرف!$E$3:$E$717)*1,('بيان العهد والتسويات'!$C10=المنصرف!$C$3:$C$717)*1,المنصرف!$J$3:$J$717) -> 0 | AR10: =SUMPRODUCT((AR$3=المنصرف!$E$3:$E$717)*1,('بيان العهد والتسويات'!$C10=المنصرف!$C$3:$C$717)*1,المنصرف!$G$3:$G$717) -> 0 | AS10: =SUMPRODUCT((AR$3=المنصرف!$E$3:$E$717)*1,('بيان العهد والتسويات'!$C10=المنصرف!$C$3:$C$717)*1,المنصرف!$J$3:$J$717) -> 0 | AT10: =SUMPRODUCT((AT$3=المنصرف!$E$3:$E$717)*1,('بيان العهد والتسويات'!$C10=المنصرف!$C$3:$C$717)*1,المنصرف!$G$3:$G$717) -> 0 | AU10: =SUMPRODUCT((AT$3=المنصرف!$E$3:$E$717)*1,('بيان العهد والتسويات'!$C10=المنصرف!$C$3:$C$717)*1,المنصرف!$J$3:$J$717) -> 0 | AV10: =SUMPRODUCT((AV$3=المنصرف!$E$3:$E$717)*1,('بيان العهد والتسويات'!$C10=المنصرف!$C$3:$C$717)*1,المنصرف!$G$3:$G$717) -> 0 | AW10: =SUMPRODUCT((AV$3=المنصرف!$E$3:$E$717)*1,('بيان العهد والتسويات'!$C10=المنصرف!$C$3:$C$717)*1,المنصرف!$J$3:$J$717) -> 0 | AX10: =SUMPRODUCT((AX$3=المنصرف!$E$3:$E$717)*1,('بيان العهد والتسويات'!$C10=المنصرف!$C$3:$C$717)*1,المنصرف!$G$3:$G$717) -> 0 | AY10: =SUMPRODUCT((AX$3=المنصرف!$E$3:$E$717)*1,('بيان العهد والتسويات'!$C10=المنصرف!$C$3:$C$717)*1,المنصرف!$J$3:$J$717) -> 0 | AZ10: =SUMPRODUCT((AZ$3=المنصرف!$E$3:$E$717)*1,('بيان العهد والتسويات'!$C10=المنصرف!$C$3:$C$717)*1,المنصرف!$G$3:$G$717) -> 0 | BA10: =SUMPRODUCT((AZ$3=المنصرف!$E$3:$E$717)*1,('بيان العهد والتسويات'!$C10=المنصرف!$C$3:$C$717)*1,المنصرف!$J$3:$J$717) -> 0 | BB10: =SUMPRODUCT((BB$3=المنصرف!$E$3:$E$717)*1,('بيان العهد والتسويات'!$C10=المنصرف!$C$3:$C$717)*1,المنصرف!$G$3:$G$717) -> 0 | BC10: =SUMPRODUCT((BB$3=المنصرف!$E$3:$E$717)*1,('بيان العهد والتسويات'!$C10=المنصرف!$C$3:$C$717)*1,المنصرف!$J$3:$J$717) -> 0 | BD10: =SUMPRODUCT((BD$3=المنصرف!$E$3:$E$717)*1,('بيان العهد والتسويات'!$C10=المنصرف!$C$3:$C$717)*1,المنصرف!$G$3:$G$717) -> 0 | BE10: =SUMPRODUCT((BD$3=المنصرف!$E$3:$E$717)*1,('بيان العهد والتسويات'!$C10=المنصرف!$C$3:$C$717)*1,المنصرف!$J$3:$J$717) -> 0 | BF10: =SUMPRODUCT((BF$3=المنصرف!$E$3:$E$717)*1,('بيان العهد والتسويات'!$C10=المنصرف!$C$3:$C$717)*1,المنصرف!$G$3:$G$717) -> 0 | BG10: =SUMPRODUCT((BF$3=المنصرف!$E$3:$E$717)*1,('بيان العهد والتسويات'!$C10=المنصرف!$C$3:$C$717)*1,المنصرف!$J$3:$J$717) -> 0 | BH10: =SUMPRODUCT((BH$3=المنصرف!$E$3:$E$717)*1,('بيان العهد والتسويات'!$C10=المنصرف!$C$3:$C$717)*1,المنصرف!$G$3:$G$717) -> 0 | BI10: =SUMPRODUCT((BH$3=المنصرف!$E$3:$E$717)*1,('بيان العهد والتسويات'!$C10=المنصرف!$C$3:$C$717)*1,المنصرف!$J$3:$J$717) -> 0 | BJ10: =SUMPRODUCT((BJ$3=المنصرف!$E$3:$E$717)*1,('بيان العهد والتسويات'!$C10=المنصرف!$C$3:$C$717)*1,المنصرف!$G$3:$G$717) -> 0 | BK10: =SUMPRODUCT((BJ$3=المنصرف!$E$3:$E$717)*1,('بيان العهد والتسويات'!$C10=المنصرف!$C$3:$C$717)*1,المنصرف!$J$3:$J$717) -> 0 | BL10: =SUMPRODUCT((BL$3=المنصرف!$E$3:$E$717)*1,('بيان العهد والتسويات'!$C10=المنصرف!$C$3:$C$717)*1,المنصرف!$G$3:$G$717) -> 0 | BM10: =SUMPRODUCT((BL$3=المنصرف!$E$3:$E$717)*1,('بيان العهد والتسويات'!$C10=المنصرف!$C$3:$C$717)*1,المنصرف!$J$3:$J$717) -> 0 | BN10: =SUMPRODUCT((BN$3=المنصرف!$E$3:$E$717)*1,('بيان العهد والتسويات'!$C10=المنصرف!$C$3:$C$717)*1,المنصرف!$G$3:$G$717) -> 0 | BO10: =SUMPRODUCT((BN$3=المنصرف!$E$3:$E$717)*1,('بيان العهد والتسويات'!$C10=المنصرف!$C$3:$C$717)*1,المنصرف!$J$3:$J$717) -> 0 | BP10: =SUMPRODUCT((BP$3=المنصرف!$E$3:$E$717)*1,('بيان العهد والتسويات'!$C10=المنصرف!$C$3:$C$717)*1,المنصرف!$G$3:$G$717) -> 0 | BQ10: =SUMPRODUCT((BP$3=المنصرف!$E$3:$E$717)*1,('بيان العهد والتسويات'!$C10=المنصرف!$C$3:$C$717)*1,المنصرف!$J$3:$J$717) -> 0 | BR10: =SUMPRODUCT((BR$3=المنصرف!$E$3:$E$717)*1,('بيان العهد والتسويات'!$C10=المنصرف!$C$3:$C$717)*1,المنصرف!$G$3:$G$717) -> 0 | BS10: =SUMPRODUCT((BR$3=المنصرف!$E$3:$E$717)*1,('بيان العهد والتسويات'!$C10=المنصرف!$C$3:$C$717)*1,المنصرف!$J$3:$J$717) -> 0 | BT10: =SUMPRODUCT((BT$3=المنصرف!$E$3:$E$717)*1,('بيان العهد والتسويات'!$C10=المنصرف!$C$3:$C$717)*1,المنصرف!$G$3:$G$717) -> 0 | BU10: =SUMPRODUCT((BT$3=المنصرف!$E$3:$E$717)*1,('بيان العهد والتسويات'!$C10=المنصرف!$C$3:$C$717)*1,المنصرف!$J$3:$J$717) -> 0 | BV10: =SUMPRODUCT((BV$3=المنصرف!$E$3:$E$717)*1,('بيان العهد والتسويات'!$C10=المنصرف!$C$3:$C$717)*1,المنصرف!$G$3:$G$717) -> 0 | BW10: =SUMPRODUCT((BV$3=المنصرف!$E$3:$E$717)*1,('بيان العهد والتسويات'!$C10=المنصرف!$C$3:$C$717)*1,المنصرف!$J$3:$J$717) -> 0 | BX10: =SUMPRODUCT((BX$3=المنصرف!$E$3:$E$717)*1,('بيان العهد والتسويات'!$C10=المنصرف!$C$3:$C$717)*1,المنصرف!$G$3:$G$717) -> 0 | BY10: =SUMPRODUCT((BX$3=المنصرف!$E$3:$E$717)*1,('بيان العهد والتسويات'!$C10=المنصرف!$C$3:$C$717)*1,المنصرف!$J$3:$J$717) -> 0 | BZ10: =SUMPRODUCT((BZ$3=المنصرف!$E$3:$E$717)*1,('بيان العهد والتسويات'!$C10=المنصرف!$C$3:$C$717)*1,المنصرف!$G$3:$G$717) -> 0 | CA10: =SUMPRODUCT((BZ$3=المنصرف!$E$3:$E$717)*1,('بيان العهد والتسويات'!$C10=المنصرف!$C$3:$C$717)*1,المنصرف!$J$3:$J$717) -> 0 | CB10: =SUMPRODUCT((CB$3=المنصرف!$E$3:$E$717)*1,('بيان العهد والتسويات'!$C10=المنصرف!$C$3:$C$717)*1,المنصرف!$G$3:$G$717) -> 0 | CC10: =SUMPRODUCT((CB$3=المنصرف!$E$3:$E$717)*1,('بيان العهد والتسويات'!$C10=المنصرف!$C$3:$C$717)*1,المنصرف!$J$3:$J$717) -> 0 | CD10: =SUMPRODUCT((CD$3=المنصرف!$E$3:$E$717)*1,('بيان العهد والتسويات'!$C10=المنصرف!$C$3:$C$717)*1,المنصرف!$G$3:$G$717) -> 0 | CE10: =SUMPRODUCT((CD$3=المنصرف!$E$3:$E$717)*1,('بيان العهد والتسويات'!$C10=المنصرف!$C$3:$C$717)*1,المنصرف!$J$3:$J$717) -> 0 | CF10: =SUMPRODUCT((CF$3=المنصرف!$E$3:$E$717)*1,('بيان العهد والتسويات'!$C10=المنصرف!$C$3:$C$717)*1,المنصرف!$G$3:$G$717) -> 0 | CG10: =SUMPRODUCT((CF$3=المنصرف!$E$3:$E$717)*1,('بيان العهد والتسويات'!$C10=المنصرف!$C$3:$C$717)*1,المنصرف!$J$3:$J$717) -> 0 | CH10: =SUMPRODUCT((CH$3=المنصرف!$E$3:$E$717)*1,('بيان العهد والتسويات'!$C10=المنصرف!$C$3:$C$717)*1,المنصرف!$G$3:$G$717) -> 0 | CI10: =SUMPRODUCT((CH$3=المنصرف!$E$3:$E$717)*1,('بيان العهد والتسويات'!$C10=المنصرف!$C$3:$C$717)*1,المنصرف!$J$3:$J$717) -> 0 | CJ10: =SUMPRODUCT((CJ$3=المنصرف!$E$3:$E$717)*1,('بيان العهد والتسويات'!$C10=المنصرف!$C$3:$C$717)*1,المنصرف!$G$3:$G$717) -> 0 | CK10: =SUMPRODUCT((CJ$3=المنصرف!$E$3:$E$717)*1,('بيان العهد والتسويات'!$C10=المنصرف!$C$3:$C$717)*1,المنصرف!$J$3:$J$717) -> 0 | CL10: =SUMPRODUCT((CL$3=المنصرف!$E$3:$E$717)*1,('بيان العهد والتسويات'!$C10=المنصرف!$C$3:$C$717)*1,المنصرف!$G$3:$G$717) -> 0 | CM10: =SUMPRODUCT((CL$3=المنصرف!$E$3:$E$717)*1,('بيان العهد والتسويات'!$C10=المنصرف!$C$3:$C$717)*1,المنصرف!$J$3:$J$717) -> 0 | CN10: =SUMPRODUCT((CN$3=المنصرف!$E$3:$E$717)*1,('بيان العهد والتسويات'!$C10=المنصرف!$C$3:$C$717)*1,المنصرف!$G$3:$G$717) -> 0 | CO10: =SUMPRODUCT((CN$3=المنصرف!$E$3:$E$717)*1,('بيان العهد والتسويات'!$C10=المنصرف!$C$3:$C$717)*1,المنصرف!$J$3:$J$717) -> 0 | CP10: =SUMPRODUCT((CP$3=المنصرف!$E$3:$E$717)*1,('بيان العهد والتسويات'!$C10=المنصرف!$C$3:$C$717)*1,المنصرف!$G$3:$G$717) -> 0 | CQ10: =SUMPRODUCT((CP$3=المنصرف!$E$3:$E$717)*1,('بيان العهد والتسويات'!$C10=المنصرف!$C$3:$C$717)*1,المنصرف!$J$3:$J$717) -> 0 | CR10: =SUMPRODUCT((CR$3=المنصرف!$E$3:$E$717)*1,('بيان العهد والتسويات'!$C10=المنصرف!$C$3:$C$717)*1,المنصرف!$G$3:$G$717) -> 0 | CS10: =SUMPRODUCT((CR$3=المنصرف!$E$3:$E$717)*1,('بيان العهد والتسويات'!$C10=المنصرف!$C$3:$C$717)*1,المنصرف!$J$3:$J$717) -> 0 | CT10: =SUMPRODUCT((CT$3=المنصرف!$E$3:$E$717)*1,('بيان العهد والتسويات'!$C10=المنصرف!$C$3:$C$717)*1,المنصرف!$G$3:$G$717) -> 0 | CU10: =SUMPRODUCT((CT$3=المنصرف!$E$3:$E$717)*1,('بيان العهد والتسويات'!$C10=المنصرف!$C$3:$C$717)*1,المنصرف!$J$3:$J$717) -> 0 | CV10: =SUMPRODUCT((CV$3=المنصرف!$E$3:$E$717)*1,('بيان العهد والتسويات'!$C10=المنصرف!$C$3:$C$717)*1,المنصرف!$G$3:$G$717) -> 0 | CW10: =SUMPRODUCT((CV$3=المنصرف!$E$3:$E$717)*1,('بيان العهد والتسويات'!$C10=المنصرف!$C$3:$C$717)*1,المنصرف!$J$3:$J$717) -> 0 | CX10: =SUMPRODUCT((CX$3=المنصرف!$E$3:$E$717)*1,('بيان العهد والتسويات'!$C10=المنصرف!$C$3:$C$717)*1,المنصرف!$G$3:$G$717) -> 0 | CY10: =SUMPRODUCT((CX$3=المنصرف!$E$3:$E$717)*1,('بيان العهد والتسويات'!$C10=المنصرف!$C$3:$C$717)*1,المنصرف!$J$3:$J$717) -> 0 | CZ10: =SUMPRODUCT((CZ$3=المنصرف!$E$3:$E$717)*1,('بيان العهد والتسويات'!$C10=المنصرف!$C$3:$C$717)*1,المنصرف!$G$3:$G$717) -> 0 | DA10: =SUMPRODUCT((CZ$3=المنصرف!$E$3:$E$717)*1,('بيان العهد والتسويات'!$C10=المنصرف!$C$3:$C$717)*1,المنصرف!$J$3:$J$717) -> 0
C11: 2025-07-05 | D11: =SUMPRODUCT(($D$3=المنصرف!$E$3:$E$717)*1,('بيان العهد والتسويات'!$C11=المنصرف!$C$3:$C$717)*1,المنصرف!$G$3:$G$717) -> 0 | E11: =SUMPRODUCT(($D$3=المنصرف!$E$3:$E$717)*1,('بيان العهد والتسويات'!$C11=المنصرف!$C$3:$C$717)*1,المنصرف!$J$3:$J$717) -> 0 | F11: =SUMPRODUCT(($F$3=المنصرف!$E$3:$E$717)*1,('بيان العهد والتسويات'!$C11=المنصرف!$C$3:$C$717)*1,المنصرف!$G$3:$G$717) -> 0 | G11: =SUMPRODUCT(($F$3=المنصرف!$E$3:$E$717)*1,('بيان العهد والتسويات'!$C11=المنصرف!$C$3:$C$717)*1,المنصرف!$J$3:$J$717) -> 0 | H11: =SUMPRODUCT(($H$3=المنصرف!$E$3:$E$717)*1,('بيان العهد والتسويات'!$C11=المنصرف!$C$3:$C$717)*1,المنصرف!$G$3:$G$717) -> 0 | I11: =SUMPRODUCT(($H$3=المنصرف!$E$3:$E$717)*1,('بيان العهد والتسويات'!$C11=المنصرف!$C$3:$C$717)*1,المنصرف!$J$3:$J$717) -> 0 | J11: =SUMPRODUCT(($J$3=المنصرف!$E$3:$E$717)*1,('بيان العهد والتسويات'!$C11=المنصرف!$C$3:$C$717)*1,المنصرف!$G$3:$G$717) -> 0 | K11: =SUMPRODUCT(($J$3=المنصرف!$E$3:$E$717)*1,('بيان العهد والتسويات'!$C11=المنصرف!$C$3:$C$717)*1,المنصرف!$J$3:$J$717) -> 0 | L11: =SUMPRODUCT(($L$3=المنصرف!$E$3:$E$717)*1,('بيان العهد والتسويات'!$C11=المنصرف!$C$3:$C$717)*1,المنصرف!$G$3:$G$717) -> 0 | M11: =SUMPRODUCT(($L$3=المنصرف!$E$3:$E$717)*1,('بيان العهد والتسويات'!$C11=المنصرف!$C$3:$C$717)*1,المنصرف!$J$3:$J$717) -> 0 | N11: =SUMPRODUCT(($N$3=المنصرف!$E$3:$E$717)*1,('بيان العهد والتسويات'!$C11=المنصرف!$C$3:$C$717)*1,المنصرف!$G$3:$G$717) -> 0 | O11: =SUMPRODUCT(($N$3=المنصرف!$E$3:$E$717)*1,('بيان العهد والتسويات'!$C11=المنصرف!$C$3:$C$717)*1,المنصرف!$J$3:$J$717) -> 0 | P11: =SUMPRODUCT(($P$3=المنصرف!$E$3:$E$717)*1,('بيان العهد والتسويات'!$C11=المنصرف!$C$3:$C$717)*1,المنصرف!$G$3:$G$717) -> 0 | Q11: =SUMPRODUCT(($P$3=المنصرف!$E$3:$E$717)*1,('بيان العهد والتسويات'!$C11=المنصرف!$C$3:$C$717)*1,المنصرف!$J$3:$J$717) -> 0 | R11: =SUMPRODUCT(($R$3=المنصرف!$E$3:$E$717)*1,('بيان العهد والتسويات'!$C11=المنصرف!$C$3:$C$717)*1,المنصرف!$G$3:$G$717) -> 0 | S11: =SUMPRODUCT(($R$3=المنصرف!$E$3:$E$717)*1,('بيان العهد والتسويات'!$C11=المنصرف!$C$3:$C$717)*1,المنصرف!$J$3:$J$717) -> 0 | T11: =SUMPRODUCT(($T$3=المنصرف!$E$3:$E$717)*1,('بيان العهد والتسويات'!$C11=المنصرف!$C$3:$C$717)*1,المنصرف!$G$3:$G$717) -> 0 | U11: =SUMPRODUCT(($T$3=المنصرف!$E$3:$E$717)*1,('بيان العهد والتسويات'!$C11=المنصرف!$C$3:$C$717)*1,المنصرف!$J$3:$J$717) -> 0 | V11: =SUMPRODUCT(($V$3=المنصرف!$E$3:$E$717)*1,('بيان العهد والتسويات'!$C11=المنصرف!$C$3:$C$717)*1,المنصرف!$G$3:$G$717) -> 0 | W11: =SUMPRODUCT(($V$3=المنصرف!$E$3:$E$717)*1,('بيان العهد والتسويات'!$C11=المنصرف!$C$3:$C$717)*1,المنصرف!$J$3:$J$717) -> 0 | X11: =SUMPRODUCT(($X$3=المنصرف!$E$3:$E$717)*1,('بيان العهد والتسويات'!$C11=المنصرف!$C$3:$C$717)*1,المنصرف!$G$3:$G$717) -> 0 | Y11: =SUMPRODUCT(($X$3=المنصرف!$E$3:$E$717)*1,('بيان العهد والتسويات'!$C11=المنصرف!$C$3:$C$717)*1,المنصرف!$J$3:$J$717) -> 0 | Z11: =SUMPRODUCT(($Z$3=المنصرف!$E$3:$E$717)*1,('بيان العهد والتسويات'!$C11=المنصرف!$C$3:$C$717)*1,المنصرف!$G$3:$G$717) -> 0 | AA11: =SUMPRODUCT(($Z$3=المنصرف!$E$3:$E$717)*1,('بيان العهد والتسويات'!$C11=المنصرف!$C$3:$C$717)*1,المنصرف!$J$3:$J$717) -> 0 | AB11: =SUMPRODUCT(($AB$3=المنصرف!$E$3:$E$717)*1,('بيان العهد والتسويات'!$C11=المنصرف!$C$3:$C$717)*1,المنصرف!$G$3:$G$717) -> 0 | AC11: =SUMPRODUCT(($AB$3=المنصرف!$E$3:$E$717)*1,('بيان العهد والتسويات'!$C11=المنصرف!$C$3:$C$717)*1,المنصرف!$J$3:$J$717) -> 0 | AD11: =SUMPRODUCT(($AD$3=المنصرف!$E$3:$E$717)*1,('بيان العهد والتسويات'!$C11=المنصرف!$C$3:$C$717)*1,المنصرف!$G$3:$G$717) -> 0 | AE11: =SUMPRODUCT(($AD$3=المنصرف!$E$3:$E$717)*1,('بيان العهد والتسويات'!$C11=المنصرف!$C$3:$C$717)*1,المنصرف!$J$3:$J$717) -> 0 | AF11: =SUMPRODUCT(($AF$3=المنصرف!$E$3:$E$717)*1,('بيان العهد والتسويات'!$C11=المنصرف!$C$3:$C$717)*1,المنصرف!$G$3:$G$717) -> 0 | AG11: =SUMPRODUCT(($AF$3=المنصرف!$E$3:$E$717)*1,('بيان العهد والتسويات'!$C11=المنصرف!$C$3:$C$717)*1,المنصرف!$J$3:$J$717) -> 0 | AH11: =SUMPRODUCT(($AH$3=المنصرف!$E$3:$E$717)*1,('بيان العهد والتسويات'!$C11=المنصرف!$C$3:$C$717)*1,المنصرف!$G$3:$G$717) -> 0 | AI11: =SUMPRODUCT(($AH$3=المنصرف!$E$3:$E$717)*1,('بيان العهد والتسويات'!$C11=المنصرف!$C$3:$C$717)*1,المنصرف!$J$3:$J$717) -> 0 | AJ11: =SUMPRODUCT((AJ$3=المنصرف!$E$3:$E$717)*1,('بيان العهد والتسويات'!$C11=المنصرف!$C$3:$C$717)*1,المنصرف!$G$3:$G$717) -> 0 | AK11: =SUMPRODUCT((AJ$3=المنصرف!$E$3:$E$717)*1,('بيان العهد والتسويات'!$C11=المنصرف!$C$3:$C$717)*1,المنصرف!$J$3:$J$717) -> 0 | AL11: =SUMPRODUCT((AL$3=المنصرف!$E$3:$E$717)*1,('بيان العهد والتسويات'!$C11=المنصرف!$C$3:$C$717)*1,المنصرف!$G$3:$G$717) -> 0 | AM11: =SUMPRODUCT((AL$3=المنصرف!$E$3:$E$717)*1,('بيان العهد والتسويات'!$C11=المنصرف!$C$3:$C$717)*1,المنصرف!$J$3:$J$717) -> 0 | AN11: =SUMPRODUCT((AN$3=المنصرف!$E$3:$E$717)*1,('بيان العهد والتسويات'!$C11=المنصرف!$C$3:$C$717)*1,المنصرف!$G$3:$G$717) -> 0 | AO11: =SUMPRODUCT((AN$3=المنصرف!$E$3:$E$717)*1,('بيان العهد والتسويات'!$C11=المنصرف!$C$3:$C$717)*1,المنصرف!$J$3:$J$717) -> 0 | AP11: =SUMPRODUCT((AP$3=المنصرف!$E$3:$E$717)*1,('بيان العهد والتسويات'!$C11=المنصرف!$C$3:$C$717)*1,المنصرف!$G$3:$G$717) -> 0 | AQ11: =SUMPRODUCT((AP$3=المنصرف!$E$3:$E$717)*1,('بيان العهد والتسويات'!$C11=المنصرف!$C$3:$C$717)*1,المنصرف!$J$3:$J$717) -> 0 | AR11: =SUMPRODUCT((AR$3=المنصرف!$E$3:$E$717)*1,('بيان العهد والتسويات'!$C11=المنصرف!$C$3:$C$717)*1,المنصرف!$G$3:$G$717) -> 0 | AS11: =SUMPRODUCT((AR$3=المنصرف!$E$3:$E$717)*1,('بيان العهد والتسويات'!$C11=المنصرف!$C$3:$C$717)*1,المنصرف!$J$3:$J$717) -> 0 | AT11: =SUMPRODUCT((AT$3=المنصرف!$E$3:$E$717)*1,('بيان العهد والتسويات'!$C11=المنصرف!$C$3:$C$717)*1,المنصرف!$G$3:$G$717) -> 0 | AU11: =SUMPRODUCT((AT$3=المنصرف!$E$3:$E$717)*1,('بيان العهد والتسويات'!$C11=المنصرف!$C$3:$C$717)*1,المنصرف!$J$3:$J$717) -> 0 | AV11: =SUMPRODUCT((AV$3=المنصرف!$E$3:$E$717)*1,('بيان العهد والتسويات'!$C11=المنصرف!$C$3:$C$717)*1,المنصرف!$G$3:$G$717) -> 0 | AW11: =SUMPRODUCT((AV$3=المنصرف!$E$3:$E$717)*1,('بيان العهد والتسويات'!$C11=المنصرف!$C$3:$C$717)*1,المنصرف!$J$3:$J$717) -> 0 | AX11: =SUMPRODUCT((AX$3=المنصرف!$E$3:$E$717)*1,('بيان العهد والتسويات'!$C11=المنصرف!$C$3:$C$717)*1,المنصرف!$G$3:$G$717) -> 0 | AY11: =SUMPRODUCT((AX$3=المنصرف!$E$3:$E$717)*1,('بيان العهد والتسويات'!$C11=المنصرف!$C$3:$C$717)*1,المنصرف!$J$3:$J$717) -> 0 | AZ11: =SUMPRODUCT((AZ$3=المنصرف!$E$3:$E$717)*1,('بيان العهد والتسويات'!$C11=المنصرف!$C$3:$C$717)*1,المنصرف!$G$3:$G$717) -> 0 | BA11: =SUMPRODUCT((AZ$3=المنصرف!$E$3:$E$717)*1,('بيان العهد والتسويات'!$C11=المنصرف!$C$3:$C$717)*1,المنصرف!$J$3:$J$717) -> 0 | BB11: =SUMPRODUCT((BB$3=المنصرف!$E$3:$E$717)*1,('بيان العهد والتسويات'!$C11=المنصرف!$C$3:$C$717)*1,المنصرف!$G$3:$G$717) -> 0 | BC11: =SUMPRODUCT((BB$3=المنصرف!$E$3:$E$717)*1,('بيان العهد والتسويات'!$C11=المنصرف!$C$3:$C$717)*1,المنصرف!$J$3:$J$717) -> 0 | BD11: =SUMPRODUCT((BD$3=المنصرف!$E$3:$E$717)*1,('بيان العهد والتسويات'!$C11=المنصرف!$C$3:$C$717)*1,المنصرف!$G$3:$G$717) -> 0 | BE11: =SUMPRODUCT((BD$3=المنصرف!$E$3:$E$717)*1,('بيان العهد والتسويات'!$C11=المنصرف!$C$3:$C$717)*1,المنصرف!$J$3:$J$717) -> 0 | BF11: =SUMPRODUCT((BF$3=المنصرف!$E$3:$E$717)*1,('بيان العهد والتسويات'!$C11=المنصرف!$C$3:$C$717)*1,المنصرف!$G$3:$G$717) -> 0 | BG11: =SUMPRODUCT((BF$3=المنصرف!$E$3:$E$717)*1,('بيان العهد والتسويات'!$C11=المنصرف!$C$3:$C$717)*1,المنصرف!$J$3:$J$717) -> 0 | BH11: =SUMPRODUCT((BH$3=المنصرف!$E$3:$E$717)*1,('بيان العهد والتسويات'!$C11=المنصرف!$C$3:$C$717)*1,المنصرف!$G$3:$G$717) -> 0 | BI11: =SUMPRODUCT((BH$3=المنصرف!$E$3:$E$717)*1,('بيان العهد والتسويات'!$C11=المنصرف!$C$3:$C$717)*1,المنصرف!$J$3:$J$717) -> 0 | BJ11: =SUMPRODUCT((BJ$3=المنصرف!$E$3:$E$717)*1,('بيان العهد والتسويات'!$C11=المنصرف!$C$3:$C$717)*1,المنصرف!$G$3:$G$717) -> 0 | BK11: =SUMPRODUCT((BJ$3=المنصرف!$E$3:$E$717)*1,('بيان العهد والتسويات'!$C11=المنصرف!$C$3:$C$717)*1,المنصرف!$J$3:$J$717) -> 0 | BL11: =SUMPRODUCT((BL$3=المنصرف!$E$3:$E$717)*1,('بيان العهد والتسويات'!$C11=المنصرف!$C$3:$C$717)*1,المنصرف!$G$3:$G$717) -> 0 | BM11: =SUMPRODUCT((BL$3=المنصرف!$E$3:$E$717)*1,('بيان العهد والتسويات'!$C11=المنصرف!$C$3:$C$717)*1,المنصرف!$J$3:$J$717) -> 0 | BN11: =SUMPRODUCT((BN$3=المنصرف!$E$3:$E$717)*1,('بيان العهد والتسويات'!$C11=المنصرف!$C$3:$C$717)*1,المنصرف!$G$3:$G$717) -> 0 | BO11: =SUMPRODUCT((BN$3=المنصرف!$E$3:$E$717)*1,('بيان العهد والتسويات'!$C11=المنصرف!$C$3:$C$717)*1,المنصرف!$J$3:$J$717) -> 0 | BP11: =SUMPRODUCT((BP$3=المنصرف!$E$3:$E$717)*1,('بيان العهد والتسويات'!$C11=المنصرف!$C$3:$C$717)*1,المنصرف!$G$3:$G$717) -> 0 | BQ11: =SUMPRODUCT((BP$3=المنصرف!$E$3:$E$717)*1,('بيان العهد والتسويات'!$C11=المنصرف!$C$3:$C$717)*1,المنصرف!$J$3:$J$717) -> 0 | BR11: =SUMPRODUCT((BR$3=المنصرف!$E$3:$E$717)*1,('بيان العهد والتسويات'!$C11=المنصرف!$C$3:$C$717)*1,المنصرف!$G$3:$G$717) -> 0 | BS11: =SUMPRODUCT((BR$3=المنصرف!$E$3:$E$717)*1,('بيان العهد والتسويات'!$C11=المنصرف!$C$3:$C$717)*1,المنصرف!$J$3:$J$717) -> 0 | BT11: =SUMPRODUCT((BT$3=المنصرف!$E$3:$E$717)*1,('بيان العهد والتسويات'!$C11=المنصرف!$C$3:$C$717)*1,المنصرف!$G$3:$G$717) -> 0 | BU11: =SUMPRODUCT((BT$3=المنصرف!$E$3:$E$717)*1,('بيان العهد والتسويات'!$C11=المنصرف!$C$3:$C$717)*1,المنصرف!$J$3:$J$717) -> 0 | BV11: =SUMPRODUCT((BV$3=المنصرف!$E$3:$E$717)*1,('بيان العهد والتسويات'!$C11=المنصرف!$C$3:$C$717)*1,المنصرف!$G$3:$G$717) -> 0 | BW11: =SUMPRODUCT((BV$3=المنصرف!$E$3:$E$717)*1,('بيان العهد والتسويات'!$C11=المنصرف!$C$3:$C$717)*1,المنصرف!$J$3:$J$717) -> 0 | BX11: =SUMPRODUCT((BX$3=المنصرف!$E$3:$E$717)*1,('بيان العهد والتسويات'!$C11=المنصرف!$C$3:$C$717)*1,المنصرف!$G$3:$G$717) -> 0 | BY11: =SUMPRODUCT((BX$3=المنصرف!$E$3:$E$717)*1,('بيان العهد والتسويات'!$C11=المنصرف!$C$3:$C$717)*1,المنصرف!$J$3:$J$717) -> 0 | BZ11: =SUMPRODUCT((BZ$3=المنصرف!$E$3:$E$717)*1,('بيان العهد والتسويات'!$C11=المنصرف!$C$3:$C$717)*1,المنصرف!$G$3:$G$717) -> 0 | CA11: =SUMPRODUCT((BZ$3=المنصرف!$E$3:$E$717)*1,('بيان العهد والتسويات'!$C11=المنصرف!$C$3:$C$717)*1,المنصرف!$J$3:$J$717) -> 0 | CB11: =SUMPRODUCT((CB$3=المنصرف!$E$3:$E$717)*1,('بيان العهد والتسويات'!$C11=المنصرف!$C$3:$C$717)*1,المنصرف!$G$3:$G$717) -> 0 | CC11: =SUMPRODUCT((CB$3=المنصرف!$E$3:$E$717)*1,('بيان العهد والتسويات'!$C11=المنصرف!$C$3:$C$717)*1,المنصرف!$J$3:$J$717) -> 0 | CD11: =SUMPRODUCT((CD$3=المنصرف!$E$3:$E$717)*1,('بيان العهد والتسويات'!$C11=المنصرف!$C$3:$C$717)*1,المنصرف!$G$3:$G$717) -> 0 | CE11: =SUMPRODUCT((CD$3=المنصرف!$E$3:$E$717)*1,('بيان العهد والتسويات'!$C11=المنصرف!$C$3:$C$717)*1,المنصرف!$J$3:$J$717) -> 0 | CF11: =SUMPRODUCT((CF$3=المنصرف!$E$3:$E$717)*1,('بيان العهد والتسويات'!$C11=المنصرف!$C$3:$C$717)*1,المنصرف!$G$3:$G$717) -> 0 | CG11: =SUMPRODUCT((CF$3=المنصرف!$E$3:$E$717)*1,('بيان العهد والتسويات'!$C11=المنصرف!$C$3:$C$717)*1,المنصرف!$J$3:$J$717) -> 0 | CH11: =SUMPRODUCT((CH$3=المنصرف!$E$3:$E$717)*1,('بيان العهد والتسويات'!$C11=المنصرف!$C$3:$C$717)*1,المنصرف!$G$3:$G$717) -> 0 | CI11: =SUMPRODUCT((CH$3=المنصرف!$E$3:$E$717)*1,('بيان العهد والتسويات'!$C11=المنصرف!$C$3:$C$717)*1,المنصرف!$J$3:$J$717) -> 0 | CJ11: =SUMPRODUCT((CJ$3=المنصرف!$E$3:$E$717)*1,('بيان العهد والتسويات'!$C11=المنصرف!$C$3:$C$717)*1,المنصرف!$G$3:$G$717) -> 0 | CK11: =SUMPRODUCT((CJ$3=المنصرف!$E$3:$E$717)*1,('بيان العهد والتسويات'!$C11=المنصرف!$C$3:$C$717)*1,المنصرف!$J$3:$J$717) -> 0 | CL11: =SUMPRODUCT((CL$3=المنصرف!$E$3:$E$717)*1,('بيان العهد والتسويات'!$C11=المنصرف!$C$3:$C$717)*1,المنصرف!$G$3:$G$717) -> 0 | CM11: =SUMPRODUCT((CL$3=المنصرف!$E$3:$E$717)*1,('بيان العهد والتسويات'!$C11=المنصرف!$C$3:$C$717)*1,المنصرف!$J$3:$J$717) -> 0 | CN11: =SUMPRODUCT((CN$3=المنصرف!$E$3:$E$717)*1,('بيان العهد والتسويات'!$C11=المنصرف!$C$3:$C$717)*1,المنصرف!$G$3:$G$717) -> 0 | CO11: =SUMPRODUCT((CN$3=المنصرف!$E$3:$E$717)*1,('بيان العهد والتسويات'!$C11=المنصرف!$C$3:$C$717)*1,المنصرف!$J$3:$J$717) -> 0 | CP11: =SUMPRODUCT((CP$3=المنصرف!$E$3:$E$717)*1,('بيان العهد والتسويات'!$C11=المنصرف!$C$3:$C$717)*1,المنصرف!$G$3:$G$717) -> 0 | CQ11: =SUMPRODUCT((CP$3=المنصرف!$E$3:$E$717)*1,('بيان العهد والتسويات'!$C11=المنصرف!$C$3:$C$717)*1,المنصرف!$J$3:$J$717) -> 0 | CR11: =SUMPRODUCT((CR$3=المنصرف!$E$3:$E$717)*1,('بيان العهد والتسويات'!$C11=المنصرف!$C$3:$C$717)*1,المنصرف!$G$3:$G$717) -> 0 | CS11: =SUMPRODUCT((CR$3=المنصرف!$E$3:$E$717)*1,('بيان العهد والتسويات'!$C11=المنصرف!$C$3:$C$717)*1,المنصرف!$J$3:$J$717) -> 0 | CT11: =SUMPRODUCT((CT$3=المنصرف!$E$3:$E$717)*1,('بيان العهد والتسويات'!$C11=المنصرف!$C$3:$C$717)*1,المنصرف!$G$3:$G$717) -> 0 | CU11: =SUMPRODUCT((CT$3=المنصرف!$E$3:$E$717)*1,('بيان العهد والتسويات'!$C11=المنصرف!$C$3:$C$717)*1,المنصرف!$J$3:$J$717) -> 0 | CV11: =SUMPRODUCT((CV$3=المنصرف!$E$3:$E$717)*1,('بيان العهد والتسويات'!$C11=المنصرف!$C$3:$C$717)*1,المنصرف!$G$3:$G$717) -> 0 | CW11: =SUMPRODUCT((CV$3=المنصرف!$E$3:$E$717)*1,('بيان العهد والتسويات'!$C11=المنصرف!$C$3:$C$717)*1,المنصرف!$J$3:$J$717) -> 0 | CX11: =SUMPRODUCT((CX$3=المنصرف!$E$3:$E$717)*1,('بيان العهد والتسويات'!$C11=المنصرف!$C$3:$C$717)*1,المنصرف!$G$3:$G$717) -> 0 | CY11: =SUMPRODUCT((CX$3=المنصرف!$E$3:$E$717)*1,('بيان العهد والتسويات'!$C11=المنصرف!$C$3:$C$717)*1,المنصرف!$J$3:$J$717) -> 0 | CZ11: =SUMPRODUCT((CZ$3=المنصرف!$E$3:$E$717)*1,('بيان العهد والتسويات'!$C11=المنصرف!$C$3:$C$717)*1,المنصرف!$G$3:$G$717) -> 0 | DA11: =SUMPRODUCT((CZ$3=المنصرف!$E$3:$E$717)*1,('بيان العهد والتسويات'!$C11=المنصرف!$C$3:$C$717)*1,المنصرف!$J$3:$J$717) -> 0
C12: 2025-07-06 | D12: =SUMPRODUCT(($D$3=المنصرف!$E$3:$E$717)*1,('بيان العهد والتسويات'!$C12=المنصرف!$C$3:$C$717)*1,المنصرف!$G$3:$G$717) -> 150000 | E12: =SUMPRODUCT(($D$3=المنصرف!$E$3:$E$717)*1,('بيان العهد والتسويات'!$C12=المنصرف!$C$3:$C$717)*1,المنصرف!$J$3:$J$717) -> 0 | F12: =SUMPRODUCT(($F$3=المنصرف!$E$3:$E$717)*1,('بيان العهد والتسويات'!$C12=المنصرف!$C$3:$C$717)*1,المنصرف!$G$3:$G$717) -> 0 | G12: =SUMPRODUCT(($F$3=المنصرف!$E$3:$E$717)*1,('بيان العهد والتسويات'!$C12=المنصرف!$C$3:$C$717)*1,المنصرف!$J$3:$J$717) -> 0 | H12: =SUMPRODUCT(($H$3=المنصرف!$E$3:$E$717)*1,('بيان العهد والتسويات'!$C12=المنصرف!$C$3:$C$717)*1,المنصرف!$G$3:$G$717) -> 0 | I12: =SUMPRODUCT(($H$3=المنصرف!$E$3:$E$717)*1,('بيان العهد والتسويات'!$C12=المنصرف!$C$3:$C$717)*1,المنصرف!$J$3:$J$717) -> 0 | J12: =SUMPRODUCT(($J$3=المنصرف!$E$3:$E$717)*1,('بيان العهد والتسويات'!$C12=المنصرف!$C$3:$C$717)*1,المنصرف!$G$3:$G$717) -> 0 | K12: =SUMPRODUCT(($J$3=المنصرف!$E$3:$E$717)*1,('بيان العهد والتسويات'!$C12=المنصرف!$C$3:$C$717)*1,المنصرف!$J$3:$J$717) -> 0 | L12: =SUMPRODUCT(($L$3=المنصرف!$E$3:$E$717)*1,('بيان العهد والتسويات'!$C12=المنصرف!$C$3:$C$717)*1,المنصرف!$G$3:$G$717) -> 0 | M12: =SUMPRODUCT(($L$3=المنصرف!$E$3:$E$717)*1,('بيان العهد والتسويات'!$C12=المنصرف!$C$3:$C$717)*1,المنصرف!$J$3:$J$717) -> 0 | N12: =SUMPRODUCT(($N$3=المنصرف!$E$3:$E$717)*1,('بيان العهد والتسويات'!$C12=المنصرف!$C$3:$C$717)*1,المنصرف!$G$3:$G$717) -> 0 | O12: =SUMPRODUCT(($N$3=المنصرف!$E$3:$E$717)*1,('بيان العهد والتسويات'!$C12=المنصرف!$C$3:$C$717)*1,المنصرف!$J$3:$J$717) -> 0 | P12: =SUMPRODUCT(($P$3=المنصرف!$E$3:$E$717)*1,('بيان العهد والتسويات'!$C12=المنصرف!$C$3:$C$717)*1,المنصرف!$G$3:$G$717) -> 0 | Q12: =SUMPRODUCT(($P$3=المنصرف!$E$3:$E$717)*1,('بيان العهد والتسويات'!$C12=المنصرف!$C$3:$C$717)*1,المنصرف!$J$3:$J$717) -> 0 | R12: =SUMPRODUCT(($R$3=المنصرف!$E$3:$E$717)*1,('بيان العهد والتسويات'!$C12=المنصرف!$C$3:$C$717)*1,المنصرف!$G$3:$G$717) -> 0 | S12: =SUMPRODUCT(($R$3=المنصرف!$E$3:$E$717)*1,('بيان العهد والتسويات'!$C12=المنصرف!$C$3:$C$717)*1,المنصرف!$J$3:$J$717) -> 0 | T12: =SUMPRODUCT(($T$3=المنصرف!$E$3:$E$717)*1,('بيان العهد والتسويات'!$C12=المنصرف!$C$3:$C$717)*1,المنصرف!$G$3:$G$717) -> 0 | U12: =SUMPRODUCT(($T$3=المنصرف!$E$3:$E$717)*1,('بيان العهد والتسويات'!$C12=المنصرف!$C$3:$C$717)*1,المنصرف!$J$3:$J$717) -> 0 | V12: =SUMPRODUCT(($V$3=المنصرف!$E$3:$E$717)*1,('بيان العهد والتسويات'!$C12=المنصرف!$C$3:$C$717)*1,المنصرف!$G$3:$G$717) -> 0 | W12: =SUMPRODUCT(($V$3=المنصرف!$E$3:$E$717)*1,('بيان العهد والتسويات'!$C12=المنصرف!$C$3:$C$717)*1,المنصرف!$J$3:$J$717) -> 0 | X12: =SUMPRODUCT(($X$3=المنصرف!$E$3:$E$717)*1,('بيان العهد والتسويات'!$C12=المنصرف!$C$3:$C$717)*1,المنصرف!$G$3:$G$717) -> 0 | Y12: =SUMPRODUCT(($X$3=المنصرف!$E$3:$E$717)*1,('بيان العهد والتسويات'!$C12=المنصرف!$C$3:$C$717)*1,المنصرف!$J$3:$J$717) -> 0 | Z12: =SUMPRODUCT(($Z$3=المنصرف!$E$3:$E$717)*1,('بيان العهد والتسويات'!$C12=المنصرف!$C$3:$C$717)*1,المنصرف!$G$3:$G$717) -> 0 | AA12: =SUMPRODUCT(($Z$3=المنصرف!$E$3:$E$717)*1,('بيان العهد والتسويات'!$C12=المنصرف!$C$3:$C$717)*1,المنصرف!$J$3:$J$717) -> 0 | AB12: =SUMPRODUCT(($AB$3=المنصرف!$E$3:$E$717)*1,('بيان العهد والتسويات'!$C12=المنصرف!$C$3:$C$717)*1,المنصرف!$G$3:$G$717) -> 0 | AC12: =SUMPRODUCT(($AB$3=المنصرف!$E$3:$E$717)*1,('بيان العهد والتسويات'!$C12=المنصرف!$C$3:$C$717)*1,المنصرف!$J$3:$J$717) -> 0 | AD12: =SUMPRODUCT(($AD$3=المنصرف!$E$3:$E$717)*1,('بيان العهد والتسويات'!$C12=المنصرف!$C$3:$C$717)*1,المنصرف!$G$3:$G$717) -> 0 | AE12: =SUMPRODUCT(($AD$3=المنصرف!$E$3:$E$717)*1,('بيان العهد والتسويات'!$C12=المنصرف!$C$3:$C$717)*1,المنصرف!$J$3:$J$717) -> 0 | AF12: =SUMPRODUCT(($AF$3=المنصرف!$E$3:$E$717)*1,('بيان العهد والتسويات'!$C12=المنصرف!$C$3:$C$717)*1,المنصرف!$G$3:$G$717) -> 0 | AG12: =SUMPRODUCT(($AF$3=المنصرف!$E$3:$E$717)*1,('بيان العهد والتسويات'!$C12=المنصرف!$C$3:$C$717)*1,المنصرف!$J$3:$J$717) -> 0 | AH12: =SUMPRODUCT(($AH$3=المنصرف!$E$3:$E$717)*1,('بيان العهد والتسويات'!$C12=المنصرف!$C$3:$C$717)*1,المنصرف!$G$3:$G$717) -> 0 | AI12: =SUMPRODUCT(($AH$3=المنصرف!$E$3:$E$717)*1,('بيان العهد والتسويات'!$C12=المنصرف!$C$3:$C$717)*1,المنصرف!$J$3:$J$717) -> 0 | AJ12: =SUMPRODUCT((AJ$3=المنصرف!$E$3:$E$717)*1,('بيان العهد والتسويات'!$C12=المنصرف!$C$3:$C$717)*1,المنصرف!$G$3:$G$717) -> 0 | AK12: =SUMPRODUCT((AJ$3=المنصرف!$E$3:$E$717)*1,('بيان العهد والتسويات'!$C12=المنصرف!$C$3:$C$717)*1,المنصرف!$J$3:$J$717) -> 0 | AL12: =SUMPRODUCT((AL$3=المنصرف!$E$3:$E$717)*1,('بيان العهد والتسويات'!$C12=المنصرف!$C$3:$C$717)*1,المنصرف!$G$3:$G$717) -> 0 | AM12: =SUMPRODUCT((AL$3=المنصرف!$E$3:$E$717)*1,('بيان العهد والتسويات'!$C12=المنصرف!$C$3:$C$717)*1,المنصرف!$J$3:$J$717) -> 0 | AN12: =SUMPRODUCT((AN$3=المنصرف!$E$3:$E$717)*1,('بيان العهد والتسويات'!$C12=المنصرف!$C$3:$C$717)*1,المنصرف!$G$3:$G$717) -> 0 | AO12: =SUMPRODUCT((AN$3=المنصرف!$E$3:$E$717)*1,('بيان العهد والتسويات'!$C12=المنصرف!$C$3:$C$717)*1,المنصرف!$J$3:$J$717) -> 0 | AP12: =SUMPRODUCT((AP$3=المنصرف!$E$3:$E$717)*1,('بيان العهد والتسويات'!$C12=المنصرف!$C$3:$C$717)*1,المنصرف!$G$3:$G$717) -> 0 | AQ12: =SUMPRODUCT((AP$3=المنصرف!$E$3:$E$717)*1,('بيان العهد والتسويات'!$C12=المنصرف!$C$3:$C$717)*1,المنصرف!$J$3:$J$717) -> 0 | AR12: =SUMPRODUCT((AR$3=المنصرف!$E$3:$E$717)*1,('بيان العهد والتسويات'!$C12=المنصرف!$C$3:$C$717)*1,المنصرف!$G$3:$G$717) -> 0 | AS12: =SUMPRODUCT((AR$3=المنصرف!$E$3:$E$717)*1,('بيان العهد والتسويات'!$C12=المنصرف!$C$3:$C$717)*1,المنصرف!$J$3:$J$717) -> 0 | AT12: =SUMPRODUCT((AT$3=المنصرف!$E$3:$E$717)*1,('بيان العهد والتسويات'!$C12=المنصرف!$C$3:$C$717)*1,المنصرف!$G$3:$G$717) -> 0 | AU12: =SUMPRODUCT((AT$3=المنصرف!$E$3:$E$717)*1,('بيان العهد والتسويات'!$C12=المنصرف!$C$3:$C$717)*1,المنصرف!$J$3:$J$717) -> 0 | AV12: =SUMPRODUCT((AV$3=المنصرف!$E$3:$E$717)*1,('بيان العهد والتسويات'!$C12=المنصرف!$C$3:$C$717)*1,المنصرف!$G$3:$G$717) -> 0 | AW12: =SUMPRODUCT((AV$3=المنصرف!$E$3:$E$717)*1,('بيان العهد والتسويات'!$C12=المنصرف!$C$3:$C$717)*1,المنصرف!$J$3:$J$717) -> 0 | AX12: =SUMPRODUCT((AX$3=المنصرف!$E$3:$E$717)*1,('بيان العهد والتسويات'!$C12=المنصرف!$C$3:$C$717)*1,المنصرف!$G$3:$G$717) -> 0 | AY12: =SUMPRODUCT((AX$3=المنصرف!$E$3:$E$717)*1,('بيان العهد والتسويات'!$C12=المنصرف!$C$3:$C$717)*1,المنصرف!$J$3:$J$717) -> 0 | AZ12: =SUMPRODUCT((AZ$3=المنصرف!$E$3:$E$717)*1,('بيان العهد والتسويات'!$C12=المنصرف!$C$3:$C$717)*1,المنصرف!$G$3:$G$717) -> 0 | BA12: =SUMPRODUCT((AZ$3=المنصرف!$E$3:$E$717)*1,('بيان العهد والتسويات'!$C12=المنصرف!$C$3:$C$717)*1,المنصرف!$J$3:$J$717) -> 0 | BB12: =SUMPRODUCT((BB$3=المنصرف!$E$3:$E$717)*1,('بيان العهد والتسويات'!$C12=المنصرف!$C$3:$C$717)*1,المنصرف!$G$3:$G$717) -> 0 | BC12: =SUMPRODUCT((BB$3=المنصرف!$E$3:$E$717)*1,('بيان العهد والتسويات'!$C12=المنصرف!$C$3:$C$717)*1,المنصرف!$J$3:$J$717) -> 0 | BD12: =SUMPRODUCT((BD$3=المنصرف!$E$3:$E$717)*1,('بيان العهد والتسويات'!$C12=المنصرف!$C$3:$C$717)*1,المنصرف!$G$3:$G$717) -> 0 | BE12: =SUMPRODUCT((BD$3=المنصرف!$E$3:$E$717)*1,('بيان العهد والتسويات'!$C12=المنصرف!$C$3:$C$717)*1,المنصرف!$J$3:$J$717) -> 0 | BF12: =SUMPRODUCT((BF$3=المنصرف!$E$3:$E$717)*1,('بيان العهد والتسويات'!$C12=المنصرف!$C$3:$C$717)*1,المنصرف!$G$3:$G$717) -> 0 | BG12: =SUMPRODUCT((BF$3=المنصرف!$E$3:$E$717)*1,('بيان العهد والتسويات'!$C12=المنصرف!$C$3:$C$717)*1,المنصرف!$J$3:$J$717) -> 0 | BH12: =SUMPRODUCT((BH$3=المنصرف!$E$3:$E$717)*1,('بيان العهد والتسويات'!$C12=المنصرف!$C$3:$C$717)*1,المنصرف!$G$3:$G$717) -> 0 | BI12: =SUMPRODUCT((BH$3=المنصرف!$E$3:$E$717)*1,('بيان العهد والتسويات'!$C12=المنصرف!$C$3:$C$717)*1,المنصرف!$J$3:$J$717) -> 0 | BJ12: =SUMPRODUCT((BJ$3=المنصرف!$E$3:$E$717)*1,('بيان العهد والتسويات'!$C12=المنصرف!$C$3:$C$717)*1,المنصرف!$G$3:$G$717) -> 0 | BK12: =SUMPRODUCT((BJ$3=المنصرف!$E$3:$E$717)*1,('بيان العهد والتسويات'!$C12=المنصرف!$C$3:$C$717)*1,المنصرف!$J$3:$J$717) -> 0 | BL12: =SUMPRODUCT((BL$3=المنصرف!$E$3:$E$717)*1,('بيان العهد والتسويات'!$C12=المنصرف!$C$3:$C$717)*1,المنصرف!$G$3:$G$717) -> 0 | BM12: =SUMPRODUCT((BL$3=المنصرف!$E$3:$E$717)*1,('بيان العهد والتسويات'!$C12=المنصرف!$C$3:$C$717)*1,المنصرف!$J$3:$J$717) -> 0 | BN12: =SUMPRODUCT((BN$3=المنصرف!$E$3:$E$717)*1,('بيان العهد والتسويات'!$C12=المنصرف!$C$3:$C$717)*1,المنصرف!$G$3:$G$717) -> 0 | BO12: =SUMPRODUCT((BN$3=المنصرف!$E$3:$E$717)*1,('بيان العهد والتسويات'!$C12=المنصرف!$C$3:$C$717)*1,المنصرف!$J$3:$J$717) -> 0 | BP12: =SUMPRODUCT((BP$3=المنصرف!$E$3:$E$717)*1,('بيان العهد والتسويات'!$C12=المنصرف!$C$3:$C$717)*1,المنصرف!$G$3:$G$717) -> 0 | BQ12: =SUMPRODUCT((BP$3=المنصرف!$E$3:$E$717)*1,('بيان العهد والتسويات'!$C12=المنصرف!$C$3:$C$717)*1,المنصرف!$J$3:$J$717) -> 0 | BR12: =SUMPRODUCT((BR$3=المنصرف!$E$3:$E$717)*1,('بيان العهد والتسويات'!$C12=المنصرف!$C$3:$C$717)*1,المنصرف!$G$3:$G$717) -> 0 | BS12: =SUMPRODUCT((BR$3=المنصرف!$E$3:$E$717)*1,('بيان العهد والتسويات'!$C12=المنصرف!$C$3:$C$717)*1,المنصرف!$J$3:$J$717) -> 0 | BT12: =SUMPRODUCT((BT$3=المنصرف!$E$3:$E$717)*1,('بيان العهد والتسويات'!$C12=المنصرف!$C$3:$C$717)*1,المنصرف!$G$3:$G$717) -> 0 | BU12: =SUMPRODUCT((BT$3=المنصرف!$E$3:$E$717)*1,('بيان العهد والتسويات'!$C12=المنصرف!$C$3:$C$717)*1,المنصرف!$J$3:$J$717) -> 0 | BV12: =SUMPRODUCT((BV$3=المنصرف!$E$3:$E$717)*1,('بيان العهد والتسويات'!$C12=المنصرف!$C$3:$C$717)*1,المنصرف!$G$3:$G$717) -> 0 | BW12: =SUMPRODUCT((BV$3=المنصرف!$E$3:$E$717)*1,('بيان العهد والتسويات'!$C12=المنصرف!$C$3:$C$717)*1,المنصرف!$J$3:$J$717) -> 0 | BX12: =SUMPRODUCT((BX$3=المنصرف!$E$3:$E$717)*1,('بيان العهد والتسويات'!$C12=المنصرف!$C$3:$C$717)*1,المنصرف!$G$3:$G$717) -> 0 | BY12: =SUMPRODUCT((BX$3=المنصرف!$E$3:$E$717)*1,('بيان العهد والتسويات'!$C12=المنصرف!$C$3:$C$717)*1,المنصرف!$J$3:$J$717) -> 0 | BZ12: =SUMPRODUCT((BZ$3=المنصرف!$E$3:$E$717)*1,('بيان العهد والتسويات'!$C12=المنصرف!$C$3:$C$717)*1,المنصرف!$G$3:$G$717) -> 0 | CA12: =SUMPRODUCT((BZ$3=المنصرف!$E$3:$E$717)*1,('بيان العهد والتسويات'!$C12=المنصرف!$C$3:$C$717)*1,المنصرف!$J$3:$J$717) -> 0 | CB12: =SUMPRODUCT((CB$3=المنصرف!$E$3:$E$717)*1,('بيان العهد والتسويات'!$C12=المنصرف!$C$3:$C$717)*1,المنصرف!$G$3:$G$717) -> 0 | CC12: =SUMPRODUCT((CB$3=المنصرف!$E$3:$E$717)*1,('بيان العهد والتسويات'!$C12=المنصرف!$C$3:$C$717)*1,المنصرف!$J$3:$J$717) -> 0 | CD12: =SUMPRODUCT((CD$3=المنصرف!$E$3:$E$717)*1,('بيان العهد والتسويات'!$C12=المنصرف!$C$3:$C$717)*1,المنصرف!$G$3:$G$717) -> 0 | CE12: =SUMPRODUCT((CD$3=المنصرف!$E$3:$E$717)*1,('بيان العهد والتسويات'!$C12=المنصرف!$C$3:$C$717)*1,المنصرف!$J$3:$J$717) -> 0 | CF12: =SUMPRODUCT((CF$3=المنصرف!$E$3:$E$717)*1,('بيان العهد والتسويات'!$C12=المنصرف!$C$3:$C$717)*1,المنصرف!$G$3:$G$717) -> 0 | CG12: =SUMPRODUCT((CF$3=المنصرف!$E$3:$E$717)*1,('بيان العهد والتسويات'!$C12=المنصرف!$C$3:$C$717)*1,المنصرف!$J$3:$J$717) -> 0 | CH12: =SUMPRODUCT((CH$3=المنصرف!$E$3:$E$717)*1,('بيان العهد والتسويات'!$C12=المنصرف!$C$3:$C$717)*1,المنصرف!$G$3:$G$717) -> 0 | CI12: =SUMPRODUCT((CH$3=المنصرف!$E$3:$E$717)*1,('بيان العهد والتسويات'!$C12=المنصرف!$C$3:$C$717)*1,المنصرف!$J$3:$J$717) -> 0 | CJ12: =SUMPRODUCT((CJ$3=المنصرف!$E$3:$E$717)*1,('بيان العهد والتسويات'!$C12=المنصرف!$C$3:$C$717)*1,المنصرف!$G$3:$G$717) -> 0 | CK12: =SUMPRODUCT((CJ$3=المنصرف!$E$3:$E$717)*1,('بيان العهد والتسويات'!$C12=المنصرف!$C$3:$C$717)*1,المنصرف!$J$3:$J$717) -> 0 | CL12: =SUMPRODUCT((CL$3=المنصرف!$E$3:$E$717)*1,('بيان العهد والتسويات'!$C12=المنصرف!$C$3:$C$717)*1,المنصرف!$G$3:$G$717) -> 0 | CM12: =SUMPRODUCT((CL$3=المنصرف!$E$3:$E$717)*1,('بيان العهد والتسويات'!$C12=المنصرف!$C$3:$C$717)*1,المنصرف!$J$3:$J$717) -> 0 | CN12: =SUMPRODUCT((CN$3=المنصرف!$E$3:$E$717)*1,('بيان العهد والتسويات'!$C12=المنصرف!$C$3:$C$717)*1,المنصرف!$G$3:$G$717) -> 0 | CO12: =SUMPRODUCT((CN$3=المنصرف!$E$3:$E$717)*1,('بيان العهد والتسويات'!$C12=المنصرف!$C$3:$C$717)*1,المنصرف!$J$3:$J$717) -> 0 | CP12: =SUMPRODUCT((CP$3=المنصرف!$E$3:$E$717)*1,('بيان العهد والتسويات'!$C12=المنصرف!$C$3:$C$717)*1,المنصرف!$G$3:$G$717) -> 0 | CQ12: =SUMPRODUCT((CP$3=المنصرف!$E$3:$E$717)*1,('بيان العهد والتسويات'!$C12=المنصرف!$C$3:$C$717)*1,المنصرف!$J$3:$J$717) -> 0 | CR12: =SUMPRODUCT((CR$3=المنصرف!$E$3:$E$717)*1,('بيان العهد والتسويات'!$C12=المنصرف!$C$3:$C$717)*1,المنصرف!$G$3:$G$717) -> 0 | CS12: =SUMPRODUCT((CR$3=المنصرف!$E$3:$E$717)*1,('بيان العهد والتسويات'!$C12=المنصرف!$C$3:$C$717)*1,المنصرف!$J$3:$J$717) -> 0 | CT12: =SUMPRODUCT((CT$3=المنصرف!$E$3:$E$717)*1,('بيان العهد والتسويات'!$C12=المنصرف!$C$3:$C$717)*1,المنصرف!$G$3:$G$717) -> 0 | CU12: =SUMPRODUCT((CT$3=المنصرف!$E$3:$E$717)*1,('بيان العهد والتسويات'!$C12=المنصرف!$C$3:$C$717)*1,المنصرف!$J$3:$J$717) -> 0 | CV12: =SUMPRODUCT((CV$3=المنصرف!$E$3:$E$717)*1,('بيان العهد والتسويات'!$C12=المنصرف!$C$3:$C$717)*1,المنصرف!$G$3:$G$717) -> 0 | CW12: =SUMPRODUCT((CV$3=المنصرف!$E$3:$E$717)*1,('بيان العهد والتسويات'!$C12=المنصرف!$C$3:$C$717)*1,المنصرف!$J$3:$J$717) -> 0 | CX12: =SUMPRODUCT((CX$3=المنصرف!$E$3:$E$717)*1,('بيان العهد والتسويات'!$C12=المنصرف!$C$3:$C$717)*1,المنصرف!$G$3:$G$717) -> 0 | CY12: =SUMPRODUCT((CX$3=المنصرف!$E$3:$E$717)*1,('بيان العهد والتسويات'!$C12=المنصرف!$C$3:$C$717)*1,المنصرف!$J$3:$J$717) -> 0 | CZ12: =SUMPRODUCT((CZ$3=المنصرف!$E$3:$E$717)*1,('بيان العهد والتسويات'!$C12=المنصرف!$C$3:$C$717)*1,المنصرف!$G$3:$G$717) -> 0 | DA12: =SUMPRODUCT((CZ$3=المنصرف!$E$3:$E$717)*1,('بيان العهد والتسويات'!$C12=المنصرف!$C$3:$C$717)*1,المنصرف!$J$3:$J$717) -> 0
C13: 2025-07-07 | D13: =SUMPRODUCT(($D$3=المنصرف!$E$3:$E$717)*1,('بيان العهد والتسويات'!$C13=المنصرف!$C$3:$C$717)*1,المنصرف!$G$3:$G$717) -> 0 | E13: =SUMPRODUCT(($D$3=المنصرف!$E$3:$E$717)*1,('بيان العهد والتسويات'!$C13=المنصرف!$C$3:$C$717)*1,المنصرف!$J$3:$J$717) -> 0 | F13: =SUMPRODUCT(($F$3=المنصرف!$E$3:$E$717)*1,('بيان العهد والتسويات'!$C13=المنصرف!$C$3:$C$717)*1,المنصرف!$G$3:$G$717) -> 0 | G13: =SUMPRODUCT(($F$3=المنصرف!$E$3:$E$717)*1,('بيان العهد والتسويات'!$C13=المنصرف!$C$3:$C$717)*1,المنصرف!$J$3:$J$717) -> 0 | H13: =SUMPRODUCT(($H$3=المنصرف!$E$3:$E$717)*1,('بيان العهد والتسويات'!$C13=المنصرف!$C$3:$C$717)*1,المنصرف!$G$3:$G$717) -> 0 | I13: =SUMPRODUCT(($H$3=المنصرف!$E$3:$E$717)*1,('بيان العهد والتسويات'!$C13=المنصرف!$C$3:$C$717)*1,المنصرف!$J$3:$J$717) -> 0 | J13: =SUMPRODUCT(($J$3=المنصرف!$E$3:$E$717)*1,('بيان العهد والتسويات'!$C13=المنصرف!$C$3:$C$717)*1,المنصرف!$G$3:$G$717) -> 0 | K13: =SUMPRODUCT(($J$3=المنصرف!$E$3:$E$717)*1,('بيان العهد والتسويات'!$C13=المنصرف!$C$3:$C$717)*1,المنصرف!$J$3:$J$717) -> 0 | L13: =SUMPRODUCT(($L$3=المنصرف!$E$3:$E$717)*1,('بيان العهد والتسويات'!$C13=المنصرف!$C$3:$C$717)*1,المنصرف!$G$3:$G$717) -> 0 | M13: =SUMPRODUCT(($L$3=المنصرف!$E$3:$E$717)*1,('بيان العهد والتسويات'!$C13=المنصرف!$C$3:$C$717)*1,المنصرف!$J$3:$J$717) -> 0 | N13: =SUMPRODUCT(($N$3=المنصرف!$E$3:$E$717)*1,('بيان العهد والتسويات'!$C13=المنصرف!$C$3:$C$717)*1,المنصرف!$G$3:$G$717) -> 0 | O13: =SUMPRODUCT(($N$3=المنصرف!$E$3:$E$717)*1,('بيان العهد والتسويات'!$C13=المنصرف!$C$3:$C$717)*1,المنصرف!$J$3:$J$717) -> 0 | P13: =SUMPRODUCT(($P$3=المنصرف!$E$3:$E$717)*1,('بيان العهد والتسويات'!$C13=المنصرف!$C$3:$C$717)*1,المنصرف!$G$3:$G$717) -> 0 | Q13: =SUMPRODUCT(($P$3=المنصرف!$E$3:$E$717)*1,('بيان العهد والتسويات'!$C13=المنصرف!$C$3:$C$717)*1,المنصرف!$J$3:$J$717) -> 0 | R13: =SUMPRODUCT(($R$3=المنصرف!$E$3:$E$717)*1,('بيان العهد والتسويات'!$C13=المنصرف!$C$3:$C$717)*1,المنصرف!$G$3:$G$717) -> 0 | S13: =SUMPRODUCT(($R$3=المنصرف!$E$3:$E$717)*1,('بيان العهد والتسويات'!$C13=المنصرف!$C$3:$C$717)*1,المنصرف!$J$3:$J$717) -> 0 | T13: =SUMPRODUCT(($T$3=المنصرف!$E$3:$E$717)*1,('بيان العهد والتسويات'!$C13=المنصرف!$C$3:$C$717)*1,المنصرف!$G$3:$G$717) -> 0 | U13: =SUMPRODUCT(($T$3=المنصرف!$E$3:$E$717)*1,('بيان العهد والتسويات'!$C13=المنصرف!$C$3:$C$717)*1,المنصرف!$J$3:$J$717) -> 0 | V13: =SUMPRODUCT(($V$3=المنصرف!$E$3:$E$717)*1,('بيان العهد والتسويات'!$C13=المنصرف!$C$3:$C$717)*1,المنصرف!$G$3:$G$717) -> 0 | W13: =SUMPRODUCT(($V$3=المنصرف!$E$3:$E$717)*1,('بيان العهد والتسويات'!$C13=المنصرف!$C$3:$C$717)*1,المنصرف!$J$3:$J$717) -> 0 | X13: =SUMPRODUCT(($X$3=المنصرف!$E$3:$E$717)*1,('بيان العهد والتسويات'!$C13=المنصرف!$C$3:$C$717)*1,المنصرف!$G$3:$G$717) -> 0 | Y13: =SUMPRODUCT(($X$3=المنصرف!$E$3:$E$717)*1,('بيان العهد والتسويات'!$C13=المنصرف!$C$3:$C$717)*1,المنصرف!$J$3:$J$717) -> 0 | Z13: =SUMPRODUCT(($Z$3=المنصرف!$E$3:$E$717)*1,('بيان العهد والتسويات'!$C13=المنصرف!$C$3:$C$717)*1,المنصرف!$G$3:$G$717) -> 0 | AA13: =SUMPRODUCT(($Z$3=المنصرف!$E$3:$E$717)*1,('بيان العهد والتسويات'!$C13=المنصرف!$C$3:$C$717)*1,المنصرف!$J$3:$J$717) -> 0 | AB13: =SUMPRODUCT(($AB$3=المنصرف!$E$3:$E$717)*1,('بيان العهد والتسويات'!$C13=المنصرف!$C$3:$C$717)*1,المنصرف!$G$3:$G$717) -> 0 | AC13: =SUMPRODUCT(($AB$3=المنصرف!$E$3:$E$717)*1,('بيان العهد والتسويات'!$C13=المنصرف!$C$3:$C$717)*1,المنصرف!$J$3:$J$717) -> 0 | AD13: =SUMPRODUCT(($AD$3=المنصرف!$E$3:$E$717)*1,('بيان العهد والتسويات'!$C13=المنصرف!$C$3:$C$717)*1,المنصرف!$G$3:$G$717) -> 0 | AE13: =SUMPRODUCT(($AD$3=المنصرف!$E$3:$E$717)*1,('بيان العهد والتسويات'!$C13=المنصرف!$C$3:$C$717)*1,المنصرف!$J$3:$J$717) -> 0 | AF13: =SUMPRODUCT(($AF$3=المنصرف!$E$3:$E$717)*1,('بيان العهد والتسويات'!$C13=المنصرف!$C$3:$C$717)*1,المنصرف!$G$3:$G$717) -> 0 | AG13: =SUMPRODUCT(($AF$3=المنصرف!$E$3:$E$717)*1,('بيان العهد والتسويات'!$C13=المنصرف!$C$3:$C$717)*1,المنصرف!$J$3:$J$717) -> 0 | AH13: =SUMPRODUCT(($AH$3=المنصرف!$E$3:$E$717)*1,('بيان العهد والتسويات'!$C13=المنصرف!$C$3:$C$717)*1,المنصرف!$G$3:$G$717) -> 0 | AI13: =SUMPRODUCT(($AH$3=المنصرف!$E$3:$E$717)*1,('بيان العهد والتسويات'!$C13=المنصرف!$C$3:$C$717)*1,المنصرف!$J$3:$J$717) -> 0 | AJ13: =SUMPRODUCT((AJ$3=المنصرف!$E$3:$E$717)*1,('بيان العهد والتسويات'!$C13=المنصرف!$C$3:$C$717)*1,المنصرف!$G$3:$G$717) -> 0 | AK13: =SUMPRODUCT((AJ$3=المنصرف!$E$3:$E$717)*1,('بيان العهد والتسويات'!$C13=المنصرف!$C$3:$C$717)*1,المنصرف!$J$3:$J$717) -> 0 | AL13: =SUMPRODUCT((AL$3=المنصرف!$E$3:$E$717)*1,('بيان العهد والتسويات'!$C13=المنصرف!$C$3:$C$717)*1,المنصرف!$G$3:$G$717) -> 0 | AM13: =SUMPRODUCT((AL$3=المنصرف!$E$3:$E$717)*1,('بيان العهد والتسويات'!$C13=المنصرف!$C$3:$C$717)*1,المنصرف!$J$3:$J$717) -> 0 | AN13: =SUMPRODUCT((AN$3=المنصرف!$E$3:$E$717)*1,('بيان العهد والتسويات'!$C13=المنصرف!$C$3:$C$717)*1,المنصرف!$G$3:$G$717) -> 0 | AO13: =SUMPRODUCT((AN$3=المنصرف!$E$3:$E$717)*1,('بيان العهد والتسويات'!$C13=المنصرف!$C$3:$C$717)*1,المنصرف!$J$3:$J$717) -> 0 | AP13: =SUMPRODUCT((AP$3=المنصرف!$E$3:$E$717)*1,('بيان العهد والتسويات'!$C13=المنصرف!$C$3:$C$717)*1,المنصرف!$G$3:$G$717) -> 0 | AQ13: =SUMPRODUCT((AP$3=المنصرف!$E$3:$E$717)*1,('بيان العهد والتسويات'!$C13=المنصرف!$C$3:$C$717)*1,المنصرف!$J$3:$J$717) -> 0 | AR13: =SUMPRODUCT((AR$3=المنصرف!$E$3:$E$717)*1,('بيان العهد والتسويات'!$C13=المنصرف!$C$3:$C$717)*1,المنصرف!$G$3:$G$717) -> 0 | AS13: =SUMPRODUCT((AR$3=المنصرف!$E$3:$E$717)*1,('بيان العهد والتسويات'!$C13=المنصرف!$C$3:$C$717)*1,المنصرف!$J$3:$J$717) -> 0 | AT13: =SUMPRODUCT((AT$3=المنصرف!$E$3:$E$717)*1,('بيان العهد والتسويات'!$C13=المنصرف!$C$3:$C$717)*1,المنصرف!$G$3:$G$717) -> 0 | AU13: =SUMPRODUCT((AT$3=المنصرف!$E$3:$E$717)*1,('بيان العهد والتسويات'!$C13=المنصرف!$C$3:$C$717)*1,المنصرف!$J$3:$J$717) -> 0 | AV13: =SUMPRODUCT((AV$3=المنصرف!$E$3:$E$717)*1,('بيان العهد والتسويات'!$C13=المنصرف!$C$3:$C$717)*1,المنصرف!$G$3:$G$717) -> 0 | AW13: =SUMPRODUCT((AV$3=المنصرف!$E$3:$E$717)*1,('بيان العهد والتسويات'!$C13=المنصرف!$C$3:$C$717)*1,المنصرف!$J$3:$J$717) -> 0 | AX13: =SUMPRODUCT((AX$3=المنصرف!$E$3:$E$717)*1,('بيان العهد والتسويات'!$C13=المنصرف!$C$3:$C$717)*1,المنصرف!$G$3:$G$717) -> 0 | AY13: =SUMPRODUCT((AX$3=المنصرف!$E$3:$E$717)*1,('بيان العهد والتسويات'!$C13=المنصرف!$C$3:$C$717)*1,المنصرف!$J$3:$J$717) -> 0 | AZ13: =SUMPRODUCT((AZ$3=المنصرف!$E$3:$E$717)*1,('بيان العهد والتسويات'!$C13=المنصرف!$C$3:$C$717)*1,المنصرف!$G$3:$G$717) -> 0 | BA13: =SUMPRODUCT((AZ$3=المنصرف!$E$3:$E$717)*1,('بيان العهد والتسويات'!$C13=المنصرف!$C$3:$C$717)*1,المنصرف!$J$3:$J$717) -> 0 | BB13: =SUMPRODUCT((BB$3=المنصرف!$E$3:$E$717)*1,('بيان العهد والتسويات'!$C13=المنصرف!$C$3:$C$717)*1,المنصرف!$G$3:$G$717) -> 0 | BC13: =SUMPRODUCT((BB$3=المنصرف!$E$3:$E$717)*1,('بيان العهد والتسويات'!$C13=المنصرف!$C$3:$C$717)*1,المنصرف!$J$3:$J$717) -> 0 | BD13: =SUMPRODUCT((BD$3=المنصرف!$E$3:$E$717)*1,('بيان العهد والتسويات'!$C13=المنصرف!$C$3:$C$717)*1,المنصرف!$G$3:$G$717) -> 0 | BE13: =SUMPRODUCT((BD$3=المنصرف!$E$3:$E$717)*1,('بيان العهد والتسويات'!$C13=المنصرف!$C$3:$C$717)*1,المنصرف!$J$3:$J$717) -> 0 | BF13: =SUMPRODUCT((BF$3=المنصرف!$E$3:$E$717)*1,('بيان العهد والتسويات'!$C13=المنصرف!$C$3:$C$717)*1,المنصرف!$G$3:$G$717) -> 0 | BG13: =SUMPRODUCT((BF$3=المنصرف!$E$3:$E$717)*1,('بيان العهد والتسويات'!$C13=المنصرف!$C$3:$C$717)*1,المنصرف!$J$3:$J$717) -> 0 | BH13: =SUMPRODUCT((BH$3=المنصرف!$E$3:$E$717)*1,('بيان العهد والتسويات'!$C13=المنصرف!$C$3:$C$717)*1,المنصرف!$G$3:$G$717) -> 0 | BI13: =SUMPRODUCT((BH$3=المنصرف!$E$3:$E$717)*1,('بيان العهد والتسويات'!$C13=المنصرف!$C$3:$C$717)*1,المنصرف!$J$3:$J$717) -> 0 | BJ13: =SUMPRODUCT((BJ$3=المنصرف!$E$3:$E$717)*1,('بيان العهد والتسويات'!$C13=المنصرف!$C$3:$C$717)*1,المنصرف!$G$3:$G$717) -> 0 | BK13: =SUMPRODUCT((BJ$3=المنصرف!$E$3:$E$717)*1,('بيان العهد والتسويات'!$C13=المنصرف!$C$3:$C$717)*1,المنصرف!$J$3:$J$717) -> 0 | BL13: =SUMPRODUCT((BL$3=المنصرف!$E$3:$E$717)*1,('بيان العهد والتسويات'!$C13=المنصرف!$C$3:$C$717)*1,المنصرف!$G$3:$G$717) -> 0 | BM13: =SUMPRODUCT((BL$3=المنصرف!$E$3:$E$717)*1,('بيان العهد والتسويات'!$C13=المنصرف!$C$3:$C$717)*1,المنصرف!$J$3:$J$717) -> 0 | BN13: =SUMPRODUCT((BN$3=المنصرف!$E$3:$E$717)*1,('بيان العهد والتسويات'!$C13=المنصرف!$C$3:$C$717)*1,المنصرف!$G$3:$G$717) -> 0 | BO13: =SUMPRODUCT((BN$3=المنصرف!$E$3:$E$717)*1,('بيان العهد والتسويات'!$C13=المنصرف!$C$3:$C$717)*1,المنصرف!$J$3:$J$717) -> 0 | BP13: =SUMPRODUCT((BP$3=المنصرف!$E$3:$E$717)*1,('بيان العهد والتسويات'!$C13=المنصرف!$C$3:$C$717)*1,المنصرف!$G$3:$G$717) -> 0 | BQ13: =SUMPRODUCT((BP$3=المنصرف!$E$3:$E$717)*1,('بيان العهد والتسويات'!$C13=المنصرف!$C$3:$C$717)*1,المنصرف!$J$3:$J$717) -> 0 | BR13: =SUMPRODUCT((BR$3=المنصرف!$E$3:$E$717)*1,('بيان العهد والتسويات'!$C13=المنصرف!$C$3:$C$717)*1,المنصرف!$G$3:$G$717) -> 0 | BS13: =SUMPRODUCT((BR$3=المنصرف!$E$3:$E$717)*1,('بيان العهد والتسويات'!$C13=المنصرف!$C$3:$C$717)*1,المنصرف!$J$3:$J$717) -> 0 | BT13: =SUMPRODUCT((BT$3=المنصرف!$E$3:$E$717)*1,('بيان العهد والتسويات'!$C13=المنصرف!$C$3:$C$717)*1,المنصرف!$G$3:$G$717) -> 0 | BU13: =SUMPRODUCT((BT$3=المنصرف!$E$3:$E$717)*1,('بيان العهد والتسويات'!$C13=المنصرف!$C$3:$C$717)*1,المنصرف!$J$3:$J$717) -> 0 | BV13: =SUMPRODUCT((BV$3=المنصرف!$E$3:$E$717)*1,('بيان العهد والتسويات'!$C13=المنصرف!$C$3:$C$717)*1,المنصرف!$G$3:$G$717) -> 0 | BW13: =SUMPRODUCT((BV$3=المنصرف!$E$3:$E$717)*1,('بيان العهد والتسويات'!$C13=المنصرف!$C$3:$C$717)*1,المنصرف!$J$3:$J$717) -> 0 | BX13: =SUMPRODUCT((BX$3=المنصرف!$E$3:$E$717)*1,('بيان العهد والتسويات'!$C13=المنصرف!$C$3:$C$717)*1,المنصرف!$G$3:$G$717) -> 0 | BY13: =SUMPRODUCT((BX$3=المنصرف!$E$3:$E$717)*1,('بيان العهد والتسويات'!$C13=المنصرف!$C$3:$C$717)*1,المنصرف!$J$3:$J$717) -> 0 | BZ13: =SUMPRODUCT((BZ$3=المنصرف!$E$3:$E$717)*1,('بيان العهد والتسويات'!$C13=المنصرف!$C$3:$C$717)*1,المنصرف!$G$3:$G$717) -> 0 | CA13: =SUMPRODUCT((BZ$3=المنصرف!$E$3:$E$717)*1,('بيان العهد والتسويات'!$C13=المنصرف!$C$3:$C$717)*1,المنصرف!$J$3:$J$717) -> 0 | CB13: =SUMPRODUCT((CB$3=المنصرف!$E$3:$E$717)*1,('بيان العهد والتسويات'!$C13=المنصرف!$C$3:$C$717)*1,المنصرف!$G$3:$G$717) -> 0 | CC13: =SUMPRODUCT((CB$3=المنصرف!$E$3:$E$717)*1,('بيان العهد والتسويات'!$C13=المنصرف!$C$3:$C$717)*1,المنصرف!$J$3:$J$717) -> 0 | CD13: =SUMPRODUCT((CD$3=المنصرف!$E$3:$E$717)*1,('بيان العهد والتسويات'!$C13=المنصرف!$C$3:$C$717)*1,المنصرف!$G$3:$G$717) -> 0 | CE13: =SUMPRODUCT((CD$3=المنصرف!$E$3:$E$717)*1,('بيان العهد والتسويات'!$C13=المنصرف!$C$3:$C$717)*1,المنصرف!$J$3:$J$717) -> 0 | CF13: =SUMPRODUCT((CF$3=المنصرف!$E$3:$E$717)*1,('بيان العهد والتسويات'!$C13=المنصرف!$C$3:$C$717)*1,المنصرف!$G$3:$G$717) -> 0 | CG13: =SUMPRODUCT((CF$3=المنصرف!$E$3:$E$717)*1,('بيان العهد والتسويات'!$C13=المنصرف!$C$3:$C$717)*1,المنصرف!$J$3:$J$717) -> 0 | CH13: =SUMPRODUCT((CH$3=المنصرف!$E$3:$E$717)*1,('بيان العهد والتسويات'!$C13=المنصرف!$C$3:$C$717)*1,المنصرف!$G$3:$G$717) -> 0 | CI13: =SUMPRODUCT((CH$3=المنصرف!$E$3:$E$717)*1,('بيان العهد والتسويات'!$C13=المنصرف!$C$3:$C$717)*1,المنصرف!$J$3:$J$717) -> 0 | CJ13: =SUMPRODUCT((CJ$3=المنصرف!$E$3:$E$717)*1,('بيان العهد والتسويات'!$C13=المنصرف!$C$3:$C$717)*1,المنصرف!$G$3:$G$717) -> 0 | CK13: =SUMPRODUCT((CJ$3=المنصرف!$E$3:$E$717)*1,('بيان العهد والتسويات'!$C13=المنصرف!$C$3:$C$717)*1,المنصرف!$J$3:$J$717) -> 0 | CL13: =SUMPRODUCT((CL$3=المنصرف!$E$3:$E$717)*1,('بيان العهد والتسويات'!$C13=المنصرف!$C$3:$C$717)*1,المنصرف!$G$3:$G$717) -> 0 | CM13: =SUMPRODUCT((CL$3=المنصرف!$E$3:$E$717)*1,('بيان العهد والتسويات'!$C13=المنصرف!$C$3:$C$717)*1,المنصرف!$J$3:$J$717) -> 0 | CN13: =SUMPRODUCT((CN$3=المنصرف!$E$3:$E$717)*1,('بيان العهد والتسويات'!$C13=المنصرف!$C$3:$C$717)*1,المنصرف!$G$3:$G$717) -> 0 | CO13: =SUMPRODUCT((CN$3=المنصرف!$E$3:$E$717)*1,('بيان العهد والتسويات'!$C13=المنصرف!$C$3:$C$717)*1,المنصرف!$J$3:$J$717) -> 0 | CP13: =SUMPRODUCT((CP$3=المنصرف!$E$3:$E$717)*1,('بيان العهد والتسويات'!$C13=المنصرف!$C$3:$C$717)*1,المنصرف!$G$3:$G$717) -> 0 | CQ13: =SUMPRODUCT((CP$3=المنصرف!$E$3:$E$717)*1,('بيان العهد والتسويات'!$C13=المنصرف!$C$3:$C$717)*1,المنصرف!$J$3:$J$717) -> 0 | CR13: =SUMPRODUCT((CR$3=المنصرف!$E$3:$E$717)*1,('بيان العهد والتسويات'!$C13=المنصرف!$C$3:$C$717)*1,المنصرف!$G$3:$G$717) -> 0 | CS13: =SUMPRODUCT((CR$3=المنصرف!$E$3:$E$717)*1,('بيان العهد والتسويات'!$C13=المنصرف!$C$3:$C$717)*1,المنصرف!$J$3:$J$717) -> 0 | CT13: =SUMPRODUCT((CT$3=المنصرف!$E$3:$E$717)*1,('بيان العهد والتسويات'!$C13=المنصرف!$C$3:$C$717)*1,المنصرف!$G$3:$G$717) -> 0 | CU13: =SUMPRODUCT((CT$3=المنصرف!$E$3:$E$717)*1,('بيان العهد والتسويات'!$C13=المنصرف!$C$3:$C$717)*1,المنصرف!$J$3:$J$717) -> 0 | CV13: =SUMPRODUCT((CV$3=المنصرف!$E$3:$E$717)*1,('بيان العهد والتسويات'!$C13=المنصرف!$C$3:$C$717)*1,المنصرف!$G$3:$G$717) -> 0 | CW13: =SUMPRODUCT((CV$3=المنصرف!$E$3:$E$717)*1,('بيان العهد والتسويات'!$C13=المنصرف!$C$3:$C$717)*1,المنصرف!$J$3:$J$717) -> 0 | CX13: =SUMPRODUCT((CX$3=المنصرف!$E$3:$E$717)*1,('بيان العهد والتسويات'!$C13=المنصرف!$C$3:$C$717)*1,المنصرف!$G$3:$G$717) -> 0 | CY13: =SUMPRODUCT((CX$3=المنصرف!$E$3:$E$717)*1,('بيان العهد والتسويات'!$C13=المنصرف!$C$3:$C$717)*1,المنصرف!$J$3:$J$717) -> 0 | CZ13: =SUMPRODUCT((CZ$3=المنصرف!$E$3:$E$717)*1,('بيان العهد والتسويات'!$C13=المنصرف!$C$3:$C$717)*1,المنصرف!$G$3:$G$717) -> 0 | DA13: =SUMPRODUCT((CZ$3=المنصرف!$E$3:$E$717)*1,('بيان العهد والتسويات'!$C13=المنصرف!$C$3:$C$717)*1,المنصرف!$J$3:$J$717) -> 0
C14: 2025-07-08 | D14: =SUMPRODUCT(($D$3=المنصرف!$E$3:$E$717)*1,('بيان العهد والتسويات'!$C14=المنصرف!$C$3:$C$717)*1,المنصرف!$G$3:$G$717) -> 6000 | E14: =SUMPRODUCT(($D$3=المنصرف!$E$3:$E$717)*1,('بيان العهد والتسويات'!$C14=المنصرف!$C$3:$C$717)*1,المنصرف!$J$3:$J$717) -> 0 | F14: =SUMPRODUCT(($F$3=المنصرف!$E$3:$E$717)*1,('بيان العهد والتسويات'!$C14=المنصرف!$C$3:$C$717)*1,المنصرف!$G$3:$G$717) -> 0 | G14: =SUMPRODUCT(($F$3=المنصرف!$E$3:$E$717)*1,('بيان العهد والتسويات'!$C14=المنصرف!$C$3:$C$717)*1,المنصرف!$J$3:$J$717) -> 0 | H14: =SUMPRODUCT(($H$3=المنصرف!$E$3:$E$717)*1,('بيان العهد والتسويات'!$C14=المنصرف!$C$3:$C$717)*1,المنصرف!$G$3:$G$717) -> 0 | I14: =SUMPRODUCT(($H$3=المنصرف!$E$3:$E$717)*1,('بيان العهد والتسويات'!$C14=المنصرف!$C$3:$C$717)*1,المنصرف!$J$3:$J$717) -> 0 | J14: =SUMPRODUCT(($J$3=المنصرف!$E$3:$E$717)*1,('بيان العهد والتسويات'!$C14=المنصرف!$C$3:$C$717)*1,المنصرف!$G$3:$G$717) -> 0 | K14: =SUMPRODUCT(($J$3=المنصرف!$E$3:$E$717)*1,('بيان العهد والتسويات'!$C14=المنصرف!$C$3:$C$717)*1,المنصرف!$J$3:$J$717) -> 0 | L14: =SUMPRODUCT(($L$3=المنصرف!$E$3:$E$717)*1,('بيان العهد والتسويات'!$C14=المنصرف!$C$3:$C$717)*1,المنصرف!$G$3:$G$717) -> 0 | M14: =SUMPRODUCT(($L$3=المنصرف!$E$3:$E$717)*1,('بيان العهد والتسويات'!$C14=المنصرف!$C$3:$C$717)*1,المنصرف!$J$3:$J$717) -> 0 | N14: =SUMPRODUCT(($N$3=المنصرف!$E$3:$E$717)*1,('بيان العهد والتسويات'!$C14=المنصرف!$C$3:$C$717)*1,المنصرف!$G$3:$G$717) -> 0 | O14: =SUMPRODUCT(($N$3=المنصرف!$E$3:$E$717)*1,('بيان العهد والتسويات'!$C14=المنصرف!$C$3:$C$717)*1,المنصرف!$J$3:$J$717) -> 0 | P14: =SUMPRODUCT(($P$3=المنصرف!$E$3:$E$717)*1,('بيان العهد والتسويات'!$C14=المنصرف!$C$3:$C$717)*1,المنصرف!$G$3:$G$717) -> 0 | Q14: =SUMPRODUCT(($P$3=المنصرف!$E$3:$E$717)*1,('بيان العهد والتسويات'!$C14=المنصرف!$C$3:$C$717)*1,المنصرف!$J$3:$J$717) -> 0 | R14: =SUMPRODUCT(($R$3=المنصرف!$E$3:$E$717)*1,('بيان العهد والتسويات'!$C14=المنصرف!$C$3:$C$717)*1,المنصرف!$G$3:$G$717) -> 0 | S14: =SUMPRODUCT(($R$3=المنصرف!$E$3:$E$717)*1,('بيان العهد والتسويات'!$C14=المنصرف!$C$3:$C$717)*1,المنصرف!$J$3:$J$717) -> 0 | T14: =SUMPRODUCT(($T$3=المنصرف!$E$3:$E$717)*1,('بيان العهد والتسويات'!$C14=المنصرف!$C$3:$C$717)*1,المنصرف!$G$3:$G$717) -> 0 | U14: =SUMPRODUCT(($T$3=المنصرف!$E$3:$E$717)*1,('بيان العهد والتسويات'!$C14=المنصرف!$C$3:$C$717)*1,المنصرف!$J$3:$J$717) -> 0 | V14: =SUMPRODUCT(($V$3=المنصرف!$E$3:$E$717)*1,('بيان العهد والتسويات'!$C14=المنصرف!$C$3:$C$717)*1,المنصرف!$G$3:$G$717) -> 0 | W14: =SUMPRODUCT(($V$3=المنصرف!$E$3:$E$717)*1,('بيان العهد والتسويات'!$C14=المنصرف!$C$3:$C$717)*1,المنصرف!$J$3:$J$717) -> 0 | X14: =SUMPRODUCT(($X$3=المنصرف!$E$3:$E$717)*1,('بيان العهد والتسويات'!$C14=المنصرف!$C$3:$C$717)*1,المنصرف!$G$3:$G$717) -> 0 | Y14: =SUMPRODUCT(($X$3=المنصرف!$E$3:$E$717)*1,('بيان العهد والتسويات'!$C14=المنصرف!$C$3:$C$717)*1,المنصرف!$J$3:$J$717) -> 0 | Z14: =SUMPRODUCT(($Z$3=المنصرف!$E$3:$E$717)*1,('بيان العهد والتسويات'!$C14=المنصرف!$C$3:$C$717)*1,المنصرف!$G$3:$G$717) -> 0 | AA14: =SUMPRODUCT(($Z$3=المنصرف!$E$3:$E$717)*1,('بيان العهد والتسويات'!$C14=المنصرف!$C$3:$C$717)*1,المنصرف!$J$3:$J$717) -> 0 | AB14: =SUMPRODUCT(($AB$3=المنصرف!$E$3:$E$717)*1,('بيان العهد والتسويات'!$C14=المنصرف!$C$3:$C$717)*1,المنصرف!$G$3:$G$717) -> 0 | AC14: =SUMPRODUCT(($AB$3=المنصرف!$E$3:$E$717)*1,('بيان العهد والتسويات'!$C14=المنصرف!$C$3:$C$717)*1,المنصرف!$J$3:$J$717) -> 0 | AD14: =SUMPRODUCT(($AD$3=المنصرف!$E$3:$E$717)*1,('بيان العهد والتسويات'!$C14=المنصرف!$C$3:$C$717)*1,المنصرف!$G$3:$G$717) -> 0 | AE14: =SUMPRODUCT(($AD$3=المنصرف!$E$3:$E$717)*1,('بيان العهد والتسويات'!$C14=المنصرف!$C$3:$C$717)*1,المنصرف!$J$3:$J$717) -> 0 | AF14: =SUMPRODUCT(($AF$3=المنصرف!$E$3:$E$717)*1,('بيان العهد والتسويات'!$C14=المنصرف!$C$3:$C$717)*1,المنصرف!$G$3:$G$717) -> 0 | AG14: =SUMPRODUCT(($AF$3=المنصرف!$E$3:$E$717)*1,('بيان العهد والتسويات'!$C14=المنصرف!$C$3:$C$717)*1,المنصرف!$J$3:$J$717) -> 0 | AH14: =SUMPRODUCT(($AH$3=المنصرف!$E$3:$E$717)*1,('بيان العهد والتسويات'!$C14=المنصرف!$C$3:$C$717)*1,المنصرف!$G$3:$G$717) -> 0 | AI14: =SUMPRODUCT(($AH$3=المنصرف!$E$3:$E$717)*1,('بيان العهد والتسويات'!$C14=المنصرف!$C$3:$C$717)*1,المنصرف!$J$3:$J$717) -> 0 | AJ14: =SUMPRODUCT((AJ$3=المنصرف!$E$3:$E$717)*1,('بيان العهد والتسويات'!$C14=المنصرف!$C$3:$C$717)*1,المنصرف!$G$3:$G$717) -> 0 | AK14: =SUMPRODUCT((AJ$3=المنصرف!$E$3:$E$717)*1,('بيان العهد والتسويات'!$C14=المنصرف!$C$3:$C$717)*1,المنصرف!$J$3:$J$717) -> 0 | AL14: =SUMPRODUCT((AL$3=المنصرف!$E$3:$E$717)*1,('بيان العهد والتسويات'!$C14=المنصرف!$C$3:$C$717)*1,المنصرف!$G$3:$G$717) -> 0 | AM14: =SUMPRODUCT((AL$3=المنصرف!$E$3:$E$717)*1,('بيان العهد والتسويات'!$C14=المنصرف!$C$3:$C$717)*1,المنصرف!$J$3:$J$717) -> 0 | AN14: =SUMPRODUCT((AN$3=المنصرف!$E$3:$E$717)*1,('بيان العهد والتسويات'!$C14=المنصرف!$C$3:$C$717)*1,المنصرف!$G$3:$G$717) -> 0 | AO14: =SUMPRODUCT((AN$3=المنصرف!$E$3:$E$717)*1,('بيان العهد والتسويات'!$C14=المنصرف!$C$3:$C$717)*1,المنصرف!$J$3:$J$717) -> 0 | AP14: =SUMPRODUCT((AP$3=المنصرف!$E$3:$E$717)*1,('بيان العهد والتسويات'!$C14=المنصرف!$C$3:$C$717)*1,المنصرف!$G$3:$G$717) -> 0 | AQ14: =SUMPRODUCT((AP$3=المنصرف!$E$3:$E$717)*1,('بيان العهد والتسويات'!$C14=المنصرف!$C$3:$C$717)*1,المنصرف!$J$3:$J$717) -> 0 | AR14: =SUMPRODUCT((AR$3=المنصرف!$E$3:$E$717)*1,('بيان العهد والتسويات'!$C14=المنصرف!$C$3:$C$717)*1,المنصرف!$G$3:$G$717) -> 0 | AS14: =SUMPRODUCT((AR$3=المنصرف!$E$3:$E$717)*1,('بيان العهد والتسويات'!$C14=المنصرف!$C$3:$C$717)*1,المنصرف!$J$3:$J$717) -> 0 | AT14: =SUMPRODUCT((AT$3=المنصرف!$E$3:$E$717)*1,('بيان العهد والتسويات'!$C14=المنصرف!$C$3:$C$717)*1,المنصرف!$G$3:$G$717) -> 0 | AU14: =SUMPRODUCT((AT$3=المنصرف!$E$3:$E$717)*1,('بيان العهد والتسويات'!$C14=المنصرف!$C$3:$C$717)*1,المنصرف!$J$3:$J$717) -> 0 | AV14: =SUMPRODUCT((AV$3=المنصرف!$E$3:$E$717)*1,('بيان العهد والتسويات'!$C14=المنصرف!$C$3:$C$717)*1,المنصرف!$G$3:$G$717) -> 0 | AW14: =SUMPRODUCT((AV$3=المنصرف!$E$3:$E$717)*1,('بيان العهد والتسويات'!$C14=المنصرف!$C$3:$C$717)*1,المنصرف!$J$3:$J$717) -> 0 | AX14: =SUMPRODUCT((AX$3=المنصرف!$E$3:$E$717)*1,('بيان العهد والتسويات'!$C14=المنصرف!$C$3:$C$717)*1,المنصرف!$G$3:$G$717) -> 0 | AY14: =SUMPRODUCT((AX$3=المنصرف!$E$3:$E$717)*1,('بيان العهد والتسويات'!$C14=المنصرف!$C$3:$C$717)*1,المنصرف!$J$3:$J$717) -> 0 | AZ14: =SUMPRODUCT((AZ$3=المنصرف!$E$3:$E$717)*1,('بيان العهد والتسويات'!$C14=المنصرف!$C$3:$C$717)*1,المنصرف!$G$3:$G$717) -> 0 | BA14: =SUMPRODUCT((AZ$3=المنصرف!$E$3:$E$717)*1,('بيان العهد والتسويات'!$C14=المنصرف!$C$3:$C$717)*1,المنصرف!$J$3:$J$717) -> 0 | BB14: =SUMPRODUCT((BB$3=المنصرف!$E$3:$E$717)*1,('بيان العهد والتسويات'!$C14=المنصرف!$C$3:$C$717)*1,المنصرف!$G$3:$G$717) -> 0 | BC14: =SUMPRODUCT((BB$3=المنصرف!$E$3:$E$717)*1,('بيان العهد والتسويات'!$C14=المنصرف!$C$3:$C$717)*1,المنصرف!$J$3:$J$717) -> 0 | BD14: =SUMPRODUCT((BD$3=المنصرف!$E$3:$E$717)*1,('بيان العهد والتسويات'!$C14=المنصرف!$C$3:$C$717)*1,المنصرف!$G$3:$G$717) -> 0 | BE14: =SUMPRODUCT((BD$3=المنصرف!$E$3:$E$717)*1,('بيان العهد والتسويات'!$C14=المنصرف!$C$3:$C$717)*1,المنصرف!$J$3:$J$717) -> 0 | BF14: =SUMPRODUCT((BF$3=المنصرف!$E$3:$E$717)*1,('بيان العهد والتسويات'!$C14=المنصرف!$C$3:$C$717)*1,المنصرف!$G$3:$G$717) -> 0 | BG14: =SUMPRODUCT((BF$3=المنصرف!$E$3:$E$717)*1,('بيان العهد والتسويات'!$C14=المنصرف!$C$3:$C$717)*1,المنصرف!$J$3:$J$717) -> 0 | BH14: =SUMPRODUCT((BH$3=المنصرف!$E$3:$E$717)*1,('بيان العهد والتسويات'!$C14=المنصرف!$C$3:$C$717)*1,المنصرف!$G$3:$G$717) -> 0 | BI14: =SUMPRODUCT((BH$3=المنصرف!$E$3:$E$717)*1,('بيان العهد والتسويات'!$C14=المنصرف!$C$3:$C$717)*1,المنصرف!$J$3:$J$717) -> 0 | BJ14: =SUMPRODUCT((BJ$3=المنصرف!$E$3:$E$717)*1,('بيان العهد والتسويات'!$C14=المنصرف!$C$3:$C$717)*1,المنصرف!$G$3:$G$717) -> 0 | BK14: =SUMPRODUCT((BJ$3=المنصرف!$E$3:$E$717)*1,('بيان العهد والتسويات'!$C14=المنصرف!$C$3:$C$717)*1,المنصرف!$J$3:$J$717) -> 0 | BL14: =SUMPRODUCT((BL$3=المنصرف!$E$3:$E$717)*1,('بيان العهد والتسويات'!$C14=المنصرف!$C$3:$C$717)*1,المنصرف!$G$3:$G$717) -> 0 | BM14: =SUMPRODUCT((BL$3=المنصرف!$E$3:$E$717)*1,('بيان العهد والتسويات'!$C14=المنصرف!$C$3:$C$717)*1,المنصرف!$J$3:$J$717) -> 0 | BN14: =SUMPRODUCT((BN$3=المنصرف!$E$3:$E$717)*1,('بيان العهد والتسويات'!$C14=المنصرف!$C$3:$C$717)*1,المنصرف!$G$3:$G$717) -> 0 | BO14: =SUMPRODUCT((BN$3=المنصرف!$E$3:$E$717)*1,('بيان العهد والتسويات'!$C14=المنصرف!$C$3:$C$717)*1,المنصرف!$J$3:$J$717) -> 0 | BP14: =SUMPRODUCT((BP$3=المنصرف!$E$3:$E$717)*1,('بيان العهد والتسويات'!$C14=المنصرف!$C$3:$C$717)*1,المنصرف!$G$3:$G$717) -> 0 | BQ14: =SUMPRODUCT((BP$3=المنصرف!$E$3:$E$717)*1,('بيان العهد والتسويات'!$C14=المنصرف!$C$3:$C$717)*1,المنصرف!$J$3:$J$717) -> 0 | BR14: =SUMPRODUCT((BR$3=المنصرف!$E$3:$E$717)*1,('بيان العهد والتسويات'!$C14=المنصرف!$C$3:$C$717)*1,المنصرف!$G$3:$G$717) -> 0 | BS14: =SUMPRODUCT((BR$3=المنصرف!$E$3:$E$717)*1,('بيان العهد والتسويات'!$C14=المنصرف!$C$3:$C$717)*1,المنصرف!$J$3:$J$717) -> 0 | BT14: =SUMPRODUCT((BT$3=المنصرف!$E$3:$E$717)*1,('بيان العهد والتسويات'!$C14=المنصرف!$C$3:$C$717)*1,المنصرف!$G$3:$G$717) -> 0 | BU14: =SUMPRODUCT((BT$3=المنصرف!$E$3:$E$717)*1,('بيان العهد والتسويات'!$C14=المنصرف!$C$3:$C$717)*1,المنصرف!$J$3:$J$717) -> 0 | BV14: =SUMPRODUCT((BV$3=المنصرف!$E$3:$E$717)*1,('بيان العهد والتسويات'!$C14=المنصرف!$C$3:$C$717)*1,المنصرف!$G$3:$G$717) -> 0 | BW14: =SUMPRODUCT((BV$3=المنصرف!$E$3:$E$717)*1,('بيان العهد والتسويات'!$C14=المنصرف!$C$3:$C$717)*1,المنصرف!$J$3:$J$717) -> 0 | BX14: =SUMPRODUCT((BX$3=المنصرف!$E$3:$E$717)*1,('بيان العهد والتسويات'!$C14=المنصرف!$C$3:$C$717)*1,المنصرف!$G$3:$G$717) -> 0 | BY14: =SUMPRODUCT((BX$3=المنصرف!$E$3:$E$717)*1,('بيان العهد والتسويات'!$C14=المنصرف!$C$3:$C$717)*1,المنصرف!$J$3:$J$717) -> 0 | BZ14: =SUMPRODUCT((BZ$3=المنصرف!$E$3:$E$717)*1,('بيان العهد والتسويات'!$C14=المنصرف!$C$3:$C$717)*1,المنصرف!$G$3:$G$717) -> 0 | CA14: =SUMPRODUCT((BZ$3=المنصرف!$E$3:$E$717)*1,('بيان العهد والتسويات'!$C14=المنصرف!$C$3:$C$717)*1,المنصرف!$J$3:$J$717) -> 0 | CB14: =SUMPRODUCT((CB$3=المنصرف!$E$3:$E$717)*1,('بيان العهد والتسويات'!$C14=المنصرف!$C$3:$C$717)*1,المنصرف!$G$3:$G$717) -> 0 | CC14: =SUMPRODUCT((CB$3=المنصرف!$E$3:$E$717)*1,('بيان العهد والتسويات'!$C14=المنصرف!$C$3:$C$717)*1,المنصرف!$J$3:$J$717) -> 0 | CD14: =SUMPRODUCT((CD$3=المنصرف!$E$3:$E$717)*1,('بيان العهد والتسويات'!$C14=المنصرف!$C$3:$C$717)*1,المنصرف!$G$3:$G$717) -> 0 | CE14: =SUMPRODUCT((CD$3=المنصرف!$E$3:$E$717)*1,('بيان العهد والتسويات'!$C14=المنصرف!$C$3:$C$717)*1,المنصرف!$J$3:$J$717) -> 0 | CF14: =SUMPRODUCT((CF$3=المنصرف!$E$3:$E$717)*1,('بيان العهد والتسويات'!$C14=المنصرف!$C$3:$C$717)*1,المنصرف!$G$3:$G$717) -> 0 | CG14: =SUMPRODUCT((CF$3=المنصرف!$E$3:$E$717)*1,('بيان العهد والتسويات'!$C14=المنصرف!$C$3:$C$717)*1,المنصرف!$J$3:$J$717) -> 0 | CH14: =SUMPRODUCT((CH$3=المنصرف!$E$3:$E$717)*1,('بيان العهد والتسويات'!$C14=المنصرف!$C$3:$C$717)*1,المنصرف!$G$3:$G$717) -> 0 | CI14: =SUMPRODUCT((CH$3=المنصرف!$E$3:$E$717)*1,('بيان العهد والتسويات'!$C14=المنصرف!$C$3:$C$717)*1,المنصرف!$J$3:$J$717) -> 0 | CJ14: =SUMPRODUCT((CJ$3=المنصرف!$E$3:$E$717)*1,('بيان العهد والتسويات'!$C14=المنصرف!$C$3:$C$717)*1,المنصرف!$G$3:$G$717) -> 0 | CK14: =SUMPRODUCT((CJ$3=المنصرف!$E$3:$E$717)*1,('بيان العهد والتسويات'!$C14=المنصرف!$C$3:$C$717)*1,المنصرف!$J$3:$J$717) -> 0 | CL14: =SUMPRODUCT((CL$3=المنصرف!$E$3:$E$717)*1,('بيان العهد والتسويات'!$C14=المنصرف!$C$3:$C$717)*1,المنصرف!$G$3:$G$717) -> 0 | CM14: =SUMPRODUCT((CL$3=المنصرف!$E$3:$E$717)*1,('بيان العهد والتسويات'!$C14=المنصرف!$C$3:$C$717)*1,المنصرف!$J$3:$J$717) -> 0 | CN14: =SUMPRODUCT((CN$3=المنصرف!$E$3:$E$717)*1,('بيان العهد والتسويات'!$C14=المنصرف!$C$3:$C$717)*1,المنصرف!$G$3:$G$717) -> 0 | CO14: =SUMPRODUCT((CN$3=المنصرف!$E$3:$E$717)*1,('بيان العهد والتسويات'!$C14=المنصرف!$C$3:$C$717)*1,المنصرف!$J$3:$J$717) -> 0 | CP14: =SUMPRODUCT((CP$3=المنصرف!$E$3:$E$717)*1,('بيان العهد والتسويات'!$C14=المنصرف!$C$3:$C$717)*1,المنصرف!$G$3:$G$717) -> 0 | CQ14: =SUMPRODUCT((CP$3=المنصرف!$E$3:$E$717)*1,('بيان العهد والتسويات'!$C14=المنصرف!$C$3:$C$717)*1,المنصرف!$J$3:$J$717) -> 0 | CR14: =SUMPRODUCT((CR$3=المنصرف!$E$3:$E$717)*1,('بيان العهد والتسويات'!$C14=المنصرف!$C$3:$C$717)*1,المنصرف!$G$3:$G$717) -> 0 | CS14: =SUMPRODUCT((CR$3=المنصرف!$E$3:$E$717)*1,('بيان العهد والتسويات'!$C14=المنصرف!$C$3:$C$717)*1,المنصرف!$J$3:$J$717) -> 0 | CT14: =SUMPRODUCT((CT$3=المنصرف!$E$3:$E$717)*1,('بيان العهد والتسويات'!$C14=المنصرف!$C$3:$C$717)*1,المنصرف!$G$3:$G$717) -> 0 | CU14: =SUMPRODUCT((CT$3=المنصرف!$E$3:$E$717)*1,('بيان العهد والتسويات'!$C14=المنصرف!$C$3:$C$717)*1,المنصرف!$J$3:$J$717) -> 0 | CV14: =SUMPRODUCT((CV$3=المنصرف!$E$3:$E$717)*1,('بيان العهد والتسويات'!$C14=المنصرف!$C$3:$C$717)*1,المنصرف!$G$3:$G$717) -> 0 | CW14: =SUMPRODUCT((CV$3=المنصرف!$E$3:$E$717)*1,('بيان العهد والتسويات'!$C14=المنصرف!$C$3:$C$717)*1,المنصرف!$J$3:$J$717) -> 0 | CX14: =SUMPRODUCT((CX$3=المنصرف!$E$3:$E$717)*1,('بيان العهد والتسويات'!$C14=المنصرف!$C$3:$C$717)*1,المنصرف!$G$3:$G$717) -> 0 | CY14: =SUMPRODUCT((CX$3=المنصرف!$E$3:$E$717)*1,('بيان العهد والتسويات'!$C14=المنصرف!$C$3:$C$717)*1,المنصرف!$J$3:$J$717) -> 0 | CZ14: =SUMPRODUCT((CZ$3=المنصرف!$E$3:$E$717)*1,('بيان العهد والتسويات'!$C14=المنصرف!$C$3:$C$717)*1,المنصرف!$G$3:$G$717) -> 0 | DA14: =SUMPRODUCT((CZ$3=المنصرف!$E$3:$E$717)*1,('بيان العهد والتسويات'!$C14=المنصرف!$C$3:$C$717)*1,المنصرف!$J$3:$J$717) -> 0
C15: 2025-07-09 | D15: =SUMPRODUCT(($D$3=المنصرف!$E$3:$E$717)*1,('بيان العهد والتسويات'!$C15=المنصرف!$C$3:$C$717)*1,المنصرف!$G$3:$G$717) -> 0 | E15: =SUMPRODUCT(($D$3=المنصرف!$E$3:$E$717)*1,('بيان العهد والتسويات'!$C15=المنصرف!$C$3:$C$717)*1,المنصرف!$J$3:$J$717) -> 136246.63 | F15: =SUMPRODUCT(($F$3=المنصرف!$E$3:$E$717)*1,('بيان العهد والتسويات'!$C15=المنصرف!$C$3:$C$717)*1,المنصرف!$G$3:$G$717) -> 0 | G15: =SUMPRODUCT(($F$3=المنصرف!$E$3:$E$717)*1,('بيان العهد والتسويات'!$C15=المنصرف!$C$3:$C$717)*1,المنصرف!$J$3:$J$717) -> 0 | H15: =SUMPRODUCT(($H$3=المنصرف!$E$3:$E$717)*1,('بيان العهد والتسويات'!$C15=المنصرف!$C$3:$C$717)*1,المنصرف!$G$3:$G$717) -> 0 | I15: =SUMPRODUCT(($H$3=المنصرف!$E$3:$E$717)*1,('بيان العهد والتسويات'!$C15=المنصرف!$C$3:$C$717)*1,المنصرف!$J$3:$J$717) -> 0 | J15: =SUMPRODUCT(($J$3=المنصرف!$E$3:$E$717)*1,('بيان العهد والتسويات'!$C15=المنصرف!$C$3:$C$717)*1,المنصرف!$G$3:$G$717) -> 0 | K15: =SUMPRODUCT(($J$3=المنصرف!$E$3:$E$717)*1,('بيان العهد والتسويات'!$C15=المنصرف!$C$3:$C$717)*1,المنصرف!$J$3:$J$717) -> 0 | L15: =SUMPRODUCT(($L$3=المنصرف!$E$3:$E$717)*1,('بيان العهد والتسويات'!$C15=المنصرف!$C$3:$C$717)*1,المنصرف!$G$3:$G$717) -> 0 | M15: =SUMPRODUCT(($L$3=المنصرف!$E$3:$E$717)*1,('بيان العهد والتسويات'!$C15=المنصرف!$C$3:$C$717)*1,المنصرف!$J$3:$J$717) -> 0 | N15: =SUMPRODUCT(($N$3=المنصرف!$E$3:$E$717)*1,('بيان العهد والتسويات'!$C15=المنصرف!$C$3:$C$717)*1,المنصرف!$G$3:$G$717) -> 0 | O15: =SUMPRODUCT(($N$3=المنصرف!$E$3:$E$717)*1,('بيان العهد والتسويات'!$C15=المنصرف!$C$3:$C$717)*1,المنصرف!$J$3:$J$717) -> 0 | P15: =SUMPRODUCT(($P$3=المنصرف!$E$3:$E$717)*1,('بيان العهد والتسويات'!$C15=المنصرف!$C$3:$C$717)*1,المنصرف!$G$3:$G$717) -> 0 | Q15: =SUMPRODUCT(($P$3=المنصرف!$E$3:$E$717)*1,('بيان العهد والتسويات'!$C15=المنصرف!$C$3:$C$717)*1,المنصرف!$J$3:$J$717) -> 0 | R15: =SUMPRODUCT(($R$3=المنصرف!$E$3:$E$717)*1,('بيان العهد والتسويات'!$C15=المنصرف!$C$3:$C$717)*1,المنصرف!$G$3:$G$717) -> 0 | S15: =SUMPRODUCT(($R$3=المنصرف!$E$3:$E$717)*1,('بيان العهد والتسويات'!$C15=المنصرف!$C$3:$C$717)*1,المنصرف!$J$3:$J$717) -> 0 | T15: =SUMPRODUCT(($T$3=المنصرف!$E$3:$E$717)*1,('بيان العهد والتسويات'!$C15=المنصرف!$C$3:$C$717)*1,المنصرف!$G$3:$G$717) -> 0 | U15: =SUMPRODUCT(($T$3=المنصرف!$E$3:$E$717)*1,('بيان العهد والتسويات'!$C15=المنصرف!$C$3:$C$717)*1,المنصرف!$J$3:$J$717) -> 0 | V15: =SUMPRODUCT(($V$3=المنصرف!$E$3:$E$717)*1,('بيان العهد والتسويات'!$C15=المنصرف!$C$3:$C$717)*1,المنصرف!$G$3:$G$717) -> 0 | W15: =SUMPRODUCT(($V$3=المنصرف!$E$3:$E$717)*1,('بيان العهد والتسويات'!$C15=المنصرف!$C$3:$C$717)*1,المنصرف!$J$3:$J$717) -> 0 | X15: =SUMPRODUCT(($X$3=المنصرف!$E$3:$E$717)*1,('بيان العهد والتسويات'!$C15=المنصرف!$C$3:$C$717)*1,المنصرف!$G$3:$G$717) -> 0 | Y15: =SUMPRODUCT(($X$3=المنصرف!$E$3:$E$717)*1,('بيان العهد والتسويات'!$C15=المنصرف!$C$3:$C$717)*1,المنصرف!$J$3:$J$717) -> 0 | Z15: =SUMPRODUCT(($Z$3=المنصرف!$E$3:$E$717)*1,('بيان العهد والتسويات'!$C15=المنصرف!$C$3:$C$717)*1,المنصرف!$G$3:$G$717) -> 0 | AA15: =SUMPRODUCT(($Z$3=المنصرف!$E$3:$E$717)*1,('بيان العهد والتسويات'!$C15=المنصرف!$C$3:$C$717)*1,المنصرف!$J$3:$J$717) -> 0 | AB15: =SUMPRODUCT(($AB$3=المنصرف!$E$3:$E$717)*1,('بيان العهد والتسويات'!$C15=المنصرف!$C$3:$C$717)*1,المنصرف!$G$3:$G$717) -> 0 | AC15: =SUMPRODUCT(($AB$3=المنصرف!$E$3:$E$717)*1,('بيان العهد والتسويات'!$C15=المنصرف!$C$3:$C$717)*1,المنصرف!$J$3:$J$717) -> 0 | AD15: =SUMPRODUCT(($AD$3=المنصرف!$E$3:$E$717)*1,('بيان العهد والتسويات'!$C15=المنصرف!$C$3:$C$717)*1,المنصرف!$G$3:$G$717) -> 0 | AE15: =SUMPRODUCT(($AD$3=المنصرف!$E$3:$E$717)*1,('بيان العهد والتسويات'!$C15=المنصرف!$C$3:$C$717)*1,المنصرف!$J$3:$J$717) -> 0 | AF15: =SUMPRODUCT(($AF$3=المنصرف!$E$3:$E$717)*1,('بيان العهد والتسويات'!$C15=المنصرف!$C$3:$C$717)*1,المنصرف!$G$3:$G$717) -> 0 | AG15: =SUMPRODUCT(($AF$3=المنصرف!$E$3:$E$717)*1,('بيان العهد والتسويات'!$C15=المنصرف!$C$3:$C$717)*1,المنصرف!$J$3:$J$717) -> 0 | AH15: =SUMPRODUCT(($AH$3=المنصرف!$E$3:$E$717)*1,('بيان العهد والتسويات'!$C15=المنصرف!$C$3:$C$717)*1,المنصرف!$G$3:$G$717) -> 0 | AI15: =SUMPRODUCT(($AH$3=المنصرف!$E$3:$E$717)*1,('بيان العهد والتسويات'!$C15=المنصرف!$C$3:$C$717)*1,المنصرف!$J$3:$J$717) -> 0 | AJ15: =SUMPRODUCT((AJ$3=المنصرف!$E$3:$E$717)*1,('بيان العهد والتسويات'!$C15=المنصرف!$C$3:$C$717)*1,المنصرف!$G$3:$G$717) -> 0 | AK15: =SUMPRODUCT((AJ$3=المنصرف!$E$3:$E$717)*1,('بيان العهد والتسويات'!$C15=المنصرف!$C$3:$C$717)*1,المنصرف!$J$3:$J$717) -> 0 | AL15: =SUMPRODUCT((AL$3=المنصرف!$E$3:$E$717)*1,('بيان العهد والتسويات'!$C15=المنصرف!$C$3:$C$717)*1,المنصرف!$G$3:$G$717) -> 0 | AM15: =SUMPRODUCT((AL$3=المنصرف!$E$3:$E$717)*1,('بيان العهد والتسويات'!$C15=المنصرف!$C$3:$C$717)*1,المنصرف!$J$3:$J$717) -> 0 | AN15: =SUMPRODUCT((AN$3=المنصرف!$E$3:$E$717)*1,('بيان العهد والتسويات'!$C15=المنصرف!$C$3:$C$717)*1,المنصرف!$G$3:$G$717) -> 0 | AO15: =SUMPRODUCT((AN$3=المنصرف!$E$3:$E$717)*1,('بيان العهد والتسويات'!$C15=المنصرف!$C$3:$C$717)*1,المنصرف!$J$3:$J$717) -> 0 | AP15: =SUMPRODUCT((AP$3=المنصرف!$E$3:$E$717)*1,('بيان العهد والتسويات'!$C15=المنصرف!$C$3:$C$717)*1,المنصرف!$G$3:$G$717) -> 0 | AQ15: =SUMPRODUCT((AP$3=المنصرف!$E$3:$E$717)*1,('بيان العهد والتسويات'!$C15=المنصرف!$C$3:$C$717)*1,المنصرف!$J$3:$J$717) -> 0 | AR15: =SUMPRODUCT((AR$3=المنصرف!$E$3:$E$717)*1,('بيان العهد والتسويات'!$C15=المنصرف!$C$3:$C$717)*1,المنصرف!$G$3:$G$717) -> 0 | AS15: =SUMPRODUCT((AR$3=المنصرف!$E$3:$E$717)*1,('بيان العهد والتسويات'!$C15=المنصرف!$C$3:$C$717)*1,المنصرف!$J$3:$J$717) -> 0 | AT15: =SUMPRODUCT((AT$3=المنصرف!$E$3:$E$717)*1,('بيان العهد والتسويات'!$C15=المنصرف!$C$3:$C$717)*1,المنصرف!$G$3:$G$717) -> 0 | AU15: =SUMPRODUCT((AT$3=المنصرف!$E$3:$E$717)*1,('بيان العهد والتسويات'!$C15=المنصرف!$C$3:$C$717)*1,المنصرف!$J$3:$J$717) -> 0 | AV15: =SUMPRODUCT((AV$3=المنصرف!$E$3:$E$717)*1,('بيان العهد والتسويات'!$C15=المنصرف!$C$3:$C$717)*1,المنصرف!$G$3:$G$717) -> 0 | AW15: =SUMPRODUCT((AV$3=المنصرف!$E$3:$E$717)*1,('بيان العهد والتسويات'!$C15=المنصرف!$C$3:$C$717)*1,المنصرف!$J$3:$J$717) -> 0 | AX15: =SUMPRODUCT((AX$3=المنصرف!$E$3:$E$717)*1,('بيان العهد والتسويات'!$C15=المنصرف!$C$3:$C$717)*1,المنصرف!$G$3:$G$717) -> 0 | AY15: =SUMPRODUCT((AX$3=المنصرف!$E$3:$E$717)*1,('بيان العهد والتسويات'!$C15=المنصرف!$C$3:$C$717)*1,المنصرف!$J$3:$J$717) -> 0 | AZ15: =SUMPRODUCT((AZ$3=المنصرف!$E$3:$E$717)*1,('بيان العهد والتسويات'!$C15=المنصرف!$C$3:$C$717)*1,المنصرف!$G$3:$G$717) -> 0 | BA15: =SUMPRODUCT((AZ$3=المنصرف!$E$3:$E$717)*1,('بيان العهد والتسويات'!$C15=المنصرف!$C$3:$C$717)*1,المنصرف!$J$3:$J$717) -> 0 | BB15: =SUMPRODUCT((BB$3=المنصرف!$E$3:$E$717)*1,('بيان العهد والتسويات'!$C15=المنصرف!$C$3:$C$717)*1,المنصرف!$G$3:$G$717) -> 0 | BC15: =SUMPRODUCT((BB$3=المنصرف!$E$3:$E$717)*1,('بيان العهد والتسويات'!$C15=المنصرف!$C$3:$C$717)*1,المنصرف!$J$3:$J$717) -> 0 | BD15: =SUMPRODUCT((BD$3=المنصرف!$E$3:$E$717)*1,('بيان العهد والتسويات'!$C15=المنصرف!$C$3:$C$717)*1,المنصرف!$G$3:$G$717) -> 0 | BE15: =SUMPRODUCT((BD$3=المنصرف!$E$3:$E$717)*1,('بيان العهد والتسويات'!$C15=المنصرف!$C$3:$C$717)*1,المنصرف!$J$3:$J$717) -> 0 | BF15: =SUMPRODUCT((BF$3=المنصرف!$E$3:$E$717)*1,('بيان العهد والتسويات'!$C15=المنصرف!$C$3:$C$717)*1,المنصرف!$G$3:$G$717) -> 0 | BG15: =SUMPRODUCT((BF$3=المنصرف!$E$3:$E$717)*1,('بيان العهد والتسويات'!$C15=المنصرف!$C$3:$C$717)*1,المنصرف!$J$3:$J$717) -> 0 | BH15: =SUMPRODUCT((BH$3=المنصرف!$E$3:$E$717)*1,('بيان العهد والتسويات'!$C15=المنصرف!$C$3:$C$717)*1,المنصرف!$G$3:$G$717) -> 0 | BI15: =SUMPRODUCT((BH$3=المنصرف!$E$3:$E$717)*1,('بيان العهد والتسويات'!$C15=المنصرف!$C$3:$C$717)*1,المنصرف!$J$3:$J$717) -> 0 | BJ15: =SUMPRODUCT((BJ$3=المنصرف!$E$3:$E$717)*1,('بيان العهد والتسويات'!$C15=المنصرف!$C$3:$C$717)*1,المنصرف!$G$3:$G$717) -> 0 | BK15: =SUMPRODUCT((BJ$3=المنصرف!$E$3:$E$717)*1,('بيان العهد والتسويات'!$C15=المنصرف!$C$3:$C$717)*1,المنصرف!$J$3:$J$717) -> 0 | BL15: =SUMPRODUCT((BL$3=المنصرف!$E$3:$E$717)*1,('بيان العهد والتسويات'!$C15=المنصرف!$C$3:$C$717)*1,المنصرف!$G$3:$G$717) -> 0 | BM15: =SUMPRODUCT((BL$3=المنصرف!$E$3:$E$717)*1,('بيان العهد والتسويات'!$C15=المنصرف!$C$3:$C$717)*1,المنصرف!$J$3:$J$717) -> 0 | BN15: =SUMPRODUCT((BN$3=المنصرف!$E$3:$E$717)*1,('بيان العهد والتسويات'!$C15=المنصرف!$C$3:$C$717)*1,المنصرف!$G$3:$G$717) -> 0 | BO15: =SUMPRODUCT((BN$3=المنصرف!$E$3:$E$717)*1,('بيان العهد والتسويات'!$C15=المنصرف!$C$3:$C$717)*1,المنصرف!$J$3:$J$717) -> 0 | BP15: =SUMPRODUCT((BP$3=المنصرف!$E$3:$E$717)*1,('بيان العهد والتسويات'!$C15=المنصرف!$C$3:$C$717)*1,المنصرف!$G$3:$G$717) -> 0 | BQ15: =SUMPRODUCT((BP$3=المنصرف!$E$3:$E$717)*1,('بيان العهد والتسويات'!$C15=المنصرف!$C$3:$C$717)*1,المنصرف!$J$3:$J$717) -> 0 | BR15: =SUMPRODUCT((BR$3=المنصرف!$E$3:$E$717)*1,('بيان العهد والتسويات'!$C15=المنصرف!$C$3:$C$717)*1,المنصرف!$G$3:$G$717) -> 0 | BS15: =SUMPRODUCT((BR$3=المنصرف!$E$3:$E$717)*1,('بيان العهد والتسويات'!$C15=المنصرف!$C$3:$C$717)*1,المنصرف!$J$3:$J$717) -> 0 | BT15: =SUMPRODUCT((BT$3=المنصرف!$E$3:$E$717)*1,('بيان العهد والتسويات'!$C15=المنصرف!$C$3:$C$717)*1,المنصرف!$G$3:$G$717) -> 0 | BU15: =SUMPRODUCT((BT$3=المنصرف!$E$3:$E$717)*1,('بيان العهد والتسويات'!$C15=المنصرف!$C$3:$C$717)*1,المنصرف!$J$3:$J$717) -> 0 | BV15: =SUMPRODUCT((BV$3=المنصرف!$E$3:$E$717)*1,('بيان العهد والتسويات'!$C15=المنصرف!$C$3:$C$717)*1,المنصرف!$G$3:$G$717) -> 0 | BW15: =SUMPRODUCT((BV$3=المنصرف!$E$3:$E$717)*1,('بيان العهد والتسويات'!$C15=المنصرف!$C$3:$C$717)*1,المنصرف!$J$3:$J$717) -> 0 | BX15: =SUMPRODUCT((BX$3=المنصرف!$E$3:$E$717)*1,('بيان العهد والتسويات'!$C15=المنصرف!$C$3:$C$717)*1,المنصرف!$G$3:$G$717) -> 0 | BY15: =SUMPRODUCT((BX$3=المنصرف!$E$3:$E$717)*1,('بيان العهد والتسويات'!$C15=المنصرف!$C$3:$C$717)*1,المنصرف!$J$3:$J$717) -> 0 | BZ15: =SUMPRODUCT((BZ$3=المنصرف!$E$3:$E$717)*1,('بيان العهد والتسويات'!$C15=المنصرف!$C$3:$C$717)*1,المنصرف!$G$3:$G$717) -> 0 | CA15: =SUMPRODUCT((BZ$3=المنصرف!$E$3:$E$717)*1,('بيان العهد والتسويات'!$C15=المنصرف!$C$3:$C$717)*1,المنصرف!$J$3:$J$717) -> 0 | CB15: =SUMPRODUCT((CB$3=المنصرف!$E$3:$E$717)*1,('بيان العهد والتسويات'!$C15=المنصرف!$C$3:$C$717)*1,المنصرف!$G$3:$G$717) -> 0 | CC15: =SUMPRODUCT((CB$3=المنصرف!$E$3:$E$717)*1,('بيان العهد والتسويات'!$C15=المنصرف!$C$3:$C$717)*1,المنصرف!$J$3:$J$717) -> 0 | CD15: =SUMPRODUCT((CD$3=المنصرف!$E$3:$E$717)*1,('بيان العهد والتسويات'!$C15=المنصرف!$C$3:$C$717)*1,المنصرف!$G$3:$G$717) -> 0 | CE15: =SUMPRODUCT((CD$3=المنصرف!$E$3:$E$717)*1,('بيان العهد والتسويات'!$C15=المنصرف!$C$3:$C$717)*1,المنصرف!$J$3:$J$717) -> 0 | CF15: =SUMPRODUCT((CF$3=المنصرف!$E$3:$E$717)*1,('بيان العهد والتسويات'!$C15=المنصرف!$C$3:$C$717)*1,المنصرف!$G$3:$G$717) -> 0 | CG15: =SUMPRODUCT((CF$3=المنصرف!$E$3:$E$717)*1,('بيان العهد والتسويات'!$C15=المنصرف!$C$3:$C$717)*1,المنصرف!$J$3:$J$717) -> 0 | CH15: =SUMPRODUCT((CH$3=المنصرف!$E$3:$E$717)*1,('بيان العهد والتسويات'!$C15=المنصرف!$C$3:$C$717)*1,المنصرف!$G$3:$G$717) -> 0 | CI15: =SUMPRODUCT((CH$3=المنصرف!$E$3:$E$717)*1,('بيان العهد والتسويات'!$C15=المنصرف!$C$3:$C$717)*1,المنصرف!$J$3:$J$717) -> 0 | CJ15: =SUMPRODUCT((CJ$3=المنصرف!$E$3:$E$717)*1,('بيان العهد والتسويات'!$C15=المنصرف!$C$3:$C$717)*1,المنصرف!$G$3:$G$717) -> 0 | CK15: =SUMPRODUCT((CJ$3=المنصرف!$E$3:$E$717)*1,('بيان العهد والتسويات'!$C15=المنصرف!$C$3:$C$717)*1,المنصرف!$J$3:$J$717) -> 0 | CL15: =SUMPRODUCT((CL$3=المنصرف!$E$3:$E$717)*1,('بيان العهد والتسويات'!$C15=المنصرف!$C$3:$C$717)*1,المنصرف!$G$3:$G$717) -> 0 | CM15: =SUMPRODUCT((CL$3=المنصرف!$E$3:$E$717)*1,('بيان العهد والتسويات'!$C15=المنصرف!$C$3:$C$717)*1,المنصرف!$J$3:$J$717) -> 0 | CN15: =SUMPRODUCT((CN$3=المنصرف!$E$3:$E$717)*1,('بيان العهد والتسويات'!$C15=المنصرف!$C$3:$C$717)*1,المنصرف!$G$3:$G$717) -> 0 | CO15: =SUMPRODUCT((CN$3=المنصرف!$E$3:$E$717)*1,('بيان العهد والتسويات'!$C15=المنصرف!$C$3:$C$717)*1,المنصرف!$J$3:$J$717) -> 0 | CP15: =SUMPRODUCT((CP$3=المنصرف!$E$3:$E$717)*1,('بيان العهد والتسويات'!$C15=المنصرف!$C$3:$C$717)*1,المنصرف!$G$3:$G$717) -> 0 | CQ15: =SUMPRODUCT((CP$3=المنصرف!$E$3:$E$717)*1,('بيان العهد والتسويات'!$C15=المنصرف!$C$3:$C$717)*1,المنصرف!$J$3:$J$717) -> 0 | CR15: =SUMPRODUCT((CR$3=المنصرف!$E$3:$E$717)*1,('بيان العهد والتسويات'!$C15=المنصرف!$C$3:$C$717)*1,المنصرف!$G$3:$G$717) -> 0 | CS15: =SUMPRODUCT((CR$3=المنصرف!$E$3:$E$717)*1,('بيان العهد والتسويات'!$C15=المنصرف!$C$3:$C$717)*1,المنصرف!$J$3:$J$717) -> 0 | CT15: =SUMPRODUCT((CT$3=المنصرف!$E$3:$E$717)*1,('بيان العهد والتسويات'!$C15=المنصرف!$C$3:$C$717)*1,المنصرف!$G$3:$G$717) -> 0 | CU15: =SUMPRODUCT((CT$3=المنصرف!$E$3:$E$717)*1,('بيان العهد والتسويات'!$C15=المنصرف!$C$3:$C$717)*1,المنصرف!$J$3:$J$717) -> 0 | CV15: =SUMPRODUCT((CV$3=المنصرف!$E$3:$E$717)*1,('بيان العهد والتسويات'!$C15=المنصرف!$C$3:$C$717)*1,المنصرف!$G$3:$G$717) -> 0 | CW15: =SUMPRODUCT((CV$3=المنصرف!$E$3:$E$717)*1,('بيان العهد والتسويات'!$C15=المنصرف!$C$3:$C$717)*1,المنصرف!$J$3:$J$717) -> 0 | CX15: =SUMPRODUCT((CX$3=المنصرف!$E$3:$E$717)*1,('بيان العهد والتسويات'!$C15=المنصرف!$C$3:$C$717)*1,المنصرف!$G$3:$G$717) -> 0 | CY15: =SUMPRODUCT((CX$3=المنصرف!$E$3:$E$717)*1,('بيان العهد والتسويات'!$C15=المنصرف!$C$3:$C$717)*1,المنصرف!$J$3:$J$717) -> 0 | CZ15: =SUMPRODUCT((CZ$3=المنصرف!$E$3:$E$717)*1,('بيان العهد والتسويات'!$C15=المنصرف!$C$3:$C$717)*1,المنصرف!$G$3:$G$717) -> 0 | DA15: =SUMPRODUCT((CZ$3=المنصرف!$E$3:$E$717)*1,('بيان العهد والتسويات'!$C15=المنصرف!$C$3:$C$717)*1,المنصرف!$J$3:$J$717) -> 0
C16: 2025-07-10 | D16: =SUMPRODUCT(($D$3=المنصرف!$E$3:$E$717)*1,('بيان العهد والتسويات'!$C16=المنصرف!$C$3:$C$717)*1,المنصرف!$G$3:$G$717) -> 0 | E16: =SUMPRODUCT(($D$3=المنصرف!$E$3:$E$717)*1,('بيان العهد والتسويات'!$C16=المنصرف!$C$3:$C$717)*1,المنصرف!$J$3:$J$717) -> 69756.7 | F16: =SUMPRODUCT(($F$3=المنصرف!$E$3:$E$717)*1,('بيان العهد والتسويات'!$C16=المنصرف!$C$3:$C$717)*1,المنصرف!$G$3:$G$717) -> 0 | G16: =SUMPRODUCT(($F$3=المنصرف!$E$3:$E$717)*1,('بيان العهد والتسويات'!$C16=المنصرف!$C$3:$C$717)*1,المنصرف!$J$3:$J$717) -> 0 | H16: =SUMPRODUCT(($H$3=المنصرف!$E$3:$E$717)*1,('بيان العهد والتسويات'!$C16=المنصرف!$C$3:$C$717)*1,المنصرف!$G$3:$G$717) -> 0 | I16: =SUMPRODUCT(($H$3=المنصرف!$E$3:$E$717)*1,('بيان العهد والتسويات'!$C16=المنصرف!$C$3:$C$717)*1,المنصرف!$J$3:$J$717) -> 0 | J16: =SUMPRODUCT(($J$3=المنصرف!$E$3:$E$717)*1,('بيان العهد والتسويات'!$C16=المنصرف!$C$3:$C$717)*1,المنصرف!$G$3:$G$717) -> 0 | K16: =SUMPRODUCT(($J$3=المنصرف!$E$3:$E$717)*1,('بيان العهد والتسويات'!$C16=المنصرف!$C$3:$C$717)*1,المنصرف!$J$3:$J$717) -> 0 | L16: =SUMPRODUCT(($L$3=المنصرف!$E$3:$E$717)*1,('بيان العهد والتسويات'!$C16=المنصرف!$C$3:$C$717)*1,المنصرف!$G$3:$G$717) -> 0 | M16: =SUMPRODUCT(($L$3=المنصرف!$E$3:$E$717)*1,('بيان العهد والتسويات'!$C16=المنصرف!$C$3:$C$717)*1,المنصرف!$J$3:$J$717) -> 0 | N16: =SUMPRODUCT(($N$3=المنصرف!$E$3:$E$717)*1,('بيان العهد والتسويات'!$C16=المنصرف!$C$3:$C$717)*1,المنصرف!$G$3:$G$717) -> 0 | O16: =SUMPRODUCT(($N$3=المنصرف!$E$3:$E$717)*1,('بيان العهد والتسويات'!$C16=المنصرف!$C$3:$C$717)*1,المنصرف!$J$3:$J$717) -> 0 | P16: =SUMPRODUCT(($P$3=المنصرف!$E$3:$E$717)*1,('بيان العهد والتسويات'!$C16=المنصرف!$C$3:$C$717)*1,المنصرف!$G$3:$G$717) -> 0 | Q16: =SUMPRODUCT(($P$3=المنصرف!$E$3:$E$717)*1,('بيان العهد والتسويات'!$C16=المنصرف!$C$3:$C$717)*1,المنصرف!$J$3:$J$717) -> 0 | R16: =SUMPRODUCT(($R$3=المنصرف!$E$3:$E$717)*1,('بيان العهد والتسويات'!$C16=المنصرف!$C$3:$C$717)*1,المنصرف!$G$3:$G$717) -> 0 | S16: =SUMPRODUCT(($R$3=المنصرف!$E$3:$E$717)*1,('بيان العهد والتسويات'!$C16=المنصرف!$C$3:$C$717)*1,المنصرف!$J$3:$J$717) -> 0 | T16: =SUMPRODUCT(($T$3=المنصرف!$E$3:$E$717)*1,('بيان العهد والتسويات'!$C16=المنصرف!$C$3:$C$717)*1,المنصرف!$G$3:$G$717) -> 0 | U16: =SUMPRODUCT(($T$3=المنصرف!$E$3:$E$717)*1,('بيان العهد والتسويات'!$C16=المنصرف!$C$3:$C$717)*1,المنصرف!$J$3:$J$717) -> 0 | V16: =SUMPRODUCT(($V$3=المنصرف!$E$3:$E$717)*1,('بيان العهد والتسويات'!$C16=المنصرف!$C$3:$C$717)*1,المنصرف!$G$3:$G$717) -> 0 | W16: =SUMPRODUCT(($V$3=المنصرف!$E$3:$E$717)*1,('بيان العهد والتسويات'!$C16=المنصرف!$C$3:$C$717)*1,المنصرف!$J$3:$J$717) -> 0 | X16: =SUMPRODUCT(($X$3=المنصرف!$E$3:$E$717)*1,('بيان العهد والتسويات'!$C16=المنصرف!$C$3:$C$717)*1,المنصرف!$G$3:$G$717) -> 0 | Y16: =SUMPRODUCT(($X$3=المنصرف!$E$3:$E$717)*1,('بيان العهد والتسويات'!$C16=المنصرف!$C$3:$C$717)*1,المنصرف!$J$3:$J$717) -> 0 | Z16: =SUMPRODUCT(($Z$3=المنصرف!$E$3:$E$717)*1,('بيان العهد والتسويات'!$C16=المنصرف!$C$3:$C$717)*1,المنصرف!$G$3:$G$717) -> 0 | AA16: =SUMPRODUCT(($Z$3=المنصرف!$E$3:$E$717)*1,('بيان العهد والتسويات'!$C16=المنصرف!$C$3:$C$717)*1,المنصرف!$J$3:$J$717) -> 0 | AB16: =SUMPRODUCT(($AB$3=المنصرف!$E$3:$E$717)*1,('بيان العهد والتسويات'!$C16=المنصرف!$C$3:$C$717)*1,المنصرف!$G$3:$G$717) -> 0 | AC16: =SUMPRODUCT(($AB$3=المنصرف!$E$3:$E$717)*1,('بيان العهد والتسويات'!$C16=المنصرف!$C$3:$C$717)*1,المنصرف!$J$3:$J$717) -> 0 | AD16: =SUMPRODUCT(($AD$3=المنصرف!$E$3:$E$717)*1,('بيان العهد والتسويات'!$C16=المنصرف!$C$3:$C$717)*1,المنصرف!$G$3:$G$717) -> 0 | AE16: =SUMPRODUCT(($AD$3=المنصرف!$E$3:$E$717)*1,('بيان العهد والتسويات'!$C16=المنصرف!$C$3:$C$717)*1,المنصرف!$J$3:$J$717) -> 0 | AF16: =SUMPRODUCT(($AF$3=المنصرف!$E$3:$E$717)*1,('بيان العهد والتسويات'!$C16=المنصرف!$C$3:$C$717)*1,المنصرف!$G$3:$G$717) -> 0 | AG16: =SUMPRODUCT(($AF$3=المنصرف!$E$3:$E$717)*1,('بيان العهد والتسويات'!$C16=المنصرف!$C$3:$C$717)*1,المنصرف!$J$3:$J$717) -> 0 | AH16: =SUMPRODUCT(($AH$3=المنصرف!$E$3:$E$717)*1,('بيان العهد والتسويات'!$C16=المنصرف!$C$3:$C$717)*1,المنصرف!$G$3:$G$717) -> 0 | AI16: =SUMPRODUCT(($AH$3=المنصرف!$E$3:$E$717)*1,('بيان العهد والتسويات'!$C16=المنصرف!$C$3:$C$717)*1,المنصرف!$J$3:$J$717) -> 0 | AJ16: =SUMPRODUCT((AJ$3=المنصرف!$E$3:$E$717)*1,('بيان العهد والتسويات'!$C16=المنصرف!$C$3:$C$717)*1,المنصرف!$G$3:$G$717) -> 0 | AK16: =SUMPRODUCT((AJ$3=المنصرف!$E$3:$E$717)*1,('بيان العهد والتسويات'!$C16=المنصرف!$C$3:$C$717)*1,المنصرف!$J$3:$J$717) -> 0 | AL16: =SUMPRODUCT((AL$3=المنصرف!$E$3:$E$717)*1,('بيان العهد والتسويات'!$C16=المنصرف!$C$3:$C$717)*1,المنصرف!$G$3:$G$717) -> 0 | AM16: =SUMPRODUCT((AL$3=المنصرف!$E$3:$E$717)*1,('بيان العهد والتسويات'!$C16=المنصرف!$C$3:$C$717)*1,المنصرف!$J$3:$J$717) -> 0 | AN16: =SUMPRODUCT((AN$3=المنصرف!$E$3:$E$717)*1,('بيان العهد والتسويات'!$C16=المنصرف!$C$3:$C$717)*1,المنصرف!$G$3:$G$717) -> 0 | AO16: =SUMPRODUCT((AN$3=المنصرف!$E$3:$E$717)*1,('بيان العهد والتسويات'!$C16=المنصرف!$C$3:$C$717)*1,المنصرف!$J$3:$J$717) -> 0 | AP16: =SUMPRODUCT((AP$3=المنصرف!$E$3:$E$717)*1,('بيان العهد والتسويات'!$C16=المنصرف!$C$3:$C$717)*1,المنصرف!$G$3:$G$717) -> 0 | AQ16: =SUMPRODUCT((AP$3=المنصرف!$E$3:$E$717)*1,('بيان العهد والتسويات'!$C16=المنصرف!$C$3:$C$717)*1,المنصرف!$J$3:$J$717) -> 0 | AR16: =SUMPRODUCT((AR$3=المنصرف!$E$3:$E$717)*1,('بيان العهد والتسويات'!$C16=المنصرف!$C$3:$C$717)*1,المنصرف!$G$3:$G$717) -> 0 | AS16: =SUMPRODUCT((AR$3=المنصرف!$E$3:$E$717)*1,('بيان العهد والتسويات'!$C16=المنصرف!$C$3:$C$717)*1,المنصرف!$J$3:$J$717) -> 0 | AT16: =SUMPRODUCT((AT$3=المنصرف!$E$3:$E$717)*1,('بيان العهد والتسويات'!$C16=المنصرف!$C$3:$C$717)*1,المنصرف!$G$3:$G$717) -> 0 | AU16: =SUMPRODUCT((AT$3=المنصرف!$E$3:$E$717)*1,('بيان العهد والتسويات'!$C16=المنصرف!$C$3:$C$717)*1,المنصرف!$J$3:$J$717) -> 0 | AV16: =SUMPRODUCT((AV$3=المنصرف!$E$3:$E$717)*1,('بيان العهد والتسويات'!$C16=المنصرف!$C$3:$C$717)*1,المنصرف!$G$3:$G$717) -> 0 | AW16: =SUMPRODUCT((AV$3=المنصرف!$E$3:$E$717)*1,('بيان العهد والتسويات'!$C16=المنصرف!$C$3:$C$717)*1,المنصرف!$J$3:$J$717) -> 0 | AX16: =SUMPRODUCT((AX$3=المنصرف!$E$3:$E$717)*1,('بيان العهد والتسويات'!$C16=المنصرف!$C$3:$C$717)*1,المنصرف!$G$3:$G$717) -> 0 | AY16: =SUMPRODUCT((AX$3=المنصرف!$E$3:$E$717)*1,('بيان العهد والتسويات'!$C16=المنصرف!$C$3:$C$717)*1,المنصرف!$J$3:$J$717) -> 0 | AZ16: =SUMPRODUCT((AZ$3=المنصرف!$E$3:$E$717)*1,('بيان العهد والتسويات'!$C16=المنصرف!$C$3:$C$717)*1,المنصرف!$G$3:$G$717) -> 0 | BA16: =SUMPRODUCT((AZ$3=المنصرف!$E$3:$E$717)*1,('بيان العهد والتسويات'!$C16=المنصرف!$C$3:$C$717)*1,المنصرف!$J$3:$J$717) -> 0 | BB16: =SUMPRODUCT((BB$3=المنصرف!$E$3:$E$717)*1,('بيان العهد والتسويات'!$C16=المنصرف!$C$3:$C$717)*1,المنصرف!$G$3:$G$717) -> 0 | BC16: =SUMPRODUCT((BB$3=المنصرف!$E$3:$E$717)*1,('بيان العهد والتسويات'!$C16=المنصرف!$C$3:$C$717)*1,المنصرف!$J$3:$J$717) -> 0 | BD16: =SUMPRODUCT((BD$3=المنصرف!$E$3:$E$717)*1,('بيان العهد والتسويات'!$C16=المنصرف!$C$3:$C$717)*1,المنصرف!$G$3:$G$717) -> 0 | BE16: =SUMPRODUCT((BD$3=المنصرف!$E$3:$E$717)*1,('بيان العهد والتسويات'!$C16=المنصرف!$C$3:$C$717)*1,المنصرف!$J$3:$J$717) -> 0 | BF16: =SUMPRODUCT((BF$3=المنصرف!$E$3:$E$717)*1,('بيان العهد والتسويات'!$C16=المنصرف!$C$3:$C$717)*1,المنصرف!$G$3:$G$717) -> 0 | BG16: =SUMPRODUCT((BF$3=المنصرف!$E$3:$E$717)*1,('بيان العهد والتسويات'!$C16=المنصرف!$C$3:$C$717)*1,المنصرف!$J$3:$J$717) -> 0 | BH16: =SUMPRODUCT((BH$3=المنصرف!$E$3:$E$717)*1,('بيان العهد والتسويات'!$C16=المنصرف!$C$3:$C$717)*1,المنصرف!$G$3:$G$717) -> 0 | BI16: =SUMPRODUCT((BH$3=المنصرف!$E$3:$E$717)*1,('بيان العهد والتسويات'!$C16=المنصرف!$C$3:$C$717)*1,المنصرف!$J$3:$J$717) -> 0 | BJ16: =SUMPRODUCT((BJ$3=المنصرف!$E$3:$E$717)*1,('بيان العهد والتسويات'!$C16=المنصرف!$C$3:$C$717)*1,المنصرف!$G$3:$G$717) -> 0 | BK16: =SUMPRODUCT((BJ$3=المنصرف!$E$3:$E$717)*1,('بيان العهد والتسويات'!$C16=المنصرف!$C$3:$C$717)*1,المنصرف!$J$3:$J$717) -> 0 | BL16: =SUMPRODUCT((BL$3=المنصرف!$E$3:$E$717)*1,('بيان العهد والتسويات'!$C16=المنصرف!$C$3:$C$717)*1,المنصرف!$G$3:$G$717) -> 0 | BM16: =SUMPRODUCT((BL$3=المنصرف!$E$3:$E$717)*1,('بيان العهد والتسويات'!$C16=المنصرف!$C$3:$C$717)*1,المنصرف!$J$3:$J$717) -> 0 | BN16: =SUMPRODUCT((BN$3=المنصرف!$E$3:$E$717)*1,('بيان العهد والتسويات'!$C16=المنصرف!$C$3:$C$717)*1,المنصرف!$G$3:$G$717) -> 0 | BO16: =SUMPRODUCT((BN$3=المنصرف!$E$3:$E$717)*1,('بيان العهد والتسويات'!$C16=المنصرف!$C$3:$C$717)*1,المنصرف!$J$3:$J$717) -> 0 | BP16: =SUMPRODUCT((BP$3=المنصرف!$E$3:$E$717)*1,('بيان العهد والتسويات'!$C16=المنصرف!$C$3:$C$717)*1,المنصرف!$G$3:$G$717) -> 0 | BQ16: =SUMPRODUCT((BP$3=المنصرف!$E$3:$E$717)*1,('بيان العهد والتسويات'!$C16=المنصرف!$C$3:$C$717)*1,المنصرف!$J$3:$J$717) -> 0 | BR16: =SUMPRODUCT((BR$3=المنصرف!$E$3:$E$717)*1,('بيان العهد والتسويات'!$C16=المنصرف!$C$3:$C$717)*1,المنصرف!$G$3:$G$717) -> 0 | BS16: =SUMPRODUCT((BR$3=المنصرف!$E$3:$E$717)*1,('بيان العهد والتسويات'!$C16=المنصرف!$C$3:$C$717)*1,المنصرف!$J$3:$J$717) -> 0 | BT16: =SUMPRODUCT((BT$3=المنصرف!$E$3:$E$717)*1,('بيان العهد والتسويات'!$C16=المنصرف!$C$3:$C$717)*1,المنصرف!$G$3:$G$717) -> 0 | BU16: =SUMPRODUCT((BT$3=المنصرف!$E$3:$E$717)*1,('بيان العهد والتسويات'!$C16=المنصرف!$C$3:$C$717)*1,المنصرف!$J$3:$J$717) -> 0 | BV16: =SUMPRODUCT((BV$3=المنصرف!$E$3:$E$717)*1,('بيان العهد والتسويات'!$C16=المنصرف!$C$3:$C$717)*1,المنصرف!$G$3:$G$717) -> 0 | BW16: =SUMPRODUCT((BV$3=المنصرف!$E$3:$E$717)*1,('بيان العهد والتسويات'!$C16=المنصرف!$C$3:$C$717)*1,المنصرف!$J$3:$J$717) -> 0 | BX16: =SUMPRODUCT((BX$3=المنصرف!$E$3:$E$717)*1,('بيان العهد والتسويات'!$C16=المنصرف!$C$3:$C$717)*1,المنصرف!$G$3:$G$717) -> 0 | BY16: =SUMPRODUCT((BX$3=المنصرف!$E$3:$E$717)*1,('بيان العهد والتسويات'!$C16=المنصرف!$C$3:$C$717)*1,المنصرف!$J$3:$J$717) -> 0 | BZ16: =SUMPRODUCT((BZ$3=المنصرف!$E$3:$E$717)*1,('بيان العهد والتسويات'!$C16=المنصرف!$C$3:$C$717)*1,المنصرف!$G$3:$G$717) -> 0 | CA16: =SUMPRODUCT((BZ$3=المنصرف!$E$3:$E$717)*1,('بيان العهد والتسويات'!$C16=المنصرف!$C$3:$C$717)*1,المنصرف!$J$3:$J$717) -> 0 | CB16: =SUMPRODUCT((CB$3=المنصرف!$E$3:$E$717)*1,('بيان العهد والتسويات'!$C16=المنصرف!$C$3:$C$717)*1,المنصرف!$G$3:$G$717) -> 0 | CC16: =SUMPRODUCT((CB$3=المنصرف!$E$3:$E$717)*1,('بيان العهد والتسويات'!$C16=المنصرف!$C$3:$C$717)*1,المنصرف!$J$3:$J$717) -> 0 | CD16: =SUMPRODUCT((CD$3=المنصرف!$E$3:$E$717)*1,('بيان العهد والتسويات'!$C16=المنصرف!$C$3:$C$717)*1,المنصرف!$G$3:$G$717) -> 0 | CE16: =SUMPRODUCT((CD$3=المنصرف!$E$3:$E$717)*1,('بيان العهد والتسويات'!$C16=المنصرف!$C$3:$C$717)*1,المنصرف!$J$3:$J$717) -> 0 | CF16: =SUMPRODUCT((CF$3=المنصرف!$E$3:$E$717)*1,('بيان العهد والتسويات'!$C16=المنصرف!$C$3:$C$717)*1,المنصرف!$G$3:$G$717) -> 0 | CG16: =SUMPRODUCT((CF$3=المنصرف!$E$3:$E$717)*1,('بيان العهد والتسويات'!$C16=المنصرف!$C$3:$C$717)*1,المنصرف!$J$3:$J$717) -> 0 | CH16: =SUMPRODUCT((CH$3=المنصرف!$E$3:$E$717)*1,('بيان العهد والتسويات'!$C16=المنصرف!$C$3:$C$717)*1,المنصرف!$G$3:$G$717) -> 0 | CI16: =SUMPRODUCT((CH$3=المنصرف!$E$3:$E$717)*1,('بيان العهد والتسويات'!$C16=المنصرف!$C$3:$C$717)*1,المنصرف!$J$3:$J$717) -> 0 | CJ16: =SUMPRODUCT((CJ$3=المنصرف!$E$3:$E$717)*1,('بيان العهد والتسويات'!$C16=المنصرف!$C$3:$C$717)*1,المنصرف!$G$3:$G$717) -> 0 | CK16: =SUMPRODUCT((CJ$3=المنصرف!$E$3:$E$717)*1,('بيان العهد والتسويات'!$C16=المنصرف!$C$3:$C$717)*1,المنصرف!$J$3:$J$717) -> 0 | CL16: =SUMPRODUCT((CL$3=المنصرف!$E$3:$E$717)*1,('بيان العهد والتسويات'!$C16=المنصرف!$C$3:$C$717)*1,المنصرف!$G$3:$G$717) -> 0 | CM16: =SUMPRODUCT((CL$3=المنصرف!$E$3:$E$717)*1,('بيان العهد والتسويات'!$C16=المنصرف!$C$3:$C$717)*1,المنصرف!$J$3:$J$717) -> 0 | CN16: =SUMPRODUCT((CN$3=المنصرف!$E$3:$E$717)*1,('بيان العهد والتسويات'!$C16=المنصرف!$C$3:$C$717)*1,المنصرف!$G$3:$G$717) -> 0 | CO16: =SUMPRODUCT((CN$3=المنصرف!$E$3:$E$717)*1,('بيان العهد والتسويات'!$C16=المنصرف!$C$3:$C$717)*1,المنصرف!$J$3:$J$717) -> 0 | CP16: =SUMPRODUCT((CP$3=المنصرف!$E$3:$E$717)*1,('بيان العهد والتسويات'!$C16=المنصرف!$C$3:$C$717)*1,المنصرف!$G$3:$G$717) -> 0 | CQ16: =SUMPRODUCT((CP$3=المنصرف!$E$3:$E$717)*1,('بيان العهد والتسويات'!$C16=المنصرف!$C$3:$C$717)*1,المنصرف!$J$3:$J$717) -> 0 | CR16: =SUMPRODUCT((CR$3=المنصرف!$E$3:$E$717)*1,('بيان العهد والتسويات'!$C16=المنصرف!$C$3:$C$717)*1,المنصرف!$G$3:$G$717) -> 0 | CS16: =SUMPRODUCT((CR$3=المنصرف!$E$3:$E$717)*1,('بيان العهد والتسويات'!$C16=المنصرف!$C$3:$C$717)*1,المنصرف!$J$3:$J$717) -> 0 | CT16: =SUMPRODUCT((CT$3=المنصرف!$E$3:$E$717)*1,('بيان العهد والتسويات'!$C16=المنصرف!$C$3:$C$717)*1,المنصرف!$G$3:$G$717) -> 0 | CU16: =SUMPRODUCT((CT$3=المنصرف!$E$3:$E$717)*1,('بيان العهد والتسويات'!$C16=المنصرف!$C$3:$C$717)*1,المنصرف!$J$3:$J$717) -> 0 | CV16: =SUMPRODUCT((CV$3=المنصرف!$E$3:$E$717)*1,('بيان العهد والتسويات'!$C16=المنصرف!$C$3:$C$717)*1,المنصرف!$G$3:$G$717) -> 0 | CW16: =SUMPRODUCT((CV$3=المنصرف!$E$3:$E$717)*1,('بيان العهد والتسويات'!$C16=المنصرف!$C$3:$C$717)*1,المنصرف!$J$3:$J$717) -> 0 | CX16: =SUMPRODUCT((CX$3=المنصرف!$E$3:$E$717)*1,('بيان العهد والتسويات'!$C16=المنصرف!$C$3:$C$717)*1,المنصرف!$G$3:$G$717) -> 0 | CY16: =SUMPRODUCT((CX$3=المنصرف!$E$3:$E$717)*1,('بيان العهد والتسويات'!$C16=المنصرف!$C$3:$C$717)*1,المنصرف!$J$3:$J$717) -> 0 | CZ16: =SUMPRODUCT((CZ$3=المنصرف!$E$3:$E$717)*1,('بيان العهد والتسويات'!$C16=المنصرف!$C$3:$C$717)*1,المنصرف!$G$3:$G$717) -> 0 | DA16: =SUMPRODUCT((CZ$3=المنصرف!$E$3:$E$717)*1,('بيان العهد والتسويات'!$C16=المنصرف!$C$3:$C$717)*1,المنصرف!$J$3:$J$717) -> 0
C17: 2025-07-11 | D17: =SUMPRODUCT(($D$3=المنصرف!$E$3:$E$717)*1,('بيان العهد والتسويات'!$C17=المنصرف!$C$3:$C$717)*1,المنصرف!$G$3:$G$717) -> 0 | E17: =SUMPRODUCT(($D$3=المنصرف!$E$3:$E$717)*1,('بيان العهد والتسويات'!$C17=المنصرف!$C$3:$C$717)*1,المنصرف!$J$3:$J$717) -> 0 | F17: =SUMPRODUCT(($F$3=المنصرف!$E$3:$E$717)*1,('بيان العهد والتسويات'!$C17=المنصرف!$C$3:$C$717)*1,المنصرف!$G$3:$G$717) -> 0 | G17: =SUMPRODUCT(($F$3=المنصرف!$E$3:$E$717)*1,('بيان العهد والتسويات'!$C17=المنصرف!$C$3:$C$717)*1,المنصرف!$J$3:$J$717) -> 0 | H17: =SUMPRODUCT(($H$3=المنصرف!$E$3:$E$717)*1,('بيان العهد والتسويات'!$C17=المنصرف!$C$3:$C$717)*1,المنصرف!$G$3:$G$717) -> 0 | I17: =SUMPRODUCT(($H$3=المنصرف!$E$3:$E$717)*1,('بيان العهد والتسويات'!$C17=المنصرف!$C$3:$C$717)*1,المنصرف!$J$3:$J$717) -> 0 | J17: =SUMPRODUCT(($J$3=المنصرف!$E$3:$E$717)*1,('بيان العهد والتسويات'!$C17=المنصرف!$C$3:$C$717)*1,المنصرف!$G$3:$G$717) -> 0 | K17: =SUMPRODUCT(($J$3=المنصرف!$E$3:$E$717)*1,('بيان العهد والتسويات'!$C17=المنصرف!$C$3:$C$717)*1,المنصرف!$J$3:$J$717) -> 0 | L17: =SUMPRODUCT(($L$3=المنصرف!$E$3:$E$717)*1,('بيان العهد والتسويات'!$C17=المنصرف!$C$3:$C$717)*1,المنصرف!$G$3:$G$717) -> 0 | M17: =SUMPRODUCT(($L$3=المنصرف!$E$3:$E$717)*1,('بيان العهد والتسويات'!$C17=المنصرف!$C$3:$C$717)*1,المنصرف!$J$3:$J$717) -> 0 | N17: =SUMPRODUCT(($N$3=المنصرف!$E$3:$E$717)*1,('بيان العهد والتسويات'!$C17=المنصرف!$C$3:$C$717)*1,المنصرف!$G$3:$G$717) -> 0 | O17: =SUMPRODUCT(($N$3=المنصرف!$E$3:$E$717)*1,('بيان العهد والتسويات'!$C17=المنصرف!$C$3:$C$717)*1,المنصرف!$J$3:$J$717) -> 0 | P17: =SUMPRODUCT(($P$3=المنصرف!$E$3:$E$717)*1,('بيان العهد والتسويات'!$C17=المنصرف!$C$3:$C$717)*1,المنصرف!$G$3:$G$717) -> 0 | Q17: =SUMPRODUCT(($P$3=المنصرف!$E$3:$E$717)*1,('بيان العهد والتسويات'!$C17=المنصرف!$C$3:$C$717)*1,المنصرف!$J$3:$J$717) -> 0 | R17: =SUMPRODUCT(($R$3=المنصرف!$E$3:$E$717)*1,('بيان العهد والتسويات'!$C17=المنصرف!$C$3:$C$717)*1,المنصرف!$G$3:$G$717) -> 0 | S17: =SUMPRODUCT(($R$3=المنصرف!$E$3:$E$717)*1,('بيان العهد والتسويات'!$C17=المنصرف!$C$3:$C$717)*1,المنصرف!$J$3:$J$717) -> 0 | T17: =SUMPRODUCT(($T$3=المنصرف!$E$3:$E$717)*1,('بيان العهد والتسويات'!$C17=المنصرف!$C$3:$C$717)*1,المنصرف!$G$3:$G$717) -> 0 | U17: =SUMPRODUCT(($T$3=المنصرف!$E$3:$E$717)*1,('بيان العهد والتسويات'!$C17=المنصرف!$C$3:$C$717)*1,المنصرف!$J$3:$J$717) -> 0 | V17: =SUMPRODUCT(($V$3=المنصرف!$E$3:$E$717)*1,('بيان العهد والتسويات'!$C17=المنصرف!$C$3:$C$717)*1,المنصرف!$G$3:$G$717) -> 0 | W17: =SUMPRODUCT(($V$3=المنصرف!$E$3:$E$717)*1,('بيان العهد والتسويات'!$C17=المنصرف!$C$3:$C$717)*1,المنصرف!$J$3:$J$717) -> 0 | X17: =SUMPRODUCT(($X$3=المنصرف!$E$3:$E$717)*1,('بيان العهد والتسويات'!$C17=المنصرف!$C$3:$C$717)*1,المنصرف!$G$3:$G$717) -> 0 | Y17: =SUMPRODUCT(($X$3=المنصرف!$E$3:$E$717)*1,('بيان العهد والتسويات'!$C17=المنصرف!$C$3:$C$717)*1,المنصرف!$J$3:$J$717) -> 0 | Z17: =SUMPRODUCT(($Z$3=المنصرف!$E$3:$E$717)*1,('بيان العهد والتسويات'!$C17=المنصرف!$C$3:$C$717)*1,المنصرف!$G$3:$G$717) -> 0 | AA17: =SUMPRODUCT(($Z$3=المنصرف!$E$3:$E$717)*1,('بيان العهد والتسويات'!$C17=المنصرف!$C$3:$C$717)*1,المنصرف!$J$3:$J$717) -> 0 | AB17: =SUMPRODUCT(($AB$3=المنصرف!$E$3:$E$717)*1,('بيان العهد والتسويات'!$C17=المنصرف!$C$3:$C$717)*1,المنصرف!$G$3:$G$717) -> 0 | AC17: =SUMPRODUCT(($AB$3=المنصرف!$E$3:$E$717)*1,('بيان العهد والتسويات'!$C17=المنصرف!$C$3:$C$717)*1,المنصرف!$J$3:$J$717) -> 0 | AD17: =SUMPRODUCT(($AD$3=المنصرف!$E$3:$E$717)*1,('بيان العهد والتسويات'!$C17=المنصرف!$C$3:$C$717)*1,المنصرف!$G$3:$G$717) -> 0 | AE17: =SUMPRODUCT(($AD$3=المنصرف!$E$3:$E$717)*1,('بيان العهد والتسويات'!$C17=المنصرف!$C$3:$C$717)*1,المنصرف!$J$3:$J$717) -> 0 | AF17: =SUMPRODUCT(($AF$3=المنصرف!$E$3:$E$717)*1,('بيان العهد والتسويات'!$C17=المنصرف!$C$3:$C$717)*1,المنصرف!$G$3:$G$717) -> 0 | AG17: =SUMPRODUCT(($AF$3=المنصرف!$E$3:$E$717)*1,('بيان العهد والتسويات'!$C17=المنصرف!$C$3:$C$717)*1,المنصرف!$J$3:$J$717) -> 0 | AH17: =SUMPRODUCT(($AH$3=المنصرف!$E$3:$E$717)*1,('بيان العهد والتسويات'!$C17=المنصرف!$C$3:$C$717)*1,المنصرف!$G$3:$G$717) -> 0 | AI17: =SUMPRODUCT(($AH$3=المنصرف!$E$3:$E$717)*1,('بيان العهد والتسويات'!$C17=المنصرف!$C$3:$C$717)*1,المنصرف!$J$3:$J$717) -> 0 | AJ17: =SUMPRODUCT((AJ$3=المنصرف!$E$3:$E$717)*1,('بيان العهد والتسويات'!$C17=المنصرف!$C$3:$C$717)*1,المنصرف!$G$3:$G$717) -> 0 | AK17: =SUMPRODUCT((AJ$3=المنصرف!$E$3:$E$717)*1,('بيان العهد والتسويات'!$C17=المنصرف!$C$3:$C$717)*1,المنصرف!$J$3:$J$717) -> 0 | AL17: =SUMPRODUCT((AL$3=المنصرف!$E$3:$E$717)*1,('بيان العهد والتسويات'!$C17=المنصرف!$C$3:$C$717)*1,المنصرف!$G$3:$G$717) -> 0 | AM17: =SUMPRODUCT((AL$3=المنصرف!$E$3:$E$717)*1,('بيان العهد والتسويات'!$C17=المنصرف!$C$3:$C$717)*1,المنصرف!$J$3:$J$717) -> 0 | AN17: =SUMPRODUCT((AN$3=المنصرف!$E$3:$E$717)*1,('بيان العهد والتسويات'!$C17=المنصرف!$C$3:$C$717)*1,المنصرف!$G$3:$G$717) -> 0 | AO17: =SUMPRODUCT((AN$3=المنصرف!$E$3:$E$717)*1,('بيان العهد والتسويات'!$C17=المنصرف!$C$3:$C$717)*1,المنصرف!$J$3:$J$717) -> 0 | AP17: =SUMPRODUCT((AP$3=المنصرف!$E$3:$E$717)*1,('بيان العهد والتسويات'!$C17=المنصرف!$C$3:$C$717)*1,المنصرف!$G$3:$G$717) -> 0 | AQ17: =SUMPRODUCT((AP$3=المنصرف!$E$3:$E$717)*1,('بيان العهد والتسويات'!$C17=المنصرف!$C$3:$C$717)*1,المنصرف!$J$3:$J$717) -> 0 | AR17: =SUMPRODUCT((AR$3=المنصرف!$E$3:$E$717)*1,('بيان العهد والتسويات'!$C17=المنصرف!$C$3:$C$717)*1,المنصرف!$G$3:$G$717) -> 0 | AS17: =SUMPRODUCT((AR$3=المنصرف!$E$3:$E$717)*1,('بيان العهد والتسويات'!$C17=المنصرف!$C$3:$C$717)*1,المنصرف!$J$3:$J$717) -> 0 | AT17: =SUMPRODUCT((AT$3=المنصرف!$E$3:$E$717)*1,('بيان العهد والتسويات'!$C17=المنصرف!$C$3:$C$717)*1,المنصرف!$G$3:$G$717) -> 0 | AU17: =SUMPRODUCT((AT$3=المنصرف!$E$3:$E$717)*1,('بيان العهد والتسويات'!$C17=المنصرف!$C$3:$C$717)*1,المنصرف!$J$3:$J$717) -> 0 | AV17: =SUMPRODUCT((AV$3=المنصرف!$E$3:$E$717)*1,('بيان العهد والتسويات'!$C17=المنصرف!$C$3:$C$717)*1,المنصرف!$G$3:$G$717) -> 0 | AW17: =SUMPRODUCT((AV$3=المنصرف!$E$3:$E$717)*1,('بيان العهد والتسويات'!$C17=المنصرف!$C$3:$C$717)*1,المنصرف!$J$3:$J$717) -> 0 | AX17: =SUMPRODUCT((AX$3=المنصرف!$E$3:$E$717)*1,('بيان العهد والتسويات'!$C17=المنصرف!$C$3:$C$717)*1,المنصرف!$G$3:$G$717) -> 0 | AY17: =SUMPRODUCT((AX$3=المنصرف!$E$3:$E$717)*1,('بيان العهد والتسويات'!$C17=المنصرف!$C$3:$C$717)*1,المنصرف!$J$3:$J$717) -> 0 | AZ17: =SUMPRODUCT((AZ$3=المنصرف!$E$3:$E$717)*1,('بيان العهد والتسويات'!$C17=المنصرف!$C$3:$C$717)*1,المنصرف!$G$3:$G$717) -> 0 | BA17: =SUMPRODUCT((AZ$3=المنصرف!$E$3:$E$717)*1,('بيان العهد والتسويات'!$C17=المنصرف!$C$3:$C$717)*1,المنصرف!$J$3:$J$717) -> 0 | BB17: =SUMPRODUCT((BB$3=المنصرف!$E$3:$E$717)*1,('بيان العهد والتسويات'!$C17=المنصرف!$C$3:$C$717)*1,المنصرف!$G$3:$G$717) -> 0 | BC17: =SUMPRODUCT((BB$3=المنصرف!$E$3:$E$717)*1,('بيان العهد والتسويات'!$C17=المنصرف!$C$3:$C$717)*1,المنصرف!$J$3:$J$717) -> 0 | BD17: =SUMPRODUCT((BD$3=المنصرف!$E$3:$E$717)*1,('بيان العهد والتسويات'!$C17=المنصرف!$C$3:$C$717)*1,المنصرف!$G$3:$G$717) -> 0 | BE17: =SUMPRODUCT((BD$3=المنصرف!$E$3:$E$717)*1,('بيان العهد والتسويات'!$C17=المنصرف!$C$3:$C$717)*1,المنصرف!$J$3:$J$717) -> 0 | BF17: =SUMPRODUCT((BF$3=المنصرف!$E$3:$E$717)*1,('بيان العهد والتسويات'!$C17=المنصرف!$C$3:$C$717)*1,المنصرف!$G$3:$G$717) -> 0 | BG17: =SUMPRODUCT((BF$3=المنصرف!$E$3:$E$717)*1,('بيان العهد والتسويات'!$C17=المنصرف!$C$3:$C$717)*1,المنصرف!$J$3:$J$717) -> 0 | BH17: =SUMPRODUCT((BH$3=المنصرف!$E$3:$E$717)*1,('بيان العهد والتسويات'!$C17=المنصرف!$C$3:$C$717)*1,المنصرف!$G$3:$G$717) -> 0 | BI17: =SUMPRODUCT((BH$3=المنصرف!$E$3:$E$717)*1,('بيان العهد والتسويات'!$C17=المنصرف!$C$3:$C$717)*1,المنصرف!$J$3:$J$717) -> 0 | BJ17: =SUMPRODUCT((BJ$3=المنصرف!$E$3:$E$717)*1,('بيان العهد والتسويات'!$C17=المنصرف!$C$3:$C$717)*1,المنصرف!$G$3:$G$717) -> 0 | BK17: =SUMPRODUCT((BJ$3=المنصرف!$E$3:$E$717)*1,('بيان العهد والتسويات'!$C17=المنصرف!$C$3:$C$717)*1,المنصرف!$J$3:$J$717) -> 0 | BL17: =SUMPRODUCT((BL$3=المنصرف!$E$3:$E$717)*1,('بيان العهد والتسويات'!$C17=المنصرف!$C$3:$C$717)*1,المنصرف!$G$3:$G$717) -> 0 | BM17: =SUMPRODUCT((BL$3=المنصرف!$E$3:$E$717)*1,('بيان العهد والتسويات'!$C17=المنصرف!$C$3:$C$717)*1,المنصرف!$J$3:$J$717) -> 0 | BN17: =SUMPRODUCT((BN$3=المنصرف!$E$3:$E$717)*1,('بيان العهد والتسويات'!$C17=المنصرف!$C$3:$C$717)*1,المنصرف!$G$3:$G$717) -> 0 | BO17: =SUMPRODUCT((BN$3=المنصرف!$E$3:$E$717)*1,('بيان العهد والتسويات'!$C17=المنصرف!$C$3:$C$717)*1,المنصرف!$J$3:$J$717) -> 0 | BP17: =SUMPRODUCT((BP$3=المنصرف!$E$3:$E$717)*1,('بيان العهد والتسويات'!$C17=المنصرف!$C$3:$C$717)*1,المنصرف!$G$3:$G$717) -> 0 | BQ17: =SUMPRODUCT((BP$3=المنصرف!$E$3:$E$717)*1,('بيان العهد والتسويات'!$C17=المنصرف!$C$3:$C$717)*1,المنصرف!$J$3:$J$717) -> 0 | BR17: =SUMPRODUCT((BR$3=المنصرف!$E$3:$E$717)*1,('بيان العهد والتسويات'!$C17=المنصرف!$C$3:$C$717)*1,المنصرف!$G$3:$G$717) -> 0 | BS17: =SUMPRODUCT((BR$3=المنصرف!$E$3:$E$717)*1,('بيان العهد والتسويات'!$C17=المنصرف!$C$3:$C$717)*1,المنصرف!$J$3:$J$717) -> 0 | BT17: =SUMPRODUCT((BT$3=المنصرف!$E$3:$E$717)*1,('بيان العهد والتسويات'!$C17=المنصرف!$C$3:$C$717)*1,المنصرف!$G$3:$G$717) -> 0 | BU17: =SUMPRODUCT((BT$3=المنصرف!$E$3:$E$717)*1,('بيان العهد والتسويات'!$C17=المنصرف!$C$3:$C$717)*1,المنصرف!$J$3:$J$717) -> 0 | BV17: =SUMPRODUCT((BV$3=المنصرف!$E$3:$E$717)*1,('بيان العهد والتسويات'!$C17=المنصرف!$C$3:$C$717)*1,المنصرف!$G$3:$G$717) -> 0 | BW17: =SUMPRODUCT((BV$3=المنصرف!$E$3:$E$717)*1,('بيان العهد والتسويات'!$C17=المنصرف!$C$3:$C$717)*1,المنصرف!$J$3:$J$717) -> 0 | BX17: =SUMPRODUCT((BX$3=المنصرف!$E$3:$E$717)*1,('بيان العهد والتسويات'!$C17=المنصرف!$C$3:$C$717)*1,المنصرف!$G$3:$G$717) -> 0 | BY17: =SUMPRODUCT((BX$3=المنصرف!$E$3:$E$717)*1,('بيان العهد والتسويات'!$C17=المنصرف!$C$3:$C$717)*1,المنصرف!$J$3:$J$717) -> 0 | BZ17: =SUMPRODUCT((BZ$3=المنصرف!$E$3:$E$717)*1,('بيان العهد والتسويات'!$C17=المنصرف!$C$3:$C$717)*1,المنصرف!$G$3:$G$717) -> 0 | CA17: =SUMPRODUCT((BZ$3=المنصرف!$E$3:$E$717)*1,('بيان العهد والتسويات'!$C17=المنصرف!$C$3:$C$717)*1,المنصرف!$J$3:$J$717) -> 0 | CB17: =SUMPRODUCT((CB$3=المنصرف!$E$3:$E$717)*1,('بيان العهد والتسويات'!$C17=المنصرف!$C$3:$C$717)*1,المنصرف!$G$3:$G$717) -> 0 | CC17: =SUMPRODUCT((CB$3=المنصرف!$E$3:$E$717)*1,('بيان العهد والتسويات'!$C17=المنصرف!$C$3:$C$717)*1,المنصرف!$J$3:$J$717) -> 0 | CD17: =SUMPRODUCT((CD$3=المنصرف!$E$3:$E$717)*1,('بيان العهد والتسويات'!$C17=المنصرف!$C$3:$C$717)*1,المنصرف!$G$3:$G$717) -> 0 | CE17: =SUMPRODUCT((CD$3=المنصرف!$E$3:$E$717)*1,('بيان العهد والتسويات'!$C17=المنصرف!$C$3:$C$717)*1,المنصرف!$J$3:$J$717) -> 0 | CF17: =SUMPRODUCT((CF$3=المنصرف!$E$3:$E$717)*1,('بيان العهد والتسويات'!$C17=المنصرف!$C$3:$C$717)*1,المنصرف!$G$3:$G$717) -> 0 | CG17: =SUMPRODUCT((CF$3=المنصرف!$E$3:$E$717)*1,('بيان العهد والتسويات'!$C17=المنصرف!$C$3:$C$717)*1,المنصرف!$J$3:$J$717) -> 0 | CH17: =SUMPRODUCT((CH$3=المنصرف!$E$3:$E$717)*1,('بيان العهد والتسويات'!$C17=المنصرف!$C$3:$C$717)*1,المنصرف!$G$3:$G$717) -> 0 | CI17: =SUMPRODUCT((CH$3=المنصرف!$E$3:$E$717)*1,('بيان العهد والتسويات'!$C17=المنصرف!$C$3:$C$717)*1,المنصرف!$J$3:$J$717) -> 0 | CJ17: =SUMPRODUCT((CJ$3=المنصرف!$E$3:$E$717)*1,('بيان العهد والتسويات'!$C17=المنصرف!$C$3:$C$717)*1,المنصرف!$G$3:$G$717) -> 0 | CK17: =SUMPRODUCT((CJ$3=المنصرف!$E$3:$E$717)*1,('بيان العهد والتسويات'!$C17=المنصرف!$C$3:$C$717)*1,المنصرف!$J$3:$J$717) -> 0 | CL17: =SUMPRODUCT((CL$3=المنصرف!$E$3:$E$717)*1,('بيان العهد والتسويات'!$C17=المنصرف!$C$3:$C$717)*1,المنصرف!$G$3:$G$717) -> 0 | CM17: =SUMPRODUCT((CL$3=المنصرف!$E$3:$E$717)*1,('بيان العهد والتسويات'!$C17=المنصرف!$C$3:$C$717)*1,المنصرف!$J$3:$J$717) -> 0 | CN17: =SUMPRODUCT((CN$3=المنصرف!$E$3:$E$717)*1,('بيان العهد والتسويات'!$C17=المنصرف!$C$3:$C$717)*1,المنصرف!$G$3:$G$717) -> 0 | CO17: =SUMPRODUCT((CN$3=المنصرف!$E$3:$E$717)*1,('بيان العهد والتسويات'!$C17=المنصرف!$C$3:$C$717)*1,المنصرف!$J$3:$J$717) -> 0 | CP17: =SUMPRODUCT((CP$3=المنصرف!$E$3:$E$717)*1,('بيان العهد والتسويات'!$C17=المنصرف!$C$3:$C$717)*1,المنصرف!$G$3:$G$717) -> 0 | CQ17: =SUMPRODUCT((CP$3=المنصرف!$E$3:$E$717)*1,('بيان العهد والتسويات'!$C17=المنصرف!$C$3:$C$717)*1,المنصرف!$J$3:$J$717) -> 0 | CR17: =SUMPRODUCT((CR$3=المنصرف!$E$3:$E$717)*1,('بيان العهد والتسويات'!$C17=المنصرف!$C$3:$C$717)*1,المنصرف!$G$3:$G$717) -> 0 | CS17: =SUMPRODUCT((CR$3=المنصرف!$E$3:$E$717)*1,('بيان العهد والتسويات'!$C17=المنصرف!$C$3:$C$717)*1,المنصرف!$J$3:$J$717) -> 0 | CT17: =SUMPRODUCT((CT$3=المنصرف!$E$3:$E$717)*1,('بيان العهد والتسويات'!$C17=المنصرف!$C$3:$C$717)*1,المنصرف!$G$3:$G$717) -> 0 | CU17: =SUMPRODUCT((CT$3=المنصرف!$E$3:$E$717)*1,('بيان العهد والتسويات'!$C17=المنصرف!$C$3:$C$717)*1,المنصرف!$J$3:$J$717) -> 0 | CV17: =SUMPRODUCT((CV$3=المنصرف!$E$3:$E$717)*1,('بيان العهد والتسويات'!$C17=المنصرف!$C$3:$C$717)*1,المنصرف!$G$3:$G$717) -> 0 | CW17: =SUMPRODUCT((CV$3=المنصرف!$E$3:$E$717)*1,('بيان العهد والتسويات'!$C17=المنصرف!$C$3:$C$717)*1,المنصرف!$J$3:$J$717) -> 0 | CX17: =SUMPRODUCT((CX$3=المنصرف!$E$3:$E$717)*1,('بيان العهد والتسويات'!$C17=المنصرف!$C$3:$C$717)*1,المنصرف!$G$3:$G$717) -> 0 | CY17: =SUMPRODUCT((CX$3=المنصرف!$E$3:$E$717)*1,('بيان العهد والتسويات'!$C17=المنصرف!$C$3:$C$717)*1,المنصرف!$J$3:$J$717) -> 0 | CZ17: =SUMPRODUCT((CZ$3=المنصرف!$E$3:$E$717)*1,('بيان العهد والتسويات'!$C17=المنصرف!$C$3:$C$717)*1,المنصرف!$G$3:$G$717) -> 0 | DA17: =SUMPRODUCT((CZ$3=المنصرف!$E$3:$E$717)*1,('بيان العهد والتسويات'!$C17=المنصرف!$C$3:$C$717)*1,المنصرف!$J$3:$J$717) -> 0
C18: 2025-07-12 | D18: =SUMPRODUCT(($D$3=المنصرف!$E$3:$E$717)*1,('بيان العهد والتسويات'!$C18=المنصرف!$C$3:$C$717)*1,المنصرف!$G$3:$G$717) -> 0 | E18: =SUMPRODUCT(($D$3=المنصرف!$E$3:$E$717)*1,('بيان العهد والتسويات'!$C18=المنصرف!$C$3:$C$717)*1,المنصرف!$J$3:$J$717) -> 0 | F18: =SUMPRODUCT(($F$3=المنصرف!$E$3:$E$717)*1,('بيان العهد والتسويات'!$C18=المنصرف!$C$3:$C$717)*1,المنصرف!$G$3:$G$717) -> 0 | G18: =SUMPRODUCT(($F$3=المنصرف!$E$3:$E$717)*1,('بيان العهد والتسويات'!$C18=المنصرف!$C$3:$C$717)*1,المنصرف!$J$3:$J$717) -> 0 | H18: =SUMPRODUCT(($H$3=المنصرف!$E$3:$E$717)*1,('بيان العهد والتسويات'!$C18=المنصرف!$C$3:$C$717)*1,المنصرف!$G$3:$G$717) -> 0 | I18: =SUMPRODUCT(($H$3=المنصرف!$E$3:$E$717)*1,('بيان العهد والتسويات'!$C18=المنصرف!$C$3:$C$717)*1,المنصرف!$J$3:$J$717) -> 0 | J18: =SUMPRODUCT(($J$3=المنصرف!$E$3:$E$717)*1,('بيان العهد والتسويات'!$C18=المنصرف!$C$3:$C$717)*1,المنصرف!$G$3:$G$717) -> 0 | K18: =SUMPRODUCT(($J$3=المنصرف!$E$3:$E$717)*1,('بيان العهد والتسويات'!$C18=المنصرف!$C$3:$C$717)*1,المنصرف!$J$3:$J$717) -> 0 | L18: =SUMPRODUCT(($L$3=المنصرف!$E$3:$E$717)*1,('بيان العهد والتسويات'!$C18=المنصرف!$C$3:$C$717)*1,المنصرف!$G$3:$G$717) -> 0 | M18: =SUMPRODUCT(($L$3=المنصرف!$E$3:$E$717)*1,('بيان العهد والتسويات'!$C18=المنصرف!$C$3:$C$717)*1,المنصرف!$J$3:$J$717) -> 0 | N18: =SUMPRODUCT(($N$3=المنصرف!$E$3:$E$717)*1,('بيان العهد والتسويات'!$C18=المنصرف!$C$3:$C$717)*1,المنصرف!$G$3:$G$717) -> 0 | O18: =SUMPRODUCT(($N$3=المنصرف!$E$3:$E$717)*1,('بيان العهد والتسويات'!$C18=المنصرف!$C$3:$C$717)*1,المنصرف!$J$3:$J$717) -> 0 | P18: =SUMPRODUCT(($P$3=المنصرف!$E$3:$E$717)*1,('بيان العهد والتسويات'!$C18=المنصرف!$C$3:$C$717)*1,المنصرف!$G$3:$G$717) -> 0 | Q18: =SUMPRODUCT(($P$3=المنصرف!$E$3:$E$717)*1,('بيان العهد والتسويات'!$C18=المنصرف!$C$3:$C$717)*1,المنصرف!$J$3:$J$717) -> 0 | R18: =SUMPRODUCT(($R$3=المنصرف!$E$3:$E$717)*1,('بيان العهد والتسويات'!$C18=المنصرف!$C$3:$C$717)*1,المنصرف!$G$3:$G$717) -> 0 | S18: =SUMPRODUCT(($R$3=المنصرف!$E$3:$E$717)*1,('بيان العهد والتسويات'!$C18=المنصرف!$C$3:$C$717)*1,المنصرف!$J$3:$J$717) -> 0 | T18: =SUMPRODUCT(($T$3=المنصرف!$E$3:$E$717)*1,('بيان العهد والتسويات'!$C18=المنصرف!$C$3:$C$717)*1,المنصرف!$G$3:$G$717) -> 0 | U18: =SUMPRODUCT(($T$3=المنصرف!$E$3:$E$717)*1,('بيان العهد والتسويات'!$C18=المنصرف!$C$3:$C$717)*1,المنصرف!$J$3:$J$717) -> 0 | V18: =SUMPRODUCT(($V$3=المنصرف!$E$3:$E$717)*1,('بيان العهد والتسويات'!$C18=المنصرف!$C$3:$C$717)*1,المنصرف!$G$3:$G$717) -> 0 | W18: =SUMPRODUCT(($V$3=المنصرف!$E$3:$E$717)*1,('بيان العهد والتسويات'!$C18=المنصرف!$C$3:$C$717)*1,المنصرف!$J$3:$J$717) -> 0 | X18: =SUMPRODUCT(($X$3=المنصرف!$E$3:$E$717)*1,('بيان العهد والتسويات'!$C18=المنصرف!$C$3:$C$717)*1,المنصرف!$G$3:$G$717) -> 0 | Y18: =SUMPRODUCT(($X$3=المنصرف!$E$3:$E$717)*1,('بيان العهد والتسويات'!$C18=المنصرف!$C$3:$C$717)*1,المنصرف!$J$3:$J$717) -> 0 | Z18: =SUMPRODUCT(($Z$3=المنصرف!$E$3:$E$717)*1,('بيان العهد والتسويات'!$C18=المنصرف!$C$3:$C$717)*1,المنصرف!$G$3:$G$717) -> 0 | AA18: =SUMPRODUCT(($Z$3=المنصرف!$E$3:$E$717)*1,('بيان العهد والتسويات'!$C18=المنصرف!$C$3:$C$717)*1,المنصرف!$J$3:$J$717) -> 0 | AB18: =SUMPRODUCT(($AB$3=المنصرف!$E$3:$E$717)*1,('بيان العهد والتسويات'!$C18=المنصرف!$C$3:$C$717)*1,المنصرف!$G$3:$G$717) -> 0 | AC18: =SUMPRODUCT(($AB$3=المنصرف!$E$3:$E$717)*1,('بيان العهد والتسويات'!$C18=المنصرف!$C$3:$C$717)*1,المنصرف!$J$3:$J$717) -> 0 | AD18: =SUMPRODUCT(($AD$3=المنصرف!$E$3:$E$717)*1,('بيان العهد والتسويات'!$C18=المنصرف!$C$3:$C$717)*1,المنصرف!$G$3:$G$717) -> 0 | AE18: =SUMPRODUCT(($AD$3=المنصرف!$E$3:$E$717)*1,('بيان العهد والتسويات'!$C18=المنصرف!$C$3:$C$717)*1,المنصرف!$J$3:$J$717) -> 0 | AF18: =SUMPRODUCT(($AF$3=المنصرف!$E$3:$E$717)*1,('بيان العهد والتسويات'!$C18=المنصرف!$C$3:$C$717)*1,المنصرف!$G$3:$G$717) -> 0 | AG18: =SUMPRODUCT(($AF$3=المنصرف!$E$3:$E$717)*1,('بيان العهد والتسويات'!$C18=المنصرف!$C$3:$C$717)*1,المنصرف!$J$3:$J$717) -> 0 | AH18: =SUMPRODUCT(($AH$3=المنصرف!$E$3:$E$717)*1,('بيان العهد والتسويات'!$C18=المنصرف!$C$3:$C$717)*1,المنصرف!$G$3:$G$717) -> 0 | AI18: =SUMPRODUCT(($AH$3=المنصرف!$E$3:$E$717)*1,('بيان العهد والتسويات'!$C18=المنصرف!$C$3:$C$717)*1,المنصرف!$J$3:$J$717) -> 0 | AJ18: =SUMPRODUCT((AJ$3=المنصرف!$E$3:$E$717)*1,('بيان العهد والتسويات'!$C18=المنصرف!$C$3:$C$717)*1,المنصرف!$G$3:$G$717) -> 0 | AK18: =SUMPRODUCT((AJ$3=المنصرف!$E$3:$E$717)*1,('بيان العهد والتسويات'!$C18=المنصرف!$C$3:$C$717)*1,المنصرف!$J$3:$J$717) -> 0 | AL18: =SUMPRODUCT((AL$3=المنصرف!$E$3:$E$717)*1,('بيان العهد والتسويات'!$C18=المنصرف!$C$3:$C$717)*1,المنصرف!$G$3:$G$717) -> 0 | AM18: =SUMPRODUCT((AL$3=المنصرف!$E$3:$E$717)*1,('بيان العهد والتسويات'!$C18=المنصرف!$C$3:$C$717)*1,المنصرف!$J$3:$J$717) -> 0 | AN18: =SUMPRODUCT((AN$3=المنصرف!$E$3:$E$717)*1,('بيان العهد والتسويات'!$C18=المنصرف!$C$3:$C$717)*1,المنصرف!$G$3:$G$717) -> 0 | AO18: =SUMPRODUCT((AN$3=المنصرف!$E$3:$E$717)*1,('بيان العهد والتسويات'!$C18=المنصرف!$C$3:$C$717)*1,المنصرف!$J$3:$J$717) -> 0 | AP18: =SUMPRODUCT((AP$3=المنصرف!$E$3:$E$717)*1,('بيان العهد والتسويات'!$C18=المنصرف!$C$3:$C$717)*1,المنصرف!$G$3:$G$717) -> 0 | AQ18: =SUMPRODUCT((AP$3=المنصرف!$E$3:$E$717)*1,('بيان العهد والتسويات'!$C18=المنصرف!$C$3:$C$717)*1,المنصرف!$J$3:$J$717) -> 0 | AR18: =SUMPRODUCT((AR$3=المنصرف!$E$3:$E$717)*1,('بيان العهد والتسويات'!$C18=المنصرف!$C$3:$C$717)*1,المنصرف!$G$3:$G$717) -> 0 | AS18: =SUMPRODUCT((AR$3=المنصرف!$E$3:$E$717)*1,('بيان العهد والتسويات'!$C18=المنصرف!$C$3:$C$717)*1,المنصرف!$J$3:$J$717) -> 0 | AT18: =SUMPRODUCT((AT$3=المنصرف!$E$3:$E$717)*1,('بيان العهد والتسويات'!$C18=المنصرف!$C$3:$C$717)*1,المنصرف!$G$3:$G$717) -> 0 | AU18: =SUMPRODUCT((AT$3=المنصرف!$E$3:$E$717)*1,('بيان العهد والتسويات'!$C18=المنصرف!$C$3:$C$717)*1,المنصرف!$J$3:$J$717) -> 0 | AV18: =SUMPRODUCT((AV$3=المنصرف!$E$3:$E$717)*1,('بيان العهد والتسويات'!$C18=المنصرف!$C$3:$C$717)*1,المنصرف!$G$3:$G$717) -> 0 | AW18: =SUMPRODUCT((AV$3=المنصرف!$E$3:$E$717)*1,('بيان العهد والتسويات'!$C18=المنصرف!$C$3:$C$717)*1,المنصرف!$J$3:$J$717) -> 0 | AX18: =SUMPRODUCT((AX$3=المنصرف!$E$3:$E$717)*1,('بيان العهد والتسويات'!$C18=المنصرف!$C$3:$C$717)*1,المنصرف!$G$3:$G$717) -> 0 | AY18: =SUMPRODUCT((AX$3=المنصرف!$E$3:$E$717)*1,('بيان العهد والتسويات'!$C18=المنصرف!$C$3:$C$717)*1,المنصرف!$J$3:$J$717) -> 0 | AZ18: =SUMPRODUCT((AZ$3=المنصرف!$E$3:$E$717)*1,('بيان العهد والتسويات'!$C18=المنصرف!$C$3:$C$717)*1,المنصرف!$G$3:$G$717) -> 0 | BA18: =SUMPRODUCT((AZ$3=المنصرف!$E$3:$E$717)*1,('بيان العهد والتسويات'!$C18=المنصرف!$C$3:$C$717)*1,المنصرف!$J$3:$J$717) -> 0 | BB18: =SUMPRODUCT((BB$3=المنصرف!$E$3:$E$717)*1,('بيان العهد والتسويات'!$C18=المنصرف!$C$3:$C$717)*1,المنصرف!$G$3:$G$717) -> 0 | BC18: =SUMPRODUCT((BB$3=المنصرف!$E$3:$E$717)*1,('بيان العهد والتسويات'!$C18=المنصرف!$C$3:$C$717)*1,المنصرف!$J$3:$J$717) -> 0 | BD18: =SUMPRODUCT((BD$3=المنصرف!$E$3:$E$717)*1,('بيان العهد والتسويات'!$C18=المنصرف!$C$3:$C$717)*1,المنصرف!$G$3:$G$717) -> 0 | BE18: =SUMPRODUCT((BD$3=المنصرف!$E$3:$E$717)*1,('بيان العهد والتسويات'!$C18=المنصرف!$C$3:$C$717)*1,المنصرف!$J$3:$J$717) -> 0 | BF18: =SUMPRODUCT((BF$3=المنصرف!$E$3:$E$717)*1,('بيان العهد والتسويات'!$C18=المنصرف!$C$3:$C$717)*1,المنصرف!$G$3:$G$717) -> 0 | BG18: =SUMPRODUCT((BF$3=المنصرف!$E$3:$E$717)*1,('بيان العهد والتسويات'!$C18=المنصرف!$C$3:$C$717)*1,المنصرف!$J$3:$J$717) -> 0 | BH18: =SUMPRODUCT((BH$3=المنصرف!$E$3:$E$717)*1,('بيان العهد والتسويات'!$C18=المنصرف!$C$3:$C$717)*1,المنصرف!$G$3:$G$717) -> 0 | BI18: =SUMPRODUCT((BH$3=المنصرف!$E$3:$E$717)*1,('بيان العهد والتسويات'!$C18=المنصرف!$C$3:$C$717)*1,المنصرف!$J$3:$J$717) -> 0 | BJ18: =SUMPRODUCT((BJ$3=المنصرف!$E$3:$E$717)*1,('بيان العهد والتسويات'!$C18=المنصرف!$C$3:$C$717)*1,المنصرف!$G$3:$G$717) -> 0 | BK18: =SUMPRODUCT((BJ$3=المنصرف!$E$3:$E$717)*1,('بيان العهد والتسويات'!$C18=المنصرف!$C$3:$C$717)*1,المنصرف!$J$3:$J$717) -> 0 | BL18: =SUMPRODUCT((BL$3=المنصرف!$E$3:$E$717)*1,('بيان العهد والتسويات'!$C18=المنصرف!$C$3:$C$717)*1,المنصرف!$G$3:$G$717) -> 0 | BM18: =SUMPRODUCT((BL$3=المنصرف!$E$3:$E$717)*1,('بيان العهد والتسويات'!$C18=المنصرف!$C$3:$C$717)*1,المنصرف!$J$3:$J$717) -> 0 | BN18: =SUMPRODUCT((BN$3=المنصرف!$E$3:$E$717)*1,('بيان العهد والتسويات'!$C18=المنصرف!$C$3:$C$717)*1,المنصرف!$G$3:$G$717) -> 0 | BO18: =SUMPRODUCT((BN$3=المنصرف!$E$3:$E$717)*1,('بيان العهد والتسويات'!$C18=المنصرف!$C$3:$C$717)*1,المنصرف!$J$3:$J$717) -> 0 | BP18: =SUMPRODUCT((BP$3=المنصرف!$E$3:$E$717)*1,('بيان العهد والتسويات'!$C18=المنصرف!$C$3:$C$717)*1,المنصرف!$G$3:$G$717) -> 0 | BQ18: =SUMPRODUCT((BP$3=المنصرف!$E$3:$E$717)*1,('بيان العهد والتسويات'!$C18=المنصرف!$C$3:$C$717)*1,المنصرف!$J$3:$J$717) -> 0 | BR18: =SUMPRODUCT((BR$3=المنصرف!$E$3:$E$717)*1,('بيان العهد والتسويات'!$C18=المنصرف!$C$3:$C$717)*1,المنصرف!$G$3:$G$717) -> 0 | BS18: =SUMPRODUCT((BR$3=المنصرف!$E$3:$E$717)*1,('بيان العهد والتسويات'!$C18=المنصرف!$C$3:$C$717)*1,المنصرف!$J$3:$J$717) -> 0 | BT18: =SUMPRODUCT((BT$3=المنصرف!$E$3:$E$717)*1,('بيان العهد والتسويات'!$C18=المنصرف!$C$3:$C$717)*1,المنصرف!$G$3:$G$717) -> 0 | BU18: =SUMPRODUCT((BT$3=المنصرف!$E$3:$E$717)*1,('بيان العهد والتسويات'!$C18=المنصرف!$C$3:$C$717)*1,المنصرف!$J$3:$J$717) -> 0 | BV18: =SUMPRODUCT((BV$3=المنصرف!$E$3:$E$717)*1,('بيان العهد والتسويات'!$C18=المنصرف!$C$3:$C$717)*1,المنصرف!$G$3:$G$717) -> 0 | BW18: =SUMPRODUCT((BV$3=المنصرف!$E$3:$E$717)*1,('بيان العهد والتسويات'!$C18=المنصرف!$C$3:$C$717)*1,المنصرف!$J$3:$J$717) -> 0 | BX18: =SUMPRODUCT((BX$3=المنصرف!$E$3:$E$717)*1,('بيان العهد والتسويات'!$C18=المنصرف!$C$3:$C$717)*1,المنصرف!$G$3:$G$717) -> 0 | BY18: =SUMPRODUCT((BX$3=المنصرف!$E$3:$E$717)*1,('بيان العهد والتسويات'!$C18=المنصرف!$C$3:$C$717)*1,المنصرف!$J$3:$J$717) -> 0 | BZ18: =SUMPRODUCT((BZ$3=المنصرف!$E$3:$E$717)*1,('بيان العهد والتسويات'!$C18=المنصرف!$C$3:$C$717)*1,المنصرف!$G$3:$G$717) -> 0 | CA18: =SUMPRODUCT((BZ$3=المنصرف!$E$3:$E$717)*1,('بيان العهد والتسويات'!$C18=المنصرف!$C$3:$C$717)*1,المنصرف!$J$3:$J$717) -> 0 | CB18: =SUMPRODUCT((CB$3=المنصرف!$E$3:$E$717)*1,('بيان العهد والتسويات'!$C18=المنصرف!$C$3:$C$717)*1,المنصرف!$G$3:$G$717) -> 0 | CC18: =SUMPRODUCT((CB$3=المنصرف!$E$3:$E$717)*1,('بيان العهد والتسويات'!$C18=المنصرف!$C$3:$C$717)*1,المنصرف!$J$3:$J$717) -> 0 | CD18: =SUMPRODUCT((CD$3=المنصرف!$E$3:$E$717)*1,('بيان العهد والتسويات'!$C18=المنصرف!$C$3:$C$717)*1,المنصرف!$G$3:$G$717) -> 0 | CE18: =SUMPRODUCT((CD$3=المنصرف!$E$3:$E$717)*1,('بيان العهد والتسويات'!$C18=المنصرف!$C$3:$C$717)*1,المنصرف!$J$3:$J$717) -> 0 | CF18: =SUMPRODUCT((CF$3=المنصرف!$E$3:$E$717)*1,('بيان العهد والتسويات'!$C18=المنصرف!$C$3:$C$717)*1,المنصرف!$G$3:$G$717) -> 0 | CG18: =SUMPRODUCT((CF$3=المنصرف!$E$3:$E$717)*1,('بيان العهد والتسويات'!$C18=المنصرف!$C$3:$C$717)*1,المنصرف!$J$3:$J$717) -> 0 | CH18: =SUMPRODUCT((CH$3=المنصرف!$E$3:$E$717)*1,('بيان العهد والتسويات'!$C18=المنصرف!$C$3:$C$717)*1,المنصرف!$G$3:$G$717) -> 0 | CI18: =SUMPRODUCT((CH$3=المنصرف!$E$3:$E$717)*1,('بيان العهد والتسويات'!$C18=المنصرف!$C$3:$C$717)*1,المنصرف!$J$3:$J$717) -> 0 | CJ18: =SUMPRODUCT((CJ$3=المنصرف!$E$3:$E$717)*1,('بيان العهد والتسويات'!$C18=المنصرف!$C$3:$C$717)*1,المنصرف!$G$3:$G$717) -> 0 | CK18: =SUMPRODUCT((CJ$3=المنصرف!$E$3:$E$717)*1,('بيان العهد والتسويات'!$C18=المنصرف!$C$3:$C$717)*1,المنصرف!$J$3:$J$717) -> 0 | CL18: =SUMPRODUCT((CL$3=المنصرف!$E$3:$E$717)*1,('بيان العهد والتسويات'!$C18=المنصرف!$C$3:$C$717)*1,المنصرف!$G$3:$G$717) -> 0 | CM18: =SUMPRODUCT((CL$3=المنصرف!$E$3:$E$717)*1,('بيان العهد والتسويات'!$C18=المنصرف!$C$3:$C$717)*1,المنصرف!$J$3:$J$717) -> 0 | CN18: =SUMPRODUCT((CN$3=المنصرف!$E$3:$E$717)*1,('بيان العهد والتسويات'!$C18=المنصرف!$C$3:$C$717)*1,المنصرف!$G$3:$G$717) -> 0 | CO18: =SUMPRODUCT((CN$3=المنصرف!$E$3:$E$717)*1,('بيان العهد والتسويات'!$C18=المنصرف!$C$3:$C$717)*1,المنصرف!$J$3:$J$717) -> 0 | CP18: =SUMPRODUCT((CP$3=المنصرف!$E$3:$E$717)*1,('بيان العهد والتسويات'!$C18=المنصرف!$C$3:$C$717)*1,المنصرف!$G$3:$G$717) -> 0 | CQ18: =SUMPRODUCT((CP$3=المنصرف!$E$3:$E$717)*1,('بيان العهد والتسويات'!$C18=المنصرف!$C$3:$C$717)*1,المنصرف!$J$3:$J$717) -> 0 | CR18: =SUMPRODUCT((CR$3=المنصرف!$E$3:$E$717)*1,('بيان العهد والتسويات'!$C18=المنصرف!$C$3:$C$717)*1,المنصرف!$G$3:$G$717) -> 0 | CS18: =SUMPRODUCT((CR$3=المنصرف!$E$3:$E$717)*1,('بيان العهد والتسويات'!$C18=المنصرف!$C$3:$C$717)*1,المنصرف!$J$3:$J$717) -> 0 | CT18: =SUMPRODUCT((CT$3=المنصرف!$E$3:$E$717)*1,('بيان العهد والتسويات'!$C18=المنصرف!$C$3:$C$717)*1,المنصرف!$G$3:$G$717) -> 0 | CU18: =SUMPRODUCT((CT$3=المنصرف!$E$3:$E$717)*1,('بيان العهد والتسويات'!$C18=المنصرف!$C$3:$C$717)*1,المنصرف!$J$3:$J$717) -> 0 | CV18: =SUMPRODUCT((CV$3=المنصرف!$E$3:$E$717)*1,('بيان العهد والتسويات'!$C18=المنصرف!$C$3:$C$717)*1,المنصرف!$G$3:$G$717) -> 0 | CW18: =SUMPRODUCT((CV$3=المنصرف!$E$3:$E$717)*1,('بيان العهد والتسويات'!$C18=المنصرف!$C$3:$C$717)*1,المنصرف!$J$3:$J$717) -> 0 | CX18: =SUMPRODUCT((CX$3=المنصرف!$E$3:$E$717)*1,('بيان العهد والتسويات'!$C18=المنصرف!$C$3:$C$717)*1,المنصرف!$G$3:$G$717) -> 0 | CY18: =SUMPRODUCT((CX$3=المنصرف!$E$3:$E$717)*1,('بيان العهد والتسويات'!$C18=المنصرف!$C$3:$C$717)*1,المنصرف!$J$3:$J$717) -> 0 | CZ18: =SUMPRODUCT((CZ$3=المنصرف!$E$3:$E$717)*1,('بيان العهد والتسويات'!$C18=المنصرف!$C$3:$C$717)*1,المنصرف!$G$3:$G$717) -> 0 | DA18: =SUMPRODUCT((CZ$3=المنصرف!$E$3:$E$717)*1,('بيان العهد والتسويات'!$C18=المنصرف!$C$3:$C$717)*1,المنصرف!$J$3:$J$717) -> 0
C19: 2025-07-13 | D19: =SUMPRODUCT(($D$3=المنصرف!$E$3:$E$717)*1,('بيان العهد والتسويات'!$C19=المنصرف!$C$3:$C$717)*1,المنصرف!$G$3:$G$717) -> 136246.63 | E19: =SUMPRODUCT(($D$3=المنصرف!$E$3:$E$717)*1,('بيان العهد والتسويات'!$C19=المنصرف!$C$3:$C$717)*1,المنصرف!$J$3:$J$717) -> 93600 | F19: =SUMPRODUCT(($F$3=المنصرف!$E$3:$E$717)*1,('بيان العهد والتسويات'!$C19=المنصرف!$C$3:$C$717)*1,المنصرف!$G$3:$G$717) -> 0 | G19: =SUMPRODUCT(($F$3=المنصرف!$E$3:$E$717)*1,('بيان العهد والتسويات'!$C19=المنصرف!$C$3:$C$717)*1,المنصرف!$J$3:$J$717) -> 0 | H19: =SUMPRODUCT(($H$3=المنصرف!$E$3:$E$717)*1,('بيان العهد والتسويات'!$C19=المنصرف!$C$3:$C$717)*1,المنصرف!$G$3:$G$717) -> 100000 | I19: =SUMPRODUCT(($H$3=المنصرف!$E$3:$E$717)*1,('بيان العهد والتسويات'!$C19=المنصرف!$C$3:$C$717)*1,المنصرف!$J$3:$J$717) -> 0 | J19: =SUMPRODUCT(($J$3=المنصرف!$E$3:$E$717)*1,('بيان العهد والتسويات'!$C19=المنصرف!$C$3:$C$717)*1,المنصرف!$G$3:$G$717) -> 0 | K19: =SUMPRODUCT(($J$3=المنصرف!$E$3:$E$717)*1,('بيان العهد والتسويات'!$C19=المنصرف!$C$3:$C$717)*1,المنصرف!$J$3:$J$717) -> 0 | L19: =SUMPRODUCT(($L$3=المنصرف!$E$3:$E$717)*1,('بيان العهد والتسويات'!$C19=المنصرف!$C$3:$C$717)*1,المنصرف!$G$3:$G$717) -> 0 | M19: =SUMPRODUCT(($L$3=المنصرف!$E$3:$E$717)*1,('بيان العهد والتسويات'!$C19=المنصرف!$C$3:$C$717)*1,المنصرف!$J$3:$J$717) -> 0 | N19: =SUMPRODUCT(($N$3=المنصرف!$E$3:$E$717)*1,('بيان العهد والتسويات'!$C19=المنصرف!$C$3:$C$717)*1,المنصرف!$G$3:$G$717) -> 0 | O19: =SUMPRODUCT(($N$3=المنصرف!$E$3:$E$717)*1,('بيان العهد والتسويات'!$C19=المنصرف!$C$3:$C$717)*1,المنصرف!$J$3:$J$717) -> 0 | P19: =SUMPRODUCT(($P$3=المنصرف!$E$3:$E$717)*1,('بيان العهد والتسويات'!$C19=المنصرف!$C$3:$C$717)*1,المنصرف!$G$3:$G$717) -> 0 | Q19: =SUMPRODUCT(($P$3=المنصرف!$E$3:$E$717)*1,('بيان العهد والتسويات'!$C19=المنصرف!$C$3:$C$717)*1,المنصرف!$J$3:$J$717) -> 0 | R19: =SUMPRODUCT(($R$3=المنصرف!$E$3:$E$717)*1,('بيان العهد والتسويات'!$C19=المنصرف!$C$3:$C$717)*1,المنصرف!$G$3:$G$717) -> 0 | S19: =SUMPRODUCT(($R$3=المنصرف!$E$3:$E$717)*1,('بيان العهد والتسويات'!$C19=المنصرف!$C$3:$C$717)*1,المنصرف!$J$3:$J$717) -> 0 | T19: =SUMPRODUCT(($T$3=المنصرف!$E$3:$E$717)*1,('بيان العهد والتسويات'!$C19=المنصرف!$C$3:$C$717)*1,المنصرف!$G$3:$G$717) -> 0 | U19: =SUMPRODUCT(($T$3=المنصرف!$E$3:$E$717)*1,('بيان العهد والتسويات'!$C19=المنصرف!$C$3:$C$717)*1,المنصرف!$J$3:$J$717) -> 0 | V19: =SUMPRODUCT(($V$3=المنصرف!$E$3:$E$717)*1,('بيان العهد والتسويات'!$C19=المنصرف!$C$3:$C$717)*1,المنصرف!$G$3:$G$717) -> 0 | W19: =SUMPRODUCT(($V$3=المنصرف!$E$3:$E$717)*1,('بيان العهد والتسويات'!$C19=المنصرف!$C$3:$C$717)*1,المنصرف!$J$3:$J$717) -> 0 | X19: =SUMPRODUCT(($X$3=المنصرف!$E$3:$E$717)*1,('بيان العهد والتسويات'!$C19=المنصرف!$C$3:$C$717)*1,المنصرف!$G$3:$G$717) -> 0 | Y19: =SUMPRODUCT(($X$3=المنصرف!$E$3:$E$717)*1,('بيان العهد والتسويات'!$C19=المنصرف!$C$3:$C$717)*1,المنصرف!$J$3:$J$717) -> 0 | Z19: =SUMPRODUCT(($Z$3=المنصرف!$E$3:$E$717)*1,('بيان العهد والتسويات'!$C19=المنصرف!$C$3:$C$717)*1,المنصرف!$G$3:$G$717) -> 0 | AA19: =SUMPRODUCT(($Z$3=المنصرف!$E$3:$E$717)*1,('بيان العهد والتسويات'!$C19=المنصرف!$C$3:$C$717)*1,المنصرف!$J$3:$J$717) -> 0 | AB19: =SUMPRODUCT(($AB$3=المنصرف!$E$3:$E$717)*1,('بيان العهد والتسويات'!$C19=المنصرف!$C$3:$C$717)*1,المنصرف!$G$3:$G$717) -> 0 | AC19: =SUMPRODUCT(($AB$3=المنصرف!$E$3:$E$717)*1,('بيان العهد والتسويات'!$C19=المنصرف!$C$3:$C$717)*1,المنصرف!$J$3:$J$717) -> 0 | AD19: =SUMPRODUCT(($AD$3=المنصرف!$E$3:$E$717)*1,('بيان العهد والتسويات'!$C19=المنصرف!$C$3:$C$717)*1,المنصرف!$G$3:$G$717) -> 0 | AE19: =SUMPRODUCT(($AD$3=المنصرف!$E$3:$E$717)*1,('بيان العهد والتسويات'!$C19=المنصرف!$C$3:$C$717)*1,المنصرف!$J$3:$J$717) -> 0 | AF19: =SUMPRODUCT(($AF$3=المنصرف!$E$3:$E$717)*1,('بيان العهد والتسويات'!$C19=المنصرف!$C$3:$C$717)*1,المنصرف!$G$3:$G$717) -> 0 | AG19: =SUMPRODUCT(($AF$3=المنصرف!$E$3:$E$717)*1,('بيان العهد والتسويات'!$C19=المنصرف!$C$3:$C$717)*1,المنصرف!$J$3:$J$717) -> 0 | AH19: =SUMPRODUCT(($AH$3=المنصرف!$E$3:$E$717)*1,('بيان العهد والتسويات'!$C19=المنصرف!$C$3:$C$717)*1,المنصرف!$G$3:$G$717) -> 0 | AI19: =SUMPRODUCT(($AH$3=المنصرف!$E$3:$E$717)*1,('بيان العهد والتسويات'!$C19=المنصرف!$C$3:$C$717)*1,المنصرف!$J$3:$J$717) -> 0 | AJ19: =SUMPRODUCT((AJ$3=المنصرف!$E$3:$E$717)*1,('بيان العهد والتسويات'!$C19=المنصرف!$C$3:$C$717)*1,المنصرف!$G$3:$G$717) -> 0 | AK19: =SUMPRODUCT((AJ$3=المنصرف!$E$3:$E$717)*1,('بيان العهد والتسويات'!$C19=المنصرف!$C$3:$C$717)*1,المنصرف!$J$3:$J$717) -> 0 | AL19: =SUMPRODUCT((AL$3=المنصرف!$E$3:$E$717)*1,('بيان العهد والتسويات'!$C19=المنصرف!$C$3:$C$717)*1,المنصرف!$G$3:$G$717) -> 0 | AM19: =SUMPRODUCT((AL$3=المنصرف!$E$3:$E$717)*1,('بيان العهد والتسويات'!$C19=المنصرف!$C$3:$C$717)*1,المنصرف!$J$3:$J$717) -> 0 | AN19: =SUMPRODUCT((AN$3=المنصرف!$E$3:$E$717)*1,('بيان العهد والتسويات'!$C19=المنصرف!$C$3:$C$717)*1,المنصرف!$G$3:$G$717) -> 0 | AO19: =SUMPRODUCT((AN$3=المنصرف!$E$3:$E$717)*1,('بيان العهد والتسويات'!$C19=المنصرف!$C$3:$C$717)*1,المنصرف!$J$3:$J$717) -> 0 | AP19: =SUMPRODUCT((AP$3=المنصرف!$E$3:$E$717)*1,('بيان العهد والتسويات'!$C19=المنصرف!$C$3:$C$717)*1,المنصرف!$G$3:$G$717) -> 0 | AQ19: =SUMPRODUCT((AP$3=المنصرف!$E$3:$E$717)*1,('بيان العهد والتسويات'!$C19=المنصرف!$C$3:$C$717)*1,المنصرف!$J$3:$J$717) -> 0 | AR19: =SUMPRODUCT((AR$3=المنصرف!$E$3:$E$717)*1,('بيان العهد والتسويات'!$C19=المنصرف!$C$3:$C$717)*1,المنصرف!$G$3:$G$717) -> 0 | AS19: =SUMPRODUCT((AR$3=المنصرف!$E$3:$E$717)*1,('بيان العهد والتسويات'!$C19=المنصرف!$C$3:$C$717)*1,المنصرف!$J$3:$J$717) -> 0 | AT19: =SUMPRODUCT((AT$3=المنصرف!$E$3:$E$717)*1,('بيان العهد والتسويات'!$C19=المنصرف!$C$3:$C$717)*1,المنصرف!$G$3:$G$717) -> 0 | AU19: =SUMPRODUCT((AT$3=المنصرف!$E$3:$E$717)*1,('بيان العهد والتسويات'!$C19=المنصرف!$C$3:$C$717)*1,المنصرف!$J$3:$J$717) -> 0 | AV19: =SUMPRODUCT((AV$3=المنصرف!$E$3:$E$717)*1,('بيان العهد والتسويات'!$C19=المنصرف!$C$3:$C$717)*1,المنصرف!$G$3:$G$717) -> 0 | AW19: =SUMPRODUCT((AV$3=المنصرف!$E$3:$E$717)*1,('بيان العهد والتسويات'!$C19=المنصرف!$C$3:$C$717)*1,المنصرف!$J$3:$J$717) -> 0 | AX19: =SUMPRODUCT((AX$3=المنصرف!$E$3:$E$717)*1,('بيان العهد والتسويات'!$C19=المنصرف!$C$3:$C$717)*1,المنصرف!$G$3:$G$717) -> 0 | AY19: =SUMPRODUCT((AX$3=المنصرف!$E$3:$E$717)*1,('بيان العهد والتسويات'!$C19=المنصرف!$C$3:$C$717)*1,المنصرف!$J$3:$J$717) -> 0 | AZ19: =SUMPRODUCT((AZ$3=المنصرف!$E$3:$E$717)*1,('بيان العهد والتسويات'!$C19=المنصرف!$C$3:$C$717)*1,المنصرف!$G$3:$G$717) -> 0 | BA19: =SUMPRODUCT((AZ$3=المنصرف!$E$3:$E$717)*1,('بيان العهد والتسويات'!$C19=المنصرف!$C$3:$C$717)*1,المنصرف!$J$3:$J$717) -> 0 | BB19: =SUMPRODUCT((BB$3=المنصرف!$E$3:$E$717)*1,('بيان العهد والتسويات'!$C19=المنصرف!$C$3:$C$717)*1,المنصرف!$G$3:$G$717) -> 0 | BC19: =SUMPRODUCT((BB$3=المنصرف!$E$3:$E$717)*1,('بيان العهد والتسويات'!$C19=المنصرف!$C$3:$C$717)*1,المنصرف!$J$3:$J$717) -> 0 | BD19: =SUMPRODUCT((BD$3=المنصرف!$E$3:$E$717)*1,('بيان العهد والتسويات'!$C19=المنصرف!$C$3:$C$717)*1,المنصرف!$G$3:$G$717) -> 0 | BE19: =SUMPRODUCT((BD$3=المنصرف!$E$3:$E$717)*1,('بيان العهد والتسويات'!$C19=المنصرف!$C$3:$C$717)*1,المنصرف!$J$3:$J$717) -> 0 | BF19: =SUMPRODUCT((BF$3=المنصرف!$E$3:$E$717)*1,('بيان العهد والتسويات'!$C19=المنصرف!$C$3:$C$717)*1,المنصرف!$G$3:$G$717) -> 0 | BG19: =SUMPRODUCT((BF$3=المنصرف!$E$3:$E$717)*1,('بيان العهد والتسويات'!$C19=المنصرف!$C$3:$C$717)*1,المنصرف!$J$3:$J$717) -> 0 | BH19: =SUMPRODUCT((BH$3=المنصرف!$E$3:$E$717)*1,('بيان العهد والتسويات'!$C19=المنصرف!$C$3:$C$717)*1,المنصرف!$G$3:$G$717) -> 0 | BI19: =SUMPRODUCT((BH$3=المنصرف!$E$3:$E$717)*1,('بيان العهد والتسويات'!$C19=المنصرف!$C$3:$C$717)*1,المنصرف!$J$3:$J$717) -> 0 | BJ19: =SUMPRODUCT((BJ$3=المنصرف!$E$3:$E$717)*1,('بيان العهد والتسويات'!$C19=المنصرف!$C$3:$C$717)*1,المنصرف!$G$3:$G$717) -> 0 | BK19: =SUMPRODUCT((BJ$3=المنصرف!$E$3:$E$717)*1,('بيان العهد والتسويات'!$C19=المنصرف!$C$3:$C$717)*1,المنصرف!$J$3:$J$717) -> 0 | BL19: =SUMPRODUCT((BL$3=المنصرف!$E$3:$E$717)*1,('بيان العهد والتسويات'!$C19=المنصرف!$C$3:$C$717)*1,المنصرف!$G$3:$G$717) -> 0 | BM19: =SUMPRODUCT((BL$3=المنصرف!$E$3:$E$717)*1,('بيان العهد والتسويات'!$C19=المنصرف!$C$3:$C$717)*1,المنصرف!$J$3:$J$717) -> 0 | BN19: =SUMPRODUCT((BN$3=المنصرف!$E$3:$E$717)*1,('بيان العهد والتسويات'!$C19=المنصرف!$C$3:$C$717)*1,المنصرف!$G$3:$G$717) -> 0 | BO19: =SUMPRODUCT((BN$3=المنصرف!$E$3:$E$717)*1,('بيان العهد والتسويات'!$C19=المنصرف!$C$3:$C$717)*1,المنصرف!$J$3:$J$717) -> 0 | BP19: =SUMPRODUCT((BP$3=المنصرف!$E$3:$E$717)*1,('بيان العهد والتسويات'!$C19=المنصرف!$C$3:$C$717)*1,المنصرف!$G$3:$G$717) -> 0 | BQ19: =SUMPRODUCT((BP$3=المنصرف!$E$3:$E$717)*1,('بيان العهد والتسويات'!$C19=المنصرف!$C$3:$C$717)*1,المنصرف!$J$3:$J$717) -> 0 | BR19: =SUMPRODUCT((BR$3=المنصرف!$E$3:$E$717)*1,('بيان العهد والتسويات'!$C19=المنصرف!$C$3:$C$717)*1,المنصرف!$G$3:$G$717) -> 0 | BS19: =SUMPRODUCT((BR$3=المنصرف!$E$3:$E$717)*1,('بيان العهد والتسويات'!$C19=المنصرف!$C$3:$C$717)*1,المنصرف!$J$3:$J$717) -> 0 | BT19: =SUMPRODUCT((BT$3=المنصرف!$E$3:$E$717)*1,('بيان العهد والتسويات'!$C19=المنصرف!$C$3:$C$717)*1,المنصرف!$G$3:$G$717) -> 0 | BU19: =SUMPRODUCT((BT$3=المنصرف!$E$3:$E$717)*1,('بيان العهد والتسويات'!$C19=المنصرف!$C$3:$C$717)*1,المنصرف!$J$3:$J$717) -> 0 | BV19: =SUMPRODUCT((BV$3=المنصرف!$E$3:$E$717)*1,('بيان العهد والتسويات'!$C19=المنصرف!$C$3:$C$717)*1,المنصرف!$G$3:$G$717) -> 0 | BW19: =SUMPRODUCT((BV$3=المنصرف!$E$3:$E$717)*1,('بيان العهد والتسويات'!$C19=المنصرف!$C$3:$C$717)*1,المنصرف!$J$3:$J$717) -> 0 | BX19: =SUMPRODUCT((BX$3=المنصرف!$E$3:$E$717)*1,('بيان العهد والتسويات'!$C19=المنصرف!$C$3:$C$717)*1,المنصرف!$G$3:$G$717) -> 0 | BY19: =SUMPRODUCT((BX$3=المنصرف!$E$3:$E$717)*1,('بيان العهد والتسويات'!$C19=المنصرف!$C$3:$C$717)*1,المنصرف!$J$3:$J$717) -> 0 | BZ19: =SUMPRODUCT((BZ$3=المنصرف!$E$3:$E$717)*1,('بيان العهد والتسويات'!$C19=المنصرف!$C$3:$C$717)*1,المنصرف!$G$3:$G$717) -> 0 | CA19: =SUMPRODUCT((BZ$3=المنصرف!$E$3:$E$717)*1,('بيان العهد والتسويات'!$C19=المنصرف!$C$3:$C$717)*1,المنصرف!$J$3:$J$717) -> 0 | CB19: =SUMPRODUCT((CB$3=المنصرف!$E$3:$E$717)*1,('بيان العهد والتسويات'!$C19=المنصرف!$C$3:$C$717)*1,المنصرف!$G$3:$G$717) -> 0 | CC19: =SUMPRODUCT((CB$3=المنصرف!$E$3:$E$717)*1,('بيان العهد والتسويات'!$C19=المنصرف!$C$3:$C$717)*1,المنصرف!$J$3:$J$717) -> 0 | CD19: =SUMPRODUCT((CD$3=المنصرف!$E$3:$E$717)*1,('بيان العهد والتسويات'!$C19=المنصرف!$C$3:$C$717)*1,المنصرف!$G$3:$G$717) -> 0 | CE19: =SUMPRODUCT((CD$3=المنصرف!$E$3:$E$717)*1,('بيان العهد والتسويات'!$C19=المنصرف!$C$3:$C$717)*1,المنصرف!$J$3:$J$717) -> 0 | CF19: =SUMPRODUCT((CF$3=المنصرف!$E$3:$E$717)*1,('بيان العهد والتسويات'!$C19=المنصرف!$C$3:$C$717)*1,المنصرف!$G$3:$G$717) -> 0 | CG19: =SUMPRODUCT((CF$3=المنصرف!$E$3:$E$717)*1,('بيان العهد والتسويات'!$C19=المنصرف!$C$3:$C$717)*1,المنصرف!$J$3:$J$717) -> 0 | CH19: =SUMPRODUCT((CH$3=المنصرف!$E$3:$E$717)*1,('بيان العهد والتسويات'!$C19=المنصرف!$C$3:$C$717)*1,المنصرف!$G$3:$G$717) -> 0 | CI19: =SUMPRODUCT((CH$3=المنصرف!$E$3:$E$717)*1,('بيان العهد والتسويات'!$C19=المنصرف!$C$3:$C$717)*1,المنصرف!$J$3:$J$717) -> 0 | CJ19: =SUMPRODUCT((CJ$3=المنصرف!$E$3:$E$717)*1,('بيان العهد والتسويات'!$C19=المنصرف!$C$3:$C$717)*1,المنصرف!$G$3:$G$717) -> 0 | CK19: =SUMPRODUCT((CJ$3=المنصرف!$E$3:$E$717)*1,('بيان العهد والتسويات'!$C19=المنصرف!$C$3:$C$717)*1,المنصرف!$J$3:$J$717) -> 0 | CL19: =SUMPRODUCT((CL$3=المنصرف!$E$3:$E$717)*1,('بيان العهد والتسويات'!$C19=المنصرف!$C$3:$C$717)*1,المنصرف!$G$3:$G$717) -> 0 | CM19: =SUMPRODUCT((CL$3=المنصرف!$E$3:$E$717)*1,('بيان العهد والتسويات'!$C19=المنصرف!$C$3:$C$717)*1,المنصرف!$J$3:$J$717) -> 0 | CN19: =SUMPRODUCT((CN$3=المنصرف!$E$3:$E$717)*1,('بيان العهد والتسويات'!$C19=المنصرف!$C$3:$C$717)*1,المنصرف!$G$3:$G$717) -> 0 | CO19: =SUMPRODUCT((CN$3=المنصرف!$E$3:$E$717)*1,('بيان العهد والتسويات'!$C19=المنصرف!$C$3:$C$717)*1,المنصرف!$J$3:$J$717) -> 0 | CP19: =SUMPRODUCT((CP$3=المنصرف!$E$3:$E$717)*1,('بيان العهد والتسويات'!$C19=المنصرف!$C$3:$C$717)*1,المنصرف!$G$3:$G$717) -> 0 | CQ19: =SUMPRODUCT((CP$3=المنصرف!$E$3:$E$717)*1,('بيان العهد والتسويات'!$C19=المنصرف!$C$3:$C$717)*1,المنصرف!$J$3:$J$717) -> 0 | CR19: =SUMPRODUCT((CR$3=المنصرف!$E$3:$E$717)*1,('بيان العهد والتسويات'!$C19=المنصرف!$C$3:$C$717)*1,المنصرف!$G$3:$G$717) -> 0 | CS19: =SUMPRODUCT((CR$3=المنصرف!$E$3:$E$717)*1,('بيان العهد والتسويات'!$C19=المنصرف!$C$3:$C$717)*1,المنصرف!$J$3:$J$717) -> 0 | CT19: =SUMPRODUCT((CT$3=المنصرف!$E$3:$E$717)*1,('بيان العهد والتسويات'!$C19=المنصرف!$C$3:$C$717)*1,المنصرف!$G$3:$G$717) -> 0 | CU19: =SUMPRODUCT((CT$3=المنصرف!$E$3:$E$717)*1,('بيان العهد والتسويات'!$C19=المنصرف!$C$3:$C$717)*1,المنصرف!$J$3:$J$717) -> 0 | CV19: =SUMPRODUCT((CV$3=المنصرف!$E$3:$E$717)*1,('بيان العهد والتسويات'!$C19=المنصرف!$C$3:$C$717)*1,المنصرف!$G$3:$G$717) -> 0 | CW19: =SUMPRODUCT((CV$3=المنصرف!$E$3:$E$717)*1,('بيان العهد والتسويات'!$C19=المنصرف!$C$3:$C$717)*1,المنصرف!$J$3:$J$717) -> 0 | CX19: =SUMPRODUCT((CX$3=المنصرف!$E$3:$E$717)*1,('بيان العهد والتسويات'!$C19=المنصرف!$C$3:$C$717)*1,المنصرف!$G$3:$G$717) -> 0 | CY19: =SUMPRODUCT((CX$3=المنصرف!$E$3:$E$717)*1,('بيان العهد والتسويات'!$C19=المنصرف!$C$3:$C$717)*1,المنصرف!$J$3:$J$717) -> 0 | CZ19: =SUMPRODUCT((CZ$3=المنصرف!$E$3:$E$717)*1,('بيان العهد والتسويات'!$C19=المنصرف!$C$3:$C$717)*1,المنصرف!$G$3:$G$717) -> 0 | DA19: =SUMPRODUCT((CZ$3=المنصرف!$E$3:$E$717)*1,('بيان العهد والتسويات'!$C19=المنصرف!$C$3:$C$717)*1,المنصرف!$J$3:$J$717) -> 0
C20: 2025-07-14 | D20: =SUMPRODUCT(($D$3=المنصرف!$E$3:$E$717)*1,('بيان العهد والتسويات'!$C20=المنصرف!$C$3:$C$717)*1,المنصرف!$G$3:$G$717) -> 0 | E20: =SUMPRODUCT(($D$3=المنصرف!$E$3:$E$717)*1,('بيان العهد والتسويات'!$C20=المنصرف!$C$3:$C$717)*1,المنصرف!$J$3:$J$717) -> 0 | F20: =SUMPRODUCT(($F$3=المنصرف!$E$3:$E$717)*1,('بيان العهد والتسويات'!$C20=المنصرف!$C$3:$C$717)*1,المنصرف!$G$3:$G$717) -> 0 | G20: =SUMPRODUCT(($F$3=المنصرف!$E$3:$E$717)*1,('بيان العهد والتسويات'!$C20=المنصرف!$C$3:$C$717)*1,المنصرف!$J$3:$J$717) -> 0 | H20: =SUMPRODUCT(($H$3=المنصرف!$E$3:$E$717)*1,('بيان العهد والتسويات'!$C20=المنصرف!$C$3:$C$717)*1,المنصرف!$G$3:$G$717) -> 0 | I20: =SUMPRODUCT(($H$3=المنصرف!$E$3:$E$717)*1,('بيان العهد والتسويات'!$C20=المنصرف!$C$3:$C$717)*1,المنصرف!$J$3:$J$717) -> 0 | J20: =SUMPRODUCT(($J$3=المنصرف!$E$3:$E$717)*1,('بيان العهد والتسويات'!$C20=المنصرف!$C$3:$C$717)*1,المنصرف!$G$3:$G$717) -> 0 | K20: =SUMPRODUCT(($J$3=المنصرف!$E$3:$E$717)*1,('بيان العهد والتسويات'!$C20=المنصرف!$C$3:$C$717)*1,المنصرف!$J$3:$J$717) -> 0 | L20: =SUMPRODUCT(($L$3=المنصرف!$E$3:$E$717)*1,('بيان العهد والتسويات'!$C20=المنصرف!$C$3:$C$717)*1,المنصرف!$G$3:$G$717) -> 0 | M20: =SUMPRODUCT(($L$3=المنصرف!$E$3:$E$717)*1,('بيان العهد والتسويات'!$C20=المنصرف!$C$3:$C$717)*1,المنصرف!$J$3:$J$717) -> 0 | N20: =SUMPRODUCT(($N$3=المنصرف!$E$3:$E$717)*1,('بيان العهد والتسويات'!$C20=المنصرف!$C$3:$C$717)*1,المنصرف!$G$3:$G$717) -> 0 | O20: =SUMPRODUCT(($N$3=المنصرف!$E$3:$E$717)*1,('بيان العهد والتسويات'!$C20=المنصرف!$C$3:$C$717)*1,المنصرف!$J$3:$J$717) -> 0 | P20: =SUMPRODUCT(($P$3=المنصرف!$E$3:$E$717)*1,('بيان العهد والتسويات'!$C20=المنصرف!$C$3:$C$717)*1,المنصرف!$G$3:$G$717) -> 0 | Q20: =SUMPRODUCT(($P$3=المنصرف!$E$3:$E$717)*1,('بيان العهد والتسويات'!$C20=المنصرف!$C$3:$C$717)*1,المنصرف!$J$3:$J$717) -> 0 | R20: =SUMPRODUCT(($R$3=المنصرف!$E$3:$E$717)*1,('بيان العهد والتسويات'!$C20=المنصرف!$C$3:$C$717)*1,المنصرف!$G$3:$G$717) -> 0 | S20: =SUMPRODUCT(($R$3=المنصرف!$E$3:$E$717)*1,('بيان العهد والتسويات'!$C20=المنصرف!$C$3:$C$717)*1,المنصرف!$J$3:$J$717) -> 0 | T20: =SUMPRODUCT(($T$3=المنصرف!$E$3:$E$717)*1,('بيان العهد والتسويات'!$C20=المنصرف!$C$3:$C$717)*1,المنصرف!$G$3:$G$717) -> 0 | U20: =SUMPRODUCT(($T$3=المنصرف!$E$3:$E$717)*1,('بيان العهد والتسويات'!$C20=المنصرف!$C$3:$C$717)*1,المنصرف!$J$3:$J$717) -> 0 | V20: =SUMPRODUCT(($V$3=المنصرف!$E$3:$E$717)*1,('بيان العهد والتسويات'!$C20=المنصرف!$C$3:$C$717)*1,المنصرف!$G$3:$G$717) -> 0 | W20: =SUMPRODUCT(($V$3=المنصرف!$E$3:$E$717)*1,('بيان العهد والتسويات'!$C20=المنصرف!$C$3:$C$717)*1,المنصرف!$J$3:$J$717) -> 0 | X20: =SUMPRODUCT(($X$3=المنصرف!$E$3:$E$717)*1,('بيان العهد والتسويات'!$C20=المنصرف!$C$3:$C$717)*1,المنصرف!$G$3:$G$717) -> 0 | Y20: =SUMPRODUCT(($X$3=المنصرف!$E$3:$E$717)*1,('بيان العهد والتسويات'!$C20=المنصرف!$C$3:$C$717)*1,المنصرف!$J$3:$J$717) -> 0 | Z20: =SUMPRODUCT(($Z$3=المنصرف!$E$3:$E$717)*1,('بيان العهد والتسويات'!$C20=المنصرف!$C$3:$C$717)*1,المنصرف!$G$3:$G$717) -> 0 | AA20: =SUMPRODUCT(($Z$3=المنصرف!$E$3:$E$717)*1,('بيان العهد والتسويات'!$C20=المنصرف!$C$3:$C$717)*1,المنصرف!$J$3:$J$717) -> 0 | AB20: =SUMPRODUCT(($AB$3=المنصرف!$E$3:$E$717)*1,('بيان العهد والتسويات'!$C20=المنصرف!$C$3:$C$717)*1,المنصرف!$G$3:$G$717) -> 0 | AC20: =SUMPRODUCT(($AB$3=المنصرف!$E$3:$E$717)*1,('بيان العهد والتسويات'!$C20=المنصرف!$C$3:$C$717)*1,المنصرف!$J$3:$J$717) -> 0 | AD20: =SUMPRODUCT(($AD$3=المنصرف!$E$3:$E$717)*1,('بيان العهد والتسويات'!$C20=المنصرف!$C$3:$C$717)*1,المنصرف!$G$3:$G$717) -> 0 | AE20: =SUMPRODUCT(($AD$3=المنصرف!$E$3:$E$717)*1,('بيان العهد والتسويات'!$C20=المنصرف!$C$3:$C$717)*1,المنصرف!$J$3:$J$717) -> 0 | AF20: =SUMPRODUCT(($AF$3=المنصرف!$E$3:$E$717)*1,('بيان العهد والتسويات'!$C20=المنصرف!$C$3:$C$717)*1,المنصرف!$G$3:$G$717) -> 0 | AG20: =SUMPRODUCT(($AF$3=المنصرف!$E$3:$E$717)*1,('بيان العهد والتسويات'!$C20=المنصرف!$C$3:$C$717)*1,المنصرف!$J$3:$J$717) -> 0 | AH20: =SUMPRODUCT(($AH$3=المنصرف!$E$3:$E$717)*1,('بيان العهد والتسويات'!$C20=المنصرف!$C$3:$C$717)*1,المنصرف!$G$3:$G$717) -> 0 | AI20: =SUMPRODUCT(($AH$3=المنصرف!$E$3:$E$717)*1,('بيان العهد والتسويات'!$C20=المنصرف!$C$3:$C$717)*1,المنصرف!$J$3:$J$717) -> 0 | AJ20: =SUMPRODUCT((AJ$3=المنصرف!$E$3:$E$717)*1,('بيان العهد والتسويات'!$C20=المنصرف!$C$3:$C$717)*1,المنصرف!$G$3:$G$717) -> 0 | AK20: =SUMPRODUCT((AJ$3=المنصرف!$E$3:$E$717)*1,('بيان العهد والتسويات'!$C20=المنصرف!$C$3:$C$717)*1,المنصرف!$J$3:$J$717) -> 0 | AL20: =SUMPRODUCT((AL$3=المنصرف!$E$3:$E$717)*1,('بيان العهد والتسويات'!$C20=المنصرف!$C$3:$C$717)*1,المنصرف!$G$3:$G$717) -> 0 | AM20: =SUMPRODUCT((AL$3=المنصرف!$E$3:$E$717)*1,('بيان العهد والتسويات'!$C20=المنصرف!$C$3:$C$717)*1,المنصرف!$J$3:$J$717) -> 0 | AN20: =SUMPRODUCT((AN$3=المنصرف!$E$3:$E$717)*1,('بيان العهد والتسويات'!$C20=المنصرف!$C$3:$C$717)*1,المنصرف!$G$3:$G$717) -> 0 | AO20: =SUMPRODUCT((AN$3=المنصرف!$E$3:$E$717)*1,('بيان العهد والتسويات'!$C20=المنصرف!$C$3:$C$717)*1,المنصرف!$J$3:$J$717) -> 0 | AP20: =SUMPRODUCT((AP$3=المنصرف!$E$3:$E$717)*1,('بيان العهد والتسويات'!$C20=المنصرف!$C$3:$C$717)*1,المنصرف!$G$3:$G$717) -> 0 | AQ20: =SUMPRODUCT((AP$3=المنصرف!$E$3:$E$717)*1,('بيان العهد والتسويات'!$C20=المنصرف!$C$3:$C$717)*1,المنصرف!$J$3:$J$717) -> 0 | AR20: =SUMPRODUCT((AR$3=المنصرف!$E$3:$E$717)*1,('بيان العهد والتسويات'!$C20=المنصرف!$C$3:$C$717)*1,المنصرف!$G$3:$G$717) -> 0 | AS20: =SUMPRODUCT((AR$3=المنصرف!$E$3:$E$717)*1,('بيان العهد والتسويات'!$C20=المنصرف!$C$3:$C$717)*1,المنصرف!$J$3:$J$717) -> 0 | AT20: =SUMPRODUCT((AT$3=المنصرف!$E$3:$E$717)*1,('بيان العهد والتسويات'!$C20=المنصرف!$C$3:$C$717)*1,المنصرف!$G$3:$G$717) -> 0 | AU20: =SUMPRODUCT((AT$3=المنصرف!$E$3:$E$717)*1,('بيان العهد والتسويات'!$C20=المنصرف!$C$3:$C$717)*1,المنصرف!$J$3:$J$717) -> 0 | AV20: =SUMPRODUCT((AV$3=المنصرف!$E$3:$E$717)*1,('بيان العهد والتسويات'!$C20=المنصرف!$C$3:$C$717)*1,المنصرف!$G$3:$G$717) -> 0 | AW20: =SUMPRODUCT((AV$3=المنصرف!$E$3:$E$717)*1,('بيان العهد والتسويات'!$C20=المنصرف!$C$3:$C$717)*1,المنصرف!$J$3:$J$717) -> 0 | AX20: =SUMPRODUCT((AX$3=المنصرف!$E$3:$E$717)*1,('بيان العهد والتسويات'!$C20=المنصرف!$C$3:$C$717)*1,المنصرف!$G$3:$G$717) -> 0 | AY20: =SUMPRODUCT((AX$3=المنصرف!$E$3:$E$717)*1,('بيان العهد والتسويات'!$C20=المنصرف!$C$3:$C$717)*1,المنصرف!$J$3:$J$717) -> 0 | AZ20: =SUMPRODUCT((AZ$3=المنصرف!$E$3:$E$717)*1,('بيان العهد والتسويات'!$C20=المنصرف!$C$3:$C$717)*1,المنصرف!$G$3:$G$717) -> 0 | BA20: =SUMPRODUCT((AZ$3=المنصرف!$E$3:$E$717)*1,('بيان العهد والتسويات'!$C20=المنصرف!$C$3:$C$717)*1,المنصرف!$J$3:$J$717) -> 0 | BB20: =SUMPRODUCT((BB$3=المنصرف!$E$3:$E$717)*1,('بيان العهد والتسويات'!$C20=المنصرف!$C$3:$C$717)*1,المنصرف!$G$3:$G$717) -> 0 | BC20: =SUMPRODUCT((BB$3=المنصرف!$E$3:$E$717)*1,('بيان العهد والتسويات'!$C20=المنصرف!$C$3:$C$717)*1,المنصرف!$J$3:$J$717) -> 0 | BD20: =SUMPRODUCT((BD$3=المنصرف!$E$3:$E$717)*1,('بيان العهد والتسويات'!$C20=المنصرف!$C$3:$C$717)*1,المنصرف!$G$3:$G$717) -> 0 | BE20: =SUMPRODUCT((BD$3=المنصرف!$E$3:$E$717)*1,('بيان العهد والتسويات'!$C20=المنصرف!$C$3:$C$717)*1,المنصرف!$J$3:$J$717) -> 0 | BF20: =SUMPRODUCT((BF$3=المنصرف!$E$3:$E$717)*1,('بيان العهد والتسويات'!$C20=المنصرف!$C$3:$C$717)*1,المنصرف!$G$3:$G$717) -> 0 | BG20: =SUMPRODUCT((BF$3=المنصرف!$E$3:$E$717)*1,('بيان العهد والتسويات'!$C20=المنصرف!$C$3:$C$717)*1,المنصرف!$J$3:$J$717) -> 0 | BH20: =SUMPRODUCT((BH$3=المنصرف!$E$3:$E$717)*1,('بيان العهد والتسويات'!$C20=المنصرف!$C$3:$C$717)*1,المنصرف!$G$3:$G$717) -> 0 | BI20: =SUMPRODUCT((BH$3=المنصرف!$E$3:$E$717)*1,('بيان العهد والتسويات'!$C20=المنصرف!$C$3:$C$717)*1,المنصرف!$J$3:$J$717) -> 0 | BJ20: =SUMPRODUCT((BJ$3=المنصرف!$E$3:$E$717)*1,('بيان العهد والتسويات'!$C20=المنصرف!$C$3:$C$717)*1,المنصرف!$G$3:$G$717) -> 0 | BK20: =SUMPRODUCT((BJ$3=المنصرف!$E$3:$E$717)*1,('بيان العهد والتسويات'!$C20=المنصرف!$C$3:$C$717)*1,المنصرف!$J$3:$J$717) -> 0 | BL20: =SUMPRODUCT((BL$3=المنصرف!$E$3:$E$717)*1,('بيان العهد والتسويات'!$C20=المنصرف!$C$3:$C$717)*1,المنصرف!$G$3:$G$717) -> 0 | BM20: =SUMPRODUCT((BL$3=المنصرف!$E$3:$E$717)*1,('بيان العهد والتسويات'!$C20=المنصرف!$C$3:$C$717)*1,المنصرف!$J$3:$J$717) -> 0 | BN20: =SUMPRODUCT((BN$3=المنصرف!$E$3:$E$717)*1,('بيان العهد والتسويات'!$C20=المنصرف!$C$3:$C$717)*1,المنصرف!$G$3:$G$717) -> 0 | BO20: =SUMPRODUCT((BN$3=المنصرف!$E$3:$E$717)*1,('بيان العهد والتسويات'!$C20=المنصرف!$C$3:$C$717)*1,المنصرف!$J$3:$J$717) -> 0 | BP20: =SUMPRODUCT((BP$3=المنصرف!$E$3:$E$717)*1,('بيان العهد والتسويات'!$C20=المنصرف!$C$3:$C$717)*1,المنصرف!$G$3:$G$717) -> 0 | BQ20: =SUMPRODUCT((BP$3=المنصرف!$E$3:$E$717)*1,('بيان العهد والتسويات'!$C20=المنصرف!$C$3:$C$717)*1,المنصرف!$J$3:$J$717) -> 0 | BR20: =SUMPRODUCT((BR$3=المنصرف!$E$3:$E$717)*1,('بيان العهد والتسويات'!$C20=المنصرف!$C$3:$C$717)*1,المنصرف!$G$3:$G$717) -> 0 | BS20: =SUMPRODUCT((BR$3=المنصرف!$E$3:$E$717)*1,('بيان العهد والتسويات'!$C20=المنصرف!$C$3:$C$717)*1,المنصرف!$J$3:$J$717) -> 0 | BT20: =SUMPRODUCT((BT$3=المنصرف!$E$3:$E$717)*1,('بيان العهد والتسويات'!$C20=المنصرف!$C$3:$C$717)*1,المنصرف!$G$3:$G$717) -> 0 | BU20: =SUMPRODUCT((BT$3=المنصرف!$E$3:$E$717)*1,('بيان العهد والتسويات'!$C20=المنصرف!$C$3:$C$717)*1,المنصرف!$J$3:$J$717) -> 0 | BV20: =SUMPRODUCT((BV$3=المنصرف!$E$3:$E$717)*1,('بيان العهد والتسويات'!$C20=المنصرف!$C$3:$C$717)*1,المنصرف!$G$3:$G$717) -> 0 | BW20: =SUMPRODUCT((BV$3=المنصرف!$E$3:$E$717)*1,('بيان العهد والتسويات'!$C20=المنصرف!$C$3:$C$717)*1,المنصرف!$J$3:$J$717) -> 0 | BX20: =SUMPRODUCT((BX$3=المنصرف!$E$3:$E$717)*1,('بيان العهد والتسويات'!$C20=المنصرف!$C$3:$C$717)*1,المنصرف!$G$3:$G$717) -> 0 | BY20: =SUMPRODUCT((BX$3=المنصرف!$E$3:$E$717)*1,('بيان العهد والتسويات'!$C20=المنصرف!$C$3:$C$717)*1,المنصرف!$J$3:$J$717) -> 0 | BZ20: =SUMPRODUCT((BZ$3=المنصرف!$E$3:$E$717)*1,('بيان العهد والتسويات'!$C20=المنصرف!$C$3:$C$717)*1,المنصرف!$G$3:$G$717) -> 0 | CA20: =SUMPRODUCT((BZ$3=المنصرف!$E$3:$E$717)*1,('بيان العهد والتسويات'!$C20=المنصرف!$C$3:$C$717)*1,المنصرف!$J$3:$J$717) -> 0 | CB20: =SUMPRODUCT((CB$3=المنصرف!$E$3:$E$717)*1,('بيان العهد والتسويات'!$C20=المنصرف!$C$3:$C$717)*1,المنصرف!$G$3:$G$717) -> 0 | CC20: =SUMPRODUCT((CB$3=المنصرف!$E$3:$E$717)*1,('بيان العهد والتسويات'!$C20=المنصرف!$C$3:$C$717)*1,المنصرف!$J$3:$J$717) -> 0 | CD20: =SUMPRODUCT((CD$3=المنصرف!$E$3:$E$717)*1,('بيان العهد والتسويات'!$C20=المنصرف!$C$3:$C$717)*1,المنصرف!$G$3:$G$717) -> 0 | CE20: =SUMPRODUCT((CD$3=المنصرف!$E$3:$E$717)*1,('بيان العهد والتسويات'!$C20=المنصرف!$C$3:$C$717)*1,المنصرف!$J$3:$J$717) -> 0 | CF20: =SUMPRODUCT((CF$3=المنصرف!$E$3:$E$717)*1,('بيان العهد والتسويات'!$C20=المنصرف!$C$3:$C$717)*1,المنصرف!$G$3:$G$717) -> 0 | CG20: =SUMPRODUCT((CF$3=المنصرف!$E$3:$E$717)*1,('بيان العهد والتسويات'!$C20=المنصرف!$C$3:$C$717)*1,المنصرف!$J$3:$J$717) -> 0 | CH20: =SUMPRODUCT((CH$3=المنصرف!$E$3:$E$717)*1,('بيان العهد والتسويات'!$C20=المنصرف!$C$3:$C$717)*1,المنصرف!$G$3:$G$717) -> 0 | CI20: =SUMPRODUCT((CH$3=المنصرف!$E$3:$E$717)*1,('بيان العهد والتسويات'!$C20=المنصرف!$C$3:$C$717)*1,المنصرف!$J$3:$J$717) -> 0 | CJ20: =SUMPRODUCT((CJ$3=المنصرف!$E$3:$E$717)*1,('بيان العهد والتسويات'!$C20=المنصرف!$C$3:$C$717)*1,المنصرف!$G$3:$G$717) -> 0 | CK20: =SUMPRODUCT((CJ$3=المنصرف!$E$3:$E$717)*1,('بيان العهد والتسويات'!$C20=المنصرف!$C$3:$C$717)*1,المنصرف!$J$3:$J$717) -> 0 | CL20: =SUMPRODUCT((CL$3=المنصرف!$E$3:$E$717)*1,('بيان العهد والتسويات'!$C20=المنصرف!$C$3:$C$717)*1,المنصرف!$G$3:$G$717) -> 0 | CM20: =SUMPRODUCT((CL$3=المنصرف!$E$3:$E$717)*1,('بيان العهد والتسويات'!$C20=المنصرف!$C$3:$C$717)*1,المنصرف!$J$3:$J$717) -> 0 | CN20: =SUMPRODUCT((CN$3=المنصرف!$E$3:$E$717)*1,('بيان العهد والتسويات'!$C20=المنصرف!$C$3:$C$717)*1,المنصرف!$G$3:$G$717) -> 0 | CO20: =SUMPRODUCT((CN$3=المنصرف!$E$3:$E$717)*1,('بيان العهد والتسويات'!$C20=المنصرف!$C$3:$C$717)*1,المنصرف!$J$3:$J$717) -> 0 | CP20: =SUMPRODUCT((CP$3=المنصرف!$E$3:$E$717)*1,('بيان العهد والتسويات'!$C20=المنصرف!$C$3:$C$717)*1,المنصرف!$G$3:$G$717) -> 0 | CQ20: =SUMPRODUCT((CP$3=المنصرف!$E$3:$E$717)*1,('بيان العهد والتسويات'!$C20=المنصرف!$C$3:$C$717)*1,المنصرف!$J$3:$J$717) -> 0 | CR20: =SUMPRODUCT((CR$3=المنصرف!$E$3:$E$717)*1,('بيان العهد والتسويات'!$C20=المنصرف!$C$3:$C$717)*1,المنصرف!$G$3:$G$717) -> 0 | CS20: =SUMPRODUCT((CR$3=المنصرف!$E$3:$E$717)*1,('بيان العهد والتسويات'!$C20=المنصرف!$C$3:$C$717)*1,المنصرف!$J$3:$J$717) -> 0 | CT20: =SUMPRODUCT((CT$3=المنصرف!$E$3:$E$717)*1,('بيان العهد والتسويات'!$C20=المنصرف!$C$3:$C$717)*1,المنصرف!$G$3:$G$717) -> 0 | CU20: =SUMPRODUCT((CT$3=المنصرف!$E$3:$E$717)*1,('بيان العهد والتسويات'!$C20=المنصرف!$C$3:$C$717)*1,المنصرف!$J$3:$J$717) -> 0 | CV20: =SUMPRODUCT((CV$3=المنصرف!$E$3:$E$717)*1,('بيان العهد والتسويات'!$C20=المنصرف!$C$3:$C$717)*1,المنصرف!$G$3:$G$717) -> 0 | CW20: =SUMPRODUCT((CV$3=المنصرف!$E$3:$E$717)*1,('بيان العهد والتسويات'!$C20=المنصرف!$C$3:$C$717)*1,المنصرف!$J$3:$J$717) -> 0 | CX20: =SUMPRODUCT((CX$3=المنصرف!$E$3:$E$717)*1,('بيان العهد والتسويات'!$C20=المنصرف!$C$3:$C$717)*1,المنصرف!$G$3:$G$717) -> 0 | CY20: =SUMPRODUCT((CX$3=المنصرف!$E$3:$E$717)*1,('بيان العهد والتسويات'!$C20=المنصرف!$C$3:$C$717)*1,المنصرف!$J$3:$J$717) -> 0 | CZ20: =SUMPRODUCT((CZ$3=المنصرف!$E$3:$E$717)*1,('بيان العهد والتسويات'!$C20=المنصرف!$C$3:$C$717)*1,المنصرف!$G$3:$G$717) -> 0 | DA20: =SUMPRODUCT((CZ$3=المنصرف!$E$3:$E$717)*1,('بيان العهد والتسويات'!$C20=المنصرف!$C$3:$C$717)*1,المنصرف!$J$3:$J$717) -> 0
C21: 2025-07-15 | D21: =SUMPRODUCT(($D$3=المنصرف!$E$3:$E$717)*1,('بيان العهد والتسويات'!$C21=المنصرف!$C$3:$C$717)*1,المنصرف!$G$3:$G$717) -> 0 | E21: =SUMPRODUCT(($D$3=المنصرف!$E$3:$E$717)*1,('بيان العهد والتسويات'!$C21=المنصرف!$C$3:$C$717)*1,المنصرف!$J$3:$J$717) -> 0 | F21: =SUMPRODUCT(($F$3=المنصرف!$E$3:$E$717)*1,('بيان العهد والتسويات'!$C21=المنصرف!$C$3:$C$717)*1,المنصرف!$G$3:$G$717) -> 0 | G21: =SUMPRODUCT(($F$3=المنصرف!$E$3:$E$717)*1,('بيان العهد والتسويات'!$C21=المنصرف!$C$3:$C$717)*1,المنصرف!$J$3:$J$717) -> 0 | H21: =SUMPRODUCT(($H$3=المنصرف!$E$3:$E$717)*1,('بيان العهد والتسويات'!$C21=المنصرف!$C$3:$C$717)*1,المنصرف!$G$3:$G$717) -> 0 | I21: =SUMPRODUCT(($H$3=المنصرف!$E$3:$E$717)*1,('بيان العهد والتسويات'!$C21=المنصرف!$C$3:$C$717)*1,المنصرف!$J$3:$J$717) -> 0 | J21: =SUMPRODUCT(($J$3=المنصرف!$E$3:$E$717)*1,('بيان العهد والتسويات'!$C21=المنصرف!$C$3:$C$717)*1,المنصرف!$G$3:$G$717) -> 0 | K21: =SUMPRODUCT(($J$3=المنصرف!$E$3:$E$717)*1,('بيان العهد والتسويات'!$C21=المنصرف!$C$3:$C$717)*1,المنصرف!$J$3:$J$717) -> 0 | L21: =SUMPRODUCT(($L$3=المنصرف!$E$3:$E$717)*1,('بيان العهد والتسويات'!$C21=المنصرف!$C$3:$C$717)*1,المنصرف!$G$3:$G$717) -> 0 | M21: =SUMPRODUCT(($L$3=المنصرف!$E$3:$E$717)*1,('بيان العهد والتسويات'!$C21=المنصرف!$C$3:$C$717)*1,المنصرف!$J$3:$J$717) -> 0 | N21: =SUMPRODUCT(($N$3=المنصرف!$E$3:$E$717)*1,('بيان العهد والتسويات'!$C21=المنصرف!$C$3:$C$717)*1,المنصرف!$G$3:$G$717) -> 0 | O21: =SUMPRODUCT(($N$3=المنصرف!$E$3:$E$717)*1,('بيان العهد والتسويات'!$C21=المنصرف!$C$3:$C$717)*1,المنصرف!$J$3:$J$717) -> 0 | P21: =SUMPRODUCT(($P$3=المنصرف!$E$3:$E$717)*1,('بيان العهد والتسويات'!$C21=المنصرف!$C$3:$C$717)*1,المنصرف!$G$3:$G$717) -> 0 | Q21: =SUMPRODUCT(($P$3=المنصرف!$E$3:$E$717)*1,('بيان العهد والتسويات'!$C21=المنصرف!$C$3:$C$717)*1,المنصرف!$J$3:$J$717) -> 0 | R21: =SUMPRODUCT(($R$3=المنصرف!$E$3:$E$717)*1,('بيان العهد والتسويات'!$C21=المنصرف!$C$3:$C$717)*1,المنصرف!$G$3:$G$717) -> 0 | S21: =SUMPRODUCT(($R$3=المنصرف!$E$3:$E$717)*1,('بيان العهد والتسويات'!$C21=المنصرف!$C$3:$C$717)*1,المنصرف!$J$3:$J$717) -> 0 | T21: =SUMPRODUCT(($T$3=المنصرف!$E$3:$E$717)*1,('بيان العهد والتسويات'!$C21=المنصرف!$C$3:$C$717)*1,المنصرف!$G$3:$G$717) -> 0 | U21: =SUMPRODUCT(($T$3=المنصرف!$E$3:$E$717)*1,('بيان العهد والتسويات'!$C21=المنصرف!$C$3:$C$717)*1,المنصرف!$J$3:$J$717) -> 0 | V21: =SUMPRODUCT(($V$3=المنصرف!$E$3:$E$717)*1,('بيان العهد والتسويات'!$C21=المنصرف!$C$3:$C$717)*1,المنصرف!$G$3:$G$717) -> 0 | W21: =SUMPRODUCT(($V$3=المنصرف!$E$3:$E$717)*1,('بيان العهد والتسويات'!$C21=المنصرف!$C$3:$C$717)*1,المنصرف!$J$3:$J$717) -> 0 | X21: =SUMPRODUCT(($X$3=المنصرف!$E$3:$E$717)*1,('بيان العهد والتسويات'!$C21=المنصرف!$C$3:$C$717)*1,المنصرف!$G$3:$G$717) -> 0 | Y21: =SUMPRODUCT(($X$3=المنصرف!$E$3:$E$717)*1,('بيان العهد والتسويات'!$C21=المنصرف!$C$3:$C$717)*1,المنصرف!$J$3:$J$717) -> 0 | Z21: =SUMPRODUCT(($Z$3=المنصرف!$E$3:$E$717)*1,('بيان العهد والتسويات'!$C21=المنصرف!$C$3:$C$717)*1,المنصرف!$G$3:$G$717) -> 0 | AA21: =SUMPRODUCT(($Z$3=المنصرف!$E$3:$E$717)*1,('بيان العهد والتسويات'!$C21=المنصرف!$C$3:$C$717)*1,المنصرف!$J$3:$J$717) -> 0 | AB21: =SUMPRODUCT(($AB$3=المنصرف!$E$3:$E$717)*1,('بيان العهد والتسويات'!$C21=المنصرف!$C$3:$C$717)*1,المنصرف!$G$3:$G$717) -> 0 | AC21: =SUMPRODUCT(($AB$3=المنصرف!$E$3:$E$717)*1,('بيان العهد والتسويات'!$C21=المنصرف!$C$3:$C$717)*1,المنصرف!$J$3:$J$717) -> 0 | AD21: =SUMPRODUCT(($AD$3=المنصرف!$E$3:$E$717)*1,('بيان العهد والتسويات'!$C21=المنصرف!$C$3:$C$717)*1,المنصرف!$G$3:$G$717) -> 0 | AE21: =SUMPRODUCT(($AD$3=المنصرف!$E$3:$E$717)*1,('بيان العهد والتسويات'!$C21=المنصرف!$C$3:$C$717)*1,المنصرف!$J$3:$J$717) -> 0 | AF21: =SUMPRODUCT(($AF$3=المنصرف!$E$3:$E$717)*1,('بيان العهد والتسويات'!$C21=المنصرف!$C$3:$C$717)*1,المنصرف!$G$3:$G$717) -> 0 | AG21: =SUMPRODUCT(($AF$3=المنصرف!$E$3:$E$717)*1,('بيان العهد والتسويات'!$C21=المنصرف!$C$3:$C$717)*1,المنصرف!$J$3:$J$717) -> 0 | AH21: =SUMPRODUCT(($AH$3=المنصرف!$E$3:$E$717)*1,('بيان العهد والتسويات'!$C21=المنصرف!$C$3:$C$717)*1,المنصرف!$G$3:$G$717) -> 0 | AI21: =SUMPRODUCT(($AH$3=المنصرف!$E$3:$E$717)*1,('بيان العهد والتسويات'!$C21=المنصرف!$C$3:$C$717)*1,المنصرف!$J$3:$J$717) -> 0 | AJ21: =SUMPRODUCT((AJ$3=المنصرف!$E$3:$E$717)*1,('بيان العهد والتسويات'!$C21=المنصرف!$C$3:$C$717)*1,المنصرف!$G$3:$G$717) -> 0 | AK21: =SUMPRODUCT((AJ$3=المنصرف!$E$3:$E$717)*1,('بيان العهد والتسويات'!$C21=المنصرف!$C$3:$C$717)*1,المنصرف!$J$3:$J$717) -> 0 | AL21: =SUMPRODUCT((AL$3=المنصرف!$E$3:$E$717)*1,('بيان العهد والتسويات'!$C21=المنصرف!$C$3:$C$717)*1,المنصرف!$G$3:$G$717) -> 0 | AM21: =SUMPRODUCT((AL$3=المنصرف!$E$3:$E$717)*1,('بيان العهد والتسويات'!$C21=المنصرف!$C$3:$C$717)*1,المنصرف!$J$3:$J$717) -> 0 | AN21: =SUMPRODUCT((AN$3=المنصرف!$E$3:$E$717)*1,('بيان العهد والتسويات'!$C21=المنصرف!$C$3:$C$717)*1,المنصرف!$G$3:$G$717) -> 0 | AO21: =SUMPRODUCT((AN$3=المنصرف!$E$3:$E$717)*1,('بيان العهد والتسويات'!$C21=المنصرف!$C$3:$C$717)*1,المنصرف!$J$3:$J$717) -> 0 | AP21: =SUMPRODUCT((AP$3=المنصرف!$E$3:$E$717)*1,('بيان العهد والتسويات'!$C21=المنصرف!$C$3:$C$717)*1,المنصرف!$G$3:$G$717) -> 0 | AQ21: =SUMPRODUCT((AP$3=المنصرف!$E$3:$E$717)*1,('بيان العهد والتسويات'!$C21=المنصرف!$C$3:$C$717)*1,المنصرف!$J$3:$J$717) -> 0 | AR21: =SUMPRODUCT((AR$3=المنصرف!$E$3:$E$717)*1,('بيان العهد والتسويات'!$C21=المنصرف!$C$3:$C$717)*1,المنصرف!$G$3:$G$717) -> 0 | AS21: =SUMPRODUCT((AR$3=المنصرف!$E$3:$E$717)*1,('بيان العهد والتسويات'!$C21=المنصرف!$C$3:$C$717)*1,المنصرف!$J$3:$J$717) -> 0 | AT21: =SUMPRODUCT((AT$3=المنصرف!$E$3:$E$717)*1,('بيان العهد والتسويات'!$C21=المنصرف!$C$3:$C$717)*1,المنصرف!$G$3:$G$717) -> 0 | AU21: =SUMPRODUCT((AT$3=المنصرف!$E$3:$E$717)*1,('بيان العهد والتسويات'!$C21=المنصرف!$C$3:$C$717)*1,المنصرف!$J$3:$J$717) -> 0 | AV21: =SUMPRODUCT((AV$3=المنصرف!$E$3:$E$717)*1,('بيان العهد والتسويات'!$C21=المنصرف!$C$3:$C$717)*1,المنصرف!$G$3:$G$717) -> 0 | AW21: =SUMPRODUCT((AV$3=المنصرف!$E$3:$E$717)*1,('بيان العهد والتسويات'!$C21=المنصرف!$C$3:$C$717)*1,المنصرف!$J$3:$J$717) -> 0 | AX21: =SUMPRODUCT((AX$3=المنصرف!$E$3:$E$717)*1,('بيان العهد والتسويات'!$C21=المنصرف!$C$3:$C$717)*1,المنصرف!$G$3:$G$717) -> 0 | AY21: =SUMPRODUCT((AX$3=المنصرف!$E$3:$E$717)*1,('بيان العهد والتسويات'!$C21=المنصرف!$C$3:$C$717)*1,المنصرف!$J$3:$J$717) -> 0 | AZ21: =SUMPRODUCT((AZ$3=المنصرف!$E$3:$E$717)*1,('بيان العهد والتسويات'!$C21=المنصرف!$C$3:$C$717)*1,المنصرف!$G$3:$G$717) -> 0 | BA21: =SUMPRODUCT((AZ$3=المنصرف!$E$3:$E$717)*1,('بيان العهد والتسويات'!$C21=المنصرف!$C$3:$C$717)*1,المنصرف!$J$3:$J$717) -> 0 | BB21: =SUMPRODUCT((BB$3=المنصرف!$E$3:$E$717)*1,('بيان العهد والتسويات'!$C21=المنصرف!$C$3:$C$717)*1,المنصرف!$G$3:$G$717) -> 0 | BC21: =SUMPRODUCT((BB$3=المنصرف!$E$3:$E$717)*1,('بيان العهد والتسويات'!$C21=المنصرف!$C$3:$C$717)*1,المنصرف!$J$3:$J$717) -> 0 | BD21: =SUMPRODUCT((BD$3=المنصرف!$E$3:$E$717)*1,('بيان العهد والتسويات'!$C21=المنصرف!$C$3:$C$717)*1,المنصرف!$G$3:$G$717) -> 0 | BE21: =SUMPRODUCT((BD$3=المنصرف!$E$3:$E$717)*1,('بيان العهد والتسويات'!$C21=المنصرف!$C$3:$C$717)*1,المنصرف!$J$3:$J$717) -> 0 | BF21: =SUMPRODUCT((BF$3=المنصرف!$E$3:$E$717)*1,('بيان العهد والتسويات'!$C21=المنصرف!$C$3:$C$717)*1,المنصرف!$G$3:$G$717) -> 0 | BG21: =SUMPRODUCT((BF$3=المنصرف!$E$3:$E$717)*1,('بيان العهد والتسويات'!$C21=المنصرف!$C$3:$C$717)*1,المنصرف!$J$3:$J$717) -> 0 | BH21: =SUMPRODUCT((BH$3=المنصرف!$E$3:$E$717)*1,('بيان العهد والتسويات'!$C21=المنصرف!$C$3:$C$717)*1,المنصرف!$G$3:$G$717) -> 0 | BI21: =SUMPRODUCT((BH$3=المنصرف!$E$3:$E$717)*1,('بيان العهد والتسويات'!$C21=المنصرف!$C$3:$C$717)*1,المنصرف!$J$3:$J$717) -> 0 | BJ21: =SUMPRODUCT((BJ$3=المنصرف!$E$3:$E$717)*1,('بيان العهد والتسويات'!$C21=المنصرف!$C$3:$C$717)*1,المنصرف!$G$3:$G$717) -> 0 | BK21: =SUMPRODUCT((BJ$3=المنصرف!$E$3:$E$717)*1,('بيان العهد والتسويات'!$C21=المنصرف!$C$3:$C$717)*1,المنصرف!$J$3:$J$717) -> 0 | BL21: =SUMPRODUCT((BL$3=المنصرف!$E$3:$E$717)*1,('بيان العهد والتسويات'!$C21=المنصرف!$C$3:$C$717)*1,المنصرف!$G$3:$G$717) -> 0 | BM21: =SUMPRODUCT((BL$3=المنصرف!$E$3:$E$717)*1,('بيان العهد والتسويات'!$C21=المنصرف!$C$3:$C$717)*1,المنصرف!$J$3:$J$717) -> 0 | BN21: =SUMPRODUCT((BN$3=المنصرف!$E$3:$E$717)*1,('بيان العهد والتسويات'!$C21=المنصرف!$C$3:$C$717)*1,المنصرف!$G$3:$G$717) -> 0 | BO21: =SUMPRODUCT((BN$3=المنصرف!$E$3:$E$717)*1,('بيان العهد والتسويات'!$C21=المنصرف!$C$3:$C$717)*1,المنصرف!$J$3:$J$717) -> 0 | BP21: =SUMPRODUCT((BP$3=المنصرف!$E$3:$E$717)*1,('بيان العهد والتسويات'!$C21=المنصرف!$C$3:$C$717)*1,المنصرف!$G$3:$G$717) -> 0 | BQ21: =SUMPRODUCT((BP$3=المنصرف!$E$3:$E$717)*1,('بيان العهد والتسويات'!$C21=المنصرف!$C$3:$C$717)*1,المنصرف!$J$3:$J$717) -> 0 | BR21: =SUMPRODUCT((BR$3=المنصرف!$E$3:$E$717)*1,('بيان العهد والتسويات'!$C21=المنصرف!$C$3:$C$717)*1,المنصرف!$G$3:$G$717) -> 0 | BS21: =SUMPRODUCT((BR$3=المنصرف!$E$3:$E$717)*1,('بيان العهد والتسويات'!$C21=المنصرف!$C$3:$C$717)*1,المنصرف!$J$3:$J$717) -> 0 | BT21: =SUMPRODUCT((BT$3=المنصرف!$E$3:$E$717)*1,('بيان العهد والتسويات'!$C21=المنصرف!$C$3:$C$717)*1,المنصرف!$G$3:$G$717) -> 0 | BU21: =SUMPRODUCT((BT$3=المنصرف!$E$3:$E$717)*1,('بيان العهد والتسويات'!$C21=المنصرف!$C$3:$C$717)*1,المنصرف!$J$3:$J$717) -> 0 | BV21: =SUMPRODUCT((BV$3=المنصرف!$E$3:$E$717)*1,('بيان العهد والتسويات'!$C21=المنصرف!$C$3:$C$717)*1,المنصرف!$G$3:$G$717) -> 0 | BW21: =SUMPRODUCT((BV$3=المنصرف!$E$3:$E$717)*1,('بيان العهد والتسويات'!$C21=المنصرف!$C$3:$C$717)*1,المنصرف!$J$3:$J$717) -> 0 | BX21: =SUMPRODUCT((BX$3=المنصرف!$E$3:$E$717)*1,('بيان العهد والتسويات'!$C21=المنصرف!$C$3:$C$717)*1,المنصرف!$G$3:$G$717) -> 0 | BY21: =SUMPRODUCT((BX$3=المنصرف!$E$3:$E$717)*1,('بيان العهد والتسويات'!$C21=المنصرف!$C$3:$C$717)*1,المنصرف!$J$3:$J$717) -> 0 | BZ21: =SUMPRODUCT((BZ$3=المنصرف!$E$3:$E$717)*1,('بيان العهد والتسويات'!$C21=المنصرف!$C$3:$C$717)*1,المنصرف!$G$3:$G$717) -> 0 | CA21: =SUMPRODUCT((BZ$3=المنصرف!$E$3:$E$717)*1,('بيان العهد والتسويات'!$C21=المنصرف!$C$3:$C$717)*1,المنصرف!$J$3:$J$717) -> 0 | CB21: =SUMPRODUCT((CB$3=المنصرف!$E$3:$E$717)*1,('بيان العهد والتسويات'!$C21=المنصرف!$C$3:$C$717)*1,المنصرف!$G$3:$G$717) -> 0 | CC21: =SUMPRODUCT((CB$3=المنصرف!$E$3:$E$717)*1,('بيان العهد والتسويات'!$C21=المنصرف!$C$3:$C$717)*1,المنصرف!$J$3:$J$717) -> 0 | CD21: =SUMPRODUCT((CD$3=المنصرف!$E$3:$E$717)*1,('بيان العهد والتسويات'!$C21=المنصرف!$C$3:$C$717)*1,المنصرف!$G$3:$G$717) -> 0 | CE21: =SUMPRODUCT((CD$3=المنصرف!$E$3:$E$717)*1,('بيان العهد والتسويات'!$C21=المنصرف!$C$3:$C$717)*1,المنصرف!$J$3:$J$717) -> 0 | CF21: =SUMPRODUCT((CF$3=المنصرف!$E$3:$E$717)*1,('بيان العهد والتسويات'!$C21=المنصرف!$C$3:$C$717)*1,المنصرف!$G$3:$G$717) -> 0 | CG21: =SUMPRODUCT((CF$3=المنصرف!$E$3:$E$717)*1,('بيان العهد والتسويات'!$C21=المنصرف!$C$3:$C$717)*1,المنصرف!$J$3:$J$717) -> 0 | CH21: =SUMPRODUCT((CH$3=المنصرف!$E$3:$E$717)*1,('بيان العهد والتسويات'!$C21=المنصرف!$C$3:$C$717)*1,المنصرف!$G$3:$G$717) -> 0 | CI21: =SUMPRODUCT((CH$3=المنصرف!$E$3:$E$717)*1,('بيان العهد والتسويات'!$C21=المنصرف!$C$3:$C$717)*1,المنصرف!$J$3:$J$717) -> 0 | CJ21: =SUMPRODUCT((CJ$3=المنصرف!$E$3:$E$717)*1,('بيان العهد والتسويات'!$C21=المنصرف!$C$3:$C$717)*1,المنصرف!$G$3:$G$717) -> 0 | CK21: =SUMPRODUCT((CJ$3=المنصرف!$E$3:$E$717)*1,('بيان العهد والتسويات'!$C21=المنصرف!$C$3:$C$717)*1,المنصرف!$J$3:$J$717) -> 0 | CL21: =SUMPRODUCT((CL$3=المنصرف!$E$3:$E$717)*1,('بيان العهد والتسويات'!$C21=المنصرف!$C$3:$C$717)*1,المنصرف!$G$3:$G$717) -> 0 | CM21: =SUMPRODUCT((CL$3=المنصرف!$E$3:$E$717)*1,('بيان العهد والتسويات'!$C21=المنصرف!$C$3:$C$717)*1,المنصرف!$J$3:$J$717) -> 0 | CN21: =SUMPRODUCT((CN$3=المنصرف!$E$3:$E$717)*1,('بيان العهد والتسويات'!$C21=المنصرف!$C$3:$C$717)*1,المنصرف!$G$3:$G$717) -> 0 | CO21: =SUMPRODUCT((CN$3=المنصرف!$E$3:$E$717)*1,('بيان العهد والتسويات'!$C21=المنصرف!$C$3:$C$717)*1,المنصرف!$J$3:$J$717) -> 0 | CP21: =SUMPRODUCT((CP$3=المنصرف!$E$3:$E$717)*1,('بيان العهد والتسويات'!$C21=المنصرف!$C$3:$C$717)*1,المنصرف!$G$3:$G$717) -> 0 | CQ21: =SUMPRODUCT((CP$3=المنصرف!$E$3:$E$717)*1,('بيان العهد والتسويات'!$C21=المنصرف!$C$3:$C$717)*1,المنصرف!$J$3:$J$717) -> 0 | CR21: =SUMPRODUCT((CR$3=المنصرف!$E$3:$E$717)*1,('بيان العهد والتسويات'!$C21=المنصرف!$C$3:$C$717)*1,المنصرف!$G$3:$G$717) -> 0 | CS21: =SUMPRODUCT((CR$3=المنصرف!$E$3:$E$717)*1,('بيان العهد والتسويات'!$C21=المنصرف!$C$3:$C$717)*1,المنصرف!$J$3:$J$717) -> 0 | CT21: =SUMPRODUCT((CT$3=المنصرف!$E$3:$E$717)*1,('بيان العهد والتسويات'!$C21=المنصرف!$C$3:$C$717)*1,المنصرف!$G$3:$G$717) -> 0 | CU21: =SUMPRODUCT((CT$3=المنصرف!$E$3:$E$717)*1,('بيان العهد والتسويات'!$C21=المنصرف!$C$3:$C$717)*1,المنصرف!$J$3:$J$717) -> 0 | CV21: =SUMPRODUCT((CV$3=المنصرف!$E$3:$E$717)*1,('بيان العهد والتسويات'!$C21=المنصرف!$C$3:$C$717)*1,المنصرف!$G$3:$G$717) -> 0 | CW21: =SUMPRODUCT((CV$3=المنصرف!$E$3:$E$717)*1,('بيان العهد والتسويات'!$C21=المنصرف!$C$3:$C$717)*1,المنصرف!$J$3:$J$717) -> 0 | CX21: =SUMPRODUCT((CX$3=المنصرف!$E$3:$E$717)*1,('بيان العهد والتسويات'!$C21=المنصرف!$C$3:$C$717)*1,المنصرف!$G$3:$G$717) -> 0 | CY21: =SUMPRODUCT((CX$3=المنصرف!$E$3:$E$717)*1,('بيان العهد والتسويات'!$C21=المنصرف!$C$3:$C$717)*1,المنصرف!$J$3:$J$717) -> 0 | CZ21: =SUMPRODUCT((CZ$3=المنصرف!$E$3:$E$717)*1,('بيان العهد والتسويات'!$C21=المنصرف!$C$3:$C$717)*1,المنصرف!$G$3:$G$717) -> 0 | DA21: =SUMPRODUCT((CZ$3=المنصرف!$E$3:$E$717)*1,('بيان العهد والتسويات'!$C21=المنصرف!$C$3:$C$717)*1,المنصرف!$J$3:$J$717) -> 0
C22: 2025-07-16 | D22: =SUMPRODUCT(($D$3=المنصرف!$E$3:$E$717)*1,('بيان العهد والتسويات'!$C22=المنصرف!$C$3:$C$717)*1,المنصرف!$G$3:$G$717) -> 150000 | E22: =SUMPRODUCT(($D$3=المنصرف!$E$3:$E$717)*1,('بيان العهد والتسويات'!$C22=المنصرف!$C$3:$C$717)*1,المنصرف!$J$3:$J$717) -> 155071.46 | F22: =SUMPRODUCT(($F$3=المنصرف!$E$3:$E$717)*1,('بيان العهد والتسويات'!$C22=المنصرف!$C$3:$C$717)*1,المنصرف!$G$3:$G$717) -> 0 | G22: =SUMPRODUCT(($F$3=المنصرف!$E$3:$E$717)*1,('بيان العهد والتسويات'!$C22=المنصرف!$C$3:$C$717)*1,المنصرف!$J$3:$J$717) -> 0 | H22: =SUMPRODUCT(($H$3=المنصرف!$E$3:$E$717)*1,('بيان العهد والتسويات'!$C22=المنصرف!$C$3:$C$717)*1,المنصرف!$G$3:$G$717) -> 0 | I22: =SUMPRODUCT(($H$3=المنصرف!$E$3:$E$717)*1,('بيان العهد والتسويات'!$C22=المنصرف!$C$3:$C$717)*1,المنصرف!$J$3:$J$717) -> 0 | J22: =SUMPRODUCT(($J$3=المنصرف!$E$3:$E$717)*1,('بيان العهد والتسويات'!$C22=المنصرف!$C$3:$C$717)*1,المنصرف!$G$3:$G$717) -> 0 | K22: =SUMPRODUCT(($J$3=المنصرف!$E$3:$E$717)*1,('بيان العهد والتسويات'!$C22=المنصرف!$C$3:$C$717)*1,المنصرف!$J$3:$J$717) -> 0 | L22: =SUMPRODUCT(($L$3=المنصرف!$E$3:$E$717)*1,('بيان العهد والتسويات'!$C22=المنصرف!$C$3:$C$717)*1,المنصرف!$G$3:$G$717) -> 0 | M22: =SUMPRODUCT(($L$3=المنصرف!$E$3:$E$717)*1,('بيان العهد والتسويات'!$C22=المنصرف!$C$3:$C$717)*1,المنصرف!$J$3:$J$717) -> 0 | N22: =SUMPRODUCT(($N$3=المنصرف!$E$3:$E$717)*1,('بيان العهد والتسويات'!$C22=المنصرف!$C$3:$C$717)*1,المنصرف!$G$3:$G$717) -> 0 | O22: =SUMPRODUCT(($N$3=المنصرف!$E$3:$E$717)*1,('بيان العهد والتسويات'!$C22=المنصرف!$C$3:$C$717)*1,المنصرف!$J$3:$J$717) -> 0 | P22: =SUMPRODUCT(($P$3=المنصرف!$E$3:$E$717)*1,('بيان العهد والتسويات'!$C22=المنصرف!$C$3:$C$717)*1,المنصرف!$G$3:$G$717) -> 0 | Q22: =SUMPRODUCT(($P$3=المنصرف!$E$3:$E$717)*1,('بيان العهد والتسويات'!$C22=المنصرف!$C$3:$C$717)*1,المنصرف!$J$3:$J$717) -> 0 | R22: =SUMPRODUCT(($R$3=المنصرف!$E$3:$E$717)*1,('بيان العهد والتسويات'!$C22=المنصرف!$C$3:$C$717)*1,المنصرف!$G$3:$G$717) -> 0 | S22: =SUMPRODUCT(($R$3=المنصرف!$E$3:$E$717)*1,('بيان العهد والتسويات'!$C22=المنصرف!$C$3:$C$717)*1,المنصرف!$J$3:$J$717) -> 0 | T22: =SUMPRODUCT(($T$3=المنصرف!$E$3:$E$717)*1,('بيان العهد والتسويات'!$C22=المنصرف!$C$3:$C$717)*1,المنصرف!$G$3:$G$717) -> 0 | U22: =SUMPRODUCT(($T$3=المنصرف!$E$3:$E$717)*1,('بيان العهد والتسويات'!$C22=المنصرف!$C$3:$C$717)*1,المنصرف!$J$3:$J$717) -> 0 | V22: =SUMPRODUCT(($V$3=المنصرف!$E$3:$E$717)*1,('بيان العهد والتسويات'!$C22=المنصرف!$C$3:$C$717)*1,المنصرف!$G$3:$G$717) -> 0 | W22: =SUMPRODUCT(($V$3=المنصرف!$E$3:$E$717)*1,('بيان العهد والتسويات'!$C22=المنصرف!$C$3:$C$717)*1,المنصرف!$J$3:$J$717) -> 0 | X22: =SUMPRODUCT(($X$3=المنصرف!$E$3:$E$717)*1,('بيان العهد والتسويات'!$C22=المنصرف!$C$3:$C$717)*1,المنصرف!$G$3:$G$717) -> 0 | Y22: =SUMPRODUCT(($X$3=المنصرف!$E$3:$E$717)*1,('بيان العهد والتسويات'!$C22=المنصرف!$C$3:$C$717)*1,المنصرف!$J$3:$J$717) -> 0 | Z22: =SUMPRODUCT(($Z$3=المنصرف!$E$3:$E$717)*1,('بيان العهد والتسويات'!$C22=المنصرف!$C$3:$C$717)*1,المنصرف!$G$3:$G$717) -> 0 | AA22: =SUMPRODUCT(($Z$3=المنصرف!$E$3:$E$717)*1,('بيان العهد والتسويات'!$C22=المنصرف!$C$3:$C$717)*1,المنصرف!$J$3:$J$717) -> 0 | AB22: =SUMPRODUCT(($AB$3=المنصرف!$E$3:$E$717)*1,('بيان العهد والتسويات'!$C22=المنصرف!$C$3:$C$717)*1,المنصرف!$G$3:$G$717) -> 0 | AC22: =SUMPRODUCT(($AB$3=المنصرف!$E$3:$E$717)*1,('بيان العهد والتسويات'!$C22=المنصرف!$C$3:$C$717)*1,المنصرف!$J$3:$J$717) -> 0 | AD22: =SUMPRODUCT(($AD$3=المنصرف!$E$3:$E$717)*1,('بيان العهد والتسويات'!$C22=المنصرف!$C$3:$C$717)*1,المنصرف!$G$3:$G$717) -> 0 | AE22: =SUMPRODUCT(($AD$3=المنصرف!$E$3:$E$717)*1,('بيان العهد والتسويات'!$C22=المنصرف!$C$3:$C$717)*1,المنصرف!$J$3:$J$717) -> 0 | AF22: =SUMPRODUCT(($AF$3=المنصرف!$E$3:$E$717)*1,('بيان العهد والتسويات'!$C22=المنصرف!$C$3:$C$717)*1,المنصرف!$G$3:$G$717) -> 0 | AG22: =SUMPRODUCT(($AF$3=المنصرف!$E$3:$E$717)*1,('بيان العهد والتسويات'!$C22=المنصرف!$C$3:$C$717)*1,المنصرف!$J$3:$J$717) -> 0 | AH22: =SUMPRODUCT(($AH$3=المنصرف!$E$3:$E$717)*1,('بيان العهد والتسويات'!$C22=المنصرف!$C$3:$C$717)*1,المنصرف!$G$3:$G$717) -> 0 | AI22: =SUMPRODUCT(($AH$3=المنصرف!$E$3:$E$717)*1,('بيان العهد والتسويات'!$C22=المنصرف!$C$3:$C$717)*1,المنصرف!$J$3:$J$717) -> 0 | AJ22: =SUMPRODUCT((AJ$3=المنصرف!$E$3:$E$717)*1,('بيان العهد والتسويات'!$C22=المنصرف!$C$3:$C$717)*1,المنصرف!$G$3:$G$717) -> 0 | AK22: =SUMPRODUCT((AJ$3=المنصرف!$E$3:$E$717)*1,('بيان العهد والتسويات'!$C22=المنصرف!$C$3:$C$717)*1,المنصرف!$J$3:$J$717) -> 0 | AL22: =SUMPRODUCT((AL$3=المنصرف!$E$3:$E$717)*1,('بيان العهد والتسويات'!$C22=المنصرف!$C$3:$C$717)*1,المنصرف!$G$3:$G$717) -> 0 | AM22: =SUMPRODUCT((AL$3=المنصرف!$E$3:$E$717)*1,('بيان العهد والتسويات'!$C22=المنصرف!$C$3:$C$717)*1,المنصرف!$J$3:$J$717) -> 0 | AN22: =SUMPRODUCT((AN$3=المنصرف!$E$3:$E$717)*1,('بيان العهد والتسويات'!$C22=المنصرف!$C$3:$C$717)*1,المنصرف!$G$3:$G$717) -> 0 | AO22: =SUMPRODUCT((AN$3=المنصرف!$E$3:$E$717)*1,('بيان العهد والتسويات'!$C22=المنصرف!$C$3:$C$717)*1,المنصرف!$J$3:$J$717) -> 0 | AP22: =SUMPRODUCT((AP$3=المنصرف!$E$3:$E$717)*1,('بيان العهد والتسويات'!$C22=المنصرف!$C$3:$C$717)*1,المنصرف!$G$3:$G$717) -> 0 | AQ22: =SUMPRODUCT((AP$3=المنصرف!$E$3:$E$717)*1,('بيان العهد والتسويات'!$C22=المنصرف!$C$3:$C$717)*1,المنصرف!$J$3:$J$717) -> 0 | AR22: =SUMPRODUCT((AR$3=المنصرف!$E$3:$E$717)*1,('بيان العهد والتسويات'!$C22=المنصرف!$C$3:$C$717)*1,المنصرف!$G$3:$G$717) -> 0 | AS22: =SUMPRODUCT((AR$3=المنصرف!$E$3:$E$717)*1,('بيان العهد والتسويات'!$C22=المنصرف!$C$3:$C$717)*1,المنصرف!$J$3:$J$717) -> 0 | AT22: =SUMPRODUCT((AT$3=المنصرف!$E$3:$E$717)*1,('بيان العهد والتسويات'!$C22=المنصرف!$C$3:$C$717)*1,المنصرف!$G$3:$G$717) -> 0 | AU22: =SUMPRODUCT((AT$3=المنصرف!$E$3:$E$717)*1,('بيان العهد والتسويات'!$C22=المنصرف!$C$3:$C$717)*1,المنصرف!$J$3:$J$717) -> 0 | AV22: =SUMPRODUCT((AV$3=المنصرف!$E$3:$E$717)*1,('بيان العهد والتسويات'!$C22=المنصرف!$C$3:$C$717)*1,المنصرف!$G$3:$G$717) -> 0 | AW22: =SUMPRODUCT((AV$3=المنصرف!$E$3:$E$717)*1,('بيان العهد والتسويات'!$C22=المنصرف!$C$3:$C$717)*1,المنصرف!$J$3:$J$717) -> 0 | AX22: =SUMPRODUCT((AX$3=المنصرف!$E$3:$E$717)*1,('بيان العهد والتسويات'!$C22=المنصرف!$C$3:$C$717)*1,المنصرف!$G$3:$G$717) -> 0 | AY22: =SUMPRODUCT((AX$3=المنصرف!$E$3:$E$717)*1,('بيان العهد والتسويات'!$C22=المنصرف!$C$3:$C$717)*1,المنصرف!$J$3:$J$717) -> 0 | AZ22: =SUMPRODUCT((AZ$3=المنصرف!$E$3:$E$717)*1,('بيان العهد والتسويات'!$C22=المنصرف!$C$3:$C$717)*1,المنصرف!$G$3:$G$717) -> 0 | BA22: =SUMPRODUCT((AZ$3=المنصرف!$E$3:$E$717)*1,('بيان العهد والتسويات'!$C22=المنصرف!$C$3:$C$717)*1,المنصرف!$J$3:$J$717) -> 0 | BB22: =SUMPRODUCT((BB$3=المنصرف!$E$3:$E$717)*1,('بيان العهد والتسويات'!$C22=المنصرف!$C$3:$C$717)*1,المنصرف!$G$3:$G$717) -> 0 | BC22: =SUMPRODUCT((BB$3=المنصرف!$E$3:$E$717)*1,('بيان العهد والتسويات'!$C22=المنصرف!$C$3:$C$717)*1,المنصرف!$J$3:$J$717) -> 0 | BD22: =SUMPRODUCT((BD$3=المنصرف!$E$3:$E$717)*1,('بيان العهد والتسويات'!$C22=المنصرف!$C$3:$C$717)*1,المنصرف!$G$3:$G$717) -> 0 | BE22: =SUMPRODUCT((BD$3=المنصرف!$E$3:$E$717)*1,('بيان العهد والتسويات'!$C22=المنصرف!$C$3:$C$717)*1,المنصرف!$J$3:$J$717) -> 0 | BF22: =SUMPRODUCT((BF$3=المنصرف!$E$3:$E$717)*1,('بيان العهد والتسويات'!$C22=المنصرف!$C$3:$C$717)*1,المنصرف!$G$3:$G$717) -> 0 | BG22: =SUMPRODUCT((BF$3=المنصرف!$E$3:$E$717)*1,('بيان العهد والتسويات'!$C22=المنصرف!$C$3:$C$717)*1,المنصرف!$J$3:$J$717) -> 0 | BH22: =SUMPRODUCT((BH$3=المنصرف!$E$3:$E$717)*1,('بيان العهد والتسويات'!$C22=المنصرف!$C$3:$C$717)*1,المنصرف!$G$3:$G$717) -> 0 | BI22: =SUMPRODUCT((BH$3=المنصرف!$E$3:$E$717)*1,('بيان العهد والتسويات'!$C22=المنصرف!$C$3:$C$717)*1,المنصرف!$J$3:$J$717) -> 0 | BJ22: =SUMPRODUCT((BJ$3=المنصرف!$E$3:$E$717)*1,('بيان العهد والتسويات'!$C22=المنصرف!$C$3:$C$717)*1,المنصرف!$G$3:$G$717) -> 0 | BK22: =SUMPRODUCT((BJ$3=المنصرف!$E$3:$E$717)*1,('بيان العهد والتسويات'!$C22=المنصرف!$C$3:$C$717)*1,المنصرف!$J$3:$J$717) -> 0 | BL22: =SUMPRODUCT((BL$3=المنصرف!$E$3:$E$717)*1,('بيان العهد والتسويات'!$C22=المنصرف!$C$3:$C$717)*1,المنصرف!$G$3:$G$717) -> 0 | BM22: =SUMPRODUCT((BL$3=المنصرف!$E$3:$E$717)*1,('بيان العهد والتسويات'!$C22=المنصرف!$C$3:$C$717)*1,المنصرف!$J$3:$J$717) -> 0 | BN22: =SUMPRODUCT((BN$3=المنصرف!$E$3:$E$717)*1,('بيان العهد والتسويات'!$C22=المنصرف!$C$3:$C$717)*1,المنصرف!$G$3:$G$717) -> 0 | BO22: =SUMPRODUCT((BN$3=المنصرف!$E$3:$E$717)*1,('بيان العهد والتسويات'!$C22=المنصرف!$C$3:$C$717)*1,المنصرف!$J$3:$J$717) -> 0 | BP22: =SUMPRODUCT((BP$3=المنصرف!$E$3:$E$717)*1,('بيان العهد والتسويات'!$C22=المنصرف!$C$3:$C$717)*1,المنصرف!$G$3:$G$717) -> 0 | BQ22: =SUMPRODUCT((BP$3=المنصرف!$E$3:$E$717)*1,('بيان العهد والتسويات'!$C22=المنصرف!$C$3:$C$717)*1,المنصرف!$J$3:$J$717) -> 0 | BR22: =SUMPRODUCT((BR$3=المنصرف!$E$3:$E$717)*1,('بيان العهد والتسويات'!$C22=المنصرف!$C$3:$C$717)*1,المنصرف!$G$3:$G$717) -> 0 | BS22: =SUMPRODUCT((BR$3=المنصرف!$E$3:$E$717)*1,('بيان العهد والتسويات'!$C22=المنصرف!$C$3:$C$717)*1,المنصرف!$J$3:$J$717) -> 0 | BT22: =SUMPRODUCT((BT$3=المنصرف!$E$3:$E$717)*1,('بيان العهد والتسويات'!$C22=المنصرف!$C$3:$C$717)*1,المنصرف!$G$3:$G$717) -> 0 | BU22: =SUMPRODUCT((BT$3=المنصرف!$E$3:$E$717)*1,('بيان العهد والتسويات'!$C22=المنصرف!$C$3:$C$717)*1,المنصرف!$J$3:$J$717) -> 0 | BV22: =SUMPRODUCT((BV$3=المنصرف!$E$3:$E$717)*1,('بيان العهد والتسويات'!$C22=المنصرف!$C$3:$C$717)*1,المنصرف!$G$3:$G$717) -> 0 | BW22: =SUMPRODUCT((BV$3=المنصرف!$E$3:$E$717)*1,('بيان العهد والتسويات'!$C22=المنصرف!$C$3:$C$717)*1,المنصرف!$J$3:$J$717) -> 0 | BX22: =SUMPRODUCT((BX$3=المنصرف!$E$3:$E$717)*1,('بيان العهد والتسويات'!$C22=المنصرف!$C$3:$C$717)*1,المنصرف!$G$3:$G$717) -> 0 | BY22: =SUMPRODUCT((BX$3=المنصرف!$E$3:$E$717)*1,('بيان العهد والتسويات'!$C22=المنصرف!$C$3:$C$717)*1,المنصرف!$J$3:$J$717) -> 0 | BZ22: =SUMPRODUCT((BZ$3=المنصرف!$E$3:$E$717)*1,('بيان العهد والتسويات'!$C22=المنصرف!$C$3:$C$717)*1,المنصرف!$G$3:$G$717) -> 0 | CA22: =SUMPRODUCT((BZ$3=المنصرف!$E$3:$E$717)*1,('بيان العهد والتسويات'!$C22=المنصرف!$C$3:$C$717)*1,المنصرف!$J$3:$J$717) -> 0 | CB22: =SUMPRODUCT((CB$3=المنصرف!$E$3:$E$717)*1,('بيان العهد والتسويات'!$C22=المنصرف!$C$3:$C$717)*1,المنصرف!$G$3:$G$717) -> 0 | CC22: =SUMPRODUCT((CB$3=المنصرف!$E$3:$E$717)*1,('بيان العهد والتسويات'!$C22=المنصرف!$C$3:$C$717)*1,المنصرف!$J$3:$J$717) -> 0 | CD22: =SUMPRODUCT((CD$3=المنصرف!$E$3:$E$717)*1,('بيان العهد والتسويات'!$C22=المنصرف!$C$3:$C$717)*1,المنصرف!$G$3:$G$717) -> 0 | CE22: =SUMPRODUCT((CD$3=المنصرف!$E$3:$E$717)*1,('بيان العهد والتسويات'!$C22=المنصرف!$C$3:$C$717)*1,المنصرف!$J$3:$J$717) -> 0 | CF22: =SUMPRODUCT((CF$3=المنصرف!$E$3:$E$717)*1,('بيان العهد والتسويات'!$C22=المنصرف!$C$3:$C$717)*1,المنصرف!$G$3:$G$717) -> 0 | CG22: =SUMPRODUCT((CF$3=المنصرف!$E$3:$E$717)*1,('بيان العهد والتسويات'!$C22=المنصرف!$C$3:$C$717)*1,المنصرف!$J$3:$J$717) -> 0 | CH22: =SUMPRODUCT((CH$3=المنصرف!$E$3:$E$717)*1,('بيان العهد والتسويات'!$C22=المنصرف!$C$3:$C$717)*1,المنصرف!$G$3:$G$717) -> 0 | CI22: =SUMPRODUCT((CH$3=المنصرف!$E$3:$E$717)*1,('بيان العهد والتسويات'!$C22=المنصرف!$C$3:$C$717)*1,المنصرف!$J$3:$J$717) -> 0 | CJ22: =SUMPRODUCT((CJ$3=المنصرف!$E$3:$E$717)*1,('بيان العهد والتسويات'!$C22=المنصرف!$C$3:$C$717)*1,المنصرف!$G$3:$G$717) -> 0 | CK22: =SUMPRODUCT((CJ$3=المنصرف!$E$3:$E$717)*1,('بيان العهد والتسويات'!$C22=المنصرف!$C$3:$C$717)*1,المنصرف!$J$3:$J$717) -> 0 | CL22: =SUMPRODUCT((CL$3=المنصرف!$E$3:$E$717)*1,('بيان العهد والتسويات'!$C22=المنصرف!$C$3:$C$717)*1,المنصرف!$G$3:$G$717) -> 0 | CM22: =SUMPRODUCT((CL$3=المنصرف!$E$3:$E$717)*1,('بيان العهد والتسويات'!$C22=المنصرف!$C$3:$C$717)*1,المنصرف!$J$3:$J$717) -> 0 | CN22: =SUMPRODUCT((CN$3=المنصرف!$E$3:$E$717)*1,('بيان العهد والتسويات'!$C22=المنصرف!$C$3:$C$717)*1,المنصرف!$G$3:$G$717) -> 0 | CO22: =SUMPRODUCT((CN$3=المنصرف!$E$3:$E$717)*1,('بيان العهد والتسويات'!$C22=المنصرف!$C$3:$C$717)*1,المنصرف!$J$3:$J$717) -> 0 | CP22: =SUMPRODUCT((CP$3=المنصرف!$E$3:$E$717)*1,('بيان العهد والتسويات'!$C22=المنصرف!$C$3:$C$717)*1,المنصرف!$G$3:$G$717) -> 0 | CQ22: =SUMPRODUCT((CP$3=المنصرف!$E$3:$E$717)*1,('بيان العهد والتسويات'!$C22=المنصرف!$C$3:$C$717)*1,المنصرف!$J$3:$J$717) -> 0 | CR22: =SUMPRODUCT((CR$3=المنصرف!$E$3:$E$717)*1,('بيان العهد والتسويات'!$C22=المنصرف!$C$3:$C$717)*1,المنصرف!$G$3:$G$717) -> 0 | CS22: =SUMPRODUCT((CR$3=المنصرف!$E$3:$E$717)*1,('بيان العهد والتسويات'!$C22=المنصرف!$C$3:$C$717)*1,المنصرف!$J$3:$J$717) -> 0 | CT22: =SUMPRODUCT((CT$3=المنصرف!$E$3:$E$717)*1,('بيان العهد والتسويات'!$C22=المنصرف!$C$3:$C$717)*1,المنصرف!$G$3:$G$717) -> 0 | CU22: =SUMPRODUCT((CT$3=المنصرف!$E$3:$E$717)*1,('بيان العهد والتسويات'!$C22=المنصرف!$C$3:$C$717)*1,المنصرف!$J$3:$J$717) -> 0 | CV22: =SUMPRODUCT((CV$3=المنصرف!$E$3:$E$717)*1,('بيان العهد والتسويات'!$C22=المنصرف!$C$3:$C$717)*1,المنصرف!$G$3:$G$717) -> 0 | CW22: =SUMPRODUCT((CV$3=المنصرف!$E$3:$E$717)*1,('بيان العهد والتسويات'!$C22=المنصرف!$C$3:$C$717)*1,المنصرف!$J$3:$J$717) -> 0 | CX22: =SUMPRODUCT((CX$3=المنصرف!$E$3:$E$717)*1,('بيان العهد والتسويات'!$C22=المنصرف!$C$3:$C$717)*1,المنصرف!$G$3:$G$717) -> 0 | CY22: =SUMPRODUCT((CX$3=المنصرف!$E$3:$E$717)*1,('بيان العهد والتسويات'!$C22=المنصرف!$C$3:$C$717)*1,المنصرف!$J$3:$J$717) -> 0 | CZ22: =SUMPRODUCT((CZ$3=المنصرف!$E$3:$E$717)*1,('بيان العهد والتسويات'!$C22=المنصرف!$C$3:$C$717)*1,المنصرف!$G$3:$G$717) -> 0 | DA22: =SUMPRODUCT((CZ$3=المنصرف!$E$3:$E$717)*1,('بيان العهد والتسويات'!$C22=المنصرف!$C$3:$C$717)*1,المنصرف!$J$3:$J$717) -> 0
C23: 2025-07-17 | D23: =SUMPRODUCT(($D$3=المنصرف!$E$3:$E$717)*1,('بيان العهد والتسويات'!$C23=المنصرف!$C$3:$C$717)*1,المنصرف!$G$3:$G$717) -> 0 | E23: =SUMPRODUCT(($D$3=المنصرف!$E$3:$E$717)*1,('بيان العهد والتسويات'!$C23=المنصرف!$C$3:$C$717)*1,المنصرف!$J$3:$J$717) -> 0 | F23: =SUMPRODUCT(($F$3=المنصرف!$E$3:$E$717)*1,('بيان العهد والتسويات'!$C23=المنصرف!$C$3:$C$717)*1,المنصرف!$G$3:$G$717) -> 0 | G23: =SUMPRODUCT(($F$3=المنصرف!$E$3:$E$717)*1,('بيان العهد والتسويات'!$C23=المنصرف!$C$3:$C$717)*1,المنصرف!$J$3:$J$717) -> 0 | H23: =SUMPRODUCT(($H$3=المنصرف!$E$3:$E$717)*1,('بيان العهد والتسويات'!$C23=المنصرف!$C$3:$C$717)*1,المنصرف!$G$3:$G$717) -> 0 | I23: =SUMPRODUCT(($H$3=المنصرف!$E$3:$E$717)*1,('بيان العهد والتسويات'!$C23=المنصرف!$C$3:$C$717)*1,المنصرف!$J$3:$J$717) -> 0 | J23: =SUMPRODUCT(($J$3=المنصرف!$E$3:$E$717)*1,('بيان العهد والتسويات'!$C23=المنصرف!$C$3:$C$717)*1,المنصرف!$G$3:$G$717) -> 0 | K23: =SUMPRODUCT(($J$3=المنصرف!$E$3:$E$717)*1,('بيان العهد والتسويات'!$C23=المنصرف!$C$3:$C$717)*1,المنصرف!$J$3:$J$717) -> 0 | L23: =SUMPRODUCT(($L$3=المنصرف!$E$3:$E$717)*1,('بيان العهد والتسويات'!$C23=المنصرف!$C$3:$C$717)*1,المنصرف!$G$3:$G$717) -> 0 | M23: =SUMPRODUCT(($L$3=المنصرف!$E$3:$E$717)*1,('بيان العهد والتسويات'!$C23=المنصرف!$C$3:$C$717)*1,المنصرف!$J$3:$J$717) -> 0 | N23: =SUMPRODUCT(($N$3=المنصرف!$E$3:$E$717)*1,('بيان العهد والتسويات'!$C23=المنصرف!$C$3:$C$717)*1,المنصرف!$G$3:$G$717) -> 0 | O23: =SUMPRODUCT(($N$3=المنصرف!$E$3:$E$717)*1,('بيان العهد والتسويات'!$C23=المنصرف!$C$3:$C$717)*1,المنصرف!$J$3:$J$717) -> 0 | P23: =SUMPRODUCT(($P$3=المنصرف!$E$3:$E$717)*1,('بيان العهد والتسويات'!$C23=المنصرف!$C$3:$C$717)*1,المنصرف!$G$3:$G$717) -> 0 | Q23: =SUMPRODUCT(($P$3=المنصرف!$E$3:$E$717)*1,('بيان العهد والتسويات'!$C23=المنصرف!$C$3:$C$717)*1,المنصرف!$J$3:$J$717) -> 0 | R23: =SUMPRODUCT(($R$3=المنصرف!$E$3:$E$717)*1,('بيان العهد والتسويات'!$C23=المنصرف!$C$3:$C$717)*1,المنصرف!$G$3:$G$717) -> 0 | S23: =SUMPRODUCT(($R$3=المنصرف!$E$3:$E$717)*1,('بيان العهد والتسويات'!$C23=المنصرف!$C$3:$C$717)*1,المنصرف!$J$3:$J$717) -> 0 | T23: =SUMPRODUCT(($T$3=المنصرف!$E$3:$E$717)*1,('بيان العهد والتسويات'!$C23=المنصرف!$C$3:$C$717)*1,المنصرف!$G$3:$G$717) -> 0 | U23: =SUMPRODUCT(($T$3=المنصرف!$E$3:$E$717)*1,('بيان العهد والتسويات'!$C23=المنصرف!$C$3:$C$717)*1,المنصرف!$J$3:$J$717) -> 0 | V23: =SUMPRODUCT(($V$3=المنصرف!$E$3:$E$717)*1,('بيان العهد والتسويات'!$C23=المنصرف!$C$3:$C$717)*1,المنصرف!$G$3:$G$717) -> 0 | W23: =SUMPRODUCT(($V$3=المنصرف!$E$3:$E$717)*1,('بيان العهد والتسويات'!$C23=المنصرف!$C$3:$C$717)*1,المنصرف!$J$3:$J$717) -> 0 | X23: =SUMPRODUCT(($X$3=المنصرف!$E$3:$E$717)*1,('بيان العهد والتسويات'!$C23=المنصرف!$C$3:$C$717)*1,المنصرف!$G$3:$G$717) -> 0 | Y23: =SUMPRODUCT(($X$3=المنصرف!$E$3:$E$717)*1,('بيان العهد والتسويات'!$C23=المنصرف!$C$3:$C$717)*1,المنصرف!$J$3:$J$717) -> 0 | Z23: =SUMPRODUCT(($Z$3=المنصرف!$E$3:$E$717)*1,('بيان العهد والتسويات'!$C23=المنصرف!$C$3:$C$717)*1,المنصرف!$G$3:$G$717) -> 0 | AA23: =SUMPRODUCT(($Z$3=المنصرف!$E$3:$E$717)*1,('بيان العهد والتسويات'!$C23=المنصرف!$C$3:$C$717)*1,المنصرف!$J$3:$J$717) -> 0 | AB23: =SUMPRODUCT(($AB$3=المنصرف!$E$3:$E$717)*1,('بيان العهد والتسويات'!$C23=المنصرف!$C$3:$C$717)*1,المنصرف!$G$3:$G$717) -> 0 | AC23: =SUMPRODUCT(($AB$3=المنصرف!$E$3:$E$717)*1,('بيان العهد والتسويات'!$C23=المنصرف!$C$3:$C$717)*1,المنصرف!$J$3:$J$717) -> 0 | AD23: =SUMPRODUCT(($AD$3=المنصرف!$E$3:$E$717)*1,('بيان العهد والتسويات'!$C23=المنصرف!$C$3:$C$717)*1,المنصرف!$G$3:$G$717) -> 0 | AE23: =SUMPRODUCT(($AD$3=المنصرف!$E$3:$E$717)*1,('بيان العهد والتسويات'!$C23=المنصرف!$C$3:$C$717)*1,المنصرف!$J$3:$J$717) -> 0 | AF23: =SUMPRODUCT(($AF$3=المنصرف!$E$3:$E$717)*1,('بيان العهد والتسويات'!$C23=المنصرف!$C$3:$C$717)*1,المنصرف!$G$3:$G$717) -> 0 | AG23: =SUMPRODUCT(($AF$3=المنصرف!$E$3:$E$717)*1,('بيان العهد والتسويات'!$C23=المنصرف!$C$3:$C$717)*1,المنصرف!$J$3:$J$717) -> 0 | AH23: =SUMPRODUCT(($AH$3=المنصرف!$E$3:$E$717)*1,('بيان العهد والتسويات'!$C23=المنصرف!$C$3:$C$717)*1,المنصرف!$G$3:$G$717) -> 0 | AI23: =SUMPRODUCT(($AH$3=المنصرف!$E$3:$E$717)*1,('بيان العهد والتسويات'!$C23=المنصرف!$C$3:$C$717)*1,المنصرف!$J$3:$J$717) -> 0 | AJ23: =SUMPRODUCT((AJ$3=المنصرف!$E$3:$E$717)*1,('بيان العهد والتسويات'!$C23=المنصرف!$C$3:$C$717)*1,المنصرف!$G$3:$G$717) -> 0 | AK23: =SUMPRODUCT((AJ$3=المنصرف!$E$3:$E$717)*1,('بيان العهد والتسويات'!$C23=المنصرف!$C$3:$C$717)*1,المنصرف!$J$3:$J$717) -> 0 | AL23: =SUMPRODUCT((AL$3=المنصرف!$E$3:$E$717)*1,('بيان العهد والتسويات'!$C23=المنصرف!$C$3:$C$717)*1,المنصرف!$G$3:$G$717) -> 0 | AM23: =SUMPRODUCT((AL$3=المنصرف!$E$3:$E$717)*1,('بيان العهد والتسويات'!$C23=المنصرف!$C$3:$C$717)*1,المنصرف!$J$3:$J$717) -> 0 | AN23: =SUMPRODUCT((AN$3=المنصرف!$E$3:$E$717)*1,('بيان العهد والتسويات'!$C23=المنصرف!$C$3:$C$717)*1,المنصرف!$G$3:$G$717) -> 0 | AO23: =SUMPRODUCT((AN$3=المنصرف!$E$3:$E$717)*1,('بيان العهد والتسويات'!$C23=المنصرف!$C$3:$C$717)*1,المنصرف!$J$3:$J$717) -> 0 | AP23: =SUMPRODUCT((AP$3=المنصرف!$E$3:$E$717)*1,('بيان العهد والتسويات'!$C23=المنصرف!$C$3:$C$717)*1,المنصرف!$G$3:$G$717) -> 0 | AQ23: =SUMPRODUCT((AP$3=المنصرف!$E$3:$E$717)*1,('بيان العهد والتسويات'!$C23=المنصرف!$C$3:$C$717)*1,المنصرف!$J$3:$J$717) -> 0 | AR23: =SUMPRODUCT((AR$3=المنصرف!$E$3:$E$717)*1,('بيان العهد والتسويات'!$C23=المنصرف!$C$3:$C$717)*1,المنصرف!$G$3:$G$717) -> 0 | AS23: =SUMPRODUCT((AR$3=المنصرف!$E$3:$E$717)*1,('بيان العهد والتسويات'!$C23=المنصرف!$C$3:$C$717)*1,المنصرف!$J$3:$J$717) -> 0 | AT23: =SUMPRODUCT((AT$3=المنصرف!$E$3:$E$717)*1,('بيان العهد والتسويات'!$C23=المنصرف!$C$3:$C$717)*1,المنصرف!$G$3:$G$717) -> 0 | AU23: =SUMPRODUCT((AT$3=المنصرف!$E$3:$E$717)*1,('بيان العهد والتسويات'!$C23=المنصرف!$C$3:$C$717)*1,المنصرف!$J$3:$J$717) -> 0 | AV23: =SUMPRODUCT((AV$3=المنصرف!$E$3:$E$717)*1,('بيان العهد والتسويات'!$C23=المنصرف!$C$3:$C$717)*1,المنصرف!$G$3:$G$717) -> 0 | AW23: =SUMPRODUCT((AV$3=المنصرف!$E$3:$E$717)*1,('بيان العهد والتسويات'!$C23=المنصرف!$C$3:$C$717)*1,المنصرف!$J$3:$J$717) -> 0 | AX23: =SUMPRODUCT((AX$3=المنصرف!$E$3:$E$717)*1,('بيان العهد والتسويات'!$C23=المنصرف!$C$3:$C$717)*1,المنصرف!$G$3:$G$717) -> 0 | AY23: =SUMPRODUCT((AX$3=المنصرف!$E$3:$E$717)*1,('بيان العهد والتسويات'!$C23=المنصرف!$C$3:$C$717)*1,المنصرف!$J$3:$J$717) -> 0 | AZ23: =SUMPRODUCT((AZ$3=المنصرف!$E$3:$E$717)*1,('بيان العهد والتسويات'!$C23=المنصرف!$C$3:$C$717)*1,المنصرف!$G$3:$G$717) -> 0 | BA23: =SUMPRODUCT((AZ$3=المنصرف!$E$3:$E$717)*1,('بيان العهد والتسويات'!$C23=المنصرف!$C$3:$C$717)*1,المنصرف!$J$3:$J$717) -> 0 | BB23: =SUMPRODUCT((BB$3=المنصرف!$E$3:$E$717)*1,('بيان العهد والتسويات'!$C23=المنصرف!$C$3:$C$717)*1,المنصرف!$G$3:$G$717) -> 0 | BC23: =SUMPRODUCT((BB$3=المنصرف!$E$3:$E$717)*1,('بيان العهد والتسويات'!$C23=المنصرف!$C$3:$C$717)*1,المنصرف!$J$3:$J$717) -> 0 | BD23: =SUMPRODUCT((BD$3=المنصرف!$E$3:$E$717)*1,('بيان العهد والتسويات'!$C23=المنصرف!$C$3:$C$717)*1,المنصرف!$G$3:$G$717) -> 0 | BE23: =SUMPRODUCT((BD$3=المنصرف!$E$3:$E$717)*1,('بيان العهد والتسويات'!$C23=المنصرف!$C$3:$C$717)*1,المنصرف!$J$3:$J$717) -> 0 | BF23: =SUMPRODUCT((BF$3=المنصرف!$E$3:$E$717)*1,('بيان العهد والتسويات'!$C23=المنصرف!$C$3:$C$717)*1,المنصرف!$G$3:$G$717) -> 0 | BG23: =SUMPRODUCT((BF$3=المنصرف!$E$3:$E$717)*1,('بيان العهد والتسويات'!$C23=المنصرف!$C$3:$C$717)*1,المنصرف!$J$3:$J$717) -> 0 | BH23: =SUMPRODUCT((BH$3=المنصرف!$E$3:$E$717)*1,('بيان العهد والتسويات'!$C23=المنصرف!$C$3:$C$717)*1,المنصرف!$G$3:$G$717) -> 0 | BI23: =SUMPRODUCT((BH$3=المنصرف!$E$3:$E$717)*1,('بيان العهد والتسويات'!$C23=المنصرف!$C$3:$C$717)*1,المنصرف!$J$3:$J$717) -> 0 | BJ23: =SUMPRODUCT((BJ$3=المنصرف!$E$3:$E$717)*1,('بيان العهد والتسويات'!$C23=المنصرف!$C$3:$C$717)*1,المنصرف!$G$3:$G$717) -> 0 | BK23: =SUMPRODUCT((BJ$3=المنصرف!$E$3:$E$717)*1,('بيان العهد والتسويات'!$C23=المنصرف!$C$3:$C$717)*1,المنصرف!$J$3:$J$717) -> 0 | BL23: =SUMPRODUCT((BL$3=المنصرف!$E$3:$E$717)*1,('بيان العهد والتسويات'!$C23=المنصرف!$C$3:$C$717)*1,المنصرف!$G$3:$G$717) -> 0 | BM23: =SUMPRODUCT((BL$3=المنصرف!$E$3:$E$717)*1,('بيان العهد والتسويات'!$C23=المنصرف!$C$3:$C$717)*1,المنصرف!$J$3:$J$717) -> 0 | BN23: =SUMPRODUCT((BN$3=المنصرف!$E$3:$E$717)*1,('بيان العهد والتسويات'!$C23=المنصرف!$C$3:$C$717)*1,المنصرف!$G$3:$G$717) -> 0 | BO23: =SUMPRODUCT((BN$3=المنصرف!$E$3:$E$717)*1,('بيان العهد والتسويات'!$C23=المنصرف!$C$3:$C$717)*1,المنصرف!$J$3:$J$717) -> 0 | BP23: =SUMPRODUCT((BP$3=المنصرف!$E$3:$E$717)*1,('بيان العهد والتسويات'!$C23=المنصرف!$C$3:$C$717)*1,المنصرف!$G$3:$G$717) -> 0 | BQ23: =SUMPRODUCT((BP$3=المنصرف!$E$3:$E$717)*1,('بيان العهد والتسويات'!$C23=المنصرف!$C$3:$C$717)*1,المنصرف!$J$3:$J$717) -> 0 | BR23: =SUMPRODUCT((BR$3=المنصرف!$E$3:$E$717)*1,('بيان العهد والتسويات'!$C23=المنصرف!$C$3:$C$717)*1,المنصرف!$G$3:$G$717) -> 0 | BS23: =SUMPRODUCT((BR$3=المنصرف!$E$3:$E$717)*1,('بيان العهد والتسويات'!$C23=المنصرف!$C$3:$C$717)*1,المنصرف!$J$3:$J$717) -> 0 | BT23: =SUMPRODUCT((BT$3=المنصرف!$E$3:$E$717)*1,('بيان العهد والتسويات'!$C23=المنصرف!$C$3:$C$717)*1,المنصرف!$G$3:$G$717) -> 0 | BU23: =SUMPRODUCT((BT$3=المنصرف!$E$3:$E$717)*1,('بيان العهد والتسويات'!$C23=المنصرف!$C$3:$C$717)*1,المنصرف!$J$3:$J$717) -> 0 | BV23: =SUMPRODUCT((BV$3=المنصرف!$E$3:$E$717)*1,('بيان العهد والتسويات'!$C23=المنصرف!$C$3:$C$717)*1,المنصرف!$G$3:$G$717) -> 0 | BW23: =SUMPRODUCT((BV$3=المنصرف!$E$3:$E$717)*1,('بيان العهد والتسويات'!$C23=المنصرف!$C$3:$C$717)*1,المنصرف!$J$3:$J$717) -> 0 | BX23: =SUMPRODUCT((BX$3=المنصرف!$E$3:$E$717)*1,('بيان العهد والتسويات'!$C23=المنصرف!$C$3:$C$717)*1,المنصرف!$G$3:$G$717) -> 0 | BY23: =SUMPRODUCT((BX$3=المنصرف!$E$3:$E$717)*1,('بيان العهد والتسويات'!$C23=المنصرف!$C$3:$C$717)*1,المنصرف!$J$3:$J$717) -> 0 | BZ23: =SUMPRODUCT((BZ$3=المنصرف!$E$3:$E$717)*1,('بيان العهد والتسويات'!$C23=المنصرف!$C$3:$C$717)*1,المنصرف!$G$3:$G$717) -> 0 | CA23: =SUMPRODUCT((BZ$3=المنصرف!$E$3:$E$717)*1,('بيان العهد والتسويات'!$C23=المنصرف!$C$3:$C$717)*1,المنصرف!$J$3:$J$717) -> 0 | CB23: =SUMPRODUCT((CB$3=المنصرف!$E$3:$E$717)*1,('بيان العهد والتسويات'!$C23=المنصرف!$C$3:$C$717)*1,المنصرف!$G$3:$G$717) -> 0 | CC23: =SUMPRODUCT((CB$3=المنصرف!$E$3:$E$717)*1,('بيان العهد والتسويات'!$C23=المنصرف!$C$3:$C$717)*1,المنصرف!$J$3:$J$717) -> 0 | CD23: =SUMPRODUCT((CD$3=المنصرف!$E$3:$E$717)*1,('بيان العهد والتسويات'!$C23=المنصرف!$C$3:$C$717)*1,المنصرف!$G$3:$G$717) -> 0 | CE23: =SUMPRODUCT((CD$3=المنصرف!$E$3:$E$717)*1,('بيان العهد والتسويات'!$C23=المنصرف!$C$3:$C$717)*1,المنصرف!$J$3:$J$717) -> 0 | CF23: =SUMPRODUCT((CF$3=المنصرف!$E$3:$E$717)*1,('بيان العهد والتسويات'!$C23=المنصرف!$C$3:$C$717)*1,المنصرف!$G$3:$G$717) -> 0 | CG23: =SUMPRODUCT((CF$3=المنصرف!$E$3:$E$717)*1,('بيان العهد والتسويات'!$C23=المنصرف!$C$3:$C$717)*1,المنصرف!$J$3:$J$717) -> 0 | CH23: =SUMPRODUCT((CH$3=المنصرف!$E$3:$E$717)*1,('بيان العهد والتسويات'!$C23=المنصرف!$C$3:$C$717)*1,المنصرف!$G$3:$G$717) -> 0 | CI23: =SUMPRODUCT((CH$3=المنصرف!$E$3:$E$717)*1,('بيان العهد والتسويات'!$C23=المنصرف!$C$3:$C$717)*1,المنصرف!$J$3:$J$717) -> 0 | CJ23: =SUMPRODUCT((CJ$3=المنصرف!$E$3:$E$717)*1,('بيان العهد والتسويات'!$C23=المنصرف!$C$3:$C$717)*1,المنصرف!$G$3:$G$717) -> 0 | CK23: =SUMPRODUCT((CJ$3=المنصرف!$E$3:$E$717)*1,('بيان العهد والتسويات'!$C23=المنصرف!$C$3:$C$717)*1,المنصرف!$J$3:$J$717) -> 0 | CL23: =SUMPRODUCT((CL$3=المنصرف!$E$3:$E$717)*1,('بيان العهد والتسويات'!$C23=المنصرف!$C$3:$C$717)*1,المنصرف!$G$3:$G$717) -> 0 | CM23: =SUMPRODUCT((CL$3=المنصرف!$E$3:$E$717)*1,('بيان العهد والتسويات'!$C23=المنصرف!$C$3:$C$717)*1,المنصرف!$J$3:$J$717) -> 0 | CN23: =SUMPRODUCT((CN$3=المنصرف!$E$3:$E$717)*1,('بيان العهد والتسويات'!$C23=المنصرف!$C$3:$C$717)*1,المنصرف!$G$3:$G$717) -> 0 | CO23: =SUMPRODUCT((CN$3=المنصرف!$E$3:$E$717)*1,('بيان العهد والتسويات'!$C23=المنصرف!$C$3:$C$717)*1,المنصرف!$J$3:$J$717) -> 0 | CP23: =SUMPRODUCT((CP$3=المنصرف!$E$3:$E$717)*1,('بيان العهد والتسويات'!$C23=المنصرف!$C$3:$C$717)*1,المنصرف!$G$3:$G$717) -> 0 | CQ23: =SUMPRODUCT((CP$3=المنصرف!$E$3:$E$717)*1,('بيان العهد والتسويات'!$C23=المنصرف!$C$3:$C$717)*1,المنصرف!$J$3:$J$717) -> 0 | CR23: =SUMPRODUCT((CR$3=المنصرف!$E$3:$E$717)*1,('بيان العهد والتسويات'!$C23=المنصرف!$C$3:$C$717)*1,المنصرف!$G$3:$G$717) -> 0 | CS23: =SUMPRODUCT((CR$3=المنصرف!$E$3:$E$717)*1,('بيان العهد والتسويات'!$C23=المنصرف!$C$3:$C$717)*1,المنصرف!$J$3:$J$717) -> 0 | CT23: =SUMPRODUCT((CT$3=المنصرف!$E$3:$E$717)*1,('بيان العهد والتسويات'!$C23=المنصرف!$C$3:$C$717)*1,المنصرف!$G$3:$G$717) -> 0 | CU23: =SUMPRODUCT((CT$3=المنصرف!$E$3:$E$717)*1,('بيان العهد والتسويات'!$C23=المنصرف!$C$3:$C$717)*1,المنصرف!$J$3:$J$717) -> 0 | CV23: =SUMPRODUCT((CV$3=المنصرف!$E$3:$E$717)*1,('بيان العهد والتسويات'!$C23=المنصرف!$C$3:$C$717)*1,المنصرف!$G$3:$G$717) -> 0 | CW23: =SUMPRODUCT((CV$3=المنصرف!$E$3:$E$717)*1,('بيان العهد والتسويات'!$C23=المنصرف!$C$3:$C$717)*1,المنصرف!$J$3:$J$717) -> 0 | CX23: =SUMPRODUCT((CX$3=المنصرف!$E$3:$E$717)*1,('بيان العهد والتسويات'!$C23=المنصرف!$C$3:$C$717)*1,المنصرف!$G$3:$G$717) -> 0 | CY23: =SUMPRODUCT((CX$3=المنصرف!$E$3:$E$717)*1,('بيان العهد والتسويات'!$C23=المنصرف!$C$3:$C$717)*1,المنصرف!$J$3:$J$717) -> 0 | CZ23: =SUMPRODUCT((CZ$3=المنصرف!$E$3:$E$717)*1,('بيان العهد والتسويات'!$C23=المنصرف!$C$3:$C$717)*1,المنصرف!$G$3:$G$717) -> 0 | DA23: =SUMPRODUCT((CZ$3=المنصرف!$E$3:$E$717)*1,('بيان العهد والتسويات'!$C23=المنصرف!$C$3:$C$717)*1,المنصرف!$J$3:$J$717) -> 0
C24: 2025-07-18 | D24: =SUMPRODUCT(($D$3=المنصرف!$E$3:$E$717)*1,('بيان العهد والتسويات'!$C24=المنصرف!$C$3:$C$717)*1,المنصرف!$G$3:$G$717) -> 0 | E24: =SUMPRODUCT(($D$3=المنصرف!$E$3:$E$717)*1,('بيان العهد والتسويات'!$C24=المنصرف!$C$3:$C$717)*1,المنصرف!$J$3:$J$717) -> 0 | F24: =SUMPRODUCT(($F$3=المنصرف!$E$3:$E$717)*1,('بيان العهد والتسويات'!$C24=المنصرف!$C$3:$C$717)*1,المنصرف!$G$3:$G$717) -> 0 | G24: =SUMPRODUCT(($F$3=المنصرف!$E$3:$E$717)*1,('بيان العهد والتسويات'!$C24=المنصرف!$C$3:$C$717)*1,المنصرف!$J$3:$J$717) -> 0 | H24: =SUMPRODUCT(($H$3=المنصرف!$E$3:$E$717)*1,('بيان العهد والتسويات'!$C24=المنصرف!$C$3:$C$717)*1,المنصرف!$G$3:$G$717) -> 0 | I24: =SUMPRODUCT(($H$3=المنصرف!$E$3:$E$717)*1,('بيان العهد والتسويات'!$C24=المنصرف!$C$3:$C$717)*1,المنصرف!$J$3:$J$717) -> 0 | J24: =SUMPRODUCT(($J$3=المنصرف!$E$3:$E$717)*1,('بيان العهد والتسويات'!$C24=المنصرف!$C$3:$C$717)*1,المنصرف!$G$3:$G$717) -> 0 | K24: =SUMPRODUCT(($J$3=المنصرف!$E$3:$E$717)*1,('بيان العهد والتسويات'!$C24=المنصرف!$C$3:$C$717)*1,المنصرف!$J$3:$J$717) -> 0 | L24: =SUMPRODUCT(($L$3=المنصرف!$E$3:$E$717)*1,('بيان العهد والتسويات'!$C24=المنصرف!$C$3:$C$717)*1,المنصرف!$G$3:$G$717) -> 0 | M24: =SUMPRODUCT(($L$3=المنصرف!$E$3:$E$717)*1,('بيان العهد والتسويات'!$C24=المنصرف!$C$3:$C$717)*1,المنصرف!$J$3:$J$717) -> 0 | N24: =SUMPRODUCT(($N$3=المنصرف!$E$3:$E$717)*1,('بيان العهد والتسويات'!$C24=المنصرف!$C$3:$C$717)*1,المنصرف!$G$3:$G$717) -> 0 | O24: =SUMPRODUCT(($N$3=المنصرف!$E$3:$E$717)*1,('بيان العهد والتسويات'!$C24=المنصرف!$C$3:$C$717)*1,المنصرف!$J$3:$J$717) -> 0 | P24: =SUMPRODUCT(($P$3=المنصرف!$E$3:$E$717)*1,('بيان العهد والتسويات'!$C24=المنصرف!$C$3:$C$717)*1,المنصرف!$G$3:$G$717) -> 0 | Q24: =SUMPRODUCT(($P$3=المنصرف!$E$3:$E$717)*1,('بيان العهد والتسويات'!$C24=المنصرف!$C$3:$C$717)*1,المنصرف!$J$3:$J$717) -> 0 | R24: =SUMPRODUCT(($R$3=المنصرف!$E$3:$E$717)*1,('بيان العهد والتسويات'!$C24=المنصرف!$C$3:$C$717)*1,المنصرف!$G$3:$G$717) -> 0 | S24: =SUMPRODUCT(($R$3=المنصرف!$E$3:$E$717)*1,('بيان العهد والتسويات'!$C24=المنصرف!$C$3:$C$717)*1,المنصرف!$J$3:$J$717) -> 0 | T24: =SUMPRODUCT(($T$3=المنصرف!$E$3:$E$717)*1,('بيان العهد والتسويات'!$C24=المنصرف!$C$3:$C$717)*1,المنصرف!$G$3:$G$717) -> 0 | U24: =SUMPRODUCT(($T$3=المنصرف!$E$3:$E$717)*1,('بيان العهد والتسويات'!$C24=المنصرف!$C$3:$C$717)*1,المنصرف!$J$3:$J$717) -> 0 | V24: =SUMPRODUCT(($V$3=المنصرف!$E$3:$E$717)*1,('بيان العهد والتسويات'!$C24=المنصرف!$C$3:$C$717)*1,المنصرف!$G$3:$G$717) -> 0 | W24: =SUMPRODUCT(($V$3=المنصرف!$E$3:$E$717)*1,('بيان العهد والتسويات'!$C24=المنصرف!$C$3:$C$717)*1,المنصرف!$J$3:$J$717) -> 0 | X24: =SUMPRODUCT(($X$3=المنصرف!$E$3:$E$717)*1,('بيان العهد والتسويات'!$C24=المنصرف!$C$3:$C$717)*1,المنصرف!$G$3:$G$717) -> 0 | Y24: =SUMPRODUCT(($X$3=المنصرف!$E$3:$E$717)*1,('بيان العهد والتسويات'!$C24=المنصرف!$C$3:$C$717)*1,المنصرف!$J$3:$J$717) -> 0 | Z24: =SUMPRODUCT(($Z$3=المنصرف!$E$3:$E$717)*1,('بيان العهد والتسويات'!$C24=المنصرف!$C$3:$C$717)*1,المنصرف!$G$3:$G$717) -> 0 | AA24: =SUMPRODUCT(($Z$3=المنصرف!$E$3:$E$717)*1,('بيان العهد والتسويات'!$C24=المنصرف!$C$3:$C$717)*1,المنصرف!$J$3:$J$717) -> 0 | AB24: =SUMPRODUCT(($AB$3=المنصرف!$E$3:$E$717)*1,('بيان العهد والتسويات'!$C24=المنصرف!$C$3:$C$717)*1,المنصرف!$G$3:$G$717) -> 0 | AC24: =SUMPRODUCT(($AB$3=المنصرف!$E$3:$E$717)*1,('بيان العهد والتسويات'!$C24=المنصرف!$C$3:$C$717)*1,المنصرف!$J$3:$J$717) -> 0 | AD24: =SUMPRODUCT(($AD$3=المنصرف!$E$3:$E$717)*1,('بيان العهد والتسويات'!$C24=المنصرف!$C$3:$C$717)*1,المنصرف!$G$3:$G$717) -> 0 | AE24: =SUMPRODUCT(($AD$3=المنصرف!$E$3:$E$717)*1,('بيان العهد والتسويات'!$C24=المنصرف!$C$3:$C$717)*1,المنصرف!$J$3:$J$717) -> 0 | AF24: =SUMPRODUCT(($AF$3=المنصرف!$E$3:$E$717)*1,('بيان العهد والتسويات'!$C24=المنصرف!$C$3:$C$717)*1,المنصرف!$G$3:$G$717) -> 0 | AG24: =SUMPRODUCT(($AF$3=المنصرف!$E$3:$E$717)*1,('بيان العهد والتسويات'!$C24=المنصرف!$C$3:$C$717)*1,المنصرف!$J$3:$J$717) -> 0 | AH24: =SUMPRODUCT(($AH$3=المنصرف!$E$3:$E$717)*1,('بيان العهد والتسويات'!$C24=المنصرف!$C$3:$C$717)*1,المنصرف!$G$3:$G$717) -> 0 | AI24: =SUMPRODUCT(($AH$3=المنصرف!$E$3:$E$717)*1,('بيان العهد والتسويات'!$C24=المنصرف!$C$3:$C$717)*1,المنصرف!$J$3:$J$717) -> 0 | AJ24: =SUMPRODUCT((AJ$3=المنصرف!$E$3:$E$717)*1,('بيان العهد والتسويات'!$C24=المنصرف!$C$3:$C$717)*1,المنصرف!$G$3:$G$717) -> 0 | AK24: =SUMPRODUCT((AJ$3=المنصرف!$E$3:$E$717)*1,('بيان العهد والتسويات'!$C24=المنصرف!$C$3:$C$717)*1,المنصرف!$J$3:$J$717) -> 0 | AL24: =SUMPRODUCT((AL$3=المنصرف!$E$3:$E$717)*1,('بيان العهد والتسويات'!$C24=المنصرف!$C$3:$C$717)*1,المنصرف!$G$3:$G$717) -> 0 | AM24: =SUMPRODUCT((AL$3=المنصرف!$E$3:$E$717)*1,('بيان العهد والتسويات'!$C24=المنصرف!$C$3:$C$717)*1,المنصرف!$J$3:$J$717) -> 0 | AN24: =SUMPRODUCT((AN$3=المنصرف!$E$3:$E$717)*1,('بيان العهد والتسويات'!$C24=المنصرف!$C$3:$C$717)*1,المنصرف!$G$3:$G$717) -> 0 | AO24: =SUMPRODUCT((AN$3=المنصرف!$E$3:$E$717)*1,('بيان العهد والتسويات'!$C24=المنصرف!$C$3:$C$717)*1,المنصرف!$J$3:$J$717) -> 0 | AP24: =SUMPRODUCT((AP$3=المنصرف!$E$3:$E$717)*1,('بيان العهد والتسويات'!$C24=المنصرف!$C$3:$C$717)*1,المنصرف!$G$3:$G$717) -> 0 | AQ24: =SUMPRODUCT((AP$3=المنصرف!$E$3:$E$717)*1,('بيان العهد والتسويات'!$C24=المنصرف!$C$3:$C$717)*1,المنصرف!$J$3:$J$717) -> 0 | AR24: =SUMPRODUCT((AR$3=المنصرف!$E$3:$E$717)*1,('بيان العهد والتسويات'!$C24=المنصرف!$C$3:$C$717)*1,المنصرف!$G$3:$G$717) -> 0 | AS24: =SUMPRODUCT((AR$3=المنصرف!$E$3:$E$717)*1,('بيان العهد والتسويات'!$C24=المنصرف!$C$3:$C$717)*1,المنصرف!$J$3:$J$717) -> 0 | AT24: =SUMPRODUCT((AT$3=المنصرف!$E$3:$E$717)*1,('بيان العهد والتسويات'!$C24=المنصرف!$C$3:$C$717)*1,المنصرف!$G$3:$G$717) -> 0 | AU24: =SUMPRODUCT((AT$3=المنصرف!$E$3:$E$717)*1,('بيان العهد والتسويات'!$C24=المنصرف!$C$3:$C$717)*1,المنصرف!$J$3:$J$717) -> 0 | AV24: =SUMPRODUCT((AV$3=المنصرف!$E$3:$E$717)*1,('بيان العهد والتسويات'!$C24=المنصرف!$C$3:$C$717)*1,المنصرف!$G$3:$G$717) -> 0 | AW24: =SUMPRODUCT((AV$3=المنصرف!$E$3:$E$717)*1,('بيان العهد والتسويات'!$C24=المنصرف!$C$3:$C$717)*1,المنصرف!$J$3:$J$717) -> 0 | AX24: =SUMPRODUCT((AX$3=المنصرف!$E$3:$E$717)*1,('بيان العهد والتسويات'!$C24=المنصرف!$C$3:$C$717)*1,المنصرف!$G$3:$G$717) -> 0 | AY24: =SUMPRODUCT((AX$3=المنصرف!$E$3:$E$717)*1,('بيان العهد والتسويات'!$C24=المنصرف!$C$3:$C$717)*1,المنصرف!$J$3:$J$717) -> 0 | AZ24: =SUMPRODUCT((AZ$3=المنصرف!$E$3:$E$717)*1,('بيان العهد والتسويات'!$C24=المنصرف!$C$3:$C$717)*1,المنصرف!$G$3:$G$717) -> 0 | BA24: =SUMPRODUCT((AZ$3=المنصرف!$E$3:$E$717)*1,('بيان العهد والتسويات'!$C24=المنصرف!$C$3:$C$717)*1,المنصرف!$J$3:$J$717) -> 0 | BB24: =SUMPRODUCT((BB$3=المنصرف!$E$3:$E$717)*1,('بيان العهد والتسويات'!$C24=المنصرف!$C$3:$C$717)*1,المنصرف!$G$3:$G$717) -> 0 | BC24: =SUMPRODUCT((BB$3=المنصرف!$E$3:$E$717)*1,('بيان العهد والتسويات'!$C24=المنصرف!$C$3:$C$717)*1,المنصرف!$J$3:$J$717) -> 0 | BD24: =SUMPRODUCT((BD$3=المنصرف!$E$3:$E$717)*1,('بيان العهد والتسويات'!$C24=المنصرف!$C$3:$C$717)*1,المنصرف!$G$3:$G$717) -> 0 | BE24: =SUMPRODUCT((BD$3=المنصرف!$E$3:$E$717)*1,('بيان العهد والتسويات'!$C24=المنصرف!$C$3:$C$717)*1,المنصرف!$J$3:$J$717) -> 0 | BF24: =SUMPRODUCT((BF$3=المنصرف!$E$3:$E$717)*1,('بيان العهد والتسويات'!$C24=المنصرف!$C$3:$C$717)*1,المنصرف!$G$3:$G$717) -> 0 | BG24: =SUMPRODUCT((BF$3=المنصرف!$E$3:$E$717)*1,('بيان العهد والتسويات'!$C24=المنصرف!$C$3:$C$717)*1,المنصرف!$J$3:$J$717) -> 0 | BH24: =SUMPRODUCT((BH$3=المنصرف!$E$3:$E$717)*1,('بيان العهد والتسويات'!$C24=المنصرف!$C$3:$C$717)*1,المنصرف!$G$3:$G$717) -> 0 | BI24: =SUMPRODUCT((BH$3=المنصرف!$E$3:$E$717)*1,('بيان العهد والتسويات'!$C24=المنصرف!$C$3:$C$717)*1,المنصرف!$J$3:$J$717) -> 0 | BJ24: =SUMPRODUCT((BJ$3=المنصرف!$E$3:$E$717)*1,('بيان العهد والتسويات'!$C24=المنصرف!$C$3:$C$717)*1,المنصرف!$G$3:$G$717) -> 0 | BK24: =SUMPRODUCT((BJ$3=المنصرف!$E$3:$E$717)*1,('بيان العهد والتسويات'!$C24=المنصرف!$C$3:$C$717)*1,المنصرف!$J$3:$J$717) -> 0 | BL24: =SUMPRODUCT((BL$3=المنصرف!$E$3:$E$717)*1,('بيان العهد والتسويات'!$C24=المنصرف!$C$3:$C$717)*1,المنصرف!$G$3:$G$717) -> 0 | BM24: =SUMPRODUCT((BL$3=المنصرف!$E$3:$E$717)*1,('بيان العهد والتسويات'!$C24=المنصرف!$C$3:$C$717)*1,المنصرف!$J$3:$J$717) -> 0 | BN24: =SUMPRODUCT((BN$3=المنصرف!$E$3:$E$717)*1,('بيان العهد والتسويات'!$C24=المنصرف!$C$3:$C$717)*1,المنصرف!$G$3:$G$717) -> 0 | BO24: =SUMPRODUCT((BN$3=المنصرف!$E$3:$E$717)*1,('بيان العهد والتسويات'!$C24=المنصرف!$C$3:$C$717)*1,المنصرف!$J$3:$J$717) -> 0 | BP24: =SUMPRODUCT((BP$3=المنصرف!$E$3:$E$717)*1,('بيان العهد والتسويات'!$C24=المنصرف!$C$3:$C$717)*1,المنصرف!$G$3:$G$717) -> 0 | BQ24: =SUMPRODUCT((BP$3=المنصرف!$E$3:$E$717)*1,('بيان العهد والتسويات'!$C24=المنصرف!$C$3:$C$717)*1,المنصرف!$J$3:$J$717) -> 0 | BR24: =SUMPRODUCT((BR$3=المنصرف!$E$3:$E$717)*1,('بيان العهد والتسويات'!$C24=المنصرف!$C$3:$C$717)*1,المنصرف!$G$3:$G$717) -> 0 | BS24: =SUMPRODUCT((BR$3=المنصرف!$E$3:$E$717)*1,('بيان العهد والتسويات'!$C24=المنصرف!$C$3:$C$717)*1,المنصرف!$J$3:$J$717) -> 0 | BT24: =SUMPRODUCT((BT$3=المنصرف!$E$3:$E$717)*1,('بيان العهد والتسويات'!$C24=المنصرف!$C$3:$C$717)*1,المنصرف!$G$3:$G$717) -> 0 | BU24: =SUMPRODUCT((BT$3=المنصرف!$E$3:$E$717)*1,('بيان العهد والتسويات'!$C24=المنصرف!$C$3:$C$717)*1,المنصرف!$J$3:$J$717) -> 0 | BV24: =SUMPRODUCT((BV$3=المنصرف!$E$3:$E$717)*1,('بيان العهد والتسويات'!$C24=المنصرف!$C$3:$C$717)*1,المنصرف!$G$3:$G$717) -> 0 | BW24: =SUMPRODUCT((BV$3=المنصرف!$E$3:$E$717)*1,('بيان العهد والتسويات'!$C24=المنصرف!$C$3:$C$717)*1,المنصرف!$J$3:$J$717) -> 0 | BX24: =SUMPRODUCT((BX$3=المنصرف!$E$3:$E$717)*1,('بيان العهد والتسويات'!$C24=المنصرف!$C$3:$C$717)*1,المنصرف!$G$3:$G$717) -> 0 | BY24: =SUMPRODUCT((BX$3=المنصرف!$E$3:$E$717)*1,('بيان العهد والتسويات'!$C24=المنصرف!$C$3:$C$717)*1,المنصرف!$J$3:$J$717) -> 0 | BZ24: =SUMPRODUCT((BZ$3=المنصرف!$E$3:$E$717)*1,('بيان العهد والتسويات'!$C24=المنصرف!$C$3:$C$717)*1,المنصرف!$G$3:$G$717) -> 0 | CA24: =SUMPRODUCT((BZ$3=المنصرف!$E$3:$E$717)*1,('بيان العهد والتسويات'!$C24=المنصرف!$C$3:$C$717)*1,المنصرف!$J$3:$J$717) -> 0 | CB24: =SUMPRODUCT((CB$3=المنصرف!$E$3:$E$717)*1,('بيان العهد والتسويات'!$C24=المنصرف!$C$3:$C$717)*1,المنصرف!$G$3:$G$717) -> 0 | CC24: =SUMPRODUCT((CB$3=المنصرف!$E$3:$E$717)*1,('بيان العهد والتسويات'!$C24=المنصرف!$C$3:$C$717)*1,المنصرف!$J$3:$J$717) -> 0 | CD24: =SUMPRODUCT((CD$3=المنصرف!$E$3:$E$717)*1,('بيان العهد والتسويات'!$C24=المنصرف!$C$3:$C$717)*1,المنصرف!$G$3:$G$717) -> 0 | CE24: =SUMPRODUCT((CD$3=المنصرف!$E$3:$E$717)*1,('بيان العهد والتسويات'!$C24=المنصرف!$C$3:$C$717)*1,المنصرف!$J$3:$J$717) -> 0 | CF24: =SUMPRODUCT((CF$3=المنصرف!$E$3:$E$717)*1,('بيان العهد والتسويات'!$C24=المنصرف!$C$3:$C$717)*1,المنصرف!$G$3:$G$717) -> 0 | CG24: =SUMPRODUCT((CF$3=المنصرف!$E$3:$E$717)*1,('بيان العهد والتسويات'!$C24=المنصرف!$C$3:$C$717)*1,المنصرف!$J$3:$J$717) -> 0 | CH24: =SUMPRODUCT((CH$3=المنصرف!$E$3:$E$717)*1,('بيان العهد والتسويات'!$C24=المنصرف!$C$3:$C$717)*1,المنصرف!$G$3:$G$717) -> 0 | CI24: =SUMPRODUCT((CH$3=المنصرف!$E$3:$E$717)*1,('بيان العهد والتسويات'!$C24=المنصرف!$C$3:$C$717)*1,المنصرف!$J$3:$J$717) -> 0 | CJ24: =SUMPRODUCT((CJ$3=المنصرف!$E$3:$E$717)*1,('بيان العهد والتسويات'!$C24=المنصرف!$C$3:$C$717)*1,المنصرف!$G$3:$G$717) -> 0 | CK24: =SUMPRODUCT((CJ$3=المنصرف!$E$3:$E$717)*1,('بيان العهد والتسويات'!$C24=المنصرف!$C$3:$C$717)*1,المنصرف!$J$3:$J$717) -> 0 | CL24: =SUMPRODUCT((CL$3=المنصرف!$E$3:$E$717)*1,('بيان العهد والتسويات'!$C24=المنصرف!$C$3:$C$717)*1,المنصرف!$G$3:$G$717) -> 0 | CM24: =SUMPRODUCT((CL$3=المنصرف!$E$3:$E$717)*1,('بيان العهد والتسويات'!$C24=المنصرف!$C$3:$C$717)*1,المنصرف!$J$3:$J$717) -> 0 | CN24: =SUMPRODUCT((CN$3=المنصرف!$E$3:$E$717)*1,('بيان العهد والتسويات'!$C24=المنصرف!$C$3:$C$717)*1,المنصرف!$G$3:$G$717) -> 0 | CO24: =SUMPRODUCT((CN$3=المنصرف!$E$3:$E$717)*1,('بيان العهد والتسويات'!$C24=المنصرف!$C$3:$C$717)*1,المنصرف!$J$3:$J$717) -> 0 | CP24: =SUMPRODUCT((CP$3=المنصرف!$E$3:$E$717)*1,('بيان العهد والتسويات'!$C24=المنصرف!$C$3:$C$717)*1,المنصرف!$G$3:$G$717) -> 0 | CQ24: =SUMPRODUCT((CP$3=المنصرف!$E$3:$E$717)*1,('بيان العهد والتسويات'!$C24=المنصرف!$C$3:$C$717)*1,المنصرف!$J$3:$J$717) -> 0 | CR24: =SUMPRODUCT((CR$3=المنصرف!$E$3:$E$717)*1,('بيان العهد والتسويات'!$C24=المنصرف!$C$3:$C$717)*1,المنصرف!$G$3:$G$717) -> 0 | CS24: =SUMPRODUCT((CR$3=المنصرف!$E$3:$E$717)*1,('بيان العهد والتسويات'!$C24=المنصرف!$C$3:$C$717)*1,المنصرف!$J$3:$J$717) -> 0 | CT24: =SUMPRODUCT((CT$3=المنصرف!$E$3:$E$717)*1,('بيان العهد والتسويات'!$C24=المنصرف!$C$3:$C$717)*1,المنصرف!$G$3:$G$717) -> 0 | CU24: =SUMPRODUCT((CT$3=المنصرف!$E$3:$E$717)*1,('بيان العهد والتسويات'!$C24=المنصرف!$C$3:$C$717)*1,المنصرف!$J$3:$J$717) -> 0 | CV24: =SUMPRODUCT((CV$3=المنصرف!$E$3:$E$717)*1,('بيان العهد والتسويات'!$C24=المنصرف!$C$3:$C$717)*1,المنصرف!$G$3:$G$717) -> 0 | CW24: =SUMPRODUCT((CV$3=المنصرف!$E$3:$E$717)*1,('بيان العهد والتسويات'!$C24=المنصرف!$C$3:$C$717)*1,المنصرف!$J$3:$J$717) -> 0 | CX24: =SUMPRODUCT((CX$3=المنصرف!$E$3:$E$717)*1,('بيان العهد والتسويات'!$C24=المنصرف!$C$3:$C$717)*1,المنصرف!$G$3:$G$717) -> 0 | CY24: =SUMPRODUCT((CX$3=المنصرف!$E$3:$E$717)*1,('بيان العهد والتسويات'!$C24=المنصرف!$C$3:$C$717)*1,المنصرف!$J$3:$J$717) -> 0 | CZ24: =SUMPRODUCT((CZ$3=المنصرف!$E$3:$E$717)*1,('بيان العهد والتسويات'!$C24=المنصرف!$C$3:$C$717)*1,المنصرف!$G$3:$G$717) -> 0 | DA24: =SUMPRODUCT((CZ$3=المنصرف!$E$3:$E$717)*1,('بيان العهد والتسويات'!$C24=المنصرف!$C$3:$C$717)*1,المنصرف!$J$3:$J$717) -> 0
C25: 2025-07-19 | D25: =SUMPRODUCT(($D$3=المنصرف!$E$3:$E$717)*1,('بيان العهد والتسويات'!$C25=المنصرف!$C$3:$C$717)*1,المنصرف!$G$3:$G$717) -> 0 | E25: =SUMPRODUCT(($D$3=المنصرف!$E$3:$E$717)*1,('بيان العهد والتسويات'!$C25=المنصرف!$C$3:$C$717)*1,المنصرف!$J$3:$J$717) -> 0 | F25: =SUMPRODUCT(($F$3=المنصرف!$E$3:$E$717)*1,('بيان العهد والتسويات'!$C25=المنصرف!$C$3:$C$717)*1,المنصرف!$G$3:$G$717) -> 0 | G25: =SUMPRODUCT(($F$3=المنصرف!$E$3:$E$717)*1,('بيان العهد والتسويات'!$C25=المنصرف!$C$3:$C$717)*1,المنصرف!$J$3:$J$717) -> 0 | H25: =SUMPRODUCT(($H$3=المنصرف!$E$3:$E$717)*1,('بيان العهد والتسويات'!$C25=المنصرف!$C$3:$C$717)*1,المنصرف!$G$3:$G$717) -> 0 | I25: =SUMPRODUCT(($H$3=المنصرف!$E$3:$E$717)*1,('بيان العهد والتسويات'!$C25=المنصرف!$C$3:$C$717)*1,المنصرف!$J$3:$J$717) -> 0 | J25: =SUMPRODUCT(($J$3=المنصرف!$E$3:$E$717)*1,('بيان العهد والتسويات'!$C25=المنصرف!$C$3:$C$717)*1,المنصرف!$G$3:$G$717) -> 0 | K25: =SUMPRODUCT(($J$3=المنصرف!$E$3:$E$717)*1,('بيان العهد والتسويات'!$C25=المنصرف!$C$3:$C$717)*1,المنصرف!$J$3:$J$717) -> 0 | L25: =SUMPRODUCT(($L$3=المنصرف!$E$3:$E$717)*1,('بيان العهد والتسويات'!$C25=المنصرف!$C$3:$C$717)*1,المنصرف!$G$3:$G$717) -> 0 | M25: =SUMPRODUCT(($L$3=المنصرف!$E$3:$E$717)*1,('بيان العهد والتسويات'!$C25=المنصرف!$C$3:$C$717)*1,المنصرف!$J$3:$J$717) -> 0 | N25: =SUMPRODUCT(($N$3=المنصرف!$E$3:$E$717)*1,('بيان العهد والتسويات'!$C25=المنصرف!$C$3:$C$717)*1,المنصرف!$G$3:$G$717) -> 0 | O25: =SUMPRODUCT(($N$3=المنصرف!$E$3:$E$717)*1,('بيان العهد والتسويات'!$C25=المنصرف!$C$3:$C$717)*1,المنصرف!$J$3:$J$717) -> 0 | P25: =SUMPRODUCT(($P$3=المنصرف!$E$3:$E$717)*1,('بيان العهد والتسويات'!$C25=المنصرف!$C$3:$C$717)*1,المنصرف!$G$3:$G$717) -> 0 | Q25: =SUMPRODUCT(($P$3=المنصرف!$E$3:$E$717)*1,('بيان العهد والتسويات'!$C25=المنصرف!$C$3:$C$717)*1,المنصرف!$J$3:$J$717) -> 0 | R25: =SUMPRODUCT(($R$3=المنصرف!$E$3:$E$717)*1,('بيان العهد والتسويات'!$C25=المنصرف!$C$3:$C$717)*1,المنصرف!$G$3:$G$717) -> 0 | S25: =SUMPRODUCT(($R$3=المنصرف!$E$3:$E$717)*1,('بيان العهد والتسويات'!$C25=المنصرف!$C$3:$C$717)*1,المنصرف!$J$3:$J$717) -> 0 | T25: =SUMPRODUCT(($T$3=المنصرف!$E$3:$E$717)*1,('بيان العهد والتسويات'!$C25=المنصرف!$C$3:$C$717)*1,المنصرف!$G$3:$G$717) -> 0 | U25: =SUMPRODUCT(($T$3=المنصرف!$E$3:$E$717)*1,('بيان العهد والتسويات'!$C25=المنصرف!$C$3:$C$717)*1,المنصرف!$J$3:$J$717) -> 0 | V25: =SUMPRODUCT(($V$3=المنصرف!$E$3:$E$717)*1,('بيان العهد والتسويات'!$C25=المنصرف!$C$3:$C$717)*1,المنصرف!$G$3:$G$717) -> 0 | W25: =SUMPRODUCT(($V$3=المنصرف!$E$3:$E$717)*1,('بيان العهد والتسويات'!$C25=المنصرف!$C$3:$C$717)*1,المنصرف!$J$3:$J$717) -> 0 | X25: =SUMPRODUCT(($X$3=المنصرف!$E$3:$E$717)*1,('بيان العهد والتسويات'!$C25=المنصرف!$C$3:$C$717)*1,المنصرف!$G$3:$G$717) -> 0 | Y25: =SUMPRODUCT(($X$3=المنصرف!$E$3:$E$717)*1,('بيان العهد والتسويات'!$C25=المنصرف!$C$3:$C$717)*1,المنصرف!$J$3:$J$717) -> 0 | Z25: =SUMPRODUCT(($Z$3=المنصرف!$E$3:$E$717)*1,('بيان العهد والتسويات'!$C25=المنصرف!$C$3:$C$717)*1,المنصرف!$G$3:$G$717) -> 0 | AA25: =SUMPRODUCT(($Z$3=المنصرف!$E$3:$E$717)*1,('بيان العهد والتسويات'!$C25=المنصرف!$C$3:$C$717)*1,المنصرف!$J$3:$J$717) -> 0 | AB25: =SUMPRODUCT(($AB$3=المنصرف!$E$3:$E$717)*1,('بيان العهد والتسويات'!$C25=المنصرف!$C$3:$C$717)*1,المنصرف!$G$3:$G$717) -> 0 | AC25: =SUMPRODUCT(($AB$3=المنصرف!$E$3:$E$717)*1,('بيان العهد والتسويات'!$C25=المنصرف!$C$3:$C$717)*1,المنصرف!$J$3:$J$717) -> 0 | AD25: =SUMPRODUCT(($AD$3=المنصرف!$E$3:$E$717)*1,('بيان العهد والتسويات'!$C25=المنصرف!$C$3:$C$717)*1,المنصرف!$G$3:$G$717) -> 0 | AE25: =SUMPRODUCT(($AD$3=المنصرف!$E$3:$E$717)*1,('بيان العهد والتسويات'!$C25=المنصرف!$C$3:$C$717)*1,المنصرف!$J$3:$J$717) -> 0 | AF25: =SUMPRODUCT(($AF$3=المنصرف!$E$3:$E$717)*1,('بيان العهد والتسويات'!$C25=المنصرف!$C$3:$C$717)*1,المنصرف!$G$3:$G$717) -> 0 | AG25: =SUMPRODUCT(($AF$3=المنصرف!$E$3:$E$717)*1,('بيان العهد والتسويات'!$C25=المنصرف!$C$3:$C$717)*1,المنصرف!$J$3:$J$717) -> 0 | AH25: =SUMPRODUCT(($AH$3=المنصرف!$E$3:$E$717)*1,('بيان العهد والتسويات'!$C25=المنصرف!$C$3:$C$717)*1,المنصرف!$G$3:$G$717) -> 0 | AI25: =SUMPRODUCT(($AH$3=المنصرف!$E$3:$E$717)*1,('بيان العهد والتسويات'!$C25=المنصرف!$C$3:$C$717)*1,المنصرف!$J$3:$J$717) -> 0 | AJ25: =SUMPRODUCT((AJ$3=المنصرف!$E$3:$E$717)*1,('بيان العهد والتسويات'!$C25=المنصرف!$C$3:$C$717)*1,المنصرف!$G$3:$G$717) -> 0 | AK25: =SUMPRODUCT((AJ$3=المنصرف!$E$3:$E$717)*1,('بيان العهد والتسويات'!$C25=المنصرف!$C$3:$C$717)*1,المنصرف!$J$3:$J$717) -> 0 | AL25: =SUMPRODUCT((AL$3=المنصرف!$E$3:$E$717)*1,('بيان العهد والتسويات'!$C25=المنصرف!$C$3:$C$717)*1,المنصرف!$G$3:$G$717) -> 0 | AM25: =SUMPRODUCT((AL$3=المنصرف!$E$3:$E$717)*1,('بيان العهد والتسويات'!$C25=المنصرف!$C$3:$C$717)*1,المنصرف!$J$3:$J$717) -> 0 | AN25: =SUMPRODUCT((AN$3=المنصرف!$E$3:$E$717)*1,('بيان العهد والتسويات'!$C25=المنصرف!$C$3:$C$717)*1,المنصرف!$G$3:$G$717) -> 0 | AO25: =SUMPRODUCT((AN$3=المنصرف!$E$3:$E$717)*1,('بيان العهد والتسويات'!$C25=المنصرف!$C$3:$C$717)*1,المنصرف!$J$3:$J$717) -> 0 | AP25: =SUMPRODUCT((AP$3=المنصرف!$E$3:$E$717)*1,('بيان العهد والتسويات'!$C25=المنصرف!$C$3:$C$717)*1,المنصرف!$G$3:$G$717) -> 0 | AQ25: =SUMPRODUCT((AP$3=المنصرف!$E$3:$E$717)*1,('بيان العهد والتسويات'!$C25=المنصرف!$C$3:$C$717)*1,المنصرف!$J$3:$J$717) -> 0 | AR25: =SUMPRODUCT((AR$3=المنصرف!$E$3:$E$717)*1,('بيان العهد والتسويات'!$C25=المنصرف!$C$3:$C$717)*1,المنصرف!$G$3:$G$717) -> 0 | AS25: =SUMPRODUCT((AR$3=المنصرف!$E$3:$E$717)*1,('بيان العهد والتسويات'!$C25=المنصرف!$C$3:$C$717)*1,المنصرف!$J$3:$J$717) -> 0 | AT25: =SUMPRODUCT((AT$3=المنصرف!$E$3:$E$717)*1,('بيان العهد والتسويات'!$C25=المنصرف!$C$3:$C$717)*1,المنصرف!$G$3:$G$717) -> 0 | AU25: =SUMPRODUCT((AT$3=المنصرف!$E$3:$E$717)*1,('بيان العهد والتسويات'!$C25=المنصرف!$C$3:$C$717)*1,المنصرف!$J$3:$J$717) -> 0 | AV25: =SUMPRODUCT((AV$3=المنصرف!$E$3:$E$717)*1,('بيان العهد والتسويات'!$C25=المنصرف!$C$3:$C$717)*1,المنصرف!$G$3:$G$717) -> 0 | AW25: =SUMPRODUCT((AV$3=المنصرف!$E$3:$E$717)*1,('بيان العهد والتسويات'!$C25=المنصرف!$C$3:$C$717)*1,المنصرف!$J$3:$J$717) -> 0 | AX25: =SUMPRODUCT((AX$3=المنصرف!$E$3:$E$717)*1,('بيان العهد والتسويات'!$C25=المنصرف!$C$3:$C$717)*1,المنصرف!$G$3:$G$717) -> 0 | AY25: =SUMPRODUCT((AX$3=المنصرف!$E$3:$E$717)*1,('بيان العهد والتسويات'!$C25=المنصرف!$C$3:$C$717)*1,المنصرف!$J$3:$J$717) -> 0 | AZ25: =SUMPRODUCT((AZ$3=المنصرف!$E$3:$E$717)*1,('بيان العهد والتسويات'!$C25=المنصرف!$C$3:$C$717)*1,المنصرف!$G$3:$G$717) -> 0 | BA25: =SUMPRODUCT((AZ$3=المنصرف!$E$3:$E$717)*1,('بيان العهد والتسويات'!$C25=المنصرف!$C$3:$C$717)*1,المنصرف!$J$3:$J$717) -> 0 | BB25: =SUMPRODUCT((BB$3=المنصرف!$E$3:$E$717)*1,('بيان العهد والتسويات'!$C25=المنصرف!$C$3:$C$717)*1,المنصرف!$G$3:$G$717) -> 0 | BC25: =SUMPRODUCT((BB$3=المنصرف!$E$3:$E$717)*1,('بيان العهد والتسويات'!$C25=المنصرف!$C$3:$C$717)*1,المنصرف!$J$3:$J$717) -> 0 | BD25: =SUMPRODUCT((BD$3=المنصرف!$E$3:$E$717)*1,('بيان العهد والتسويات'!$C25=المنصرف!$C$3:$C$717)*1,المنصرف!$G$3:$G$717) -> 0 | BE25: =SUMPRODUCT((BD$3=المنصرف!$E$3:$E$717)*1,('بيان العهد والتسويات'!$C25=المنصرف!$C$3:$C$717)*1,المنصرف!$J$3:$J$717) -> 0 | BF25: =SUMPRODUCT((BF$3=المنصرف!$E$3:$E$717)*1,('بيان العهد والتسويات'!$C25=المنصرف!$C$3:$C$717)*1,المنصرف!$G$3:$G$717) -> 0 | BG25: =SUMPRODUCT((BF$3=المنصرف!$E$3:$E$717)*1,('بيان العهد والتسويات'!$C25=المنصرف!$C$3:$C$717)*1,المنصرف!$J$3:$J$717) -> 0 | BH25: =SUMPRODUCT((BH$3=المنصرف!$E$3:$E$717)*1,('بيان العهد والتسويات'!$C25=المنصرف!$C$3:$C$717)*1,المنصرف!$G$3:$G$717) -> 0 | BI25: =SUMPRODUCT((BH$3=المنصرف!$E$3:$E$717)*1,('بيان العهد والتسويات'!$C25=المنصرف!$C$3:$C$717)*1,المنصرف!$J$3:$J$717) -> 0 | BJ25: =SUMPRODUCT((BJ$3=المنصرف!$E$3:$E$717)*1,('بيان العهد والتسويات'!$C25=المنصرف!$C$3:$C$717)*1,المنصرف!$G$3:$G$717) -> 0 | BK25: =SUMPRODUCT((BJ$3=المنصرف!$E$3:$E$717)*1,('بيان العهد والتسويات'!$C25=المنصرف!$C$3:$C$717)*1,المنصرف!$J$3:$J$717) -> 0 | BL25: =SUMPRODUCT((BL$3=المنصرف!$E$3:$E$717)*1,('بيان العهد والتسويات'!$C25=المنصرف!$C$3:$C$717)*1,المنصرف!$G$3:$G$717) -> 0 | BM25: =SUMPRODUCT((BL$3=المنصرف!$E$3:$E$717)*1,('بيان العهد والتسويات'!$C25=المنصرف!$C$3:$C$717)*1,المنصرف!$J$3:$J$717) -> 0 | BN25: =SUMPRODUCT((BN$3=المنصرف!$E$3:$E$717)*1,('بيان العهد والتسويات'!$C25=المنصرف!$C$3:$C$717)*1,المنصرف!$G$3:$G$717) -> 0 | BO25: =SUMPRODUCT((BN$3=المنصرف!$E$3:$E$717)*1,('بيان العهد والتسويات'!$C25=المنصرف!$C$3:$C$717)*1,المنصرف!$J$3:$J$717) -> 0 | BP25: =SUMPRODUCT((BP$3=المنصرف!$E$3:$E$717)*1,('بيان العهد والتسويات'!$C25=المنصرف!$C$3:$C$717)*1,المنصرف!$G$3:$G$717) -> 0 | BQ25: =SUMPRODUCT((BP$3=المنصرف!$E$3:$E$717)*1,('بيان العهد والتسويات'!$C25=المنصرف!$C$3:$C$717)*1,المنصرف!$J$3:$J$717) -> 0 | BR25: =SUMPRODUCT((BR$3=المنصرف!$E$3:$E$717)*1,('بيان العهد والتسويات'!$C25=المنصرف!$C$3:$C$717)*1,المنصرف!$G$3:$G$717) -> 0 | BS25: =SUMPRODUCT((BR$3=المنصرف!$E$3:$E$717)*1,('بيان العهد والتسويات'!$C25=المنصرف!$C$3:$C$717)*1,المنصرف!$J$3:$J$717) -> 0 | BT25: =SUMPRODUCT((BT$3=المنصرف!$E$3:$E$717)*1,('بيان العهد والتسويات'!$C25=المنصرف!$C$3:$C$717)*1,المنصرف!$G$3:$G$717) -> 0 | BU25: =SUMPRODUCT((BT$3=المنصرف!$E$3:$E$717)*1,('بيان العهد والتسويات'!$C25=المنصرف!$C$3:$C$717)*1,المنصرف!$J$3:$J$717) -> 0 | BV25: =SUMPRODUCT((BV$3=المنصرف!$E$3:$E$717)*1,('بيان العهد والتسويات'!$C25=المنصرف!$C$3:$C$717)*1,المنصرف!$G$3:$G$717) -> 0 | BW25: =SUMPRODUCT((BV$3=المنصرف!$E$3:$E$717)*1,('بيان العهد والتسويات'!$C25=المنصرف!$C$3:$C$717)*1,المنصرف!$J$3:$J$717) -> 0 | BX25: =SUMPRODUCT((BX$3=المنصرف!$E$3:$E$717)*1,('بيان العهد والتسويات'!$C25=المنصرف!$C$3:$C$717)*1,المنصرف!$G$3:$G$717) -> 0 | BY25: =SUMPRODUCT((BX$3=المنصرف!$E$3:$E$717)*1,('بيان العهد والتسويات'!$C25=المنصرف!$C$3:$C$717)*1,المنصرف!$J$3:$J$717) -> 0 | BZ25: =SUMPRODUCT((BZ$3=المنصرف!$E$3:$E$717)*1,('بيان العهد والتسويات'!$C25=المنصرف!$C$3:$C$717)*1,المنصرف!$G$3:$G$717) -> 0 | CA25: =SUMPRODUCT((BZ$3=المنصرف!$E$3:$E$717)*1,('بيان العهد والتسويات'!$C25=المنصرف!$C$3:$C$717)*1,المنصرف!$J$3:$J$717) -> 0 | CB25: =SUMPRODUCT((CB$3=المنصرف!$E$3:$E$717)*1,('بيان العهد والتسويات'!$C25=المنصرف!$C$3:$C$717)*1,المنصرف!$G$3:$G$717) -> 0 | CC25: =SUMPRODUCT((CB$3=المنصرف!$E$3:$E$717)*1,('بيان العهد والتسويات'!$C25=المنصرف!$C$3:$C$717)*1,المنصرف!$J$3:$J$717) -> 0 | CD25: =SUMPRODUCT((CD$3=المنصرف!$E$3:$E$717)*1,('بيان العهد والتسويات'!$C25=المنصرف!$C$3:$C$717)*1,المنصرف!$G$3:$G$717) -> 0 | CE25: =SUMPRODUCT((CD$3=المنصرف!$E$3:$E$717)*1,('بيان العهد والتسويات'!$C25=المنصرف!$C$3:$C$717)*1,المنصرف!$J$3:$J$717) -> 0 | CF25: =SUMPRODUCT((CF$3=المنصرف!$E$3:$E$717)*1,('بيان العهد والتسويات'!$C25=المنصرف!$C$3:$C$717)*1,المنصرف!$G$3:$G$717) -> 0 | CG25: =SUMPRODUCT((CF$3=المنصرف!$E$3:$E$717)*1,('بيان العهد والتسويات'!$C25=المنصرف!$C$3:$C$717)*1,المنصرف!$J$3:$J$717) -> 0 | CH25: =SUMPRODUCT((CH$3=المنصرف!$E$3:$E$717)*1,('بيان العهد والتسويات'!$C25=المنصرف!$C$3:$C$717)*1,المنصرف!$G$3:$G$717) -> 0 | CI25: =SUMPRODUCT((CH$3=المنصرف!$E$3:$E$717)*1,('بيان العهد والتسويات'!$C25=المنصرف!$C$3:$C$717)*1,المنصرف!$J$3:$J$717) -> 0 | CJ25: =SUMPRODUCT((CJ$3=المنصرف!$E$3:$E$717)*1,('بيان العهد والتسويات'!$C25=المنصرف!$C$3:$C$717)*1,المنصرف!$G$3:$G$717) -> 0 | CK25: =SUMPRODUCT((CJ$3=المنصرف!$E$3:$E$717)*1,('بيان العهد والتسويات'!$C25=المنصرف!$C$3:$C$717)*1,المنصرف!$J$3:$J$717) -> 0 | CL25: =SUMPRODUCT((CL$3=المنصرف!$E$3:$E$717)*1,('بيان العهد والتسويات'!$C25=المنصرف!$C$3:$C$717)*1,المنصرف!$G$3:$G$717) -> 0 | CM25: =SUMPRODUCT((CL$3=المنصرف!$E$3:$E$717)*1,('بيان العهد والتسويات'!$C25=المنصرف!$C$3:$C$717)*1,المنصرف!$J$3:$J$717) -> 0 | CN25: =SUMPRODUCT((CN$3=المنصرف!$E$3:$E$717)*1,('بيان العهد والتسويات'!$C25=المنصرف!$C$3:$C$717)*1,المنصرف!$G$3:$G$717) -> 0 | CO25: =SUMPRODUCT((CN$3=المنصرف!$E$3:$E$717)*1,('بيان العهد والتسويات'!$C25=المنصرف!$C$3:$C$717)*1,المنصرف!$J$3:$J$717) -> 0 | CP25: =SUMPRODUCT((CP$3=المنصرف!$E$3:$E$717)*1,('بيان العهد والتسويات'!$C25=المنصرف!$C$3:$C$717)*1,المنصرف!$G$3:$G$717) -> 0 | CQ25: =SUMPRODUCT((CP$3=المنصرف!$E$3:$E$717)*1,('بيان العهد والتسويات'!$C25=المنصرف!$C$3:$C$717)*1,المنصرف!$J$3:$J$717) -> 0 | CR25: =SUMPRODUCT((CR$3=المنصرف!$E$3:$E$717)*1,('بيان العهد والتسويات'!$C25=المنصرف!$C$3:$C$717)*1,المنصرف!$G$3:$G$717) -> 0 | CS25: =SUMPRODUCT((CR$3=المنصرف!$E$3:$E$717)*1,('بيان العهد والتسويات'!$C25=المنصرف!$C$3:$C$717)*1,المنصرف!$J$3:$J$717) -> 0 | CT25: =SUMPRODUCT((CT$3=المنصرف!$E$3:$E$717)*1,('بيان العهد والتسويات'!$C25=المنصرف!$C$3:$C$717)*1,المنصرف!$G$3:$G$717) -> 0 | CU25: =SUMPRODUCT((CT$3=المنصرف!$E$3:$E$717)*1,('بيان العهد والتسويات'!$C25=المنصرف!$C$3:$C$717)*1,المنصرف!$J$3:$J$717) -> 0 | CV25: =SUMPRODUCT((CV$3=المنصرف!$E$3:$E$717)*1,('بيان العهد والتسويات'!$C25=المنصرف!$C$3:$C$717)*1,المنصرف!$G$3:$G$717) -> 0 | CW25: =SUMPRODUCT((CV$3=المنصرف!$E$3:$E$717)*1,('بيان العهد والتسويات'!$C25=المنصرف!$C$3:$C$717)*1,المنصرف!$J$3:$J$717) -> 0 | CX25: =SUMPRODUCT((CX$3=المنصرف!$E$3:$E$717)*1,('بيان العهد والتسويات'!$C25=المنصرف!$C$3:$C$717)*1,المنصرف!$G$3:$G$717) -> 0 | CY25: =SUMPRODUCT((CX$3=المنصرف!$E$3:$E$717)*1,('بيان العهد والتسويات'!$C25=المنصرف!$C$3:$C$717)*1,المنصرف!$J$3:$J$717) -> 0 | CZ25: =SUMPRODUCT((CZ$3=المنصرف!$E$3:$E$717)*1,('بيان العهد والتسويات'!$C25=المنصرف!$C$3:$C$717)*1,المنصرف!$G$3:$G$717) -> 0 | DA25: =SUMPRODUCT((CZ$3=المنصرف!$E$3:$E$717)*1,('بيان العهد والتسويات'!$C25=المنصرف!$C$3:$C$717)*1,المنصرف!$J$3:$J$717) -> 0
